Workbook

Sheet Explications
A1: Les intégrammes
A18: Il suffit de cliquer sur chaque case pour donner sa réponse : Ne rien écrire en dehors de ce tableau au risque de modifier les formules de calcul.
A20: Oui : | B20: O
A21: Non : | B21: X
A22: Sais pas :

Sheet 3 indices
A1: I°/ Les sports préférés :
A2: =INDIRECT("'Calculs 3 indices'!B"&A5) ->  | F2: =INDIRECT("'Calculs 3 indices'!F"&(A5+11)) -> 
A3: =INDIRECT("'Calculs 3 indices'!B"&(A5+11)) ->  | F3: =INDIRECT("'Calculs 3 indices'!F"&(A5+12)) -> 
C4: Âge | F4: Sport | M4: =C4 -> Âge | P4: =F4 -> Sport
A5: 1 | C5: 15 | D5: 17 | E5: 19 | F5: =B9 -> Hand | G5: =B10 -> Foot | H5: =B11 -> Rugby | M5: =C5 -> 15 | N5: =D5 -> 17 | O5: 19 | P5: Hand | Q5: Foot | R5: Rugby
A6: Prénom | B6: Albert | K6: =A6 -> Prénom | L6: =B6 -> Albert | M6: =IF(OR(D6="o",E6="o",C7="o",C8="o",C6="x"),"x",IF(OR(C6="o",AND(D6="x",E6="x"),AND(C7="x",C8="x")),"o","")) ->  | N6: =IF(OR(C6="o",E6="o",D7="o",D8="o",D6="x"),"x",IF(OR(D6="o",AND(C6="x",E6="x"),AND(D7="x",D8="x")),"o","")) ->  | O6: =IF(OR(C6="o",D6="o",E7="o",E8="o",E6="x"),"x",IF(OR(E6="o",AND(C6="x",D6="x"),AND(E7="x",E8="x")),"o","")) ->  | P6: =IF(OR(G6="o",H6="o",F7="o",F8="o",F6="x"),"x",IF(OR(F6="o",AND(G6="x",H6="x"),AND(F7="x",F8="x")),"o","")) ->  | Q6: =IF(OR(F6="o",H6="o",G7="o",G8="o",G6="x"),"x",IF(OR(G6="o",AND(F6="x",H6="x"),AND(G7="x",G8="x")),"o","")) ->  | R6: =IF(OR(F6="o",G6="o",H7="o",H8="o",H6="x"),"x",IF(OR(H6="o",AND(F6="x",G6="x"),AND(H7="x",H8="x")),"o","")) -> 
B7: Benoit | L7: =B7 -> Benoit | M7: =IF(OR(D7="o",E7="o",C6="o",C8="o",C7="x"),"x",IF(OR(C7="o",AND(D7="x",E7="x"),AND(C6="x",C8="x")),"o","")) ->  | N7: =IF(OR(C7="o",E7="o",D6="o",D8="o",D7="x"),"x",IF(OR(D7="o",AND(C7="x",E7="x"),AND(D6="x",D8="x")),"o","")) ->  | O7: =IF(OR(C7="o",D7="o",E8="o",E6="o",E7="x"),"x",IF(OR(E7="o",AND(C7="x",D7="x"),AND(E6="x",E8="x")),"o","")) ->  | P7: =IF(OR(G7="o",H7="o",F6="o",F8="o",F7="x"),"x",IF(OR(F7="o",AND(G7="x",H7="x"),AND(F6="x",F8="x")),"o","")) ->  | Q7: =IF(OR(F7="o",H7="o",G6="o",G8="o",G7="x"),"x",IF(OR(G7="o",AND(F7="x",H7="x"),AND(G6="x",G8="x")),"o","")) ->  | R7: =IF(OR(F7="o",G7="o",H6="o",H8="o",H7="x"),"x",IF(OR(H7="o",AND(F7="x",G7="x"),AND(H6="x",H8="x")),"o","")) -> 
B8: Charles | L8: Charles | M8: =IF(OR(D8="o",E8="o",C6="o",C7="o",C8="x"),"x",IF(OR(C8="o",AND(D8="x",E8="x"),AND(C6="x",C7="x")),"o","")) ->  | N8: =IF(OR(C8="o",E8="o",D6="o",D7="o",D8="x"),"x",IF(OR(D8="o",AND(C8="x",E8="x"),AND(D6="x",D7="x")),"o","")) ->  | O8: =IF(OR(C8="o",D8="o",E6="o",E7="o",E8="x"),"x",IF(OR(E8="o",AND(C8="x",D8="x"),AND(E6="x",E7="x")),"o","")) ->  | P8: =IF(OR(G8="o",H8="o",F6="o",F7="o",F8="x"),"x",IF(OR(F8="o",AND(G8="x",H8="x"),AND(F6="x",F7="x")),"o","")) ->  | Q8: =IF(OR(F8="o",H8="o",G6="o",G7="o",G8="x"),"x",IF(OR(G8="o",AND(F8="x",H8="x"),AND(G6="x",G7="x")),"o","")) ->  | R8: =IF(OR(F8="o",G8="o",H6="o",H7="o",H8="x"),"x",IF(OR(H8="o",AND(F8="x",G8="x"),AND(H6="x",H7="x")),"o","")) -> 
A9: Sport | B9: Hand | K9: =A9 -> Sport | L9: Hand | M9: =IF(OR(D9="o",E9="o",C10="o",C11="o",C9="x"),"x",IF(OR(C9="o",AND(D9="x",E9="x"),AND(C10="x",C11="x")),"o","")) ->  | N9: =IF(OR(C9="o",E9="o",D10="o",D11="o",D9="x"),"x",IF(OR(D9="o",AND(C9="x",E9="x"),AND(D10="x",D11="x")),"o","")) ->  | O9: =IF(OR(C9="o",D9="o",E10="o",E11="o",E9="x"),"x",IF(OR(E9="o",AND(C9="x",D9="x"),AND(E10="x",E11="x")),"o","")) -> 
B10: Foot | G10: =IF(AND(C20=G20,D20=H20,C21=G21,D21=H21,C22=G22,D22=H22),"BRAVO !!","") ->  | L10: Foot | M10: =IF(OR(D10="o",E10="o",C9="o",C11="o",C10="x"),"x",IF(OR(C10="o",AND(D10="x",E10="x"),AND(C9="x",C11="x")),"o","")) ->  | N10: =IF(OR(C10="o",E10="o",D9="o",D11="o",D10="x"),"x",IF(OR(D10="o",AND(C10="x",E10="x"),AND(D9="x",D11="x")),"o","")) ->  | O10: =IF(OR(C10="o",D10="o",E9="o",E11="o",E10="x"),"x",IF(OR(E10="o",AND(C10="x",D10="x"),AND(E9="x",E11="x")),"o","")) -> 
B11: Rugby | L11: Rugby | M11: =IF(OR(D11="o",E11="o",C9="o",C10="o",C11="x"),"x",IF(OR(C11="o",AND(D11="x",E11="x"),AND(C9="x",C10="x")),"o","")) ->  | N11: =IF(OR(C11="o",E11="o",D9="o",D10="o",D11="x"),"x",IF(OR(D11="o",AND(C11="x",E11="x"),AND(D9="x",D10="x")),"o","")) ->  | O11: =IF(OR(C11="o",D11="o",E9="o",E10="o",E11="x"),"x",IF(OR(E11="o",AND(C11="x",D11="x"),AND(E9="x",E10="x")),"o","")) -> 
A13: Chaque enfant n'aime qu' un seul jeu.
A14: Charles est plus âgé que Benoit. Celui qui joue au Rugby a juste 17 ans.
A15: Albert qui n'est pas le plus jeune joue au Hand.
A16: Retrouvez les jeux préférés et les âges des trois garçons .
B18: Réponses : se remplit seul, ne rien y écrire.
B19: =A6 -> Prénom | C19: =C4 -> Âge | D19: =F4 -> Sport | F19: =B19 -> Prénom | G19: =C19 -> Âge | H19: Sport
B20: =B6 -> Albert | C20: =IF(C6="o",C5,IF(D6="o",D5,IF(E6="o",E5,""))) ->  | D20: =IF(F6="o",F5,IF(G6="o",G5,IF(H6="o",H5,""))) ->  | F20: =B20 -> Albert | G20: 19 | H20: Hand
B21: =B7 -> Benoit | C21: =IF(C7="o",C5,IF(D7="o",D5,IF(E7="o",E5,""))) ->  | D21: =IF(F7="o",F5,IF(G7="o",G5,IF(H7="o",H5,""))) ->  | F21: Benoit | G21: 15 | H21: Foot
B22: Charles | C22: =IF(C8="o",C5,IF(D8="o",D5,IF(E8="o",E5,""))) ->  | D22: =IF(F8="o",F5,IF(G8="o",G5,IF(H8="o",H5,""))) ->  | F22: Charles | G22: 17 | H22: Rugby
A23: II°/ Trois mathématiciens :
A24: =INDIRECT("'Calculs 3 indices'!B"&A27) ->  | F24: =INDIRECT("'Calculs 3 indices'!F"&(A27+11)) -> 
A25: =INDIRECT("'Calculs 3 indices'!B"&(A27+11)) ->  | F25: =INDIRECT("'Calculs 3 indices'!F"&(A27+12)) -> 
C26: Ville | F26: Année de naissance | M26: =C26 -> Ville | P26: =F26 -> Année de naissance
A27: =A5+24 -> 25 | C27: Perge | D27: Syracuse | E27: Cyréne | F27: =B31 -> 287 av J.C. | G27: =B32 -> 262 av J.C. | H27: =B33 -> 276 av J.C. | M27: =C27 -> Perge | N27: =D27 -> Syracuse | O27: =E27 -> Cyréne | P27: =F27 -> 287 av J.C. | Q27: =G27 -> 262 av J.C. | R27: =H27 -> 276 av J.C.
A28: Nom | B28: Eratosthène | K28: =A28 -> Nom | L28: =B28 -> Eratosthène | M28: =IF(OR(D28="o",E28="o",C29="o",C30="o",C28="x"),"x",IF(OR(C28="o",AND(D28="x",E28="x"),AND(C29="x",C30="x")),"o","")) ->  | N28: =IF(OR(C28="o",E28="o",D29="o",D30="o",D28="x"),"x",IF(OR(D28="o",AND(C28="x",E28="x"),AND(D29="x",D30="x")),"o","")) ->  | O28: =IF(OR(C28="o",D28="o",E29="o",E30="o",E28="x"),"x",IF(OR(E28="o",AND(C28="x",D28="x"),AND(E29="x",E30="x")),"o","")) ->  | P28: =IF(OR(G28="o",H28="o",F29="o",F30="o",F28="x"),"x",IF(OR(F28="o",AND(G28="x",H28="x"),AND(F29="x",F30="x")),"o","")) ->  | Q28: =IF(OR(F28="o",H28="o",G29="o",G30="o",G28="x"),"x",IF(OR(G28="o",AND(F28="x",H28="x"),AND(G29="x",G30="x")),"o","")) ->  | R28: =IF(OR(F28="o",G28="o",H29="o",H30="o",H28="x"),"x",IF(OR(H28="o",AND(F28="x",G28="x"),AND(H29="x",H30="x")),"o","")) -> 
B29: Archimède | L29: =B29 -> Archimède | M29: =IF(OR(D29="o",E29="o",C28="o",C30="o",C29="x"),"x",IF(OR(C29="o",AND(D29="x",E29="x"),AND(C28="x",C30="x")),"o","")) ->  | N29: =IF(OR(C29="o",E29="o",D28="o",D30="o",D29="x"),"x",IF(OR(D29="o",AND(C29="x",E29="x"),AND(D28="x",D30="x")),"o","")) ->  | O29: =IF(OR(C29="o",D29="o",E30="o",E28="o",E29="x"),"x",IF(OR(E29="o",AND(C29="x",D29="x"),AND(E28="x",E30="x")),"o","")) ->  | P29: =IF(OR(G29="o",H29="o",F28="o",F30="o",F29="x"),"x",IF(OR(F29="o",AND(G29="x",H29="x"),AND(F28="x",F30="x")),"o","")) ->  | Q29: =IF(OR(F29="o",H29="o",G28="o",G30="o",G29="x"),"x",IF(OR(G29="o",AND(F29="x",H29="x"),AND(G28="x",G30="x")),"o","")) ->  | R29: =IF(OR(F29="o",G29="o",H28="o",H30="o",H29="x"),"x",IF(OR(H29="o",AND(F29="x",G29="x"),AND(H28="x",H30="x")),"o","")) -> 
B30: Apollonius | L30: Apollonius | M30: =IF(OR(D30="o",E30="o",C28="o",C29="o",C30="x"),"x",IF(OR(C30="o",AND(D30="x",E30="x"),AND(C28="x",C29="x")),"o","")) ->  | N30: =IF(OR(C30="o",E30="o",D28="o",D29="o",D30="x"),"x",IF(OR(D30="o",AND(C30="x",E30="x"),AND(D28="x",D29="x")),"o","")) ->  | O30: =IF(OR(C30="o",D30="o",E28="o",E29="o",E30="x"),"x",IF(OR(E30="o",AND(C30="x",D30="x"),AND(E28="x",E29="x")),"o","")) ->  | P30: =IF(OR(G30="o",H30="o",F28="o",F29="o",F30="x"),"x",IF(OR(F30="o",AND(G30="x",H30="x"),AND(F28="x",F29="x")),"o","")) ->  | Q30: =IF(OR(F30="o",H30="o",G28="o",G29="o",G30="x"),"x",IF(OR(G30="o",AND(F30="x",H30="x"),AND(G28="x",G29="x")),"o","")) ->  | R30: =IF(OR(F30="o",G30="o",H28="o",H29="o",H30="x"),"x",IF(OR(H30="o",AND(F30="x",G30="x"),AND(H28="x",H29="x")),"o","")) -> 
A31: Année | B31: 287 av J.C. | K31: =A31 -> Année | L31: 287 av J.C. | M31: =IF(OR(D31="o",E31="o",C32="o",C33="o",C31="x"),"x",IF(OR(C31="o",AND(D31="x",E31="x"),AND(C32="x",C33="x")),"o","")) ->  | N31: =IF(OR(C31="o",E31="o",D32="o",D33="o",D31="x"),"x",IF(OR(D31="o",AND(C31="x",E31="x"),AND(D32="x",D33="x")),"o","")) ->  | O31: =IF(OR(C31="o",D31="o",E32="o",E33="o",E31="x"),"x",IF(OR(E31="o",AND(C31="x",D31="x"),AND(E32="x",E33="x")),"o","")) -> 
B32: 262 av J.C. | L32: 262 av J.C. | M32: =IF(OR(D32="o",E32="o",C31="o",C33="o",C32="x"),"x",IF(OR(C32="o",AND(D32="x",E32="x"),AND(C31="x",C33="x")),"o","")) ->  | N32: =IF(OR(C32="o",E32="o",D31="o",D33="o",D32="x"),"x",IF(OR(D32="o",AND(C32="x",E32="x"),AND(D31="x",D33="x")),"o","")) ->  | O32: =IF(OR(C32="o",D32="o",E31="o",E33="o",E32="x"),"x",IF(OR(E32="o",AND(C32="x",D32="x"),AND(E31="x",E33="x")),"o","")) -> 
B33: 276 av J.C. | L33: 276 av J.C. | M33: =IF(OR(D33="o",E33="o",C31="o",C32="o",C33="x"),"x",IF(OR(C33="o",AND(D33="x",E33="x"),AND(C31="x",C32="x")),"o","")) ->  | N33: =IF(OR(C33="o",E33="o",D31="o",D32="o",D33="x"),"x",IF(OR(D33="o",AND(C33="x",E33="x"),AND(D31="x",D32="x")),"o","")) ->  | O33: =IF(OR(C33="o",D33="o",E31="o",E32="o",E33="x"),"x",IF(OR(E33="o",AND(C33="x",D33="x"),AND(E31="x",E32="x")),"o","")) -> 
A35: Eratosthène, Archimède et Apollonius sont 3 mathématiciens Grecs sont nés avant J.C. dans les villes de Perge , Syracuse et Cyrène.
A36: En 276 avant J.C.à Cyrène naquit l'un d'entre eux mais ce n'est pas Archimède.
A37: Apollonius est né à Perge, mais ce n'est pas le plus ancien des trois.
A38: Trouver les villes et l'année de naissance de ces trois grand Mathématiciens.
B40: Réponses : se remplit seul, ne rien y écrire.
B41: =A28 -> Nom | C41: =C26 -> Ville | D41: =F26 -> Année de naissance | F41: =B41 -> Nom | G41: =C41 -> Ville | H41: =D41 -> Année de naissance
B42: =B28 -> Eratosthène | C42: =IF(C28="o",C27,IF(D28="o",D27,IF(E28="o",E27,""))) ->  | D42: =IF(F28="o",F27,IF(G28="o",G27,IF(H28="o",H27,""))) ->  | F42: =B42 -> Eratosthène | G42: Cyréne | H42: 276 av J.C.
B43: =B29 -> Archimède | C43: =IF(C29="o",C27,IF(D29="o",D27,IF(E29="o",E27,""))) ->  | D43: =IF(F29="o",F27,IF(G29="o",G27,IF(H29="o",H27,""))) ->  | F43: Archimède | G43: Syracuse | H43: 287 av J.C.
B44: Apollonius | C44: =IF(C30="o",C27,IF(D30="o",D27,IF(E30="o",E27,""))) ->  | D44: =IF(F30="o",F27,IF(G30="o",G27,IF(H30="o",H27,""))) ->  | F44: Apollonius | G44: Perge | H44: 262 av J.C.
A45: III°/ Trois grandes tours : | D45: ='Calculs 3 indices'!B49 ->  | H45: ='Calculs 3 indices'!F60 -> 
A46: =INDIRECT("'Calculs 3 indices'!B"&A49) ->  | F46: =INDIRECT("'Calculs 3 indices'!F"&(A49+11)) -> 
A47: =INDIRECT("'Calculs 3 indices'!B"&(A49+11)) ->  | F47: =INDIRECT("'Calculs 3 indices'!F"&(A49+12)) -> 
C48: Hauteur | F48: Forme | M48: =C48 -> Hauteur | P48: =F48 -> Forme
A49: =A27+24 -> 49 | C49: 514,8 m | D49: 541 m | E49: 705 m | F49: =B53 -> Hélicoïdale | G49: =B54 -> Hymenocallis | H49: =B55 -> Flèche en haut | M49: =C49 -> 514,8 m | N49: =D49 -> 541 m | O49: =E49 -> 705 m | P49: =F49 -> Hélicoïdale | Q49: =G49 -> Hymenocallis | R49: =H49 -> Flèche en haut
A50: Pays | B50: Emirats Arabes Unis | K50: =A50 -> Pays | L50: =B50 -> Emirats Arabes Unis | M50: =IF(OR(D50="o",E50="o",C51="o",C52="o",C50="x"),"x",IF(OR(C50="o",AND(D50="x",E50="x"),AND(C51="x",C52="x")),"o","")) ->  | N50: =IF(OR(C50="o",E50="o",D51="o",D52="o",D50="x"),"x",IF(OR(D50="o",AND(C50="x",E50="x"),AND(D51="x",D52="x")),"o","")) ->  | O50: =IF(OR(C50="o",D50="o",E51="o",E52="o",E50="x"),"x",IF(OR(E50="o",AND(C50="x",D50="x"),AND(E51="x",E52="x")),"o","")) ->  | P50: =IF(OR(G50="o",H50="o",F51="o",F52="o",F50="x"),"x",IF(OR(F50="o",AND(G50="x",H50="x"),AND(F51="x",F52="x")),"o","")) ->  | Q50: =IF(OR(F50="o",H50="o",G51="o",G52="o",G50="x"),"x",IF(OR(G50="o",AND(F50="x",H50="x"),AND(G51="x",G52="x")),"o","")) ->  | R50: =IF(OR(F50="o",G50="o",H51="o",H52="o",H50="x"),"x",IF(OR(H50="o",AND(F50="x",G50="x"),AND(H51="x",H52="x")),"o","")) -> 
B51: Chine | L51: =B51 -> Chine | M51: =IF(OR(D51="o",E51="o",C50="o",C52="o",C51="x"),"x",IF(OR(C51="o",AND(D51="x",E51="x"),AND(C50="x",C52="x")),"o","")) ->  | N51: =IF(OR(C51="o",E51="o",D50="o",D52="o",D51="x"),"x",IF(OR(D51="o",AND(C51="x",E51="x"),AND(D50="x",D52="x")),"o","")) ->  | O51: =IF(OR(C51="o",D51="o",E52="o",E50="o",E51="x"),"x",IF(OR(E51="o",AND(C51="x",D51="x"),AND(E50="x",E52="x")),"o","")) ->  | P51: =IF(OR(G51="o",H51="o",F50="o",F52="o",F51="x"),"x",IF(OR(F51="o",AND(G51="x",H51="x"),AND(F50="x",F52="x")),"o","")) ->  | Q51: =IF(OR(F51="o",H51="o",G50="o",G52="o",G51="x"),"x",IF(OR(G51="o",AND(F51="x",H51="x"),AND(G50="x",G52="x")),"o","")) ->  | R51: =IF(OR(F51="o",G51="o",H50="o",H52="o",H51="x"),"x",IF(OR(H51="o",AND(F51="x",G51="x"),AND(H50="x",H52="x")),"o","")) -> 
B52: Etats-Unis | L52: Etats-Unis | M52: =IF(OR(D52="o",E52="o",C50="o",C51="o",C52="x"),"x",IF(OR(C52="o",AND(D52="x",E52="x"),AND(C50="x",C51="x")),"o","")) ->  | N52: =IF(OR(C52="o",E52="o",D50="o",D51="o",D52="x"),"x",IF(OR(D52="o",AND(C52="x",E52="x"),AND(D50="x",D51="x")),"o","")) ->  | O52: =IF(OR(C52="o",D52="o",E50="o",E51="o",E52="x"),"x",IF(OR(E52="o",AND(C52="x",D52="x"),AND(E50="x",E51="x")),"o","")) ->  | P52: =IF(OR(G52="o",H52="o",F50="o",F51="o",F52="x"),"x",IF(OR(F52="o",AND(G52="x",H52="x"),AND(F50="x",F51="x")),"o","")) ->  | Q52: =IF(OR(F52="o",H52="o",G50="o",G51="o",G52="x"),"x",IF(OR(G52="o",AND(F52="x",H52="x"),AND(G50="x",G51="x")),"o","")) ->  | R52: =IF(OR(F52="o",G52="o",H50="o",H51="o",H52="x"),"x",IF(OR(H52="o",AND(F52="x",G52="x"),AND(H50="x",H51="x")),"o","")) -> 
A53: Forme | B53: Hélicoïdale | K53: =A53 -> Forme | L53: Hélicoïdale | M53: =IF(OR(D53="o",E53="o",C54="o",C55="o",C53="x"),"x",IF(OR(C53="o",AND(D53="x",E53="x"),AND(C54="x",C55="x")),"o","")) ->  | N53: =IF(OR(C53="o",E53="o",D54="o",D55="o",D53="x"),"x",IF(OR(D53="o",AND(C53="x",E53="x"),AND(D54="x",D55="x")),"o","")) ->  | O53: =IF(OR(C53="o",D53="o",E54="o",E55="o",E53="x"),"x",IF(OR(E53="o",AND(C53="x",D53="x"),AND(E54="x",E55="x")),"o","")) -> 
B54: Hymenocallis | G54: =IF(AND(C64=G64,D64=H64,C65=G65,D65=H65,C66=G66,D66=H66),"BRAVO !!","") ->  | L54: Hymenocallis | M54: =IF(OR(D54="o",E54="o",C53="o",C55="o",C54="x"),"x",IF(OR(C54="o",AND(D54="x",E54="x"),AND(C53="x",C55="x")),"o","")) ->  | N54: =IF(OR(C54="o",E54="o",D53="o",D55="o",D54="x"),"x",IF(OR(D54="o",AND(C54="x",E54="x"),AND(D53="x",D55="x")),"o","")) ->  | O54: =IF(OR(C54="o",D54="o",E53="o",E55="o",E54="x"),"x",IF(OR(E54="o",AND(C54="x",D54="x"),AND(E53="x",E55="x")),"o","")) -> 
B55: Flèche en haut | L55: Flèche en haut | M55: =IF(OR(D55="o",E55="o",C53="o",C54="o",C55="x"),"x",IF(OR(C55="o",AND(D55="x",E55="x"),AND(C53="x",C54="x")),"o","")) ->  | N55: =IF(OR(C55="o",E55="o",D53="o",D54="o",D55="x"),"x",IF(OR(D55="o",AND(C55="x",E55="x"),AND(D53="x",D54="x")),"o","")) ->  | O55: =IF(OR(C55="o",D55="o",E53="o",E54="o",E55="x"),"x",IF(OR(E55="o",AND(C55="x",D55="x"),AND(E53="x",E54="x")),"o","")) -> 
A57: Trois futures grandes tours vont être construites dans les trois pays suivants : Chine, Etats-Unis, Emirats Arabes Unis.
A58: Elles seront terminées au alentour de 2010 ( 2008 pour la plus grande ), mais combien mesurent - t-elle ? et quelle est leur forme ?
A59: La future Tour "Guangzhou Twin Towers" de 514,8 m sera construite à Shangaï en Chine, mais n'est pas inspirée du Hymenocallis.
A60: La tour surmontée d'une flèche ne sera pas la plus grande du monde ni la plus petite.
A61: La plus grande tour ne sera pas construite au Etats-Unis.
B62: Réponses : se remplit seul, ne rien y écrire.
B63: =A50 -> Pays | C63: =C48 -> Hauteur | D63: =F48 -> Forme | F63: =B63 -> Pays | G63: =C63 -> Hauteur | H63: =D63 -> Forme
B64: =B50 -> Emirats Arabes Unis | C64: =IF(C50="o",C49,IF(D50="o",D49,IF(E50="o",E49,""))) ->  | D64: =IF(F50="o",F49,IF(G50="o",G49,IF(H50="o",H49,""))) ->  | F64: =B64 -> Emirats Arabes Unis | G64: 705 | H64: Hymenocallis
B65: =B51 -> Chine | C65: =IF(C51="o",C49,IF(D51="o",D49,IF(E51="o",E49,""))) ->  | D65: =IF(F51="o",F49,IF(G51="o",G49,IF(H51="o",H49,""))) ->  | F65: Chine | G65: 514.8 | H65: Hélicoïdale
B66: Etats-Unis | C66: =IF(C52="o",C49,IF(D52="o",D49,IF(E52="o",E49,""))) ->  | D66: =IF(F52="o",F49,IF(G52="o",G49,IF(H52="o",H49,""))) ->  | F66: Etats-Unis | G66: 541 | H66: Flèche en haut
A67: IV°/ Les pierres précieuses :
A68: =INDIRECT("'Calculs 3 indices'!B"&A71) ->  | F68: =INDIRECT("'Calculs 3 indices'!F"&(A71+11)) -> 
A69: =INDIRECT("'Calculs 3 indices'!B"&(A71+11)) ->  | F69: =INDIRECT("'Calculs 3 indices'!F"&(A71+12)) -> 
C70: Dureté | F70: Composition | M70: =C70 -> Dureté | P70: =F70 -> Composition
A71: =A49+24 -> 73 | C71: 7.5 | D71: 9 | E71: 10 | F71: =B75 -> Silicate d'Aluminium et de Béryllium | G71: =B76 -> Carbone | H71: =B77 -> Oxyde d'Aluminium | M71: =C71 -> 7.5 | N71: =D71 -> 9 | O71: =E71 -> 10 | P71: =F71 -> Silicate d'Aluminium et de Béryllium | Q71: =G71 -> Carbone | R71: =H71 -> Oxyde d'Aluminium
A72: Pierre | B72: Saphir & Rubis | K72: =A72 -> Pierre | L72: =B72 -> Saphir & Rubis | M72: =IF(OR(D72="o",E72="o",C73="o",C74="o",C72="x"),"x",IF(OR(C72="o",AND(D72="x",E72="x"),AND(C73="x",C74="x")),"o","")) ->  | N72: =IF(OR(C72="o",E72="o",D73="o",D74="o",D72="x"),"x",IF(OR(D72="o",AND(C72="x",E72="x"),AND(D73="x",D74="x")),"o","")) ->  | O72: =IF(OR(C72="o",D72="o",E73="o",E74="o",E72="x"),"x",IF(OR(E72="o",AND(C72="x",D72="x"),AND(E73="x",E74="x")),"o","")) ->  | P72: =IF(OR(G72="o",H72="o",F73="o",F74="o",F72="x"),"x",IF(OR(F72="o",AND(G72="x",H72="x"),AND(F73="x",F74="x")),"o","")) ->  | Q72: =IF(OR(F72="o",H72="o",G73="o",G74="o",G72="x"),"x",IF(OR(G72="o",AND(F72="x",H72="x"),AND(G73="x",G74="x")),"o","")) ->  | R72: =IF(OR(F72="o",G72="o",H73="o",H74="o",H72="x"),"x",IF(OR(H72="o",AND(F72="x",G72="x"),AND(H73="x",H74="x")),"o","")) -> 
B73: L'Emeraude | L73: =B73 -> L'Emeraude | M73: =IF(OR(D73="o",E73="o",C72="o",C74="o",C73="x"),"x",IF(OR(C73="o",AND(D73="x",E73="x"),AND(C72="x",C74="x")),"o","")) ->  | N73: =IF(OR(C73="o",E73="o",D72="o",D74="o",D73="x"),"x",IF(OR(D73="o",AND(C73="x",E73="x"),AND(D72="x",D74="x")),"o","")) ->  | O73: =IF(OR(C73="o",D73="o",E74="o",E72="o",E73="x"),"x",IF(OR(E73="o",AND(C73="x",D73="x"),AND(E72="x",E74="x")),"o","")) ->  | P73: =IF(OR(G73="o",H73="o",F72="o",F74="o",F73="x"),"x",IF(OR(F73="o",AND(G73="x",H73="x"),AND(F72="x",F74="x")),"o","")) ->  | Q73: =IF(OR(F73="o",H73="o",G72="o",G74="o",G73="x"),"x",IF(OR(G73="o",AND(F73="x",H73="x"),AND(G72="x",G74="x")),"o","")) ->  | R73: =IF(OR(F73="o",G73="o",H72="o",H74="o",H73="x"),"x",IF(OR(H73="o",AND(F73="x",G73="x"),AND(H72="x",H74="x")),"o","")) -> 
B74: Diamant | L74: Diamant | M74: =IF(OR(D74="o",E74="o",C72="o",C73="o",C74="x"),"x",IF(OR(C74="o",AND(D74="x",E74="x"),AND(C72="x",C73="x")),"o","")) ->  | N74: =IF(OR(C74="o",E74="o",D72="o",D73="o",D74="x"),"x",IF(OR(D74="o",AND(C74="x",E74="x"),AND(D72="x",D73="x")),"o","")) ->  | O74: =IF(OR(C74="o",D74="o",E72="o",E73="o",E74="x"),"x",IF(OR(E74="o",AND(C74="x",D74="x"),AND(E72="x",E73="x")),"o","")) ->  | P74: =IF(OR(G74="o",H74="o",F72="o",F73="o",F74="x"),"x",IF(OR(F74="o",AND(G74="x",H74="x"),AND(F72="x",F73="x")),"o","")) ->  | Q74: =IF(OR(F74="o",H74="o",G72="o",G73="o",G74="x"),"x",IF(OR(G74="o",AND(F74="x",H74="x"),AND(G72="x",G73="x")),"o","")) ->  | R74: =IF(OR(F74="o",G74="o",H72="o",H73="o",H74="x"),"x",IF(OR(H74="o",AND(F74="x",G74="x"),AND(H72="x",H73="x")),"o","")) -> 
A75: Composition | B75: Silicate d'Aluminium et de Béryllium | K75: =A75 -> Composition | L75: Silicate d'Aluminium et de Béryllium | M75: =IF(OR(D75="o",E75="o",C76="o",C77="o",C75="x"),"x",IF(OR(C75="o",AND(D75="x",E75="x"),AND(C76="x",C77="x")),"o","")) ->  | N75: =IF(OR(C75="o",E75="o",D76="o",D77="o",D75="x"),"x",IF(OR(D75="o",AND(C75="x",E75="x"),AND(D76="x",D77="x")),"o","")) ->  | O75: =IF(OR(C75="o",D75="o",E76="o",E77="o",E75="x"),"x",IF(OR(E75="o",AND(C75="x",D75="x"),AND(E76="x",E77="x")),"o","")) -> 
B76: Carbone | G76: =IF(AND(C86=G86,D86=H86,C87=G87,D87=H87,C88=G88,D88=H88),"BRAVO !!","") ->  | L76: Carbone | M76: =IF(OR(D76="o",E76="o",C75="o",C77="o",C76="x"),"x",IF(OR(C76="o",AND(D76="x",E76="x"),AND(C75="x",C77="x")),"o","")) ->  | N76: =IF(OR(C76="o",E76="o",D75="o",D77="o",D76="x"),"x",IF(OR(D76="o",AND(C76="x",E76="x"),AND(D75="x",D77="x")),"o","")) ->  | O76: =IF(OR(C76="o",D76="o",E75="o",E77="o",E76="x"),"x",IF(OR(E76="o",AND(C76="x",D76="x"),AND(E75="x",E77="x")),"o","")) -> 
B77: Oxyde d'Aluminium | L77: Oxyde d'Aluminium | M77: =IF(OR(D77="o",E77="o",C75="o",C76="o",C77="x"),"x",IF(OR(C77="o",AND(D77="x",E77="x"),AND(C75="x",C76="x")),"o","")) ->  | N77: =IF(OR(C77="o",E77="o",D75="o",D76="o",D77="x"),"x",IF(OR(D77="o",AND(C77="x",E77="x"),AND(D75="x",D76="x")),"o","")) ->  | O77: =IF(OR(C77="o",D77="o",E75="o",E76="o",E77="x"),"x",IF(OR(E77="o",AND(C77="x",D77="x"),AND(E75="x",E76="x")),"o","")) -> 
A79: le Saphir, le Rubis ( qui ont la même composition mais sont de couleurs différentes, bleu pour le Saphir et rouge pour le Rubis ) ,
A80: le Diamant ( transparent ) et l' Emeraude ( couleur verte ) .
A81: La pierre précieuse composée de d' Oxyde d'Aluminium qui a une dureté de 9 n'est pas l'Emeraude.
A82: Le Diamant est la plus dure des pierres précieuses, il n'est pas composé de Silicate d'Aluminium et de Béryllium.
A83: Mais savez vous de quoi sont composées ces 4 pierres et savez vous les classer de la moins dure à la plus dure ?
B84: Réponses : se remplit seul, ne rien y écrire.
B85: =A72 -> Pierre | C85: =C70 -> Dureté | D85: =F70 -> Composition | F85: =B85 -> Pierre | G85: =C85 -> Dureté | H85: =D85 -> Composition
B86: =B72 -> Saphir & Rubis | C86: =IF(C72="o",C71,IF(D72="o",D71,IF(E72="o",E71,""))) ->  | D86: =IF(F72="o",F71,IF(G72="o",G71,IF(H72="o",H71,""))) ->  | F86: =B86 -> Saphir & Rubis | G86: 9 | H86: Oxyde d'Aluminium
B87: =B73 -> L'Emeraude | C87: =IF(C73="o",C71,IF(D73="o",D71,IF(E73="o",E71,""))) ->  | D87: =IF(F73="o",F71,IF(G73="o",G71,IF(H73="o",H71,""))) ->  | F87: L'Emeraude | G87: 7.5 | H87: Silicate d'Aluminium et de Béryllium
B88: Diamant | C88: =IF(C74="o",C71,IF(D74="o",D71,IF(E74="o",E71,""))) ->  | D88: =IF(F74="o",F71,IF(G74="o",G71,IF(H74="o",H71,""))) ->  | F88: Diamant | G88: 10 | H88: Carbone
A89: V°/ Les patisseries :
A90: =INDIRECT("'Calculs 3 indices'!B"&A93) ->  | F90: =INDIRECT("'Calculs 3 indices'!F"&(A93+11)) -> 
A91: =INDIRECT("'Calculs 3 indices'!B"&(A93+11)) ->  | F91: =INDIRECT("'Calculs 3 indices'!F"&(A93+12)) -> 
C92: Région | F92: Type | M92: =C92 -> Région | P92: =F92 -> Type
A93: =A71+24 -> 97 | C93: Bresse | D93: Isére | E93: Bourgogne | F93: =B97 -> Viennoiserie | G93: =B98 -> Confiture | H93: =B99 -> Tourte | M93: =C93 -> Bresse | N93: =D93 -> Isére | O93: =E93 -> Bourgogne | P93: =F93 -> Viennoiserie | Q93: =G93 -> Confiture | R93: =H93 -> Tourte
A94: Gâteau | B94: Ruifard | K94: =A94 -> Gâteau | L94: =B94 -> Ruifard | M94: =IF(OR(D94="o",E94="o",C95="o",C96="o",C94="x"),"x",IF(OR(C94="o",AND(D94="x",E94="x"),AND(C95="x",C96="x")),"o","")) ->  | N94: =IF(OR(C94="o",E94="o",D95="o",D96="o",D94="x"),"x",IF(OR(D94="o",AND(C94="x",E94="x"),AND(D95="x",D96="x")),"o","")) ->  | O94: =IF(OR(C94="o",D94="o",E95="o",E96="o",E94="x"),"x",IF(OR(E94="o",AND(C94="x",D94="x"),AND(E95="x",E96="x")),"o","")) ->  | P94: =IF(OR(G94="o",H94="o",F95="o",F96="o",F94="x"),"x",IF(OR(F94="o",AND(G94="x",H94="x"),AND(F95="x",F96="x")),"o","")) ->  | Q94: =IF(OR(F94="o",H94="o",G95="o",G96="o",G94="x"),"x",IF(OR(G94="o",AND(F94="x",H94="x"),AND(G95="x",G96="x")),"o","")) ->  | R94: =IF(OR(F94="o",G94="o",H95="o",H96="o",H94="x"),"x",IF(OR(H94="o",AND(F94="x",G94="x"),AND(H95="x",H96="x")),"o","")) -> 
B95: Cramaillotte | L95: =B95 -> Cramaillotte | M95: =IF(OR(D95="o",E95="o",C94="o",C96="o",C95="x"),"x",IF(OR(C95="o",AND(D95="x",E95="x"),AND(C94="x",C96="x")),"o","")) ->  | N95: =IF(OR(C95="o",E95="o",D94="o",D96="o",D95="x"),"x",IF(OR(D95="o",AND(C95="x",E95="x"),AND(D94="x",D96="x")),"o","")) ->  | O95: =IF(OR(C95="o",D95="o",E96="o",E94="o",E95="x"),"x",IF(OR(E95="o",AND(C95="x",D95="x"),AND(E94="x",E96="x")),"o","")) ->  | P95: =IF(OR(G95="o",H95="o",F94="o",F96="o",F95="x"),"x",IF(OR(F95="o",AND(G95="x",H95="x"),AND(F94="x",F96="x")),"o","")) ->  | Q95: =IF(OR(F95="o",H95="o",G94="o",G96="o",G95="x"),"x",IF(OR(G95="o",AND(F95="x",H95="x"),AND(G94="x",G96="x")),"o","")) ->  | R95: =IF(OR(F95="o",G95="o",H94="o",H96="o",H95="x"),"x",IF(OR(H95="o",AND(F95="x",G95="x"),AND(H94="x",H96="x")),"o","")) -> 
B96: Corniotte | L96: Corniotte | M96: =IF(OR(D96="o",E96="o",C94="o",C95="o",C96="x"),"x",IF(OR(C96="o",AND(D96="x",E96="x"),AND(C94="x",C95="x")),"o","")) ->  | N96: =IF(OR(C96="o",E96="o",D94="o",D95="o",D96="x"),"x",IF(OR(D96="o",AND(C96="x",E96="x"),AND(D94="x",D95="x")),"o","")) ->  | O96: =IF(OR(C96="o",D96="o",E94="o",E95="o",E96="x"),"x",IF(OR(E96="o",AND(C96="x",D96="x"),AND(E94="x",E95="x")),"o","")) ->  | P96: =IF(OR(G96="o",H96="o",F94="o",F95="o",F96="x"),"x",IF(OR(F96="o",AND(G96="x",H96="x"),AND(F94="x",F95="x")),"o","")) ->  | Q96: =IF(OR(F96="o",H96="o",G94="o",G95="o",G96="x"),"x",IF(OR(G96="o",AND(F96="x",H96="x"),AND(G94="x",G95="x")),"o","")) ->  | R96: =IF(OR(F96="o",G96="o",H94="o",H95="o",H96="x"),"x",IF(OR(H96="o",AND(F96="x",G96="x"),AND(H94="x",H95="x")),"o","")) -> 
A97: Type | B97: Viennoiserie | K97: =A97 -> Type | L97: Viennoiserie | M97: =IF(OR(D97="o",E97="o",C98="o",C99="o",C97="x"),"x",IF(OR(C97="o",AND(D97="x",E97="x"),AND(C98="x",C99="x")),"o","")) ->  | N97: =IF(OR(C97="o",E97="o",D98="o",D99="o",D97="x"),"x",IF(OR(D97="o",AND(C97="x",E97="x"),AND(D98="x",D99="x")),"o","")) ->  | O97: =IF(OR(C97="o",D97="o",E98="o",E99="o",E97="x"),"x",IF(OR(E97="o",AND(C97="x",D97="x"),AND(E98="x",E99="x")),"o","")) -> 
B98: Confiture | G98: =IF(AND(C108=G108,D108=H108,C109=G109,D109=H109,C110=G110,D110=H110),"BRAVO !!","") ->  | L98: Confiture | M98: =IF(OR(D98="o",E98="o",C97="o",C99="o",C98="x"),"x",IF(OR(C98="o",AND(D98="x",E98="x"),AND(C97="x",C99="x")),"o","")) ->  | N98: =IF(OR(C98="o",E98="o",D97="o",D99="o",D98="x"),"x",IF(OR(D98="o",AND(C98="x",E98="x"),AND(D97="x",D99="x")),"o","")) ->  | O98: =IF(OR(C98="o",D98="o",E97="o",E99="o",E98="x"),"x",IF(OR(E98="o",AND(C98="x",D98="x"),AND(E97="x",E99="x")),"o","")) -> 
B99: Tourte | L99: Tourte | M99: =IF(OR(D99="o",E99="o",C97="o",C98="o",C99="x"),"x",IF(OR(C99="o",AND(D99="x",E99="x"),AND(C97="x",C98="x")),"o","")) ->  | N99: =IF(OR(C99="o",E99="o",D97="o",D98="o",D99="x"),"x",IF(OR(D99="o",AND(C99="x",E99="x"),AND(D97="x",D98="x")),"o","")) ->  | O99: =IF(OR(C99="o",D99="o",E97="o",E98="o",E99="x"),"x",IF(OR(E99="o",AND(C99="x",D99="x"),AND(E97="x",E98="x")),"o","")) -> 
A101: Chaque région de France possède sa spécialité patissière.
A102: La tourte vient d'Isére.
A103: La cramaillotte de Bourgogne n'est pas une Viennoiserie .
A104: En Bresse on ne connait pas le Ruifard, qui n'est pas une confiture, ni la cramaillotte.
B106: Réponses : se remplit seul, ne rien y écrire.
B107: =A94 -> Gâteau | C107: =C92 -> Région | D107: =F92 -> Type | F107: =B107 -> Gâteau | G107: =C107 -> Région | H107: =D107 -> Type
B108: =B94 -> Ruifard | C108: =IF(C94="o",C93,IF(D94="o",D93,IF(E94="o",E93,""))) ->  | D108: =IF(F94="o",F93,IF(G94="o",G93,IF(H94="o",H93,""))) ->  | F108: =B108 -> Ruifard | G108: Isére | H108: Tourte
B109: =B95 -> Cramaillotte | C109: =IF(C95="o",C93,IF(D95="o",D93,IF(E95="o",E93,""))) ->  | D109: =IF(F95="o",F93,IF(G95="o",G93,IF(H95="o",H93,""))) ->  | F109: Cramaillotte | G109: Bourgogne | H109: Confiture
B110: Corniotte | C110: =IF(C96="o",C93,IF(D96="o",D93,IF(E96="o",E93,""))) ->  | D110: =IF(F96="o",F93,IF(G96="o",G93,IF(H96="o",H93,""))) ->  | F110: Corniotte | G110: Bresse | H110: Viennoiserie
A111: VI°/ Les sports préférés :
A112: =INDIRECT("'Calculs 3 indices'!B"&A115) ->  | F112: =INDIRECT("'Calculs 3 indices'!F"&(A115+11)) -> 
A113: =INDIRECT("'Calculs 3 indices'!B"&(A115+11)) ->  | F113: =INDIRECT("'Calculs 3 indices'!F"&(A115+12)) -> 
C114: Métier | F114: Situation | M114: =C114 -> Métier | P114: =F114 -> Situation
A115: =A93+24 -> 121 | C115: Dentiste | D115: Comptable | E115: Sage femme | F115: Célibataire | G115: Marié-ée | H115: Fiancé-ée | M115: =C115 -> Dentiste | N115: =D115 -> Comptable | O115: =E115 -> Sage femme | P115: =F115 -> Célibataire | Q115: =G115 -> Marié-ée | R115: =H115 -> Fiancé-ée
A116: Prénom | B116: Benoit | K116: =A116 -> Prénom | L116: =B116 -> Benoit | M116: =IF(OR(D116="o",E116="o",C117="o",C118="o",C116="x"),"x",IF(OR(C116="o",AND(D116="x",E116="x"),AND(C117="x",C118="x")),"o","")) ->  | N116: =IF(OR(C116="o",E116="o",D117="o",D118="o",D116="x"),"x",IF(OR(D116="o",AND(C116="x",E116="x"),AND(D117="x",D118="x")),"o","")) ->  | O116: =IF(OR(C116="o",D116="o",E117="o",E118="o",E116="x"),"x",IF(OR(E116="o",AND(C116="x",D116="x"),AND(E117="x",E118="x")),"o","")) ->  | P116: =IF(OR(G116="o",H116="o",F117="o",F118="o",F116="x"),"x",IF(OR(F116="o",AND(G116="x",H116="x"),AND(F117="x",F118="x")),"o","")) ->  | Q116: =IF(OR(F116="o",H116="o",G117="o",G118="o",G116="x"),"x",IF(OR(G116="o",AND(F116="x",H116="x"),AND(G117="x",G118="x")),"o","")) ->  | R116: =IF(OR(F116="o",G116="o",H117="o",H118="o",H116="x"),"x",IF(OR(H116="o",AND(F116="x",G116="x"),AND(H117="x",H118="x")),"o","")) -> 
B117: Jean | L117: =B117 -> Jean | M117: =IF(OR(D117="o",E117="o",C116="o",C118="o",C117="x"),"x",IF(OR(C117="o",AND(D117="x",E117="x"),AND(C116="x",C118="x")),"o","")) ->  | N117: =IF(OR(C117="o",E117="o",D116="o",D118="o",D117="x"),"x",IF(OR(D117="o",AND(C117="x",E117="x"),AND(D116="x",D118="x")),"o","")) ->  | O117: =IF(OR(C117="o",D117="o",E118="o",E116="o",E117="x"),"x",IF(OR(E117="o",AND(C117="x",D117="x"),AND(E116="x",E118="x")),"o","")) ->  | P117: =IF(OR(G117="o",H117="o",F116="o",F118="o",F117="x"),"x",IF(OR(F117="o",AND(G117="x",H117="x"),AND(F116="x",F118="x")),"o","")) ->  | Q117: =IF(OR(F117="o",H117="o",G116="o",G118="o",G117="x"),"x",IF(OR(G117="o",AND(F117="x",H117="x"),AND(G116="x",G118="x")),"o","")) ->  | R117: =IF(OR(F117="o",G117="o",H116="o",H118="o",H117="x"),"x",IF(OR(H117="o",AND(F117="x",G117="x"),AND(H116="x",H118="x")),"o","")) -> 
B118: Sophie | L118: Sophie | M118: =IF(OR(D118="o",E118="o",C116="o",C117="o",C118="x"),"x",IF(OR(C118="o",AND(D118="x",E118="x"),AND(C116="x",C117="x")),"o","")) ->  | N118: =IF(OR(C118="o",E118="o",D116="o",D117="o",D118="x"),"x",IF(OR(D118="o",AND(C118="x",E118="x"),AND(D116="x",D117="x")),"o","")) ->  | O118: =IF(OR(C118="o",D118="o",E116="o",E117="o",E118="x"),"x",IF(OR(E118="o",AND(C118="x",D118="x"),AND(E116="x",E117="x")),"o","")) ->  | P118: =IF(OR(G118="o",H118="o",F116="o",F117="o",F118="x"),"x",IF(OR(F118="o",AND(G118="x",H118="x"),AND(F116="x",F117="x")),"o","")) ->  | Q118: =IF(OR(F118="o",H118="o",G116="o",G117="o",G118="x"),"x",IF(OR(G118="o",AND(F118="x",H118="x"),AND(G116="x",G117="x")),"o","")) ->  | R118: =IF(OR(F118="o",G118="o",H116="o",H117="o",H118="x"),"x",IF(OR(H118="o",AND(F118="x",G118="x"),AND(H116="x",H117="x")),"o","")) -> 
A119: Situation | B119: Célibataire | K119: =A119 -> Situation | L119: Célibataire | M119: =IF(OR(D119="o",E119="o",C120="o",C121="o",C119="x"),"x",IF(OR(C119="o",AND(D119="x",E119="x"),AND(C120="x",C121="x")),"o","")) ->  | N119: =IF(OR(C119="o",E119="o",D120="o",D121="o",D119="x"),"x",IF(OR(D119="o",AND(C119="x",E119="x"),AND(D120="x",D121="x")),"o","")) ->  | O119: =IF(OR(C119="o",D119="o",E120="o",E121="o",E119="x"),"x",IF(OR(E119="o",AND(C119="x",D119="x"),AND(E120="x",E121="x")),"o","")) -> 
B120: Marié-ée | G120: =IF(AND(C130=G130,D130=H130,C131=G131,D131=H131,C132=G132,D132=H132),"BRAVO !!","") ->  | L120: Marié-ée | M120: =IF(OR(D120="o",E120="o",C119="o",C121="o",C120="x"),"x",IF(OR(C120="o",AND(D120="x",E120="x"),AND(C119="x",C121="x")),"o","")) ->  | N120: =IF(OR(C120="o",E120="o",D119="o",D121="o",D120="x"),"x",IF(OR(D120="o",AND(C120="x",E120="x"),AND(D119="x",D121="x")),"o","")) ->  | O120: =IF(OR(C120="o",D120="o",E119="o",E121="o",E120="x"),"x",IF(OR(E120="o",AND(C120="x",D120="x"),AND(E119="x",E121="x")),"o","")) -> 
B121: Fiancé-ée | L121: Fiancé-ée | M121: =IF(OR(D121="o",E121="o",C119="o",C120="o",C121="x"),"x",IF(OR(C121="o",AND(D121="x",E121="x"),AND(C119="x",C120="x")),"o","")) ->  | N121: =IF(OR(C121="o",E121="o",D119="o",D120="o",D121="x"),"x",IF(OR(D121="o",AND(C121="x",E121="x"),AND(D119="x",D120="x")),"o","")) ->  | O121: =IF(OR(C121="o",D121="o",E119="o",E120="o",E121="x"),"x",IF(OR(E121="o",AND(C121="x",D121="x"),AND(E119="x",E120="x")),"o","")) -> 
A123: Benoit, Jean et Sophie travaille dans un cntre médical. Les infos suivantes ne sont pas genrées.
A124: Le comptable est un célibataire endurci.
A125: Sophie est marrié à un fils de Benoit.
A126: Benoit et Sophie gagnent plus quela sage femme.
A127: Quelle est la position respective de chaque personne ?
B128: Réponses : se remplit seul, ne rien y écrire.
B129: =A116 -> Prénom | C129: =C114 -> Métier | D129: =F114 -> Situation | F129: =B129 -> Prénom | G129: =C129 -> Métier | H129: =D129 -> Situation
B130: =B116 -> Benoit | C130: =IF(C116="o",C115,IF(D116="o",D115,IF(E116="o",E115,""))) ->  | D130: =IF(F116="o",F115,IF(G116="o",G115,IF(H116="o",H115,""))) ->  | F130: =B130 -> Benoit | G130: Comptable | H130: Célibataire
B131: =B117 -> Jean | C131: =IF(C117="o",C115,IF(D117="o",D115,IF(E117="o",E115,""))) ->  | D131: =IF(F117="o",F115,IF(G117="o",G115,IF(H117="o",H115,""))) ->  | F131: Jean | G131: Sage femme | H131: Fiancé-ée
B132: Sophie | C132: =IF(C118="o",C115,IF(D118="o",D115,IF(E118="o",E115,""))) ->  | D132: =IF(F118="o",F115,IF(G118="o",G115,IF(H118="o",H115,""))) ->  | F132: Sophie | G132: Dentiste | H132: Marié-ée
A133: VII°/ Qui est l'espion :
A134: =INDIRECT("'Calculs 3 indices'!B"&A137) ->  | F134: =INDIRECT("'Calculs 3 indices'!F"&(A137+11)) -> 
A135: =INDIRECT("'Calculs 3 indices'!B"&(A137+11)) ->  | F135: =INDIRECT("'Calculs 3 indices'!F"&(A137+12)) -> 
C136: Maison n° | F136: Métier | M136: =C136 -> Maison n° | P136: =F136 -> Métier
A137: =A115+24 -> 145 | C137: Première | D137: Seconde | E137: Troisième | F137: Voleur | G137: Musicien | H137: Espion | M137: =C137 -> Première | N137: =D137 -> Seconde | O137: =E137 -> Troisième | P137: =F137 -> Voleur | Q137: =G137 -> Musicien | R137: =H137 -> Espion
A138: Pays | B138: Français | K138: =A138 -> Pays | L138: =B138 -> Français | M138: =IF(OR(D138="o",E138="o",C139="o",C140="o",C138="x"),"x",IF(OR(C138="o",AND(D138="x",E138="x"),AND(C139="x",C140="x")),"o","")) ->  | N138: =IF(OR(C138="o",E138="o",D139="o",D140="o",D138="x"),"x",IF(OR(D138="o",AND(C138="x",E138="x"),AND(D139="x",D140="x")),"o","")) ->  | O138: =IF(OR(C138="o",D138="o",E139="o",E140="o",E138="x"),"x",IF(OR(E138="o",AND(C138="x",D138="x"),AND(E139="x",E140="x")),"o","")) ->  | P138: =IF(OR(G138="o",H138="o",F139="o",F140="o",F138="x"),"x",IF(OR(F138="o",AND(G138="x",H138="x"),AND(F139="x",F140="x")),"o","")) ->  | Q138: =IF(OR(F138="o",H138="o",G139="o",G140="o",G138="x"),"x",IF(OR(G138="o",AND(F138="x",H138="x"),AND(G139="x",G140="x")),"o","")) ->  | R138: =IF(OR(F138="o",G138="o",H139="o",H140="o",H138="x"),"x",IF(OR(H138="o",AND(F138="x",G138="x"),AND(H139="x",H140="x")),"o","")) -> 
B139: Chinois | L139: =B139 -> Chinois | M139: =IF(OR(D139="o",E139="o",C138="o",C140="o",C139="x"),"x",IF(OR(C139="o",AND(D139="x",E139="x"),AND(C138="x",C140="x")),"o","")) ->  | N139: =IF(OR(C139="o",E139="o",D138="o",D140="o",D139="x"),"x",IF(OR(D139="o",AND(C139="x",E139="x"),AND(D138="x",D140="x")),"o","")) ->  | O139: =IF(OR(C139="o",D139="o",E140="o",E138="o",E139="x"),"x",IF(OR(E139="o",AND(C139="x",D139="x"),AND(E138="x",E140="x")),"o","")) ->  | P139: =IF(OR(G139="o",H139="o",F138="o",F140="o",F139="x"),"x",IF(OR(F139="o",AND(G139="x",H139="x"),AND(F138="x",F140="x")),"o","")) ->  | Q139: =IF(OR(F139="o",H139="o",G138="o",G140="o",G139="x"),"x",IF(OR(G139="o",AND(F139="x",H139="x"),AND(G138="x",G140="x")),"o","")) ->  | R139: =IF(OR(F139="o",G139="o",H138="o",H140="o",H139="x"),"x",IF(OR(H139="o",AND(F139="x",G139="x"),AND(H138="x",H140="x")),"o","")) -> 
B140: Anglais | L140: Anglais | M140: =IF(OR(D140="o",E140="o",C138="o",C139="o",C140="x"),"x",IF(OR(C140="o",AND(D140="x",E140="x"),AND(C138="x",C139="x")),"o","")) ->  | N140: =IF(OR(C140="o",E140="o",D138="o",D139="o",D140="x"),"x",IF(OR(D140="o",AND(C140="x",E140="x"),AND(D138="x",D139="x")),"o","")) ->  | O140: =IF(OR(C140="o",D140="o",E138="o",E139="o",E140="x"),"x",IF(OR(E140="o",AND(C140="x",D140="x"),AND(E138="x",E139="x")),"o","")) ->  | P140: =IF(OR(G140="o",H140="o",F138="o",F139="o",F140="x"),"x",IF(OR(F140="o",AND(G140="x",H140="x"),AND(F138="x",F139="x")),"o","")) ->  | Q140: =IF(OR(F140="o",H140="o",G138="o",G139="o",G140="x"),"x",IF(OR(G140="o",AND(F140="x",H140="x"),AND(G138="x",G139="x")),"o","")) ->  | R140: =IF(OR(F140="o",G140="o",H138="o",H139="o",H140="x"),"x",IF(OR(H140="o",AND(F140="x",G140="x"),AND(H138="x",H139="x")),"o","")) -> 
A141: Métier | B141: Voleur | K141: =A141 -> Métier | L141: Voleur | M141: =IF(OR(D141="o",E141="o",C142="o",C143="o",C141="x"),"x",IF(OR(C141="o",AND(D141="x",E141="x"),AND(C142="x",C143="x")),"o","")) ->  | N141: =IF(OR(C141="o",E141="o",D142="o",D143="o",D141="x"),"x",IF(OR(D141="o",AND(C141="x",E141="x"),AND(D142="x",D143="x")),"o","")) ->  | O141: =IF(OR(C141="o",D141="o",E142="o",E143="o",E141="x"),"x",IF(OR(E141="o",AND(C141="x",D141="x"),AND(E142="x",E143="x")),"o","")) -> 
B142: Musicien | G142: =IF(AND(C152=G152,D152=H152,C153=G153,D153=H153,C154=G154,D154=H154),"BRAVO !!","") ->  | L142: Musicien | M142: =IF(OR(D142="o",E142="o",C141="o",C143="o",C142="x"),"x",IF(OR(C142="o",AND(D142="x",E142="x"),AND(C141="x",C143="x")),"o","")) ->  | N142: =IF(OR(C142="o",E142="o",D141="o",D143="o",D142="x"),"x",IF(OR(D142="o",AND(C142="x",E142="x"),AND(D141="x",D143="x")),"o","")) ->  | O142: =IF(OR(C142="o",D142="o",E141="o",E143="o",E142="x"),"x",IF(OR(E142="o",AND(C142="x",D142="x"),AND(E141="x",E143="x")),"o","")) -> 
B143: Espion | L143: Espion | M143: =IF(OR(D143="o",E143="o",C141="o",C142="o",C143="x"),"x",IF(OR(C143="o",AND(D143="x",E143="x"),AND(C141="x",C142="x")),"o","")) ->  | N143: =IF(OR(C143="o",E143="o",D141="o",D142="o",D143="x"),"x",IF(OR(D143="o",AND(C143="x",E143="x"),AND(D141="x",D142="x")),"o","")) ->  | O143: =IF(OR(C143="o",D143="o",E141="o",E142="o",E143="x"),"x",IF(OR(E143="o",AND(C143="x",D143="x"),AND(E141="x",E142="x")),"o","")) -> 
A145: Qui est l'espion parmi trois personnes habitant trois maisons contiguës, de nationalités différentes et ayant chacun une activité différente.
A146: L'Anglais habite au milieu et le Chinois est musicien.
A147: On ne sait rien sur le Français mais on sait que l'espion habite la première maison.
A148: Quelle est la nationalité de l'espion?
B150: Réponses : se remplit seul, ne rien y écrire.
B151: =A138 -> Pays | C151: =C136 -> Maison n° | D151: =F136 -> Métier | F151: =B151 -> Pays | G151: =C151 -> Maison n° | H151: =D151 -> Métier
B152: =B138 -> Français | C152: =IF(C138="o",C137,IF(D138="o",D137,IF(E138="o",E137,""))) ->  | D152: =IF(F138="o",F137,IF(G138="o",G137,IF(H138="o",H137,""))) ->  | F152: =B152 -> Français | G152: 1 | H152: Espion
B153: =B139 -> Chinois | C153: =IF(C139="o",C137,IF(D139="o",D137,IF(E139="o",E137,""))) ->  | D153: =IF(F139="o",F137,IF(G139="o",G137,IF(H139="o",H137,""))) ->  | F153: Chinois | G153: 3 | H153: Musicien
B154: Anglais | C154: =IF(C140="o",C137,IF(D140="o",D137,IF(E140="o",E137,""))) ->  | D154: =IF(F140="o",F137,IF(G140="o",G137,IF(H140="o",H137,""))) ->  | F154: Anglais | G154: 2 | H154: Voleur
A155: VIII°/ L’âge du capitaine :
A156: =INDIRECT("'Calculs 3 indices'!B"&A159) ->  | F156: =INDIRECT("'Calculs 3 indices'!F"&(A159+11)) -> 
A157: =INDIRECT("'Calculs 3 indices'!B"&(A159+11)) ->  | F157: =INDIRECT("'Calculs 3 indices'!F"&(A159+12)) -> 
C158: Âge | F158: Pays | M158: =C158 -> Âge | P158: =F158 -> Pays
A159: =A137+24 -> 169 | C159: 25 | D159: 35 | E159: 42 | F159: Grèce | G159: Corée | H159: Maroc | M159: =C159 -> 25 | N159: =D159 -> 35 | O159: =E159 -> 42 | P159: =F159 -> Grèce | Q159: =G159 -> Corée | R159: =H159 -> Maroc
A160: Fonction | B160: Capitaine | K160: =A160 -> Fonction | L160: =B160 -> Capitaine | M160: =IF(OR(D160="o",E160="o",C161="o",C162="o",C160="x"),"x",IF(OR(C160="o",AND(D160="x",E160="x"),AND(C161="x",C162="x")),"o","")) ->  | N160: =IF(OR(C160="o",E160="o",D161="o",D162="o",D160="x"),"x",IF(OR(D160="o",AND(C160="x",E160="x"),AND(D161="x",D162="x")),"o","")) ->  | O160: =IF(OR(C160="o",D160="o",E161="o",E162="o",E160="x"),"x",IF(OR(E160="o",AND(C160="x",D160="x"),AND(E161="x",E162="x")),"o","")) ->  | P160: =IF(OR(G160="o",H160="o",F161="o",F162="o",F160="x"),"x",IF(OR(F160="o",AND(G160="x",H160="x"),AND(F161="x",F162="x")),"o","")) ->  | Q160: =IF(OR(F160="o",H160="o",G161="o",G162="o",G160="x"),"x",IF(OR(G160="o",AND(F160="x",H160="x"),AND(G161="x",G162="x")),"o","")) ->  | R160: =IF(OR(F160="o",G160="o",H161="o",H162="o",H160="x"),"x",IF(OR(H160="o",AND(F160="x",G160="x"),AND(H161="x",H162="x")),"o","")) -> 
B161: Bosco | L161: =B161 -> Bosco | M161: =IF(OR(D161="o",E161="o",C160="o",C162="o",C161="x"),"x",IF(OR(C161="o",AND(D161="x",E161="x"),AND(C160="x",C162="x")),"o","")) ->  | N161: =IF(OR(C161="o",E161="o",D160="o",D162="o",D161="x"),"x",IF(OR(D161="o",AND(C161="x",E161="x"),AND(D160="x",D162="x")),"o","")) ->  | O161: =IF(OR(C161="o",D161="o",E162="o",E160="o",E161="x"),"x",IF(OR(E161="o",AND(C161="x",D161="x"),AND(E160="x",E162="x")),"o","")) ->  | P161: =IF(OR(G161="o",H161="o",F160="o",F162="o",F161="x"),"x",IF(OR(F161="o",AND(G161="x",H161="x"),AND(F160="x",F162="x")),"o","")) ->  | Q161: =IF(OR(F161="o",H161="o",G160="o",G162="o",G161="x"),"x",IF(OR(G161="o",AND(F161="x",H161="x"),AND(G160="x",G162="x")),"o","")) ->  | R161: =IF(OR(F161="o",G161="o",H160="o",H162="o",H161="x"),"x",IF(OR(H161="o",AND(F161="x",G161="x"),AND(H160="x",H162="x")),"o","")) -> 
B162: Timonier | L162: Timonier | M162: =IF(OR(D162="o",E162="o",C160="o",C161="o",C162="x"),"x",IF(OR(C162="o",AND(D162="x",E162="x"),AND(C160="x",C161="x")),"o","")) ->  | N162: =IF(OR(C162="o",E162="o",D160="o",D161="o",D162="x"),"x",IF(OR(D162="o",AND(C162="x",E162="x"),AND(D160="x",D161="x")),"o","")) ->  | O162: =IF(OR(C162="o",D162="o",E160="o",E161="o",E162="x"),"x",IF(OR(E162="o",AND(C162="x",D162="x"),AND(E160="x",E161="x")),"o","")) ->  | P162: =IF(OR(G162="o",H162="o",F160="o",F161="o",F162="x"),"x",IF(OR(F162="o",AND(G162="x",H162="x"),AND(F160="x",F161="x")),"o","")) ->  | Q162: =IF(OR(F162="o",H162="o",G160="o",G161="o",G162="x"),"x",IF(OR(G162="o",AND(F162="x",H162="x"),AND(G160="x",G161="x")),"o","")) ->  | R162: =IF(OR(F162="o",G162="o",H160="o",H161="o",H162="x"),"x",IF(OR(H162="o",AND(F162="x",G162="x"),AND(H160="x",H161="x")),"o","")) -> 
A163: Pays | B163: Grèce | K163: =A163 -> Pays | L163: Grèce | M163: =IF(OR(D163="o",E163="o",C164="o",C165="o",C163="x"),"x",IF(OR(C163="o",AND(D163="x",E163="x"),AND(C164="x",C165="x")),"o","")) ->  | N163: =IF(OR(C163="o",E163="o",D164="o",D165="o",D163="x"),"x",IF(OR(D163="o",AND(C163="x",E163="x"),AND(D164="x",D165="x")),"o","")) ->  | O163: =IF(OR(C163="o",D163="o",E164="o",E165="o",E163="x"),"x",IF(OR(E163="o",AND(C163="x",D163="x"),AND(E164="x",E165="x")),"o","")) -> 
B164: Corée | G164: =IF(AND(C174=G174,D174=H174,C175=G175,D175=H175,C176=G176,D176=H176),"BRAVO !!","") ->  | L164: Corée | M164: =IF(OR(D164="o",E164="o",C163="o",C165="o",C164="x"),"x",IF(OR(C164="o",AND(D164="x",E164="x"),AND(C163="x",C165="x")),"o","")) ->  | N164: =IF(OR(C164="o",E164="o",D163="o",D165="o",D164="x"),"x",IF(OR(D164="o",AND(C164="x",E164="x"),AND(D163="x",D165="x")),"o","")) ->  | O164: =IF(OR(C164="o",D164="o",E163="o",E165="o",E164="x"),"x",IF(OR(E164="o",AND(C164="x",D164="x"),AND(E163="x",E165="x")),"o","")) -> 
B165: Maroc | L165: Maroc | M165: =IF(OR(D165="o",E165="o",C163="o",C164="o",C165="x"),"x",IF(OR(C165="o",AND(D165="x",E165="x"),AND(C163="x",C164="x")),"o","")) ->  | N165: =IF(OR(C165="o",E165="o",D163="o",D164="o",D165="x"),"x",IF(OR(D165="o",AND(C165="x",E165="x"),AND(D163="x",D164="x")),"o","")) ->  | O165: =IF(OR(C165="o",D165="o",E163="o",E164="o",E165="x"),"x",IF(OR(E165="o",AND(C165="x",D165="x"),AND(E163="x",E164="x")),"o","")) -> 
A167: Sur un bateau, quel est l’âge du capitiaine ?
A168: Le Marocain n’est pas capitaine, il n’a pas 25 ans
A169: Le bosco n’a pas 35 ans
A170: Le timonier grec a plus de 35 ans
B172: Réponses : se remplit seul, ne rien y écrire.
B173: =A160 -> Fonction | C173: =C158 -> Âge | D173: =F158 -> Pays | F173: =B173 -> Fonction | G173: =C173 -> Âge | H173: =D173 -> Pays
B174: =B160 -> Capitaine | C174: =IF(C160="o",C159,IF(D160="o",D159,IF(E160="o",E159,""))) ->  | D174: =IF(F160="o",F159,IF(G160="o",G159,IF(H160="o",H159,""))) ->  | F174: =B174 -> Capitaine | G174: 35 | H174: Corée
B175: =B161 -> Bosco | C175: =IF(C161="o",C159,IF(D161="o",D159,IF(E161="o",E159,""))) ->  | D175: =IF(F161="o",F159,IF(G161="o",G159,IF(H161="o",H159,""))) ->  | F175: Bosco | G175: 25 | H175: Maroc
B176: Timonier | C176: =IF(C162="o",C159,IF(D162="o",D159,IF(E162="o",E159,""))) ->  | D176: =IF(F162="o",F159,IF(G162="o",G159,IF(H162="o",H159,""))) ->  | F176: Timonier | G176: 42 | H176: Grèce
A177: IX°/ Le salon de beauté :
A178: =INDIRECT("'Calculs 3 indices'!B"&A181) ->  | F178: =INDIRECT("'Calculs 3 indices'!F"&(A181+11)) -> 
A179: =INDIRECT("'Calculs 3 indices'!B"&(A181+11)) ->  | F179: =INDIRECT("'Calculs 3 indices'!F"&(A181+12)) -> 
C180: Soins | F180: Clientes | M180: =C180 -> Soins | P180: =F180 -> Clientes
A181: =A159+24 -> 193 | C181: Coupe | D181: Décoloration | E181: Permanente | F181: Jeanne | G181: Michèle | H181: Patricia | M181: =C181 -> Coupe | N181: =D181 -> Décoloration | O181: =E181 -> Permanente | P181: =F181 -> Jeanne | Q181: =G181 -> Michèle | R181: =H181 -> Patricia
A182: Coiffeur | B182: Alain | K182: =A182 -> Coiffeur | L182: =B182 -> Alain | M182: =IF(OR(D182="o",E182="o",C183="o",C184="o",C182="x"),"x",IF(OR(C182="o",AND(D182="x",E182="x"),AND(C183="x",C184="x")),"o","")) ->  | N182: =IF(OR(C182="o",E182="o",D183="o",D184="o",D182="x"),"x",IF(OR(D182="o",AND(C182="x",E182="x"),AND(D183="x",D184="x")),"o","")) ->  | O182: =IF(OR(C182="o",D182="o",E183="o",E184="o",E182="x"),"x",IF(OR(E182="o",AND(C182="x",D182="x"),AND(E183="x",E184="x")),"o","")) ->  | P182: =IF(OR(G182="o",H182="o",F183="o",F184="o",F182="x"),"x",IF(OR(F182="o",AND(G182="x",H182="x"),AND(F183="x",F184="x")),"o","")) ->  | Q182: =IF(OR(F182="o",H182="o",G183="o",G184="o",G182="x"),"x",IF(OR(G182="o",AND(F182="x",H182="x"),AND(G183="x",G184="x")),"o","")) ->  | R182: =IF(OR(F182="o",G182="o",H183="o",H184="o",H182="x"),"x",IF(OR(H182="o",AND(F182="x",G182="x"),AND(H183="x",H184="x")),"o","")) -> 
B183: Colette | L183: =B183 -> Colette | M183: =IF(OR(D183="o",E183="o",C182="o",C184="o",C183="x"),"x",IF(OR(C183="o",AND(D183="x",E183="x"),AND(C182="x",C184="x")),"o","")) ->  | N183: =IF(OR(C183="o",E183="o",D182="o",D184="o",D183="x"),"x",IF(OR(D183="o",AND(C183="x",E183="x"),AND(D182="x",D184="x")),"o","")) ->  | O183: =IF(OR(C183="o",D183="o",E184="o",E182="o",E183="x"),"x",IF(OR(E183="o",AND(C183="x",D183="x"),AND(E182="x",E184="x")),"o","")) ->  | P183: =IF(OR(G183="o",H183="o",F182="o",F184="o",F183="x"),"x",IF(OR(F183="o",AND(G183="x",H183="x"),AND(F182="x",F184="x")),"o","")) ->  | Q183: =IF(OR(F183="o",H183="o",G182="o",G184="o",G183="x"),"x",IF(OR(G183="o",AND(F183="x",H183="x"),AND(G182="x",G184="x")),"o","")) ->  | R183: =IF(OR(F183="o",G183="o",H182="o",H184="o",H183="x"),"x",IF(OR(H183="o",AND(F183="x",G183="x"),AND(H182="x",H184="x")),"o","")) -> 
B184: Fanny | L184: Fanny | M184: =IF(OR(D184="o",E184="o",C182="o",C183="o",C184="x"),"x",IF(OR(C184="o",AND(D184="x",E184="x"),AND(C182="x",C183="x")),"o","")) ->  | N184: =IF(OR(C184="o",E184="o",D182="o",D183="o",D184="x"),"x",IF(OR(D184="o",AND(C184="x",E184="x"),AND(D182="x",D183="x")),"o","")) ->  | O184: =IF(OR(C184="o",D184="o",E182="o",E183="o",E184="x"),"x",IF(OR(E184="o",AND(C184="x",D184="x"),AND(E182="x",E183="x")),"o","")) ->  | P184: =IF(OR(G184="o",H184="o",F182="o",F183="o",F184="x"),"x",IF(OR(F184="o",AND(G184="x",H184="x"),AND(F182="x",F183="x")),"o","")) ->  | Q184: =IF(OR(F184="o",H184="o",G182="o",G183="o",G184="x"),"x",IF(OR(G184="o",AND(F184="x",H184="x"),AND(G182="x",G183="x")),"o","")) ->  | R184: =IF(OR(F184="o",G184="o",H182="o",H183="o",H184="x"),"x",IF(OR(H184="o",AND(F184="x",G184="x"),AND(H182="x",H183="x")),"o","")) -> 
A185: Clientes | B185: Jeanne | K185: =A185 -> Clientes | L185: Jeanne | M185: =IF(OR(D185="o",E185="o",C186="o",C187="o",C185="x"),"x",IF(OR(C185="o",AND(D185="x",E185="x"),AND(C186="x",C187="x")),"o","")) ->  | N185: =IF(OR(C185="o",E185="o",D186="o",D187="o",D185="x"),"x",IF(OR(D185="o",AND(C185="x",E185="x"),AND(D186="x",D187="x")),"o","")) ->  | O185: =IF(OR(C185="o",D185="o",E186="o",E187="o",E185="x"),"x",IF(OR(E185="o",AND(C185="x",D185="x"),AND(E186="x",E187="x")),"o","")) -> 
B186: Michèle | G186: =IF(AND(C196=G196,D196=H196,C197=G197,D197=H197,C198=G198,D198=H198),"BRAVO !!","") ->  | L186: Michèle | M186: =IF(OR(D186="o",E186="o",C185="o",C187="o",C186="x"),"x",IF(OR(C186="o",AND(D186="x",E186="x"),AND(C185="x",C187="x")),"o","")) ->  | N186: =IF(OR(C186="o",E186="o",D185="o",D187="o",D186="x"),"x",IF(OR(D186="o",AND(C186="x",E186="x"),AND(D185="x",D187="x")),"o","")) ->  | O186: =IF(OR(C186="o",D186="o",E185="o",E187="o",E186="x"),"x",IF(OR(E186="o",AND(C186="x",D186="x"),AND(E185="x",E187="x")),"o","")) -> 
B187: Patricia | L187: Patricia | M187: =IF(OR(D187="o",E187="o",C185="o",C186="o",C187="x"),"x",IF(OR(C187="o",AND(D187="x",E187="x"),AND(C185="x",C186="x")),"o","")) ->  | N187: =IF(OR(C187="o",E187="o",D185="o",D186="o",D187="x"),"x",IF(OR(D187="o",AND(C187="x",E187="x"),AND(D185="x",D186="x")),"o","")) ->  | O187: =IF(OR(C187="o",D187="o",E185="o",E186="o",E187="x"),"x",IF(OR(E187="o",AND(C187="x",D187="x"),AND(E185="x",E186="x")),"o","")) -> 
A189: Trois femmes se sont rendues chez trois coiffeuses et coiffeur spécialisés dans un seul soin.
A190: Jeanne a toujours été satisfaite de sa teinte naturelle.
A191: Le coiffeur spécialiste de la coupe ne s'est pas occupé de Michèle.
A192: Patricia fait toujours confiance aux conseils que lui prodigue Fanny.
A193: Colette ne réalise pas de permanentes.
B194: Réponses : se remplit seul, ne rien y écrire.
B195: =A182 -> Coiffeur | C195: =C180 -> Soins | D195: =F180 -> Clientes | F195: =B195 -> Coiffeur | G195: =C195 -> Soins | H195: =D195 -> Clientes
B196: =B182 -> Alain | C196: =IF(C182="o",C181,IF(D182="o",D181,IF(E182="o",E181,""))) ->  | D196: =IF(F182="o",F181,IF(G182="o",G181,IF(H182="o",H181,""))) ->  | F196: =B196 -> Alain | G196: Coupe | H196: Jeanne
B197: =B183 -> Colette | C197: =IF(C183="o",C181,IF(D183="o",D181,IF(E183="o",E181,""))) ->  | D197: =IF(F183="o",F181,IF(G183="o",G181,IF(H183="o",H181,""))) ->  | F197: Colette | G197: Décoloration | H197: Michèle
B198: Fanny | C198: =IF(C184="o",C181,IF(D184="o",D181,IF(E184="o",E181,""))) ->  | D198: =IF(F184="o",F181,IF(G184="o",G181,IF(H184="o",H181,""))) ->  | F198: Fanny | G198: Permanente | H198: Patricia
A199: X°/ Les supporters :
A200: =INDIRECT("'Calculs 3 indices'!B"&A203) ->  | F200: =INDIRECT("'Calculs 3 indices'!F"&(A203+11)) -> 
A201: =INDIRECT("'Calculs 3 indices'!B"&(A203+11)) ->  | F201: =INDIRECT("'Calculs 3 indices'!F"&(A203+12)) -> 
C202: Couleurs | F202: Club | M202: =C202 -> Couleurs | P202: =F202 -> Club
A203: =A181+24 -> 217 | C203: Rouge | D203: Bleu | E203: Vert | F203: USAP | G203: UST | H203: SAPC | M203: =C203 -> Rouge | N203: =D203 -> Bleu | O203: =E203 -> Vert | P203: =F203 -> USAP | Q203: =G203 -> UST | R203: =H203 -> SAPC
A204: Prénom | B204: Alban | K204: =A204 -> Prénom | L204: =B204 -> Alban | M204: =IF(OR(D204="o",E204="o",C205="o",C206="o",C204="x"),"x",IF(OR(C204="o",AND(D204="x",E204="x"),AND(C205="x",C206="x")),"o","")) ->  | N204: =IF(OR(C204="o",E204="o",D205="o",D206="o",D204="x"),"x",IF(OR(D204="o",AND(C204="x",E204="x"),AND(D205="x",D206="x")),"o","")) ->  | O204: =IF(OR(C204="o",D204="o",E205="o",E206="o",E204="x"),"x",IF(OR(E204="o",AND(C204="x",D204="x"),AND(E205="x",E206="x")),"o","")) ->  | P204: =IF(OR(G204="o",H204="o",F205="o",F206="o",F204="x"),"x",IF(OR(F204="o",AND(G204="x",H204="x"),AND(F205="x",F206="x")),"o","")) ->  | Q204: =IF(OR(F204="o",H204="o",G205="o",G206="o",G204="x"),"x",IF(OR(G204="o",AND(F204="x",H204="x"),AND(G205="x",G206="x")),"o","")) ->  | R204: =IF(OR(F204="o",G204="o",H205="o",H206="o",H204="x"),"x",IF(OR(H204="o",AND(F204="x",G204="x"),AND(H205="x",H206="x")),"o","")) -> 
B205: Charles | L205: =B205 -> Charles | M205: =IF(OR(D205="o",E205="o",C204="o",C206="o",C205="x"),"x",IF(OR(C205="o",AND(D205="x",E205="x"),AND(C204="x",C206="x")),"o","")) ->  | N205: =IF(OR(C205="o",E205="o",D204="o",D206="o",D205="x"),"x",IF(OR(D205="o",AND(C205="x",E205="x"),AND(D204="x",D206="x")),"o","")) ->  | O205: =IF(OR(C205="o",D205="o",E206="o",E204="o",E205="x"),"x",IF(OR(E205="o",AND(C205="x",D205="x"),AND(E204="x",E206="x")),"o","")) ->  | P205: =IF(OR(G205="o",H205="o",F204="o",F206="o",F205="x"),"x",IF(OR(F205="o",AND(G205="x",H205="x"),AND(F204="x",F206="x")),"o","")) ->  | Q205: =IF(OR(F205="o",H205="o",G204="o",G206="o",G205="x"),"x",IF(OR(G205="o",AND(F205="x",H205="x"),AND(G204="x",G206="x")),"o","")) ->  | R205: =IF(OR(F205="o",G205="o",H204="o",H206="o",H205="x"),"x",IF(OR(H205="o",AND(F205="x",G205="x"),AND(H204="x",H206="x")),"o","")) -> 
B206: Jordi | L206: Jordi | M206: =IF(OR(D206="o",E206="o",C204="o",C205="o",C206="x"),"x",IF(OR(C206="o",AND(D206="x",E206="x"),AND(C204="x",C205="x")),"o","")) ->  | N206: =IF(OR(C206="o",E206="o",D204="o",D205="o",D206="x"),"x",IF(OR(D206="o",AND(C206="x",E206="x"),AND(D204="x",D205="x")),"o","")) ->  | O206: =IF(OR(C206="o",D206="o",E204="o",E205="o",E206="x"),"x",IF(OR(E206="o",AND(C206="x",D206="x"),AND(E204="x",E205="x")),"o","")) ->  | P206: =IF(OR(G206="o",H206="o",F204="o",F205="o",F206="x"),"x",IF(OR(F206="o",AND(G206="x",H206="x"),AND(F204="x",F205="x")),"o","")) ->  | Q206: =IF(OR(F206="o",H206="o",G204="o",G205="o",G206="x"),"x",IF(OR(G206="o",AND(F206="x",H206="x"),AND(G204="x",G205="x")),"o","")) ->  | R206: =IF(OR(F206="o",G206="o",H204="o",H205="o",H206="x"),"x",IF(OR(H206="o",AND(F206="x",G206="x"),AND(H204="x",H205="x")),"o","")) -> 
A207: Club | B207: USAP | K207: =A207 -> Club | L207: USAP | M207: =IF(OR(D207="o",E207="o",C208="o",C209="o",C207="x"),"x",IF(OR(C207="o",AND(D207="x",E207="x"),AND(C208="x",C209="x")),"o","")) ->  | N207: =IF(OR(C207="o",E207="o",D208="o",D209="o",D207="x"),"x",IF(OR(D207="o",AND(C207="x",E207="x"),AND(D208="x",D209="x")),"o","")) ->  | O207: =IF(OR(C207="o",D207="o",E208="o",E209="o",E207="x"),"x",IF(OR(E207="o",AND(C207="x",D207="x"),AND(E208="x",E209="x")),"o","")) -> 
B208: UST | G208: =IF(AND(C218=G218,D218=H218,C219=G219,D219=H219,C220=G220,D220=H220),"BRAVO !!","") ->  | L208: UST | M208: =IF(OR(D208="o",E208="o",C207="o",C209="o",C208="x"),"x",IF(OR(C208="o",AND(D208="x",E208="x"),AND(C207="x",C209="x")),"o","")) ->  | N208: =IF(OR(C208="o",E208="o",D207="o",D209="o",D208="x"),"x",IF(OR(D208="o",AND(C208="x",E208="x"),AND(D207="x",D209="x")),"o","")) ->  | O208: =IF(OR(C208="o",D208="o",E207="o",E209="o",E208="x"),"x",IF(OR(E208="o",AND(C208="x",D208="x"),AND(E207="x",E209="x")),"o","")) -> 
B209: SPAC | L209: SPAC | M209: =IF(OR(D209="o",E209="o",C207="o",C208="o",C209="x"),"x",IF(OR(C209="o",AND(D209="x",E209="x"),AND(C207="x",C208="x")),"o","")) ->  | N209: =IF(OR(C209="o",E209="o",D207="o",D208="o",D209="x"),"x",IF(OR(D209="o",AND(C209="x",E209="x"),AND(D207="x",D208="x")),"o","")) ->  | O209: =IF(OR(C209="o",D209="o",E207="o",E208="o",E209="x"),"x",IF(OR(E209="o",AND(C209="x",D209="x"),AND(E207="x",E208="x")),"o","")) -> 
A211: Trois amis supportent trois club de rugby différents dont les couleurs ont changées dernièrement.
A212: L'équipe de Charles ne joue plus en Vert.
A213: Les couleurs d'Alban sont bleues et il n'aime ni l'USAP ni le l'UST.
A214: Jordi supporte Perpignan, même s'ils ne jouent plus en bleu.
B216: Réponses : se remplit seul, ne rien y écrire.
... 4 more rows

Sheet Calculs 3 indices
A1: ='3 indices'!A1 -> I°/ Les sports préférés : | B1: =IF(C2=2,B2,IF(C3=2,B3,IF(C4=2,B4,IF(C5=2,B5,IF(C6=2,B6,IF(C7=2,B7,IF(C8=2,B8,IF(C9=2,B9,IF(C10=2,B10,""))))))))) -> 
A2: Impossible d'avoir 3 non sur la même ligne | B2: =IF(AND('3 indices'!$C6="x",'3 indices'!$D6="x",'3 indices'!$E6="x"),$A2&'3 indices'!$C4&" "&'3 indices'!$B6,"") ->  | C2: =IF(B2="",1,2) -> 1 | G2: ='3 indices'!C4 -> Âge | K2: ='3 indices'!F4 -> Sport
B3: =IF(AND('3 indices'!$C7="x",'3 indices'!$D7="x",'3 indices'!$E7="x"),$A2&'3 indices'!$C4&" "&'3 indices'!$B7,"") ->  | C3: =IF(B3="",1,2) -> 1 | G3: ='3 indices'!C5 -> 15 | H3: ='3 indices'!D5 -> 17 | I3: ='3 indices'!E5 -> 19 | K3: ='3 indices'!F5 -> Hand | L3: ='3 indices'!G5 -> Foot | M3: ='3 indices'!H5 -> Rugby
B4: =IF(AND('3 indices'!$C8="x",'3 indices'!$D8="x",'3 indices'!$E8="x"),$A2&'3 indices'!$C4&" "&'3 indices'!$B8,"") ->  | C4: 1 | E4: ='3 indices'!A6 -> Prénom | F4: ='3 indices'!B6 -> Albert | G4: =IF('3 indices'!C6="o",1,0) -> 0 | H4: =IF('3 indices'!D6="o",1,0) -> 0 | I4: =IF('3 indices'!E6="o",1,0) -> 0 | J4: =SUM(G4:I4) -> 0 | K4: =IF('3 indices'!F6="o",1,0) -> 0 | L4: =IF('3 indices'!G6="o",1,0) -> 0 | M4: =IF('3 indices'!H6="o",1,0) -> 0 | N4: =SUM(K4:M4) -> 0
B5: =IF(AND('3 indices'!$C9="x",'3 indices'!$D9="x",'3 indices'!$E9="x"),$A2&'3 indices'!$C4&" "&'3 indices'!$B9,"") ->  | C5: 1 | F5: ='3 indices'!B7 -> Benoit | G5: =IF('3 indices'!C7="o",1,0) -> 0 | H5: =IF('3 indices'!D7="o",1,0) -> 0 | I5: =IF('3 indices'!E7="o",1,0) -> 0 | J5: =SUM(G5:I5) -> 0 | K5: =IF('3 indices'!F7="o",1,0) -> 0 | L5: =IF('3 indices'!G7="o",1,0) -> 0 | M5: =IF('3 indices'!H7="o",1,0) -> 0 | N5: =SUM(K5:M5) -> 0
B6: =IF(AND('3 indices'!$C10="x",'3 indices'!$D10="x",'3 indices'!$E10="x"),$A2&'3 indices'!$C4&" "&'3 indices'!$B10,"") ->  | C6: 1 | F6: ='3 indices'!B8 -> Charles | G6: =IF('3 indices'!C8="o",1,0) -> 0 | H6: =IF('3 indices'!D8="o",1,0) -> 0 | I6: =IF('3 indices'!E8="o",1,0) -> 0 | J6: 0 | K6: =IF('3 indices'!F8="o",1,0) -> 0 | L6: =IF('3 indices'!G8="o",1,0) -> 0 | M6: =IF('3 indices'!H8="o",1,0) -> 0 | N6: 0
B7: =IF(AND('3 indices'!$C11="x",'3 indices'!$D11="x",'3 indices'!$E11="x"),$A2&'3 indices'!$C4&" "&'3 indices'!$B11,"") ->  | C7: 1 | G7: =SUM(G4:G6) -> 0 | H7: =SUM(H4:H6) -> 0 | I7: 0 | K7: =SUM(K4:K6) -> 0 | L7: =SUM(L4:L6) -> 0 | M7: 0
B8: =IF(AND('3 indices'!$F6="x",'3 indices'!$G6="x",'3 indices'!$H6="x"),$A2&'3 indices'!$F4&" "&'3 indices'!$B6,"") ->  | C8: 1 | E8: ='3 indices'!A9 -> Sport | F8: ='3 indices'!B9 -> Hand | G8: =IF('3 indices'!C9="o",1,0) -> 0 | H8: =IF('3 indices'!D9="o",1,0) -> 0 | I8: =IF('3 indices'!E9="o",1,0) -> 0 | J8: =SUM(G8:I8) -> 0
B9: =IF(AND('3 indices'!$F7="x",'3 indices'!$G7="x",'3 indices'!$H7="x"),$A2&'3 indices'!$F4&" "&'3 indices'!$B7,"") ->  | C9: 1 | F9: ='3 indices'!B10 -> Foot | G9: =IF('3 indices'!C10="o",1,0) -> 0 | H9: =IF('3 indices'!D10="o",1,0) -> 0 | I9: =IF('3 indices'!E10="o",1,0) -> 0 | J9: =SUM(G9:I9) -> 0 | K9: Impossible qu'il y ai plus de deux Oui
B10: =IF(AND('3 indices'!$F8="x",'3 indices'!$G8="x",'3 indices'!$H8="x"),$A2&'3 indices'!$F4&" "&'3 indices'!$B8,"") ->  | C10: =IF(B10="",1,2) -> 1 | F10: ='3 indices'!B11 -> Rugby | G10: =IF('3 indices'!C11="o",1,0) -> 0 | H10: =IF('3 indices'!D11="o",1,0) -> 0 | I10: =IF('3 indices'!E11="o",1,0) -> 0 | J10: 0 | K10: sur la ligne
G11: =SUM(G8:G10) -> 0 | H11: =SUM(H8:H10) -> 0 | I11: 0 | K11: sur la colonne
B12: =IF(C13=2,B13,IF(C14=2,B14,IF(C15=2,B15,IF(C16=2,B16,IF(C17=2,B17,IF(C18=2,B18,IF(C19=2,B19,IF(C20=2,B20,IF(C21=2,B21,""))))))))) ->  | E12: = | F12: =IF(J4>1,K9&K10&G2&" "&F4,IF(J5>1,K9&K10&G2&" "&F5,IF(J6>1,K9&K10&G2&" "&F6,IF(J8>1,K9&K10&G2&" "&F8,IF(J9>1,K9&K10&G2&" "&F9,IF(J10>1,K9&K10&G2&" "&F10,IF(N4>1,K9&K10&K2&" "&F4,IF(N5>1,K9&K10&K2&" "&F5,IF(N6>1,K9&K10&K2&" "&F6,""))))))))) -> 
A13: Impossible d'avoir 3 non sur la même colonne | B13: =IF(AND('3 indices'!C6="x",'3 indices'!C7="x",'3 indices'!C8="x"),$A13&'3 indices'!$C5&" "&'3 indices'!$A6,"") ->  | C13: 1 | E13: = | F13: =IF(G7>1,K9&K11&E4&" "&G3,IF(H7>1,K9&K11&E4&" "&H3,IF(I7>1,K9&K11&E4&" "&I3,IF(K7>1,K9&K11&E4&" "&K3,IF(L7>1,K9&K11&E4&" "&L3,IF(M7>1,K9&K11&E4&" "&M3,IF(G11>1,K9&K11&E8&" "&G3,IF(H11>1,K9&K11&E8&" "&H3,IF(I11>1,K9&K11&E8&" "&I3,""))))))))) -> 
B14: =IF(AND('3 indices'!D6="x",'3 indices'!D7="x",'3 indices'!D8="x"),$A13&'3 indices'!D5&" "&'3 indices'!$A6,"") ->  | C14: 1 | G14: 3 indices | H14: 4 indices | I14: 5 indices
B15: =IF(AND('3 indices'!E6="x",'3 indices'!E7="x",'3 indices'!E8="x"),$A13&'3 indices'!E5&" "&'3 indices'!$A6,"") ->  | C15: 1 | F15: Modules n° | G15: ="+ 24" -> + 24
B16: =IF(AND('3 indices'!C9="x",'3 indices'!C10="x",'3 indices'!C11="x"),$A13&'3 indices'!$C5&" "&'3 indices'!$A9,"") ->  | C16: 1 | F16: 1 | G16: Vider tableau | H16: Vider tableau | I16: Vider tableau
B17: =IF(AND('3 indices'!D9="x",'3 indices'!D10="x",'3 indices'!D11="x"),$A13&'3 indices'!D5&" "&'3 indices'!$A9,"") ->  | C17: 1 | F17: 4 | G17: Aide | H17: Aide | I17: Aide
B18: =IF(AND('3 indices'!E9="x",'3 indices'!E10="x",'3 indices'!E11="x"),$A13&'3 indices'!E5&" "&'3 indices'!$A9,"") ->  | C18: 1 | F18: 6 | G18: Solutions | H18: Solutions | I18: Solutions
B19: =IF(AND('3 indices'!F6="x",'3 indices'!F7="x",'3 indices'!F8="x"),$A13&'3 indices'!$F5&" "&'3 indices'!$A6,"") ->  | C19: 1
B20: =IF(AND('3 indices'!G6="x",'3 indices'!G7="x",'3 indices'!G8="x"),$A13&'3 indices'!$G5&" "&'3 indices'!$A6,"") ->  | C20: 1
B21: =IF(AND('3 indices'!H6="x",'3 indices'!H7="x",'3 indices'!H8="x"),$A13&'3 indices'!$H5&" "&'3 indices'!$A6,"") ->  | C21: 1
A25: ='3 indices'!A23 -> II°/ Trois mathématiciens : | B25: =IF(C26=2,B26,IF(C27=2,B27,IF(C28=2,B28,IF(C29=2,B29,IF(C30=2,B30,IF(C31=2,B31,IF(C32=2,B32,IF(C33=2,B33,IF(C34=2,B34,""))))))))) -> 
A26: Impossible d'avoir 3 non sur la même ligne | B26: =IF(AND('3 indices'!$C28="x",'3 indices'!$D28="x",'3 indices'!$E28="x"),$A26&'3 indices'!$C26&" "&'3 indices'!$B28,"") ->  | C26: =IF(B26="",1,2) -> 1 | G26: ='3 indices'!C26 -> Ville | K26: ='3 indices'!F26 -> Année de naissance
B27: =IF(AND('3 indices'!$C29="x",'3 indices'!$D29="x",'3 indices'!$E29="x"),$A26&'3 indices'!$C26&" "&'3 indices'!$B29,"") ->  | C27: =IF(B27="",1,2) -> 1 | G27: ='3 indices'!C27 -> Perge | H27: ='3 indices'!D27 -> Syracuse | I27: ='3 indices'!E27 -> Cyréne | K27: ='3 indices'!F27 -> 287 av J.C. | L27: ='3 indices'!G27 -> 262 av J.C. | M27: ='3 indices'!H27 -> 276 av J.C.
B28: =IF(AND('3 indices'!$C30="x",'3 indices'!$D30="x",'3 indices'!$E30="x"),$A26&'3 indices'!$C26&" "&'3 indices'!$B30,"") ->  | C28: 1 | E28: ='3 indices'!A28 -> Nom | F28: ='3 indices'!B28 -> Eratosthène | G28: =IF('3 indices'!C28="o",1,0) -> 0 | H28: =IF('3 indices'!D28="o",1,0) -> 0 | I28: =IF('3 indices'!E28="o",1,0) -> 0 | J28: =SUM(G28:I28) -> 0 | K28: =IF('3 indices'!F28="o",1,0) -> 0 | L28: =IF('3 indices'!G28="o",1,0) -> 0 | M28: =IF('3 indices'!H28="o",1,0) -> 0 | N28: =SUM(K28:M28) -> 0
B29: =IF(AND('3 indices'!$C31="x",'3 indices'!$D31="x",'3 indices'!$E31="x"),$A26&'3 indices'!$C26&" "&'3 indices'!$B31,"") ->  | C29: 1 | F29: ='3 indices'!B29 -> Archimède | G29: =IF('3 indices'!C29="o",1,0) -> 0 | H29: =IF('3 indices'!D29="o",1,0) -> 0 | I29: =IF('3 indices'!E29="o",1,0) -> 0 | J29: =SUM(G29:I29) -> 0 | K29: =IF('3 indices'!F29="o",1,0) -> 0 | L29: =IF('3 indices'!G29="o",1,0) -> 0 | M29: =IF('3 indices'!H29="o",1,0) -> 0 | N29: =SUM(K29:M29) -> 0
B30: =IF(AND('3 indices'!$C32="x",'3 indices'!$D32="x",'3 indices'!$E32="x"),$A26&'3 indices'!$C26&" "&'3 indices'!$B32,"") ->  | C30: 1 | F30: ='3 indices'!B30 -> Apollonius | G30: =IF('3 indices'!C30="o",1,0) -> 0 | H30: =IF('3 indices'!D30="o",1,0) -> 0 | I30: =IF('3 indices'!E30="o",1,0) -> 0 | J30: 0 | K30: =IF('3 indices'!F30="o",1,0) -> 0 | L30: =IF('3 indices'!G30="o",1,0) -> 0 | M30: =IF('3 indices'!H30="o",1,0) -> 0 | N30: 0
B31: =IF(AND('3 indices'!$C33="x",'3 indices'!$D33="x",'3 indices'!$E33="x"),$A26&'3 indices'!$C26&" "&'3 indices'!$B33,"") ->  | C31: 1 | G31: =SUM(G28:G30) -> 0 | H31: =SUM(H28:H30) -> 0 | I31: 0 | K31: =SUM(K28:K30) -> 0 | L31: =SUM(L28:L30) -> 0 | M31: 0
B32: =IF(AND('3 indices'!$F28="x",'3 indices'!$G28="x",'3 indices'!$H28="x"),$A26&'3 indices'!$F26&" "&'3 indices'!$B28,"") ->  | C32: 1 | E32: ='3 indices'!A31 -> Année | F32: ='3 indices'!B31 -> 287 av J.C. | G32: =IF('3 indices'!C31="o",1,0) -> 0 | H32: =IF('3 indices'!D31="o",1,0) -> 0 | I32: =IF('3 indices'!E31="o",1,0) -> 0 | J32: =SUM(G32:I32) -> 0
B33: =IF(AND('3 indices'!$F29="x",'3 indices'!$G29="x",'3 indices'!$H29="x"),$A26&'3 indices'!$F26&" "&'3 indices'!$B29,"") ->  | C33: 1 | F33: ='3 indices'!B32 -> 262 av J.C. | G33: =IF('3 indices'!C32="o",1,0) -> 0 | H33: =IF('3 indices'!D32="o",1,0) -> 0 | I33: =IF('3 indices'!E32="o",1,0) -> 0 | J33: =SUM(G33:I33) -> 0 | K33: Impossible qu'il y ai plus de deux Oui
B34: =IF(AND('3 indices'!$F30="x",'3 indices'!$G30="x",'3 indices'!$H30="x"),$A26&'3 indices'!$F26&" "&'3 indices'!$B30,"") ->  | C34: 1 | F34: ='3 indices'!B33 -> 276 av J.C. | G34: =IF('3 indices'!C33="o",1,0) -> 0 | H34: =IF('3 indices'!D33="o",1,0) -> 0 | I34: =IF('3 indices'!E33="o",1,0) -> 0 | J34: 0 | K34: sur la ligne
G35: =SUM(G32:G34) -> 0 | H35: =SUM(H32:H34) -> 0 | I35: 0 | K35: sur la colonne
B36: =IF(C37=2,B37,IF(C38=2,B38,IF(C39=2,B39,IF(C40=2,B40,IF(C41=2,B41,IF(C42=2,B42,IF(C43=2,B43,IF(C44=2,B44,IF(C45=2,B45,""))))))))) ->  | E36: = | F36: =IF(J28>1,K33&K34&G26&" "&F28,IF(J29>1,K33&K34&G26&" "&F29,IF(J30>1,K33&K34&G26&" "&F30,IF(J32>1,K33&K34&G26&" "&F32,IF(J33>1,K33&K34&G26&" "&F33,IF(J34>1,K33&K34&G26&" "&F34,IF(N28>1,K33&K34&K26&" "&F28,IF(N29>1,K33&K34&K26&" "&F29,IF(N30>1,K33&K34&K26&" "&F30,""))))))))) -> 
A37: Impossible d'avoir 3 non sur la même colonne | B37: =IF(AND('3 indices'!C28="x",'3 indices'!C29="x",'3 indices'!C30="x"),$A37&'3 indices'!$C27&" "&'3 indices'!$A28,"") ->  | C37: =IF(B37="",1,2) -> 1 | E37: = | F37: =IF(G31>1,K33&K35&E28&" "&G27,IF(H31>1,K33&K35&E28&" "&H27,IF(I31>1,K33&K35&E28&" "&I27,IF(K31>1,K33&K35&E28&" "&K27,IF(L31>1,K33&K35&E28&" "&L27,IF(M31>1,K33&K35&E28&" "&M27,IF(G35>1,K33&K35&E32&" "&G27,IF(H35>1,K33&K35&E32&" "&H27,IF(I35>1,K33&K35&E32&" "&I27,""))))))))) -> 
B38: =IF(AND('3 indices'!D28="x",'3 indices'!D29="x",'3 indices'!D30="x"),$A37&'3 indices'!D27&" "&'3 indices'!$A28,"") ->  | C38: 1
B39: =IF(AND('3 indices'!E28="x",'3 indices'!E29="x",'3 indices'!E30="x"),$A37&'3 indices'!E27&" "&'3 indices'!$A28,"") ->  | C39: 1
B40: =IF(AND('3 indices'!C31="x",'3 indices'!C32="x",'3 indices'!C33="x"),$A37&'3 indices'!$C27&" "&'3 indices'!$A31,"") ->  | C40: 1
B41: =IF(AND('3 indices'!D31="x",'3 indices'!D32="x",'3 indices'!D33="x"),$A37&'3 indices'!D27&" "&'3 indices'!$A31,"") ->  | C41: 1
B42: =IF(AND('3 indices'!E31="x",'3 indices'!E32="x",'3 indices'!E33="x"),$A37&'3 indices'!E27&" "&'3 indices'!$A31,"") ->  | C42: 1
B43: =IF(AND('3 indices'!F28="x",'3 indices'!F29="x",'3 indices'!F30="x"),$A37&'3 indices'!$F27&" "&'3 indices'!$A28,"") ->  | C43: 1
B44: =IF(AND('3 indices'!G28="x",'3 indices'!G29="x",'3 indices'!G30="x"),$A37&'3 indices'!$G27&" "&'3 indices'!$A28,"") ->  | C44: 1
B45: =IF(AND('3 indices'!H28="x",'3 indices'!H29="x",'3 indices'!H30="x"),$A37&'3 indices'!$H27&" "&'3 indices'!$A28,"") ->  | C45: 1
A49: ='3 indices'!A45 -> III°/ Trois grandes tours : | B49: =IF(C50=2,B50,IF(C51=2,B51,IF(C52=2,B52,IF(C53=2,B53,IF(C54=2,B54,IF(C55=2,B55,IF(C56=2,B56,IF(C57=2,B57,IF(C58=2,B58,""))))))))) -> 
A50: Impossible d'avoir 3 non sur la même ligne | B50: =IF(AND('3 indices'!$C50="x",'3 indices'!$D50="x",'3 indices'!$E50="x"),$A50&'3 indices'!$C48&" "&'3 indices'!$B50,"") ->  | C50: =IF(B50="",1,2) -> 1 | G50: ='3 indices'!C48 -> Hauteur | K50: ='3 indices'!F48 -> Forme
B51: =IF(AND('3 indices'!$C51="x",'3 indices'!$D51="x",'3 indices'!$E51="x"),$A50&'3 indices'!$C48&" "&'3 indices'!$B51,"") ->  | C51: =IF(B51="",1,2) -> 1 | G51: ='3 indices'!C49 -> 514,8 m | H51: ='3 indices'!D49 -> 541 m | I51: ='3 indices'!E49 -> 705 m | K51: ='3 indices'!F49 -> Hélicoïdale | L51: ='3 indices'!G49 -> Hymenocallis | M51: ='3 indices'!H49 -> Flèche en haut
B52: =IF(AND('3 indices'!$C52="x",'3 indices'!$D52="x",'3 indices'!$E52="x"),$A50&'3 indices'!$C48&" "&'3 indices'!$B52,"") ->  | C52: 1 | E52: ='3 indices'!A50 -> Pays | F52: ='3 indices'!B50 -> Emirats Arabes Unis | G52: =IF('3 indices'!C50="o",1,0) -> 0 | H52: =IF('3 indices'!D50="o",1,0) -> 0 | I52: =IF('3 indices'!E50="o",1,0) -> 0 | J52: =SUM(G52:I52) -> 0 | K52: =IF('3 indices'!F50="o",1,0) -> 0 | L52: =IF('3 indices'!G50="o",1,0) -> 0 | M52: =IF('3 indices'!H50="o",1,0) -> 0 | N52: =SUM(K52:M52) -> 0
B53: =IF(AND('3 indices'!$C53="x",'3 indices'!$D53="x",'3 indices'!$E53="x"),$A50&'3 indices'!$C48&" "&'3 indices'!$B53,"") ->  | C53: 1 | F53: ='3 indices'!B51 -> Chine | G53: =IF('3 indices'!C51="o",1,0) -> 0 | H53: =IF('3 indices'!D51="o",1,0) -> 0 | I53: =IF('3 indices'!E51="o",1,0) -> 0 | J53: =SUM(G53:I53) -> 0 | K53: =IF('3 indices'!F51="o",1,0) -> 0 | L53: =IF('3 indices'!G51="o",1,0) -> 0 | M53: =IF('3 indices'!H51="o",1,0) -> 0 | N53: =SUM(K53:M53) -> 0
B54: =IF(AND('3 indices'!$C54="x",'3 indices'!$D54="x",'3 indices'!$E54="x"),$A50&'3 indices'!$C48&" "&'3 indices'!$B54,"") ->  | C54: 1 | F54: ='3 indices'!B52 -> Etats-Unis | G54: =IF('3 indices'!C52="o",1,0) -> 0 | H54: =IF('3 indices'!D52="o",1,0) -> 0 | I54: =IF('3 indices'!E52="o",1,0) -> 0 | J54: 0 | K54: =IF('3 indices'!F52="o",1,0) -> 0 | L54: =IF('3 indices'!G52="o",1,0) -> 0 | M54: =IF('3 indices'!H52="o",1,0) -> 0 | N54: 0
B55: =IF(AND('3 indices'!$C55="x",'3 indices'!$D55="x",'3 indices'!$E55="x"),$A50&'3 indices'!$C48&" "&'3 indices'!$B55,"") ->  | C55: 1 | G55: =SUM(G52:G54) -> 0 | H55: =SUM(H52:H54) -> 0 | I55: 0 | K55: =SUM(K52:K54) -> 0 | L55: =SUM(L52:L54) -> 0 | M55: 0
B56: =IF(AND('3 indices'!$F50="x",'3 indices'!$G50="x",'3 indices'!$H50="x"),$A50&'3 indices'!$F48&" "&'3 indices'!$B50,"") ->  | C56: 1 | E56: ='3 indices'!A53 -> Forme | F56: ='3 indices'!B53 -> Hélicoïdale | G56: =IF('3 indices'!C53="o",1,0) -> 0 | H56: =IF('3 indices'!D53="o",1,0) -> 0 | I56: =IF('3 indices'!E53="o",1,0) -> 0 | J56: =SUM(G56:I56) -> 0
B57: =IF(AND('3 indices'!$F51="x",'3 indices'!$G51="x",'3 indices'!$H51="x"),$A50&'3 indices'!$F48&" "&'3 indices'!$B51,"") ->  | C57: 1 | F57: ='3 indices'!B54 -> Hymenocallis | G57: =IF('3 indices'!C54="o",1,0) -> 0 | H57: =IF('3 indices'!D54="o",1,0) -> 0 | I57: =IF('3 indices'!E54="o",1,0) -> 0 | J57: =SUM(G57:I57) -> 0 | K57: Impossible qu'il y ai plus de deux Oui
B58: =IF(AND('3 indices'!$F52="x",'3 indices'!$G52="x",'3 indices'!$H52="x"),$A50&'3 indices'!$F48&" "&'3 indices'!$B52,"") ->  | C58: 1 | F58: ='3 indices'!B55 -> Flèche en haut | G58: =IF('3 indices'!C55="o",1,0) -> 0 | H58: =IF('3 indices'!D55="o",1,0) -> 0 | I58: =IF('3 indices'!E55="o",1,0) -> 0 | J58: 0 | K58: sur la ligne
G59: =SUM(G56:G58) -> 0 | H59: =SUM(H56:H58) -> 0 | I59: 0 | K59: sur la colonne
B60: =IF(C61=2,B61,IF(C62=2,B62,IF(C63=2,B63,IF(C64=2,B64,IF(C65=2,B65,IF(C66=2,B66,IF(C67=2,B67,IF(C68=2,B68,IF(C69=2,B69,""))))))))) ->  | E60: = | F60: =IF(J52>1,K57&K58&G50&" "&F52,IF(J53>1,K57&K58&G50&" "&F53,IF(J54>1,K57&K58&G50&" "&F54,IF(J56>1,K57&K58&G50&" "&F56,IF(J57>1,K57&K58&G50&" "&F57,IF(J58>1,K57&K58&G50&" "&F58,IF(N52>1,K57&K58&K50&" "&F52,IF(N53>1,K57&K58&K50&" "&F53,IF(N54>1,K57&K58&K50&" "&F54,""))))))))) -> 
A61: Impossible d'avoir 3 non sur la même colonne | B61: =IF(AND('3 indices'!C50="x",'3 indices'!C51="x",'3 indices'!C52="x"),$A61&'3 indices'!$C49&" "&'3 indices'!$A50,"") ->  | C61: =IF(B61="",1,2) -> 1 | E61: = | F61: =IF(G55>1,K57&K59&E52&" "&G51,IF(H55>1,K57&K59&E52&" "&H51,IF(I55>1,K57&K59&E52&" "&I51,IF(K55>1,K57&K59&E52&" "&K51,IF(L55>1,K57&K59&E52&" "&L51,IF(M55>1,K57&K59&E52&" "&M51,IF(G59>1,K57&K59&E56&" "&G51,IF(H59>1,K57&K59&E56&" "&H51,IF(I59>1,K57&K59&E56&" "&I51,""))))))))) -> 
B62: =IF(AND('3 indices'!D50="x",'3 indices'!D51="x",'3 indices'!D52="x"),$A61&'3 indices'!D49&" "&'3 indices'!$A50,"") ->  | C62: 1
B63: =IF(AND('3 indices'!E50="x",'3 indices'!E51="x",'3 indices'!E52="x"),$A61&'3 indices'!E49&" "&'3 indices'!$A50,"") ->  | C63: 1
B64: =IF(AND('3 indices'!C53="x",'3 indices'!C54="x",'3 indices'!C55="x"),$A61&'3 indices'!$C49&" "&'3 indices'!$A53,"") ->  | C64: 1
B65: =IF(AND('3 indices'!D53="x",'3 indices'!D54="x",'3 indices'!D55="x"),$A61&'3 indices'!D49&" "&'3 indices'!$A53,"") ->  | C65: 1
B66: =IF(AND('3 indices'!E53="x",'3 indices'!E54="x",'3 indices'!E55="x"),$A61&'3 indices'!E49&" "&'3 indices'!$A53,"") ->  | C66: 1
B67: =IF(AND('3 indices'!F50="x",'3 indices'!F51="x",'3 indices'!F52="x"),$A61&'3 indices'!$F49&" "&'3 indices'!$A50,"") ->  | C67: 1
B68: =IF(AND('3 indices'!G50="x",'3 indices'!G51="x",'3 indices'!G52="x"),$A61&'3 indices'!$G49&" "&'3 indices'!$A50,"") ->  | C68: 1
B69: =IF(AND('3 indices'!H50="x",'3 indices'!H51="x",'3 indices'!H52="x"),$A61&'3 indices'!$H49&" "&'3 indices'!$A50,"") ->  | C69: 1
A73: ='3 indices'!A67 -> IV°/ Les pierres précieuses : | B73: =IF(C74=2,B74,IF(C75=2,B75,IF(C76=2,B76,IF(C77=2,B77,IF(C78=2,B78,IF(C79=2,B79,IF(C80=2,B80,IF(C81=2,B81,IF(C82=2,B82,""))))))))) -> 
A74: Impossible d'avoir 3 non sur la même ligne | B74: =IF(AND('3 indices'!$C72="x",'3 indices'!$D72="x",'3 indices'!$E72="x"),$A74&'3 indices'!$C70&" "&'3 indices'!$B72,"") ->  | C74: =IF(B74="",1,2) -> 1 | G74: ='3 indices'!C70 -> Dureté | K74: ='3 indices'!F70 -> Composition
B75: =IF(AND('3 indices'!$C73="x",'3 indices'!$D73="x",'3 indices'!$E73="x"),$A74&'3 indices'!$C70&" "&'3 indices'!$B73,"") ->  | C75: =IF(B75="",1,2) -> 1 | G75: ='3 indices'!C71 -> 7.5 | H75: ='3 indices'!D71 -> 9 | I75: ='3 indices'!E71 -> 10 | K75: ='3 indices'!F71 -> Silicate d'Aluminium et de Béryllium | L75: ='3 indices'!G71 -> Carbone | M75: ='3 indices'!H71 -> Oxyde d'Aluminium
B76: =IF(AND('3 indices'!$C74="x",'3 indices'!$D74="x",'3 indices'!$E74="x"),$A74&'3 indices'!$C70&" "&'3 indices'!$B74,"") ->  | C76: 1 | E76: ='3 indices'!A72 -> Pierre | F76: ='3 indices'!B72 -> Saphir & Rubis | G76: =IF('3 indices'!C72="o",1,0) -> 0 | H76: =IF('3 indices'!D72="o",1,0) -> 0 | I76: =IF('3 indices'!E72="o",1,0) -> 0 | J76: =SUM(G76:I76) -> 0 | K76: =IF('3 indices'!F72="o",1,0) -> 0 | L76: =IF('3 indices'!G72="o",1,0) -> 0 | M76: =IF('3 indices'!H72="o",1,0) -> 0 | N76: =SUM(K76:M76) -> 0
B77: =IF(AND('3 indices'!$C75="x",'3 indices'!$D75="x",'3 indices'!$E75="x"),$A74&'3 indices'!$C70&" "&'3 indices'!$B75,"") ->  | C77: 1 | F77: ='3 indices'!B73 -> L'Emeraude | G77: =IF('3 indices'!C73="o",1,0) -> 0 | H77: =IF('3 indices'!D73="o",1,0) -> 0 | I77: =IF('3 indices'!E73="o",1,0) -> 0 | J77: =SUM(G77:I77) -> 0 | K77: =IF('3 indices'!F73="o",1,0) -> 0 | L77: =IF('3 indices'!G73="o",1,0) -> 0 | M77: =IF('3 indices'!H73="o",1,0) -> 0 | N77: =SUM(K77:M77) -> 0
B78: =IF(AND('3 indices'!$C76="x",'3 indices'!$D76="x",'3 indices'!$E76="x"),$A74&'3 indices'!$C70&" "&'3 indices'!$B76,"") ->  | C78: 1 | F78: ='3 indices'!B74 -> Diamant | G78: =IF('3 indices'!C74="o",1,0) -> 0 | H78: =IF('3 indices'!D74="o",1,0) -> 0 | I78: =IF('3 indices'!E74="o",1,0) -> 0 | J78: 0 | K78: =IF('3 indices'!F74="o",1,0) -> 0 | L78: =IF('3 indices'!G74="o",1,0) -> 0 | M78: =IF('3 indices'!H74="o",1,0) -> 0 | N78: 0
B79: =IF(AND('3 indices'!$C77="x",'3 indices'!$D77="x",'3 indices'!$E77="x"),$A74&'3 indices'!$C70&" "&'3 indices'!$B77,"") ->  | C79: 1 | G79: =SUM(G76:G78) -> 0 | H79: =SUM(H76:H78) -> 0 | I79: 0 | K79: =SUM(K76:K78) -> 0 | L79: =SUM(L76:L78) -> 0 | M79: 0
B80: =IF(AND('3 indices'!$F72="x",'3 indices'!$G72="x",'3 indices'!$H72="x"),$A74&'3 indices'!$F70&" "&'3 indices'!$B72,"") ->  | C80: 1 | E80: ='3 indices'!A75 -> Composition | F80: ='3 indices'!B75 -> Silicate d'Aluminium et de Béryllium | G80: =IF('3 indices'!C75="o",1,0) -> 0 | H80: =IF('3 indices'!D75="o",1,0) -> 0 | I80: =IF('3 indices'!E75="o",1,0) -> 0 | J80: =SUM(G80:I80) -> 0
B81: =IF(AND('3 indices'!$F73="x",'3 indices'!$G73="x",'3 indices'!$H73="x"),$A74&'3 indices'!$F70&" "&'3 indices'!$B73,"") ->  | C81: 1 | F81: ='3 indices'!B76 -> Carbone | G81: =IF('3 indices'!C76="o",1,0) -> 0 | H81: =IF('3 indices'!D76="o",1,0) -> 0 | I81: =IF('3 indices'!E76="o",1,0) -> 0 | J81: =SUM(G81:I81) -> 0 | K81: Impossible qu'il y ai plus de deux Oui
B82: =IF(AND('3 indices'!$F74="x",'3 indices'!$G74="x",'3 indices'!$H74="x"),$A74&'3 indices'!$F70&" "&'3 indices'!$B74,"") ->  | C82: 1 | F82: ='3 indices'!B77 -> Oxyde d'Aluminium | G82: =IF('3 indices'!C77="o",1,0) -> 0 | H82: =IF('3 indices'!D77="o",1,0) -> 0 | I82: =IF('3 indices'!E77="o",1,0) -> 0 | J82: 0 | K82: sur la ligne
G83: =SUM(G80:G82) -> 0 | H83: =SUM(H80:H82) -> 0 | I83: 0 | K83: sur la colonne
B84: =IF(C85=2,B85,IF(C86=2,B86,IF(C87=2,B87,IF(C88=2,B88,IF(C89=2,B89,IF(C90=2,B90,IF(C91=2,B91,IF(C92=2,B92,IF(C93=2,B93,""))))))))) ->  | E84: = | F84: =IF(J76>1,K81&K82&G74&" "&F76,IF(J77>1,K81&K82&G74&" "&F77,IF(J78>1,K81&K82&G74&" "&F78,IF(J80>1,K81&K82&G74&" "&F80,IF(J81>1,K81&K82&G74&" "&F81,IF(J82>1,K81&K82&G74&" "&F82,IF(N76>1,K81&K82&K74&" "&F76,IF(N77>1,K81&K82&K74&" "&F77,IF(N78>1,K81&K82&K74&" "&F78,""))))))))) -> 
A85: Impossible d'avoir 3 non sur la même colonne | B85: =IF(AND('3 indices'!C72="x",'3 indices'!C73="x",'3 indices'!C74="x"),$A85&'3 indices'!$C71&" "&'3 indices'!$A72,"") ->  | C85: =IF(B85="",1,2) -> 1 | E85: = | F85: =IF(G79>1,K81&K83&E76&" "&G75,IF(H79>1,K81&K83&E76&" "&H75,IF(I79>1,K81&K83&E76&" "&I75,IF(K79>1,K81&K83&E76&" "&K75,IF(L79>1,K81&K83&E76&" "&L75,IF(M79>1,K81&K83&E76&" "&M75,IF(G83>1,K81&K83&E80&" "&G75,IF(H83>1,K81&K83&E80&" "&H75,IF(I83>1,K81&K83&E80&" "&I75,""))))))))) -> 
B86: =IF(AND('3 indices'!D72="x",'3 indices'!D73="x",'3 indices'!D74="x"),$A85&'3 indices'!D71&" "&'3 indices'!$A72,"") ->  | C86: 1
B87: =IF(AND('3 indices'!E72="x",'3 indices'!E73="x",'3 indices'!E74="x"),$A85&'3 indices'!E71&" "&'3 indices'!$A72,"") ->  | C87: 1
B88: =IF(AND('3 indices'!C75="x",'3 indices'!C76="x",'3 indices'!C77="x"),$A85&'3 indices'!$C71&" "&'3 indices'!$A75,"") ->  | C88: 1
B89: =IF(AND('3 indices'!D75="x",'3 indices'!D76="x",'3 indices'!D77="x"),$A85&'3 indices'!D71&" "&'3 indices'!$A75,"") ->  | C89: 1
B90: =IF(AND('3 indices'!E75="x",'3 indices'!E76="x",'3 indices'!E77="x"),$A85&'3 indices'!E71&" "&'3 indices'!$A75,"") ->  | C90: 1
B91: =IF(AND('3 indices'!F72="x",'3 indices'!F73="x",'3 indices'!F74="x"),$A85&'3 indices'!$F71&" "&'3 indices'!$A72,"") ->  | C91: 1
B92: =IF(AND('3 indices'!G72="x",'3 indices'!G73="x",'3 indices'!G74="x"),$A85&'3 indices'!$G71&" "&'3 indices'!$A72,"") ->  | C92: 1
B93: =IF(AND('3 indices'!H72="x",'3 indices'!H73="x",'3 indices'!H74="x"),$A85&'3 indices'!$H71&" "&'3 indices'!$A72,"") ->  | C93: 1
A97: ='3 indices'!A89 -> V°/ Les patisseries : | B97: =IF(C98=2,B98,IF(C99=2,B99,IF(C100=2,B100,IF(C101=2,B101,IF(C102=2,B102,IF(C103=2,B103,IF(C104=2,B104,IF(C105=2,B105,IF(C106=2,B106,""))))))))) -> 
A98: Impossible d'avoir 3 non sur la même ligne | B98: =IF(AND('3 indices'!$C94="x",'3 indices'!$D94="x",'3 indices'!$E94="x"),$A98&'3 indices'!$C92&" "&'3 indices'!$B94,"") ->  | C98: =IF(B98="",1,2) -> 1 | G98: ='3 indices'!C92 -> Région | K98: ='3 indices'!F92 -> Type
B99: =IF(AND('3 indices'!$C95="x",'3 indices'!$D95="x",'3 indices'!$E95="x"),$A98&'3 indices'!$C92&" "&'3 indices'!$B95,"") ->  | C99: =IF(B99="",1,2) -> 1 | G99: ='3 indices'!C93 -> Bresse | H99: ='3 indices'!D93 -> Isére | I99: ='3 indices'!E93 -> Bourgogne | K99: ='3 indices'!F93 -> Viennoiserie | L99: ='3 indices'!G93 -> Confiture | M99: ='3 indices'!H93 -> Tourte
B100: =IF(AND('3 indices'!$C96="x",'3 indices'!$D96="x",'3 indices'!$E96="x"),$A98&'3 indices'!$C92&" "&'3 indices'!$B96,"") ->  | C100: 1 | E100: ='3 indices'!A94 -> Gâteau | F100: ='3 indices'!B94 -> Ruifard | G100: =IF('3 indices'!C94="o",1,0) -> 0 | H100: =IF('3 indices'!D94="o",1,0) -> 0 | I100: =IF('3 indices'!E94="o",1,0) -> 0 | J100: =SUM(G100:I100) -> 0 | K100: =IF('3 indices'!F94="o",1,0) -> 0 | L100: =IF('3 indices'!G94="o",1,0) -> 0 | M100: =IF('3 indices'!H94="o",1,0) -> 0 | N100: =SUM(K100:M100) -> 0
B101: =IF(AND('3 indices'!$C97="x",'3 indices'!$D97="x",'3 indices'!$E97="x"),$A98&'3 indices'!$C92&" "&'3 indices'!$B97,"") ->  | C101: 1 | F101: ='3 indices'!B95 -> Cramaillotte | G101: =IF('3 indices'!C95="o",1,0) -> 0 | H101: =IF('3 indices'!D95="o",1,0) -> 0 | I101: =IF('3 indices'!E95="o",1,0) -> 0 | J101: =SUM(G101:I101) -> 0 | K101: =IF('3 indices'!F95="o",1,0) -> 0 | L101: =IF('3 indices'!G95="o",1,0) -> 0 | M101: =IF('3 indices'!H95="o",1,0) -> 0 | N101: =SUM(K101:M101) -> 0
B102: =IF(AND('3 indices'!$C98="x",'3 indices'!$D98="x",'3 indices'!$E98="x"),$A98&'3 indices'!$C92&" "&'3 indices'!$B98,"") ->  | C102: 1 | F102: ='3 indices'!B96 -> Corniotte | G102: =IF('3 indices'!C96="o",1,0) -> 0 | H102: =IF('3 indices'!D96="o",1,0) -> 0 | I102: =IF('3 indices'!E96="o",1,0) -> 0 | J102: 0 | K102: =IF('3 indices'!F96="o",1,0) -> 0 | L102: =IF('3 indices'!G96="o",1,0) -> 0 | M102: =IF('3 indices'!H96="o",1,0) -> 0 | N102: 0
B103: =IF(AND('3 indices'!$C99="x",'3 indices'!$D99="x",'3 indices'!$E99="x"),$A98&'3 indices'!$C92&" "&'3 indices'!$B99,"") ->  | C103: 1 | G103: =SUM(G100:G102) -> 0 | H103: =SUM(H100:H102) -> 0 | I103: 0 | K103: =SUM(K100:K102) -> 0 | L103: =SUM(L100:L102) -> 0 | M103: 0
B104: =IF(AND('3 indices'!$F94="x",'3 indices'!$G94="x",'3 indices'!$H94="x"),$A98&'3 indices'!$F92&" "&'3 indices'!$B94,"") ->  | C104: 1 | E104: ='3 indices'!A97 -> Type | F104: ='3 indices'!B97 -> Viennoiserie | G104: =IF('3 indices'!C97="o",1,0) -> 0 | H104: =IF('3 indices'!D97="o",1,0) -> 0 | I104: =IF('3 indices'!E97="o",1,0) -> 0 | J104: =SUM(G104:I104) -> 0
B105: =IF(AND('3 indices'!$F95="x",'3 indices'!$G95="x",'3 indices'!$H95="x"),$A98&'3 indices'!$F92&" "&'3 indices'!$B95,"") ->  | C105: 1 | F105: ='3 indices'!B98 -> Confiture | G105: =IF('3 indices'!C98="o",1,0) -> 0 | H105: =IF('3 indices'!D98="o",1,0) -> 0 | I105: =IF('3 indices'!E98="o",1,0) -> 0 | J105: =SUM(G105:I105) -> 0 | K105: Impossible qu'il y ai plus de deux Oui
B106: =IF(AND('3 indices'!$F96="x",'3 indices'!$G96="x",'3 indices'!$H96="x"),$A98&'3 indices'!$F92&" "&'3 indices'!$B96,"") ->  | C106: 1 | F106: ='3 indices'!B99 -> Tourte | G106: =IF('3 indices'!C99="o",1,0) -> 0 | H106: =IF('3 indices'!D99="o",1,0) -> 0 | I106: =IF('3 indices'!E99="o",1,0) -> 0 | J106: 0 | K106: sur la ligne
G107: =SUM(G104:G106) -> 0 | H107: =SUM(H104:H106) -> 0 | I107: 0 | K107: sur la colonne
B108: =IF(C109=2,B109,IF(C110=2,B110,IF(C111=2,B111,IF(C112=2,B112,IF(C113=2,B113,IF(C114=2,B114,IF(C115=2,B115,IF(C116=2,B116,IF(C117=2,B117,""))))))))) ->  | E108: = | F108: =IF(J100>1,K105&K106&G98&" "&F100,IF(J101>1,K105&K106&G98&" "&F101,IF(J102>1,K105&K106&G98&" "&F102,IF(J104>1,K105&K106&G98&" "&F104,IF(J105>1,K105&K106&G98&" "&F105,IF(J106>1,K105&K106&G98&" "&F106,IF(N100>1,K105&K106&K98&" "&F100,IF(N101>1,K105&K106&K98&" "&F101,IF(N102>1,K105&K106&K98&" "&F102,""))))))))) -> 
A109: Impossible d'avoir 3 non sur la même colonne | B109: =IF(AND('3 indices'!C94="x",'3 indices'!C95="x",'3 indices'!C96="x"),$A109&'3 indices'!$C93&" "&'3 indices'!$A94,"") ->  | C109: =IF(B109="",1,2) -> 1 | E109: = | F109: =IF(G103>1,K105&K107&E100&" "&G99,IF(H103>1,K105&K107&E100&" "&H99,IF(I103>1,K105&K107&E100&" "&I99,IF(K103>1,K105&K107&E100&" "&K99,IF(L103>1,K105&K107&E100&" "&L99,IF(M103>1,K105&K107&E100&" "&M99,IF(G107>1,K105&K107&E104&" "&G99,IF(H107>1,K105&K107&E104&" "&H99,IF(I107>1,K105&K107&E104&" "&I99,""))))))))) -> 
B110: =IF(AND('3 indices'!D94="x",'3 indices'!D95="x",'3 indices'!D96="x"),$A109&'3 indices'!D93&" "&'3 indices'!$A94,"") ->  | C110: 1
B111: =IF(AND('3 indices'!E94="x",'3 indices'!E95="x",'3 indices'!E96="x"),$A109&'3 indices'!E93&" "&'3 indices'!$A94,"") ->  | C111: 1
B112: =IF(AND('3 indices'!C97="x",'3 indices'!C98="x",'3 indices'!C99="x"),$A109&'3 indices'!$C93&" "&'3 indices'!$A97,"") ->  | C112: 1
B113: =IF(AND('3 indices'!D97="x",'3 indices'!D98="x",'3 indices'!D99="x"),$A109&'3 indices'!D93&" "&'3 indices'!$A97,"") ->  | C113: 1
B114: =IF(AND('3 indices'!E97="x",'3 indices'!E98="x",'3 indices'!E99="x"),$A109&'3 indices'!E93&" "&'3 indices'!$A97,"") ->  | C114: 1
B115: =IF(AND('3 indices'!F94="x",'3 indices'!F95="x",'3 indices'!F96="x"),$A109&'3 indices'!$F93&" "&'3 indices'!$A94,"") ->  | C115: 1
B116: =IF(AND('3 indices'!G94="x",'3 indices'!G95="x",'3 indices'!G96="x"),$A109&'3 indices'!$G93&" "&'3 indices'!$A94,"") ->  | C116: 1
B117: =IF(AND('3 indices'!H94="x",'3 indices'!H95="x",'3 indices'!H96="x"),$A109&'3 indices'!$H93&" "&'3 indices'!$A94,"") ->  | C117: 1
A121: ='3 indices'!A111 -> VI°/ Les sports préférés : | B121: =IF(C122=2,B122,IF(C123=2,B123,IF(C124=2,B124,IF(C125=2,B125,IF(C126=2,B126,IF(C127=2,B127,IF(C128=2,B128,IF(C129=2,B129,IF(C130=2,B130,""))))))))) -> 
A122: Impossible d'avoir 3 non sur la même ligne | B122: =IF(AND('3 indices'!$C116="x",'3 indices'!$D116="x",'3 indices'!$E116="x"),$A122&'3 indices'!$C114&" "&'3 indices'!$B116,"") ->  | C122: =IF(B122="",1,2) -> 1 | G122: ='3 indices'!C114 -> Métier | K122: ='3 indices'!F114 -> Situation
B123: =IF(AND('3 indices'!$C117="x",'3 indices'!$D117="x",'3 indices'!$E117="x"),$A122&'3 indices'!$C114&" "&'3 indices'!$B117,"") ->  | C123: =IF(B123="",1,2) -> 1 | G123: ='3 indices'!C115 -> Dentiste | H123: ='3 indices'!D115 -> Comptable | I123: ='3 indices'!E115 -> Sage femme | K123: ='3 indices'!F115 -> Célibataire | L123: ='3 indices'!G115 -> Marié-ée | M123: ='3 indices'!H115 -> Fiancé-ée
B124: =IF(AND('3 indices'!$C118="x",'3 indices'!$D118="x",'3 indices'!$E118="x"),$A122&'3 indices'!$C114&" "&'3 indices'!$B118,"") ->  | C124: 1 | E124: ='3 indices'!A116 -> Prénom | F124: ='3 indices'!B116 -> Benoit | G124: =IF('3 indices'!C116="o",1,0) -> 0 | H124: =IF('3 indices'!D116="o",1,0) -> 0 | I124: =IF('3 indices'!E116="o",1,0) -> 0 | J124: =SUM(G124:I124) -> 0 | K124: =IF('3 indices'!F116="o",1,0) -> 0 | L124: =IF('3 indices'!G116="o",1,0) -> 0 | M124: =IF('3 indices'!H116="o",1,0) -> 0 | N124: =SUM(K124:M124) -> 0
B125: =IF(AND('3 indices'!$C119="x",'3 indices'!$D119="x",'3 indices'!$E119="x"),$A122&'3 indices'!$C114&" "&'3 indices'!$B119,"") ->  | C125: 1 | F125: ='3 indices'!B117 -> Jean | G125: =IF('3 indices'!C117="o",1,0) -> 0 | H125: =IF('3 indices'!D117="o",1,0) -> 0 | I125: =IF('3 indices'!E117="o",1,0) -> 0 | J125: =SUM(G125:I125) -> 0 | K125: =IF('3 indices'!F117="o",1,0) -> 0 | L125: =IF('3 indices'!G117="o",1,0) -> 0 | M125: =IF('3 indices'!H117="o",1,0) -> 0 | N125: =SUM(K125:M125) -> 0
B126: =IF(AND('3 indices'!$C120="x",'3 indices'!$D120="x",'3 indices'!$E120="x"),$A122&'3 indices'!$C114&" "&'3 indices'!$B120,"") ->  | C126: 1 | F126: ='3 indices'!B118 -> Sophie | G126: =IF('3 indices'!C118="o",1,0) -> 0 | H126: =IF('3 indices'!D118="o",1,0) -> 0 | I126: =IF('3 indices'!E118="o",1,0) -> 0 | J126: 0 | K126: =IF('3 indices'!F118="o",1,0) -> 0 | L126: =IF('3 indices'!G118="o",1,0) -> 0 | M126: =IF('3 indices'!H118="o",1,0) -> 0 | N126: 0
B127: =IF(AND('3 indices'!$C121="x",'3 indices'!$D121="x",'3 indices'!$E121="x"),$A122&'3 indices'!$C114&" "&'3 indices'!$B121,"") ->  | C127: 1 | G127: =SUM(G124:G126) -> 0 | H127: =SUM(H124:H126) -> 0 | I127: 0 | K127: =SUM(K124:K126) -> 0 | L127: =SUM(L124:L126) -> 0 | M127: 0
B128: =IF(AND('3 indices'!$F116="x",'3 indices'!$G116="x",'3 indices'!$H116="x"),$A122&'3 indices'!$F114&" "&'3 indices'!$B116,"") ->  | C128: 1 | E128: ='3 indices'!A119 -> Situation | F128: ='3 indices'!B119 -> Célibataire | G128: =IF('3 indices'!C119="o",1,0) -> 0 | H128: =IF('3 indices'!D119="o",1,0) -> 0 | I128: =IF('3 indices'!E119="o",1,0) -> 0 | J128: =SUM(G128:I128) -> 0
B129: =IF(AND('3 indices'!$F117="x",'3 indices'!$G117="x",'3 indices'!$H117="x"),$A122&'3 indices'!$F114&" "&'3 indices'!$B117,"") ->  | C129: 1 | F129: ='3 indices'!B120 -> Marié-ée | G129: =IF('3 indices'!C120="o",1,0) -> 0 | H129: =IF('3 indices'!D120="o",1,0) -> 0 | I129: =IF('3 indices'!E120="o",1,0) -> 0 | J129: =SUM(G129:I129) -> 0 | K129: Impossible qu'il y ai plus de deux Oui
B130: =IF(AND('3 indices'!$F118="x",'3 indices'!$G118="x",'3 indices'!$H118="x"),$A122&'3 indices'!$F114&" "&'3 indices'!$B118,"") ->  | C130: 1 | F130: ='3 indices'!B121 -> Fiancé-ée | G130: =IF('3 indices'!C121="o",1,0) -> 0 | H130: =IF('3 indices'!D121="o",1,0) -> 0 | I130: =IF('3 indices'!E121="o",1,0) -> 0 | J130: 0 | K130: sur la ligne
G131: =SUM(G128:G130) -> 0 | H131: =SUM(H128:H130) -> 0 | I131: 0 | K131: sur la colonne
B132: =IF(C133=2,B133,IF(C134=2,B134,IF(C135=2,B135,IF(C136=2,B136,IF(C137=2,B137,IF(C138=2,B138,IF(C139=2,B139,IF(C140=2,B140,IF(C141=2,B141,""))))))))) ->  | E132: = | F132: =IF(J124>1,K129&K130&G122&" "&F124,IF(J125>1,K129&K130&G122&" "&F125,IF(J126>1,K129&K130&G122&" "&F126,IF(J128>1,K129&K130&G122&" "&F128,IF(J129>1,K129&K130&G122&" "&F129,IF(J130>1,K129&K130&G122&" "&F130,IF(N124>1,K129&K130&K122&" "&F124,IF(N125>1,K129&K130&K122&" "&F125,IF(N126>1,K129&K130&K122&" "&F126,""))))))))) -> 
A133: Impossible d'avoir 3 non sur la même colonne | B133: =IF(AND('3 indices'!C116="x",'3 indices'!C117="x",'3 indices'!C118="x"),$A133&'3 indices'!$C115&" "&'3 indices'!$A116,"") ->  | C133: =IF(B133="",1,2) -> 1 | E133: = | F133: =IF(G127>1,K129&K131&E124&" "&G123,IF(H127>1,K129&K131&E124&" "&H123,IF(I127>1,K129&K131&E124&" "&I123,IF(K127>1,K129&K131&E124&" "&K123,IF(L127>1,K129&K131&E124&" "&L123,IF(M127>1,K129&K131&E124&" "&M123,IF(G131>1,K129&K131&E128&" "&G123,IF(H131>1,K129&K131&E128&" "&H123,IF(I131>1,K129&K131&E128&" "&I123,""))))))))) -> 
B134: =IF(AND('3 indices'!D116="x",'3 indices'!D117="x",'3 indices'!D118="x"),$A133&'3 indices'!D115&" "&'3 indices'!$A116,"") ->  | C134: 1
B135: =IF(AND('3 indices'!E116="x",'3 indices'!E117="x",'3 indices'!E118="x"),$A133&'3 indices'!E115&" "&'3 indices'!$A116,"") ->  | C135: 1
B136: =IF(AND('3 indices'!C119="x",'3 indices'!C120="x",'3 indices'!C121="x"),$A133&'3 indices'!$C115&" "&'3 indices'!$A119,"") ->  | C136: 1
B137: =IF(AND('3 indices'!D119="x",'3 indices'!D120="x",'3 indices'!D121="x"),$A133&'3 indices'!D115&" "&'3 indices'!$A119,"") ->  | C137: 1
B138: =IF(AND('3 indices'!E119="x",'3 indices'!E120="x",'3 indices'!E121="x"),$A133&'3 indices'!E115&" "&'3 indices'!$A119,"") ->  | C138: 1
B139: =IF(AND('3 indices'!F116="x",'3 indices'!F117="x",'3 indices'!F118="x"),$A133&'3 indices'!$F115&" "&'3 indices'!$A116,"") ->  | C139: 1
B140: =IF(AND('3 indices'!G116="x",'3 indices'!G117="x",'3 indices'!G118="x"),$A133&'3 indices'!$G115&" "&'3 indices'!$A116,"") ->  | C140: 1
B141: =IF(AND('3 indices'!H116="x",'3 indices'!H117="x",'3 indices'!H118="x"),$A133&'3 indices'!$H115&" "&'3 indices'!$A116,"") ->  | C141: 1
A145: ='3 indices'!A133 -> VII°/ Qui est l'espion : | B145: =IF(C146=2,B146,IF(C147=2,B147,IF(C148=2,B148,IF(C149=2,B149,IF(C150=2,B150,IF(C151=2,B151,IF(C152=2,B152,IF(C153=2,B153,IF(C154=2,B154,""))))))))) -> 
A146: Impossible d'avoir 3 non sur la même ligne | B146: =IF(AND('3 indices'!$C138="x",'3 indices'!$D138="x",'3 indices'!$E138="x"),$A146&'3 indices'!$C136&" "&'3 indices'!$B138,"") ->  | C146: =IF(B146="",1,2) -> 1 | G146: ='3 indices'!C136 -> Maison n° | K146: ='3 indices'!F136 -> Métier
B147: =IF(AND('3 indices'!$C139="x",'3 indices'!$D139="x",'3 indices'!$E139="x"),$A146&'3 indices'!$C136&" "&'3 indices'!$B139,"") ->  | C147: =IF(B147="",1,2) -> 1 | G147: ='3 indices'!C137 -> Première | H147: ='3 indices'!D137 -> Seconde | I147: ='3 indices'!E137 -> Troisième | K147: ='3 indices'!F137 -> Voleur | L147: ='3 indices'!G137 -> Musicien | M147: ='3 indices'!H137 -> Espion
B148: =IF(AND('3 indices'!$C140="x",'3 indices'!$D140="x",'3 indices'!$E140="x"),$A146&'3 indices'!$C136&" "&'3 indices'!$B140,"") ->  | C148: 1 | E148: ='3 indices'!A138 -> Pays | F148: ='3 indices'!B138 -> Français | G148: =IF('3 indices'!C138="o",1,0) -> 0 | H148: =IF('3 indices'!D138="o",1,0) -> 0 | I148: =IF('3 indices'!E138="o",1,0) -> 0 | J148: =SUM(G148:I148) -> 0 | K148: =IF('3 indices'!F138="o",1,0) -> 0 | L148: =IF('3 indices'!G138="o",1,0) -> 0 | M148: =IF('3 indices'!H138="o",1,0) -> 0 | N148: =SUM(K148:M148) -> 0
B149: =IF(AND('3 indices'!$C141="x",'3 indices'!$D141="x",'3 indices'!$E141="x"),$A146&'3 indices'!$C136&" "&'3 indices'!$B141,"") ->  | C149: 1 | F149: ='3 indices'!B139 -> Chinois | G149: =IF('3 indices'!C139="o",1,0) -> 0 | H149: =IF('3 indices'!D139="o",1,0) -> 0 | I149: =IF('3 indices'!E139="o",1,0) -> 0 | J149: =SUM(G149:I149) -> 0 | K149: =IF('3 indices'!F139="o",1,0) -> 0 | L149: =IF('3 indices'!G139="o",1,0) -> 0 | M149: =IF('3 indices'!H139="o",1,0) -> 0 | N149: =SUM(K149:M149) -> 0
B150: =IF(AND('3 indices'!$C142="x",'3 indices'!$D142="x",'3 indices'!$E142="x"),$A146&'3 indices'!$C136&" "&'3 indices'!$B142,"") ->  | C150: 1 | F150: ='3 indices'!B140 -> Anglais | G150: =IF('3 indices'!C140="o",1,0) -> 0 | H150: =IF('3 indices'!D140="o",1,0) -> 0 | I150: =IF('3 indices'!E140="o",1,0) -> 0 | J150: 0 | K150: =IF('3 indices'!F140="o",1,0) -> 0 | L150: =IF('3 indices'!G140="o",1,0) -> 0 | M150: =IF('3 indices'!H140="o",1,0) -> 0 | N150: 0
B151: =IF(AND('3 indices'!$C143="x",'3 indices'!$D143="x",'3 indices'!$E143="x"),$A146&'3 indices'!$C136&" "&'3 indices'!$B143,"") ->  | C151: 1 | G151: =SUM(G148:G150) -> 0 | H151: =SUM(H148:H150) -> 0 | I151: 0 | K151: =SUM(K148:K150) -> 0 | L151: =SUM(L148:L150) -> 0 | M151: 0
B152: =IF(AND('3 indices'!$F138="x",'3 indices'!$G138="x",'3 indices'!$H138="x"),$A146&'3 indices'!$F136&" "&'3 indices'!$B138,"") ->  | C152: 1 | E152: ='3 indices'!A141 -> Métier | F152: ='3 indices'!B141 -> Voleur | G152: =IF('3 indices'!C141="o",1,0) -> 0 | H152: =IF('3 indices'!D141="o",1,0) -> 0 | I152: =IF('3 indices'!E141="o",1,0) -> 0 | J152: =SUM(G152:I152) -> 0
B153: =IF(AND('3 indices'!$F139="x",'3 indices'!$G139="x",'3 indices'!$H139="x"),$A146&'3 indices'!$F136&" "&'3 indices'!$B139,"") ->  | C153: 1 | F153: ='3 indices'!B142 -> Musicien | G153: =IF('3 indices'!C142="o",1,0) -> 0 | H153: =IF('3 indices'!D142="o",1,0) -> 0 | I153: =IF('3 indices'!E142="o",1,0) -> 0 | J153: =SUM(G153:I153) -> 0 | K153: Impossible qu'il y ai plus de deux Oui
B154: =IF(AND('3 indices'!$F140="x",'3 indices'!$G140="x",'3 indices'!$H140="x"),$A146&'3 indices'!$F136&" "&'3 indices'!$B140,"") ->  | C154: 1 | F154: ='3 indices'!B143 -> Espion | G154: =IF('3 indices'!C143="o",1,0) -> 0 | H154: =IF('3 indices'!D143="o",1,0) -> 0 | I154: =IF('3 indices'!E143="o",1,0) -> 0 | J154: 0 | K154: sur la ligne
G155: =SUM(G152:G154) -> 0 | H155: =SUM(H152:H154) -> 0 | I155: 0 | K155: sur la colonne
B156: =IF(C157=2,B157,IF(C158=2,B158,IF(C159=2,B159,IF(C160=2,B160,IF(C161=2,B161,IF(C162=2,B162,IF(C163=2,B163,IF(C164=2,B164,IF(C165=2,B165,""))))))))) ->  | E156: = | F156: =IF(J148>1,K153&K154&G146&" "&F148,IF(J149>1,K153&K154&G146&" "&F149,IF(J150>1,K153&K154&G146&" "&F150,IF(J152>1,K153&K154&G146&" "&F152,IF(J153>1,K153&K154&G146&" "&F153,IF(J154>1,K153&K154&G146&" "&F154,IF(N148>1,K153&K154&K146&" "&F148,IF(N149>1,K153&K154&K146&" "&F149,IF(N150>1,K153&K154&K146&" "&F150,""))))))))) -> 
A157: Impossible d'avoir 3 non sur la même colonne | B157: =IF(AND('3 indices'!C138="x",'3 indices'!C139="x",'3 indices'!C140="x"),$A157&'3 indices'!$C137&" "&'3 indices'!$A138,"") ->  | C157: =IF(B157="",1,2) -> 1 | E157: = | F157: =IF(G151>1,K153&K155&E148&" "&G147,IF(H151>1,K153&K155&E148&" "&H147,IF(I151>1,K153&K155&E148&" "&I147,IF(K151>1,K153&K155&E148&" "&K147,IF(L151>1,K153&K155&E148&" "&L147,IF(M151>1,K153&K155&E148&" "&M147,IF(G155>1,K153&K155&E152&" "&G147,IF(H155>1,K153&K155&E152&" "&H147,IF(I155>1,K153&K155&E152&" "&I147,""))))))))) -> 
B158: =IF(AND('3 indices'!D138="x",'3 indices'!D139="x",'3 indices'!D140="x"),$A157&'3 indices'!D137&" "&'3 indices'!$A138,"") ->  | C158: 1
B159: =IF(AND('3 indices'!E138="x",'3 indices'!E139="x",'3 indices'!E140="x"),$A157&'3 indices'!E137&" "&'3 indices'!$A138,"") ->  | C159: 1
B160: =IF(AND('3 indices'!C141="x",'3 indices'!C142="x",'3 indices'!C143="x"),$A157&'3 indices'!$C137&" "&'3 indices'!$A141,"") ->  | C160: 1
B161: =IF(AND('3 indices'!D141="x",'3 indices'!D142="x",'3 indices'!D143="x"),$A157&'3 indices'!D137&" "&'3 indices'!$A141,"") ->  | C161: 1
B162: =IF(AND('3 indices'!E141="x",'3 indices'!E142="x",'3 indices'!E143="x"),$A157&'3 indices'!E137&" "&'3 indices'!$A141,"") ->  | C162: 1
B163: =IF(AND('3 indices'!F138="x",'3 indices'!F139="x",'3 indices'!F140="x"),$A157&'3 indices'!$F137&" "&'3 indices'!$A138,"") ->  | C163: 1
B164: =IF(AND('3 indices'!G138="x",'3 indices'!G139="x",'3 indices'!G140="x"),$A157&'3 indices'!$G137&" "&'3 indices'!$A138,"") ->  | C164: 1
B165: =IF(AND('3 indices'!H138="x",'3 indices'!H139="x",'3 indices'!H140="x"),$A157&'3 indices'!$H137&" "&'3 indices'!$A138,"") ->  | C165: 1
A169: ='3 indices'!A155 -> VIII°/ L’âge du capitaine : | B169: =IF(C170=2,B170,IF(C171=2,B171,IF(C172=2,B172,IF(C173=2,B173,IF(C174=2,B174,IF(C175=2,B175,IF(C176=2,B176,IF(C177=2,B177,IF(C178=2,B178,""))))))))) -> 
A170: Impossible d'avoir 3 non sur la même ligne | B170: =IF(AND('3 indices'!$C160="x",'3 indices'!$D160="x",'3 indices'!$E160="x"),$A170&'3 indices'!$C158&" "&'3 indices'!$B160,"") ->  | C170: =IF(B170="",1,2) -> 1 | G170: ='3 indices'!C158 -> Âge | K170: ='3 indices'!F158 -> Pays
B171: =IF(AND('3 indices'!$C161="x",'3 indices'!$D161="x",'3 indices'!$E161="x"),$A170&'3 indices'!$C158&" "&'3 indices'!$B161,"") ->  | C171: =IF(B171="",1,2) -> 1 | G171: ='3 indices'!C159 -> 25 | H171: ='3 indices'!D159 -> 35 | I171: ='3 indices'!E159 -> 42 | K171: ='3 indices'!F159 -> Grèce | L171: ='3 indices'!G159 -> Corée | M171: ='3 indices'!H159 -> Maroc
B172: =IF(AND('3 indices'!$C162="x",'3 indices'!$D162="x",'3 indices'!$E162="x"),$A170&'3 indices'!$C158&" "&'3 indices'!$B162,"") ->  | C172: 1 | E172: ='3 indices'!A160 -> Fonction | F172: ='3 indices'!B160 -> Capitaine | G172: =IF('3 indices'!C160="o",1,0) -> 0 | H172: =IF('3 indices'!D160="o",1,0) -> 0 | I172: =IF('3 indices'!E160="o",1,0) -> 0 | J172: =SUM(G172:I172) -> 0 | K172: =IF('3 indices'!F160="o",1,0) -> 0 | L172: =IF('3 indices'!G160="o",1,0) -> 0 | M172: =IF('3 indices'!H160="o",1,0) -> 0 | N172: =SUM(K172:M172) -> 0
B173: =IF(AND('3 indices'!$C163="x",'3 indices'!$D163="x",'3 indices'!$E163="x"),$A170&'3 indices'!$C158&" "&'3 indices'!$B163,"") ->  | C173: 1 | F173: ='3 indices'!B161 -> Bosco | G173: =IF('3 indices'!C161="o",1,0) -> 0 | H173: =IF('3 indices'!D161="o",1,0) -> 0 | I173: =IF('3 indices'!E161="o",1,0) -> 0 | J173: =SUM(G173:I173) -> 0 | K173: =IF('3 indices'!F161="o",1,0) -> 0 | L173: =IF('3 indices'!G161="o",1,0) -> 0 | M173: =IF('3 indices'!H161="o",1,0) -> 0 | N173: =SUM(K173:M173) -> 0
B174: =IF(AND('3 indices'!$C164="x",'3 indices'!$D164="x",'3 indices'!$E164="x"),$A170&'3 indices'!$C158&" "&'3 indices'!$B164,"") ->  | C174: 1 | F174: ='3 indices'!B162 -> Timonier | G174: =IF('3 indices'!C162="o",1,0) -> 0 | H174: =IF('3 indices'!D162="o",1,0) -> 0 | I174: =IF('3 indices'!E162="o",1,0) -> 0 | J174: 0 | K174: =IF('3 indices'!F162="o",1,0) -> 0 | L174: =IF('3 indices'!G162="o",1,0) -> 0 | M174: =IF('3 indices'!H162="o",1,0) -> 0 | N174: 0
B175: =IF(AND('3 indices'!$C165="x",'3 indices'!$D165="x",'3 indices'!$E165="x"),$A170&'3 indices'!$C158&" "&'3 indices'!$B165,"") ->  | C175: 1 | G175: =SUM(G172:G174) -> 0 | H175: =SUM(H172:H174) -> 0 | I175: 0 | K175: =SUM(K172:K174) -> 0 | L175: =SUM(L172:L174) -> 0 | M175: 0
B176: =IF(AND('3 indices'!$F160="x",'3 indices'!$G160="x",'3 indices'!$H160="x"),$A170&'3 indices'!$F158&" "&'3 indices'!$B160,"") ->  | C176: 1 | E176: ='3 indices'!A163 -> Pays | F176: ='3 indices'!B163 -> Grèce | G176: =IF('3 indices'!C163="o",1,0) -> 0 | H176: =IF('3 indices'!D163="o",1,0) -> 0 | I176: =IF('3 indices'!E163="o",1,0) -> 0 | J176: =SUM(G176:I176) -> 0
B177: =IF(AND('3 indices'!$F161="x",'3 indices'!$G161="x",'3 indices'!$H161="x"),$A170&'3 indices'!$F158&" "&'3 indices'!$B161,"") ->  | C177: 1 | F177: ='3 indices'!B164 -> Corée | G177: =IF('3 indices'!C164="o",1,0) -> 0 | H177: =IF('3 indices'!D164="o",1,0) -> 0 | I177: =IF('3 indices'!E164="o",1,0) -> 0 | J177: =SUM(G177:I177) -> 0 | K177: Impossible qu'il y ai plus de deux Oui
B178: =IF(AND('3 indices'!$F162="x",'3 indices'!$G162="x",'3 indices'!$H162="x"),$A170&'3 indices'!$F158&" "&'3 indices'!$B162,"") ->  | C178: 1 | F178: ='3 indices'!B165 -> Maroc | G178: =IF('3 indices'!C165="o",1,0) -> 0 | H178: =IF('3 indices'!D165="o",1,0) -> 0 | I178: =IF('3 indices'!E165="o",1,0) -> 0 | J178: 0 | K178: sur la ligne
G179: =SUM(G176:G178) -> 0 | H179: =SUM(H176:H178) -> 0 | I179: 0 | K179: sur la colonne
B180: =IF(C181=2,B181,IF(C182=2,B182,IF(C183=2,B183,IF(C184=2,B184,IF(C185=2,B185,IF(C186=2,B186,IF(C187=2,B187,IF(C188=2,B188,IF(C189=2,B189,""))))))))) ->  | E180: = | F180: =IF(J172>1,K177&K178&G170&" "&F172,IF(J173>1,K177&K178&G170&" "&F173,IF(J174>1,K177&K178&G170&" "&F174,IF(J176>1,K177&K178&G170&" "&F176,IF(J177>1,K177&K178&G170&" "&F177,IF(J178>1,K177&K178&G170&" "&F178,IF(N172>1,K177&K178&K170&" "&F172,IF(N173>1,K177&K178&K170&" "&F173,IF(N174>1,K177&K178&K170&" "&F174,""))))))))) -> 
A181: Impossible d'avoir 3 non sur la même colonne | B181: =IF(AND('3 indices'!C160="x",'3 indices'!C161="x",'3 indices'!C162="x"),$A181&'3 indices'!$C159&" "&'3 indices'!$A160,"") ->  | C181: =IF(B181="",1,2) -> 1 | E181: = | F181: =IF(G175>1,K177&K179&E172&" "&G171,IF(H175>1,K177&K179&E172&" "&H171,IF(I175>1,K177&K179&E172&" "&I171,IF(K175>1,K177&K179&E172&" "&K171,IF(L175>1,K177&K179&E172&" "&L171,IF(M175>1,K177&K179&E172&" "&M171,IF(G179>1,K177&K179&E176&" "&G171,IF(H179>1,K177&K179&E176&" "&H171,IF(I179>1,K177&K179&E176&" "&I171,""))))))))) -> 
B182: =IF(AND('3 indices'!D160="x",'3 indices'!D161="x",'3 indices'!D162="x"),$A181&'3 indices'!D159&" "&'3 indices'!$A160,"") ->  | C182: 1
B183: =IF(AND('3 indices'!E160="x",'3 indices'!E161="x",'3 indices'!E162="x"),$A181&'3 indices'!E159&" "&'3 indices'!$A160,"") ->  | C183: 1
B184: =IF(AND('3 indices'!C163="x",'3 indices'!C164="x",'3 indices'!C165="x"),$A181&'3 indices'!$C159&" "&'3 indices'!$A163,"") ->  | C184: 1
B185: =IF(AND('3 indices'!D163="x",'3 indices'!D164="x",'3 indices'!D165="x"),$A181&'3 indices'!D159&" "&'3 indices'!$A163,"") ->  | C185: 1
B186: =IF(AND('3 indices'!E163="x",'3 indices'!E164="x",'3 indices'!E165="x"),$A181&'3 indices'!E159&" "&'3 indices'!$A163,"") ->  | C186: 1
B187: =IF(AND('3 indices'!F160="x",'3 indices'!F161="x",'3 indices'!F162="x"),$A181&'3 indices'!$F159&" "&'3 indices'!$A160,"") ->  | C187: 1
B188: =IF(AND('3 indices'!G160="x",'3 indices'!G161="x",'3 indices'!G162="x"),$A181&'3 indices'!$G159&" "&'3 indices'!$A160,"") ->  | C188: 1
B189: =IF(AND('3 indices'!H160="x",'3 indices'!H161="x",'3 indices'!H162="x"),$A181&'3 indices'!$H159&" "&'3 indices'!$A160,"") ->  | C189: 1
A193: ='3 indices'!A177 -> IX°/ Le salon de beauté : | B193: =IF(C194=2,B194,IF(C195=2,B195,IF(C196=2,B196,IF(C197=2,B197,IF(C198=2,B198,IF(C199=2,B199,IF(C200=2,B200,IF(C201=2,B201,IF(C202=2,B202,""))))))))) -> 
A194: Impossible d'avoir 3 non sur la même ligne | B194: =IF(AND('3 indices'!$C182="x",'3 indices'!$D182="x",'3 indices'!$E182="x"),$A194&'3 indices'!$C180&" "&'3 indices'!$B182,"") ->  | C194: =IF(B194="",1,2) -> 1 | G194: ='3 indices'!C180 -> Soins | K194: ='3 indices'!F180 -> Clientes
B195: =IF(AND('3 indices'!$C183="x",'3 indices'!$D183="x",'3 indices'!$E183="x"),$A194&'3 indices'!$C180&" "&'3 indices'!$B183,"") ->  | C195: =IF(B195="",1,2) -> 1 | G195: ='3 indices'!C181 -> Coupe | H195: ='3 indices'!D181 -> Décoloration | I195: ='3 indices'!E181 -> Permanente | K195: ='3 indices'!F181 -> Jeanne | L195: ='3 indices'!G181 -> Michèle | M195: ='3 indices'!H181 -> Patricia
B196: =IF(AND('3 indices'!$C184="x",'3 indices'!$D184="x",'3 indices'!$E184="x"),$A194&'3 indices'!$C180&" "&'3 indices'!$B184,"") ->  | C196: 1 | E196: ='3 indices'!A182 -> Coiffeur | F196: ='3 indices'!B182 -> Alain | G196: =IF('3 indices'!C182="o",1,0) -> 0 | H196: =IF('3 indices'!D182="o",1,0) -> 0 | I196: =IF('3 indices'!E182="o",1,0) -> 0 | J196: =SUM(G196:I196) -> 0 | K196: =IF('3 indices'!F182="o",1,0) -> 0 | L196: =IF('3 indices'!G182="o",1,0) -> 0 | M196: =IF('3 indices'!H182="o",1,0) -> 0 | N196: =SUM(K196:M196) -> 0
B197: =IF(AND('3 indices'!$C185="x",'3 indices'!$D185="x",'3 indices'!$E185="x"),$A194&'3 indices'!$C180&" "&'3 indices'!$B185,"") ->  | C197: 1 | F197: ='3 indices'!B183 -> Colette | G197: =IF('3 indices'!C183="o",1,0) -> 0 | H197: =IF('3 indices'!D183="o",1,0) -> 0 | I197: =IF('3 indices'!E183="o",1,0) -> 0 | J197: =SUM(G197:I197) -> 0 | K197: =IF('3 indices'!F183="o",1,0) -> 0 | L197: =IF('3 indices'!G183="o",1,0) -> 0 | M197: =IF('3 indices'!H183="o",1,0) -> 0 | N197: =SUM(K197:M197) -> 0
B198: =IF(AND('3 indices'!$C186="x",'3 indices'!$D186="x",'3 indices'!$E186="x"),$A194&'3 indices'!$C180&" "&'3 indices'!$B186,"") ->  | C198: 1 | F198: ='3 indices'!B184 -> Fanny | G198: =IF('3 indices'!C184="o",1,0) -> 0 | H198: =IF('3 indices'!D184="o",1,0) -> 0 | I198: =IF('3 indices'!E184="o",1,0) -> 0 | J198: 0 | K198: =IF('3 indices'!F184="o",1,0) -> 0 | L198: =IF('3 indices'!G184="o",1,0) -> 0 | M198: =IF('3 indices'!H184="o",1,0) -> 0 | N198: 0
B199: =IF(AND('3 indices'!$C187="x",'3 indices'!$D187="x",'3 indices'!$E187="x"),$A194&'3 indices'!$C180&" "&'3 indices'!$B187,"") ->  | C199: 1 | G199: =SUM(G196:G198) -> 0 | H199: =SUM(H196:H198) -> 0 | I199: 0 | K199: =SUM(K196:K198) -> 0 | L199: =SUM(L196:L198) -> 0 | M199: 0
B200: =IF(AND('3 indices'!$F182="x",'3 indices'!$G182="x",'3 indices'!$H182="x"),$A194&'3 indices'!$F180&" "&'3 indices'!$B182,"") ->  | C200: 1 | E200: ='3 indices'!A185 -> Clientes | F200: ='3 indices'!B185 -> Jeanne | G200: =IF('3 indices'!C185="o",1,0) -> 0 | H200: =IF('3 indices'!D185="o",1,0) -> 0 | I200: =IF('3 indices'!E185="o",1,0) -> 0 | J200: =SUM(G200:I200) -> 0
B201: =IF(AND('3 indices'!$F183="x",'3 indices'!$G183="x",'3 indices'!$H183="x"),$A194&'3 indices'!$F180&" "&'3 indices'!$B183,"") ->  | C201: 1 | F201: ='3 indices'!B186 -> Michèle | G201: =IF('3 indices'!C186="o",1,0) -> 0 | H201: =IF('3 indices'!D186="o",1,0) -> 0 | I201: =IF('3 indices'!E186="o",1,0) -> 0 | J201: =SUM(G201:I201) -> 0 | K201: Impossible qu'il y ai plus de deux Oui
B202: =IF(AND('3 indices'!$F184="x",'3 indices'!$G184="x",'3 indices'!$H184="x"),$A194&'3 indices'!$F180&" "&'3 indices'!$B184,"") ->  | C202: 1 | F202: ='3 indices'!B187 -> Patricia | G202: =IF('3 indices'!C187="o",1,0) -> 0 | H202: =IF('3 indices'!D187="o",1,0) -> 0 | I202: =IF('3 indices'!E187="o",1,0) -> 0 | J202: 0 | K202: sur la ligne
G203: =SUM(G200:G202) -> 0 | H203: =SUM(H200:H202) -> 0 | I203: 0 | K203: sur la colonne
B204: =IF(C205=2,B205,IF(C206=2,B206,IF(C207=2,B207,IF(C208=2,B208,IF(C209=2,B209,IF(C210=2,B210,IF(C211=2,B211,IF(C212=2,B212,IF(C213=2,B213,""))))))))) ->  | E204: = | F204: =IF(J196>1,K201&K202&G194&" "&F196,IF(J197>1,K201&K202&G194&" "&F197,IF(J198>1,K201&K202&G194&" "&F198,IF(J200>1,K201&K202&G194&" "&F200,IF(J201>1,K201&K202&G194&" "&F201,IF(J202>1,K201&K202&G194&" "&F202,IF(N196>1,K201&K202&K194&" "&F196,IF(N197>1,K201&K202&K194&" "&F197,IF(N198>1,K201&K202&K194&" "&F198,""))))))))) -> 
A205: Impossible d'avoir 3 non sur la même colonne | B205: =IF(AND('3 indices'!C182="x",'3 indices'!C183="x",'3 indices'!C184="x"),$A205&'3 indices'!$C181&" "&'3 indices'!$A182,"") ->  | C205: =IF(B205="",1,2) -> 1 | E205: = | F205: =IF(G199>1,K201&K203&E196&" "&G195,IF(H199>1,K201&K203&E196&" "&H195,IF(I199>1,K201&K203&E196&" "&I195,IF(K199>1,K201&K203&E196&" "&K195,IF(L199>1,K201&K203&E196&" "&L195,IF(M199>1,K201&K203&E196&" "&M195,IF(G203>1,K201&K203&E200&" "&G195,IF(H203>1,K201&K203&E200&" "&H195,IF(I203>1,K201&K203&E200&" "&I195,""))))))))) -> 
B206: =IF(AND('3 indices'!D182="x",'3 indices'!D183="x",'3 indices'!D184="x"),$A205&'3 indices'!D181&" "&'3 indices'!$A182,"") ->  | C206: 1
B207: =IF(AND('3 indices'!E182="x",'3 indices'!E183="x",'3 indices'!E184="x"),$A205&'3 indices'!E181&" "&'3 indices'!$A182,"") ->  | C207: 1
B208: =IF(AND('3 indices'!C185="x",'3 indices'!C186="x",'3 indices'!C187="x"),$A205&'3 indices'!$C181&" "&'3 indices'!$A185,"") ->  | C208: 1
B209: =IF(AND('3 indices'!D185="x",'3 indices'!D186="x",'3 indices'!D187="x"),$A205&'3 indices'!D181&" "&'3 indices'!$A185,"") ->  | C209: 1
B210: =IF(AND('3 indices'!E185="x",'3 indices'!E186="x",'3 indices'!E187="x"),$A205&'3 indices'!E181&" "&'3 indices'!$A185,"") ->  | C210: 1
B211: =IF(AND('3 indices'!F182="x",'3 indices'!F183="x",'3 indices'!F184="x"),$A205&'3 indices'!$F181&" "&'3 indices'!$A182,"") ->  | C211: 1
B212: =IF(AND('3 indices'!G182="x",'3 indices'!G183="x",'3 indices'!G184="x"),$A205&'3 indices'!$G181&" "&'3 indices'!$A182,"") ->  | C212: 1
B213: =IF(AND('3 indices'!H182="x",'3 indices'!H183="x",'3 indices'!H184="x"),$A205&'3 indices'!$H181&" "&'3 indices'!$A182,"") ->  | C213: 1
A217: ='3 indices'!A199 -> X°/ Les supporters : | B217: =IF(C218=2,B218,IF(C219=2,B219,IF(C220=2,B220,IF(C221=2,B221,IF(C222=2,B222,IF(C223=2,B223,IF(C224=2,B224,IF(C225=2,B225,IF(C226=2,B226,""))))))))) -> 
A218: Impossible d'avoir 3 non sur la même ligne | B218: =IF(AND('3 indices'!$C204="x",'3 indices'!$D204="x",'3 indices'!$E204="x"),$A218&'3 indices'!$C202&" "&'3 indices'!$B204,"") ->  | C218: =IF(B218="",1,2) -> 1 | G218: ='3 indices'!C202 -> Couleurs | K218: ='3 indices'!F202 -> Club
B219: =IF(AND('3 indices'!$C205="x",'3 indices'!$D205="x",'3 indices'!$E205="x"),$A218&'3 indices'!$C202&" "&'3 indices'!$B205,"") ->  | C219: =IF(B219="",1,2) -> 1 | G219: ='3 indices'!C203 -> Rouge | H219: ='3 indices'!D203 -> Bleu | I219: ='3 indices'!E203 -> Vert | K219: ='3 indices'!F203 -> USAP | L219: ='3 indices'!G203 -> UST | M219: ='3 indices'!H203 -> SAPC
B220: =IF(AND('3 indices'!$C206="x",'3 indices'!$D206="x",'3 indices'!$E206="x"),$A218&'3 indices'!$C202&" "&'3 indices'!$B206,"") ->  | C220: 1 | E220: ='3 indices'!A204 -> Prénom | F220: ='3 indices'!B204 -> Alban | G220: =IF('3 indices'!C204="o",1,0) -> 0 | H220: =IF('3 indices'!D204="o",1,0) -> 0 | I220: =IF('3 indices'!E204="o",1,0) -> 0 | J220: =SUM(G220:I220) -> 0 | K220: =IF('3 indices'!F204="o",1,0) -> 0 | L220: =IF('3 indices'!G204="o",1,0) -> 0 | M220: =IF('3 indices'!H204="o",1,0) -> 0 | N220: =SUM(K220:M220) -> 0
B221: =IF(AND('3 indices'!$C207="x",'3 indices'!$D207="x",'3 indices'!$E207="x"),$A218&'3 indices'!$C202&" "&'3 indices'!$B207,"") ->  | C221: 1 | F221: ='3 indices'!B205 -> Charles | G221: =IF('3 indices'!C205="o",1,0) -> 0 | H221: =IF('3 indices'!D205="o",1,0) -> 0 | I221: =IF('3 indices'!E205="o",1,0) -> 0 | J221: =SUM(G221:I221) -> 0 | K221: =IF('3 indices'!F205="o",1,0) -> 0 | L221: =IF('3 indices'!G205="o",1,0) -> 0 | M221: =IF('3 indices'!H205="o",1,0) -> 0 | N221: =SUM(K221:M221) -> 0
B222: =IF(AND('3 indices'!$C208="x",'3 indices'!$D208="x",'3 indices'!$E208="x"),$A218&'3 indices'!$C202&" "&'3 indices'!$B208,"") ->  | C222: 1 | F222: ='3 indices'!B206 -> Jordi | G222: =IF('3 indices'!C206="o",1,0) -> 0 | H222: =IF('3 indices'!D206="o",1,0) -> 0 | I222: =IF('3 indices'!E206="o",1,0) -> 0 | J222: 0 | K222: =IF('3 indices'!F206="o",1,0) -> 0 | L222: =IF('3 indices'!G206="o",1,0) -> 0 | M222: =IF('3 indices'!H206="o",1,0) -> 0 | N222: 0
B223: =IF(AND('3 indices'!$C209="x",'3 indices'!$D209="x",'3 indices'!$E209="x"),$A218&'3 indices'!$C202&" "&'3 indices'!$B209,"") ->  | C223: 1 | G223: =SUM(G220:G222) -> 0 | H223: =SUM(H220:H222) -> 0 | I223: 0 | K223: =SUM(K220:K222) -> 0 | L223: =SUM(L220:L222) -> 0 | M223: 0
B224: =IF(AND('3 indices'!$F204="x",'3 indices'!$G204="x",'3 indices'!$H204="x"),$A218&'3 indices'!$F202&" "&'3 indices'!$B204,"") ->  | C224: 1 | E224: ='3 indices'!A207 -> Club | F224: ='3 indices'!B207 -> USAP | G224: =IF('3 indices'!C207="o",1,0) -> 0 | H224: =IF('3 indices'!D207="o",1,0) -> 0 | I224: =IF('3 indices'!E207="o",1,0) -> 0 | J224: =SUM(G224:I224) -> 0
B225: =IF(AND('3 indices'!$F205="x",'3 indices'!$G205="x",'3 indices'!$H205="x"),$A218&'3 indices'!$F202&" "&'3 indices'!$B205,"") ->  | C225: 1 | F225: ='3 indices'!B208 -> UST | G225: =IF('3 indices'!C208="o",1,0) -> 0 | H225: =IF('3 indices'!D208="o",1,0) -> 0 | I225: =IF('3 indices'!E208="o",1,0) -> 0 | J225: =SUM(G225:I225) -> 0 | K225: Impossible qu'il y ai plus de deux Oui
B226: =IF(AND('3 indices'!$F206="x",'3 indices'!$G206="x",'3 indices'!$H206="x"),$A218&'3 indices'!$F202&" "&'3 indices'!$B206,"") ->  | C226: 1 | F226: ='3 indices'!B209 -> SPAC | G226: =IF('3 indices'!C209="o",1,0) -> 0 | H226: =IF('3 indices'!D209="o",1,0) -> 0 | I226: =IF('3 indices'!E209="o",1,0) -> 0 | J226: 0 | K226: sur la ligne
G227: =SUM(G224:G226) -> 0 | H227: =SUM(H224:H226) -> 0 | I227: 0 | K227: sur la colonne
... 10 more rows

Sheet 4 indices
A1: XI°/ Le collège :
A2: =INDIRECT("'Calculs 4 indices'!B"&A5) ->  | N2: =INDIRECT("'Calculs 4 indices'!M"&(A5+16)) -> 
A3: =INDIRECT("'Calculs 4 indices'!B"&(A5+26)) ->  | N3: =INDIRECT("'Calculs 4 indices'!M"&(A5+17)) -> 
C4: Matière | G4: Rang | K4: Moyenne | AE4: =C4 -> Matière | AI4: =G4 -> Rang | AM4: =K4 -> Moyenne
A5: 1 | C5: Maths | D5: Français | E5: Physique | F5: EPS | G5: 1e | H5: 3e | I5: 5e | J5: 6e | K5: 14 | L5: 15 | M5: 17 | N5: 19 | P5: Philippe, Viviane Mathilde et Anne sont dans la même classe, ils réussissent chacun dans des matières différentes avec des moyennes tout à fait honorables ce qui leur donne une bonne place dans la classe. | AE5: =C5 -> Maths | AF5: =D5 -> Français | AG5: Physique | AH5: EPS | AI5: 1e | AJ5: 3e | AK5: 5e | AL5: 6e | AM5: 14 | AN5: 15 | AO5: 17 | AP5: 19
A6: Elèves | B6: Philippe | P6: 1°/ L'élève qui réussit en maths a 17 de moyenne, n'est pas | AC6: =A6 -> Elèves | AD6: =B6 -> Philippe | AE6: =IF(OR(D6="o",E6="o",F6="o",C7="o",C8="o",C9="o",C6="x"),"x",IF(OR(C6="o",AND(D6="x",E6="x",F6="x"),AND(C7="x",C8="x",C9="x")),"o","")) ->  | AF6: =IF(OR(C6="o",E6="o",F6="o",D7="o",D8="o",D9="o",D6="x"),"x",IF(OR(D6="o",AND(C6="x",E6="x",F6="x"),AND(D7="x",D8="x",D9="x")),"o","")) ->  | AG6: =IF(OR(C6="o",D6="o",F6="o",E7="o",E8="o",E9="o",E6="x"),"x",IF(OR(E6="o",AND(C6="x",D6="x",F6="x"),AND(E7="x",E8="x",E9="x")),"o","")) ->  | AH6: =IF(OR(C6="o",D6="o",E6="o",F7="o",F8="o",F9="o",F6="x"),"x",IF(OR(F6="o",AND(C6="x",D6="x",E6="x"),AND(F7="x",F8="x",F9="x")),"o","")) ->  | AI6: =IF(OR(H6="o",I6="o",J6="o",G7="o",G8="o",G9="o",G6="x"),"x",IF(OR(G6="o",AND(H6="x",I6="x",J6="x"),AND(G7="x",G8="x",G9="x")),"o","")) ->  | AJ6: =IF(OR(G6="o",I6="o",J6="o",H7="o",H8="o",H9="o",H6="x"),"x",IF(OR(H6="o",AND(G6="x",I6="x",J6="x"),AND(H7="x",H8="x",H9="x")),"o","")) ->  | AK6: =IF(OR(G6="o",H6="o",J6="o",I7="o",I8="o",I9="o",I6="x"),"x",IF(OR(I6="o",AND(G6="x",H6="x",J6="x"),AND(I7="x",I8="x",I9="x")),"o","")) ->  | AL6: =IF(OR(G6="o",H6="o",I6="o",J7="o",J8="o",J9="o",J6="x"),"x",IF(OR(J6="o",AND(G6="x",H6="x",I6="x"),AND(J7="x",J8="x",J9="x")),"o","")) ->  | AM6: =IF(OR(L6="o",M6="o",N6="o",K7="o",K8="o",K9="o",K6="x"),"x",IF(OR(K6="o",AND(L6="x",M6="x",N6="x"),AND(K7="x",K8="x",K9="x")),"o","")) ->  | AN6: =IF(OR(K6="o",M6="o",N6="o",L7="o",L8="o",L9="o",L6="x"),"x",IF(OR(L6="o",AND(K6="x",M6="x",N6="x"),AND(L7="x",L8="x",L9="x")),"o","")) ->  | AO6: =IF(OR(K6="o",L6="o",N6="o",M7="o",M8="o",M9="o",M6="x"),"x",IF(OR(M6="o",AND(K6="x",L6="x",N6="x"),AND(M7="x",M8="x",M9="x")),"o","")) ->  | AP6: =IF(OR(K6="o",L6="o",M6="o",N7="o",N8="o",N9="o",N6="x"),"x",IF(OR(N6="o",AND(K6="x",L6="x",M6="x"),AND(N7="x",N8="x",N9="x")),"o","")) -> 
B7: Viviane | P7: premier et s'entend bien avec Anne. | AD7: =B7 -> Viviane | AE7: =IF(OR(D7="o",E7="o",F7="o",C6="o",C8="o",C9="o",C7="x"),"x",IF(OR(C7="o",AND(D7="x",E7="x",F7="x"),AND(C6="x",C8="x",C9="x")),"o","")) ->  | AF7: =IF(OR(C7="o",E7="o",F7="o",D6="o",D8="o",D9="o",D7="x"),"x",IF(OR(D7="o",AND(C7="x",E7="x",F7="x"),AND(D6="x",D8="x",D9="x")),"o","")) ->  | AG7: =IF(OR(C7="o",D7="o",F7="o",E6="o",E8="o",E9="o",E7="x"),"x",IF(OR(E7="o",AND(C7="x",D7="x",F7="x"),AND(E6="x",E8="x",E9="x")),"o","")) ->  | AH7: =IF(OR(C7="o",D7="o",E7="o",F6="o",F8="o",F9="o",F7="x"),"x",IF(OR(F7="o",AND(C7="x",D7="x",E7="x"),AND(F6="x",F8="x",F9="x")),"o","")) ->  | AI7: =IF(OR(H7="o",I7="o",J7="o",G6="o",G8="o",G9="o",G7="x"),"x",IF(OR(G7="o",AND(H7="x",I7="x",J7="x"),AND(G6="x",G8="x",G9="x")),"o","")) ->  | AJ7: =IF(OR(G7="o",I7="o",J7="o",H6="o",H8="o",H9="o",H7="x"),"x",IF(OR(H7="o",AND(G7="x",I7="x",J7="x"),AND(H6="x",H8="x",H9="x")),"o","")) ->  | AK7: =IF(OR(G7="o",H7="o",J7="o",I6="o",I8="o",I9="o",I7="x"),"x",IF(OR(I7="o",AND(G7="x",H7="x",J7="x"),AND(I6="x",I8="x",I9="x")),"o","")) ->  | AL7: =IF(OR(G7="o",H7="o",I7="o",J6="o",J8="o",J9="o",J7="x"),"x",IF(OR(J7="o",AND(G7="x",H7="x",I7="x"),AND(J6="x",J8="x",J9="x")),"o","")) ->  | AM7: =IF(OR(L7="o",M7="o",N7="o",K6="o",K8="o",K9="o",K7="x"),"x",IF(OR(K7="o",AND(L7="x",M7="x",N7="x"),AND(K6="x",K8="x",K9="x")),"o","")) ->  | AN7: =IF(OR(K7="o",M7="o",N7="o",L6="o",L8="o",L9="o",L7="x"),"x",IF(OR(L7="o",AND(K7="x",M7="x",N7="x"),AND(L6="x",L8="x",L9="x")),"o","")) ->  | AO7: =IF(OR(K7="o",L7="o",N7="o",M6="o",M8="o",M9="o",M7="x"),"x",IF(OR(M7="o",AND(K7="x",L7="x",N7="x"),AND(M6="x",M8="x",M9="x")),"o","")) ->  | AP7: =IF(OR(K7="o",L7="o",M7="o",N6="o",N8="o",N9="o",N7="x"),"x",IF(OR(N7="o",AND(K7="x",L7="x",M7="x"),AND(N6="x",N8="x",N9="x")),"o","")) -> 
B8: Mathilde | P8: 2°/ L'élève qui réussit en Physiques n'est pas Philippe et | AD8: Mathilde | AE8: =IF(OR(D8="o",E8="o",F8="o",C6="o",C7="o",C9="o",C8="x"),"x",IF(OR(C8="o",AND(D8="x",E8="x",F8="x"),AND(C6="x",C7="x",C9="x")),"o","")) ->  | AF8: =IF(OR(C8="o",E8="o",F8="o",D6="o",D7="o",D9="o",D8="x"),"x",IF(OR(D8="o",AND(C8="x",E8="x",F8="x"),AND(D6="x",D7="x",D9="x")),"o","")) ->  | AG8: =IF(OR(C8="o",D8="o",F8="o",E6="o",E7="o",E9="o",E8="x"),"x",IF(OR(E8="o",AND(C8="x",D8="x",F8="x"),AND(E6="x",E7="x",E9="x")),"o","")) ->  | AH8: =IF(OR(C8="o",D8="o",E8="o",F6="o",F7="o",F9="o",F8="x"),"x",IF(OR(F8="o",AND(C8="x",D8="x",E8="x"),AND(F6="x",F7="x",F9="x")),"o","")) ->  | AI8: =IF(OR(H8="o",I8="o",J8="o",G6="o",G7="o",G9="o",G8="x"),"x",IF(OR(G8="o",AND(H8="x",I8="x",J8="x"),AND(G6="x",G7="x",G9="x")),"o","")) ->  | AJ8: =IF(OR(G8="o",I8="o",J8="o",H6="o",H7="o",H9="o",H8="x"),"x",IF(OR(H8="o",AND(G8="x",I8="x",J8="x"),AND(H6="x",H7="x",H9="x")),"o","")) ->  | AK8: =IF(OR(G8="o",H8="o",J8="o",I6="o",I7="o",I9="o",I8="x"),"x",IF(OR(I8="o",AND(G8="x",H8="x",J8="x"),AND(I6="x",I7="x",I9="x")),"o","")) ->  | AL8: =IF(OR(G8="o",H8="o",I8="o",J6="o",J7="o",J9="o",J8="x"),"x",IF(OR(J8="o",AND(G8="x",H8="x",I8="x"),AND(J6="x",J7="x",J9="x")),"o","")) ->  | AM8: =IF(OR(L8="o",M8="o",N8="o",K6="o",K7="o",K9="o",K8="x"),"x",IF(OR(K8="o",AND(L8="x",M8="x",N8="x"),AND(K6="x",K7="x",K9="x")),"o","")) ->  | AN8: =IF(OR(K8="o",M8="o",N8="o",L6="o",L7="o",L9="o",L8="x"),"x",IF(OR(L8="o",AND(K8="x",M8="x",N8="x"),AND(L6="x",L7="x",L9="x")),"o","")) ->  | AO8: =IF(OR(K8="o",L8="o",N8="o",M6="o",M7="o",M9="o",M8="x"),"x",IF(OR(M8="o",AND(K8="x",L8="x",N8="x"),AND(M6="x",M7="x",M9="x")),"o","")) ->  | AP8: =IF(OR(K8="o",L8="o",M8="o",N6="o",N7="o",N9="o",N8="x"),"x",IF(OR(N8="o",AND(K8="x",L8="x",M8="x"),AND(N6="x",N7="x",N9="x")),"o","")) -> 
B9: Anne | P9: n'a ni la plus haute moyenne ni la plus basse moyenne. | AD9: Anne | AE9: =IF(OR(D9="o",E9="o",F9="o",C6="o",C7="o",C8="o",C9="x"),"x",IF(OR(C9="o",AND(D9="x",E9="x",F9="x"),AND(C6="x",C7="x",C8="x")),"o","")) ->  | AF9: =IF(OR(C9="o",E9="o",F9="o",D6="o",D7="o",D8="o",D9="x"),"x",IF(OR(D9="o",AND(C9="x",E9="x",F9="x"),AND(D6="x",D7="x",D8="x")),"o","")) ->  | AG9: =IF(OR(C9="o",D9="o",F9="o",E6="o",E7="o",E8="o",E9="x"),"x",IF(OR(E9="o",AND(C9="x",D9="x",F9="x"),AND(E6="x",E7="x",E8="x")),"o","")) ->  | AH9: =IF(OR(C9="o",D9="o",E9="o",F6="o",F7="o",F8="o",F9="x"),"x",IF(OR(F9="o",AND(C9="x",D9="x",E9="x"),AND(F6="x",F7="x",F8="x")),"o","")) ->  | AI9: =IF(OR(H9="o",I9="o",J9="o",G6="o",G7="o",G8="o",G9="x"),"x",IF(OR(G9="o",AND(H9="x",I9="x",J9="x"),AND(G6="x",G7="x",G8="x")),"o","")) ->  | AJ9: =IF(OR(G9="o",I9="o",J9="o",H6="o",H7="o",H8="o",H9="x"),"x",IF(OR(H9="o",AND(G9="x",I9="x",J9="x"),AND(H6="x",H7="x",H8="x")),"o","")) ->  | AK9: =IF(OR(G9="o",H9="o",J9="o",I6="o",I7="o",I8="o",I9="x"),"x",IF(OR(I9="o",AND(G9="x",H9="x",J9="x"),AND(I6="x",I7="x",I8="x")),"o","")) ->  | AL9: =IF(OR(G9="o",H9="o",I9="o",J6="o",J7="o",J8="o",J9="x"),"x",IF(OR(J9="o",AND(G9="x",H9="x",I9="x"),AND(J6="x",J7="x",J8="x")),"o","")) ->  | AM9: =IF(OR(L9="o",M9="o",N9="o",K6="o",K7="o",K8="o",K9="x"),"x",IF(OR(K9="o",AND(L9="x",M9="x",N9="x"),AND(K6="x",K7="x",K8="x")),"o","")) ->  | AN9: =IF(OR(K9="o",M9="o",N9="o",L6="o",L7="o",L8="o",L9="x"),"x",IF(OR(L9="o",AND(K9="x",M9="x",N9="x"),AND(L6="x",L7="x",L8="x")),"o","")) ->  | AO9: =IF(OR(K9="o",L9="o",N9="o",M6="o",M7="o",M8="o",M9="x"),"x",IF(OR(M9="o",AND(K9="x",L9="x",N9="x"),AND(M6="x",M7="x",M8="x")),"o","")) ->  | AP9: =IF(OR(K9="o",L9="o",M9="o",N6="o",N7="o",N8="o",N9="x"),"x",IF(OR(N9="o",AND(K9="x",L9="x",M9="x"),AND(N6="x",N7="x",N8="x")),"o","")) -> 
A10: Moyenne | B10: 14 | P10: 3°/ Mathilde réussit bien en Français mais elle n'est pas | AC10: =A10 -> Moyenne | AD10: 14 | AE10: =IF(OR(D10="o",E10="o",F10="o",C11="o",C12="o",C13="o",C10="x"),"x",IF(OR(C10="o",AND(D10="x",E10="x",F10="x"),AND(C11="x",C12="x",C13="x")),"o","")) ->  | AF10: =IF(OR(C10="o",E10="o",F10="o",D11="o",D12="o",D13="o",D10="x"),"x",IF(OR(D10="o",AND(C10="x",E10="x",F10="x"),AND(D11="x",D12="x",D13="x")),"o","")) ->  | AG10: =IF(OR(C10="o",D10="o",F10="o",E11="o",E12="o",E13="o",E10="x"),"x",IF(OR(E10="o",AND(C10="x",D10="x",F10="x"),AND(E11="x",E12="x",E13="x")),"o","")) ->  | AH10: =IF(OR(C10="o",D10="o",E10="o",F11="o",F12="o",F13="o",F10="x"),"x",IF(OR(F10="o",AND(C10="x",D10="x",E10="x"),AND(F11="x",F12="x",F13="x")),"o","")) ->  | AI10: =IF(OR(H10="o",I10="o",J10="o",G11="o",G12="o",G13="o",G10="x"),"x",IF(OR(G10="o",AND(H10="x",I10="x",J10="x"),AND(G11="x",G12="x",G13="x")),"o","")) ->  | AJ10: =IF(OR(G10="o",I10="o",J10="o",H11="o",H12="o",H13="o",H10="x"),"x",IF(OR(H10="o",AND(G10="x",I10="x",J10="x"),AND(H11="x",H12="x",H13="x")),"o","")) ->  | AK10: =IF(OR(G10="o",H10="o",J10="o",I11="o",I12="o",I13="o",I10="x"),"x",IF(OR(I10="o",AND(G10="x",H10="x",J10="x"),AND(I11="x",I12="x",I13="x")),"o","")) ->  | AL10: =IF(OR(G10="o",H10="o",I10="o",J11="o",J12="o",J13="o",J10="x"),"x",IF(OR(J10="o",AND(G10="x",H10="x",I10="x"),AND(J11="x",J12="x",J13="x")),"o","")) -> 
B11: 15 | P11: dans les trois premiers de sa classe. | AD11: 15 | AE11: =IF(OR(D11="o",E11="o",F11="o",C10="o",C12="o",C13="o",C11="x"),"x",IF(OR(C11="o",AND(D11="x",E11="x",F11="x"),AND(C10="x",C12="x",C13="x")),"o","")) ->  | AF11: =IF(OR(C11="o",E11="o",F11="o",D10="o",D12="o",D13="o",D11="x"),"x",IF(OR(D11="o",AND(C11="x",E11="x",F11="x"),AND(D10="x",D12="x",D13="x")),"o","")) ->  | AG11: =IF(OR(C11="o",D11="o",F11="o",E10="o",E12="o",E13="o",E11="x"),"x",IF(OR(E11="o",AND(C11="x",D11="x",F11="x"),AND(E10="x",E12="x",E13="x")),"o","")) ->  | AH11: =IF(OR(C11="o",D11="o",E11="o",F10="o",F12="o",F13="o",F11="x"),"x",IF(OR(F11="o",AND(C11="x",D11="x",E11="x"),AND(F10="x",F12="x",F13="x")),"o","")) ->  | AI11: =IF(OR(H11="o",I11="o",J11="o",G10="o",G12="o",G13="o",G11="x"),"x",IF(OR(G11="o",AND(H11="x",I11="x",J11="x"),AND(G10="x",G12="x",G13="x")),"o","")) ->  | AJ11: =IF(OR(G11="o",I11="o",J11="o",H10="o",H12="o",H13="o",H11="x"),"x",IF(OR(H11="o",AND(G11="x",I11="x",J11="x"),AND(H10="x",H12="x",H13="x")),"o","")) ->  | AK11: =IF(OR(G11="o",H11="o",J11="o",I10="o",I12="o",I13="o",I11="x"),"x",IF(OR(I11="o",AND(G11="x",H11="x",J11="x"),AND(I10="x",I12="x",I13="x")),"o","")) ->  | AL11: =IF(OR(G11="o",H11="o",I11="o",J10="o",J12="o",J13="o",J11="x"),"x",IF(OR(J11="o",AND(G11="x",H11="x",I11="x"),AND(J10="x",J12="x",J13="x")),"o","")) -> 
B12: 17 | P12: 4°/ Philippe a moins de 16 de moyenne dans sa matière ce | AD12: 17 | AE12: =IF(OR(D12="o",E12="o",F12="o",C10="o",C11="o",C13="o",C12="x"),"x",IF(OR(C12="o",AND(D12="x",E12="x",F12="x"),AND(C10="x",C11="x",C13="x")),"o","")) ->  | AF12: =IF(OR(C12="o",E12="o",F12="o",D10="o",D11="o",D13="o",D12="x"),"x",IF(OR(D12="o",AND(C12="x",E12="x",F12="x"),AND(D10="x",D11="x",D13="x")),"o","")) ->  | AG12: =IF(OR(C12="o",D12="o",F12="o",E10="o",E11="o",E13="o",E12="x"),"x",IF(OR(E12="o",AND(C12="x",D12="x",F12="x"),AND(E10="x",E11="x",E13="x")),"o","")) ->  | AH12: =IF(OR(C12="o",D12="o",E12="o",F10="o",F11="o",F13="o",F12="x"),"x",IF(OR(F12="o",AND(C12="x",D12="x",E12="x"),AND(F10="x",F11="x",F13="x")),"o","")) ->  | AI12: =IF(OR(H12="o",I12="o",J12="o",G10="o",G11="o",G13="o",G12="x"),"x",IF(OR(G12="o",AND(H12="x",I12="x",J12="x"),AND(G10="x",G11="x",G13="x")),"o","")) ->  | AJ12: =IF(OR(G12="o",I12="o",J12="o",H10="o",H11="o",H13="o",H12="x"),"x",IF(OR(H12="o",AND(G12="x",I12="x",J12="x"),AND(H10="x",H11="x",H13="x")),"o","")) ->  | AK12: =IF(OR(G12="o",H12="o",J12="o",I10="o",I11="o",I13="o",I12="x"),"x",IF(OR(I12="o",AND(G12="x",H12="x",J12="x"),AND(I10="x",I11="x",I13="x")),"o","")) ->  | AL12: =IF(OR(G12="o",H12="o",I12="o",J10="o",J11="o",J13="o",J12="x"),"x",IF(OR(J12="o",AND(G12="x",H12="x",I12="x"),AND(J10="x",J11="x",J13="x")),"o","")) -> 
B13: 19 | P13: qui le met 6ème de sa classe. | AD13: 19 | AE13: =IF(OR(D13="o",E13="o",F13="o",C10="o",C11="o",C12="o",C13="x"),"x",IF(OR(C13="o",AND(D13="x",E13="x",F13="x"),AND(C10="x",C11="x",C12="x")),"o","")) ->  | AF13: =IF(OR(C13="o",E13="o",F13="o",D10="o",D11="o",D12="o",D13="x"),"x",IF(OR(D13="o",AND(C13="x",E13="x",F13="x"),AND(D10="x",D11="x",D12="x")),"o","")) ->  | AG13: =IF(OR(C13="o",D13="o",F13="o",E10="o",E11="o",E12="o",E13="x"),"x",IF(OR(E13="o",AND(C13="x",D13="x",F13="x"),AND(E10="x",E11="x",E12="x")),"o","")) ->  | AH13: =IF(OR(C13="o",D13="o",E13="o",F10="o",F11="o",F12="o",F13="x"),"x",IF(OR(F13="o",AND(C13="x",D13="x",E13="x"),AND(F10="x",F11="x",F12="x")),"o","")) ->  | AI13: =IF(OR(H13="o",I13="o",J13="o",G10="o",G11="o",G12="o",G13="x"),"x",IF(OR(G13="o",AND(H13="x",I13="x",J13="x"),AND(G10="x",G11="x",G12="x")),"o","")) ->  | AJ13: =IF(OR(G13="o",I13="o",J13="o",H10="o",H11="o",H12="o",H13="x"),"x",IF(OR(H13="o",AND(G13="x",I13="x",J13="x"),AND(H10="x",H11="x",H12="x")),"o","")) ->  | AK13: =IF(OR(G13="o",H13="o",J13="o",I10="o",I11="o",I12="o",I13="x"),"x",IF(OR(I13="o",AND(G13="x",H13="x",J13="x"),AND(I10="x",I11="x",I12="x")),"o","")) ->  | AL13: =IF(OR(G13="o",H13="o",I13="o",J10="o",J11="o",J12="o",J13="x"),"x",IF(OR(J13="o",AND(G13="x",H13="x",I13="x"),AND(J10="x",J11="x",J12="x")),"o","")) -> 
A14: Rang | B14: 1e | AC14: =A14 -> Rang | AD14: 1e | AE14: =IF(OR(D14="o",E14="o",F14="o",C15="o",C16="o",C17="o",C14="x"),"x",IF(OR(C14="o",AND(D14="x",E14="x",F14="x"),AND(C15="x",C16="x",C17="x")),"o","")) ->  | AF14: =IF(OR(C14="o",E14="o",F14="o",D15="o",D16="o",D17="o",D14="x"),"x",IF(OR(D14="o",AND(C14="x",E14="x",F14="x"),AND(D15="x",D16="x",D17="x")),"o","")) ->  | AG14: =IF(OR(C14="o",D14="o",F14="o",E15="o",E16="o",E17="o",E14="x"),"x",IF(OR(E14="o",AND(C14="x",D14="x",F14="x"),AND(E15="x",E16="x",E17="x")),"o","")) ->  | AH14: =IF(OR(C14="o",D14="o",E14="o",F15="o",F16="o",F17="o",F14="x"),"x",IF(OR(F14="o",AND(C14="x",D14="x",E14="x"),AND(F15="x",F16="x",F17="x")),"o","")) -> 
B15: 3e | H15: =IF(AND(C20=Q20,G20=U20,K20=Y20,C21=Q21,G21=U21,K21=Y21,C22=Q22,G22=U22,K22=Y22,C23=Q23,G23=U23,K23=Y23),"BRAVO !!","") ->  | AD15: 3e | AE15: =IF(OR(D15="o",E15="o",F15="o",C14="o",C16="o",C17="o",C15="x"),"x",IF(OR(C15="o",AND(D15="x",E15="x",F15="x"),AND(C14="x",C16="x",C17="x")),"o","")) ->  | AF15: =IF(OR(C15="o",E15="o",F15="o",D14="o",D16="o",D17="o",D15="x"),"x",IF(OR(D15="o",AND(C15="x",E15="x",F15="x"),AND(D14="x",D16="x",D17="x")),"o","")) ->  | AG15: =IF(OR(C15="o",D15="o",F15="o",E14="o",E16="o",E17="o",E15="x"),"x",IF(OR(E15="o",AND(C15="x",D15="x",F15="x"),AND(E14="x",E16="x",E17="x")),"o","")) ->  | AH15: =IF(OR(C15="o",D15="o",E15="o",F14="o",F16="o",F17="o",F15="x"),"x",IF(OR(F15="o",AND(C15="x",D15="x",E15="x"),AND(F14="x",F16="x",F17="x")),"o","")) -> 
B16: 5e | AD16: 5e | AE16: =IF(OR(D16="o",E16="o",F16="o",C14="o",C15="o",C17="o",C16="x"),"x",IF(OR(C16="o",AND(D16="x",E16="x",F16="x"),AND(C14="x",C15="x",C17="x")),"o","")) ->  | AF16: =IF(OR(C16="o",E16="o",F16="o",D14="o",D15="o",D17="o",D16="x"),"x",IF(OR(D16="o",AND(C16="x",E16="x",F16="x"),AND(D14="x",D15="x",D17="x")),"o","")) ->  | AG16: =IF(OR(C16="o",D16="o",F16="o",E14="o",E15="o",E17="o",E16="x"),"x",IF(OR(E16="o",AND(C16="x",D16="x",F16="x"),AND(E14="x",E15="x",E17="x")),"o","")) ->  | AH16: =IF(OR(C16="o",D16="o",E16="o",F14="o",F15="o",F17="o",F16="x"),"x",IF(OR(F16="o",AND(C16="x",D16="x",E16="x"),AND(F14="x",F15="x",F17="x")),"o","")) -> 
B17: 6e | AD17: 6e | AE17: =IF(OR(D17="o",E17="o",F17="o",C14="o",C15="o",C16="o",C17="x"),"x",IF(OR(C17="o",AND(D17="x",E17="x",F17="x"),AND(C14="x",C15="x",C16="x")),"o","")) ->  | AF17: =IF(OR(C17="o",E17="o",F17="o",D14="o",D15="o",D16="o",D17="x"),"x",IF(OR(D17="o",AND(C17="x",E17="x",F17="x"),AND(D14="x",D15="x",D16="x")),"o","")) ->  | AG17: =IF(OR(C17="o",D17="o",F17="o",E14="o",E15="o",E16="o",E17="x"),"x",IF(OR(E17="o",AND(C17="x",D17="x",F17="x"),AND(E14="x",E15="x",E16="x")),"o","")) ->  | AH17: =IF(OR(C17="o",D17="o",E17="o",F14="o",F15="o",F16="o",F17="x"),"x",IF(OR(F17="o",AND(C17="x",D17="x",E17="x"),AND(F14="x",F15="x",F16="x")),"o","")) -> 
B19: Réponses : | C19: =C4 -> Matière | G19: =G4 -> Rang | K19: =K4 -> Moyenne | Q19: =C4 -> Matière | U19: =G4 -> Rang | Y19: =K4 -> Moyenne
B20: =B6 -> Philippe | C20: =IF(C6="o",C5,IF(D6="o",D5,IF(E6="o",E5,IF(F6="o",F5,"")))) ->  | G20: =IF(G6="o",G5,IF(H6="o",H5,IF(I6="o",I5,IF(J6="o",J5,"")))) ->  | K20: =IF(K6="o",K5,IF(L6="o",L5,IF(M6="o",M5,IF(N6="o",N5,"")))) ->  | P20: =B6 -> Philippe | Q20: EPS | U20: 6e | Y20: 14
B21: =B7 -> Viviane | C21: =IF(C7="o",C5,IF(D7="o",D5,IF(E7="o",E5,IF(F7="o",F5,"")))) ->  | G21: =IF(G7="o",G5,IF(H7="o",H5,IF(I7="o",I5,IF(J7="o",J5,"")))) ->  | K21: =IF(K7="o",K5,IF(L7="o",L5,IF(M7="o",M5,IF(N7="o",N5,"")))) ->  | P21: =B7 -> Viviane | Q21: Maths | U21: 3e | Y21: 17
B22: =B8 -> Mathilde | C22: =IF(C8="o",C5,IF(D8="o",D5,IF(E8="o",E5,IF(F8="o",F5,"")))) ->  | G22: =IF(G8="o",G5,IF(H8="o",H5,IF(I8="o",I5,IF(J8="o",J5,"")))) ->  | K22: =IF(K8="o",K5,IF(L8="o",L5,IF(M8="o",M5,IF(N8="o",N5,"")))) ->  | P22: =B8 -> Mathilde | Q22: Français | U22: 5e | Y22: 19
B23: =B9 -> Anne | C23: =IF(C9="o",C5,IF(D9="o",D5,IF(E9="o",E5,IF(F9="o",F5,"")))) ->  | G23: =IF(G9="o",G5,IF(H9="o",H5,IF(I9="o",I5,IF(J9="o",J5,"")))) ->  | K23: =IF(K9="o",K5,IF(L9="o",L5,IF(M9="o",M5,IF(N9="o",N5,"")))) ->  | P23: =B9 -> Anne | Q23: Physique | U23: 1e | Y23: 15
A26: XII°/ Compétition de natation :
A27: =INDIRECT("'Calculs 4 indices'!B"&A30) ->  | N27: =INDIRECT("'Calculs 4 indices'!M"&(A30+16)) -> 
A28: =INDIRECT("'Calculs 4 indices'!B"&(A30+26)) ->  | N28: =INDIRECT("'Calculs 4 indices'!M"&(A30+17)) -> 
C29: Classement | G29: =A39 -> Temps | K29: =A35 -> Nage | AE29: =C29 -> Classement | AI29: =G29 -> Temps | AM29: =K29 -> Nage
A30: =A5+52 -> 53 | C30: 1e | D30: 2e | E30: 3e | F30: 4e | G30: =B39 -> 1min04 | H30: =B40 -> 1min08 | I30: =B41 -> 1min10 | J30: =B42 -> 1min15 | K30: =B35 -> papillon | L30: =B36 -> dos | M30: =B37 -> brasse | N30: =B38 -> crawl | P30: Paul, Pierre, François, Fabien ont participé a une compétition de natation mais impossible de se rappeler exactement ce qu'ils ont nagé ni le temps qu'ils ont réalisé. | AE30: =C30 -> 1e | AF30: =D30 -> 2e | AG30: =E30 -> 3e | AH30: =F30 -> 4e | AI30: =G30 -> 1min04 | AJ30: =H30 -> 1min08 | AK30: =I30 -> 1min10 | AL30: =J30 -> 1min15 | AM30: =K30 -> papillon | AN30: =L30 -> dos | AO30: =M30 -> brasse | AP30: =N30 -> crawl
A31: Nageurs | B31: Paul | P31: 1°/ Paul est arrivé 4e de sa course et il n'a été ni le plus | AC31: =A31 -> Nageurs | AD31: =B31 -> Paul | AE31: =IF(OR(D31="o",E31="o",F31="o",C32="o",C33="o",C34="o",C31="x"),"x",IF(OR(C31="o",AND(D31="x",E31="x",F31="x"),AND(C32="x",C33="x",C34="x")),"o","")) ->  | AF31: =IF(OR(C31="o",E31="o",F31="o",D32="o",D33="o",D34="o",D31="x"),"x",IF(OR(D31="o",AND(C31="x",E31="x",F31="x"),AND(D32="x",D33="x",D34="x")),"o","")) ->  | AG31: =IF(OR(C31="o",D31="o",F31="o",E32="o",E33="o",E34="o",E31="x"),"x",IF(OR(E31="o",AND(C31="x",D31="x",F31="x"),AND(E32="x",E33="x",E34="x")),"o","")) ->  | AH31: =IF(OR(C31="o",D31="o",E31="o",F32="o",F33="o",F34="o",F31="x"),"x",IF(OR(F31="o",AND(C31="x",D31="x",E31="x"),AND(F32="x",F33="x",F34="x")),"o","")) ->  | AI31: =IF(OR(H31="o",I31="o",J31="o",G32="o",G33="o",G34="o",G31="x"),"x",IF(OR(G31="o",AND(H31="x",I31="x",J31="x"),AND(G32="x",G33="x",G34="x")),"o","")) ->  | AJ31: =IF(OR(G31="o",I31="o",J31="o",H32="o",H33="o",H34="o",H31="x"),"x",IF(OR(H31="o",AND(G31="x",I31="x",J31="x"),AND(H32="x",H33="x",H34="x")),"o","")) ->  | AK31: =IF(OR(G31="o",H31="o",J31="o",I32="o",I33="o",I34="o",I31="x"),"x",IF(OR(I31="o",AND(G31="x",H31="x",J31="x"),AND(I32="x",I33="x",I34="x")),"o","")) ->  | AL31: =IF(OR(G31="o",H31="o",I31="o",J32="o",J33="o",J34="o",J31="x"),"x",IF(OR(J31="o",AND(G31="x",H31="x",I31="x"),AND(J32="x",J33="x",J34="x")),"o","")) ->  | AM31: =IF(OR(L31="o",M31="o",N31="o",K32="o",K33="o",K34="o",K31="x"),"x",IF(OR(K31="o",AND(L31="x",M31="x",N31="x"),AND(K32="x",K33="x",K34="x")),"o","")) ->  | AN31: =IF(OR(K31="o",M31="o",N31="o",L32="o",L33="o",L34="o",L31="x"),"x",IF(OR(L31="o",AND(K31="x",M31="x",N31="x"),AND(L32="x",L33="x",L34="x")),"o","")) ->  | AO31: =IF(OR(K31="o",L31="o",N31="o",M32="o",M33="o",M34="o",M31="x"),"x",IF(OR(M31="o",AND(K31="x",L31="x",N31="x"),AND(M32="x",M33="x",M34="x")),"o","")) ->  | AP31: =IF(OR(K31="o",L31="o",M31="o",N32="o",N33="o",N34="o",N31="x"),"x",IF(OR(N31="o",AND(K31="x",L31="x",M31="x"),AND(N32="x",N33="x",N34="x")),"o","")) -> 
B32: Pierre | P32: rapide,ni le plus lent. | AD32: =B32 -> Pierre | AE32: =IF(OR(D32="o",E32="o",F32="o",C31="o",C33="o",C34="o",C32="x"),"x",IF(OR(C32="o",AND(D32="x",E32="x",F32="x"),AND(C31="x",C33="x",C34="x")),"o","")) ->  | AF32: =IF(OR(C32="o",E32="o",F32="o",D31="o",D33="o",D34="o",D32="x"),"x",IF(OR(D32="o",AND(C32="x",E32="x",F32="x"),AND(D31="x",D33="x",D34="x")),"o","")) ->  | AG32: =IF(OR(C32="o",D32="o",F32="o",E31="o",E33="o",E34="o",E32="x"),"x",IF(OR(E32="o",AND(C32="x",D32="x",F32="x"),AND(E31="x",E33="x",E34="x")),"o","")) ->  | AH32: =IF(OR(C32="o",D32="o",E32="o",F31="o",F33="o",F34="o",F32="x"),"x",IF(OR(F32="o",AND(C32="x",D32="x",E32="x"),AND(F31="x",F33="x",F34="x")),"o","")) ->  | AI32: =IF(OR(H32="o",I32="o",J32="o",G31="o",G33="o",G34="o",G32="x"),"x",IF(OR(G32="o",AND(H32="x",I32="x",J32="x"),AND(G31="x",G33="x",G34="x")),"o","")) ->  | AJ32: =IF(OR(G32="o",I32="o",J32="o",H31="o",H33="o",H34="o",H32="x"),"x",IF(OR(H32="o",AND(G32="x",I32="x",J32="x"),AND(H31="x",H33="x",H34="x")),"o","")) ->  | AK32: =IF(OR(G32="o",H32="o",J32="o",I31="o",I33="o",I34="o",I32="x"),"x",IF(OR(I32="o",AND(G32="x",H32="x",J32="x"),AND(I31="x",I33="x",I34="x")),"o","")) ->  | AL32: =IF(OR(G32="o",H32="o",I32="o",J31="o",J33="o",J34="o",J32="x"),"x",IF(OR(J32="o",AND(G32="x",H32="x",I32="x"),AND(J31="x",J33="x",J34="x")),"o","")) ->  | AM32: =IF(OR(L32="o",M32="o",N32="o",K31="o",K33="o",K34="o",K32="x"),"x",IF(OR(K32="o",AND(L32="x",M32="x",N32="x"),AND(K31="x",K33="x",K34="x")),"o","")) ->  | AN32: =IF(OR(K32="o",M32="o",N32="o",L31="o",L33="o",L34="o",L32="x"),"x",IF(OR(L32="o",AND(K32="x",M32="x",N32="x"),AND(L31="x",L33="x",L34="x")),"o","")) ->  | AO32: =IF(OR(K32="o",L32="o",N32="o",M31="o",M33="o",M34="o",M32="x"),"x",IF(OR(M32="o",AND(K32="x",L32="x",N32="x"),AND(M31="x",M33="x",M34="x")),"o","")) ->  | AP32: =IF(OR(K32="o",L32="o",M32="o",N31="o",N33="o",N34="o",N32="x"),"x",IF(OR(N32="o",AND(K32="x",L32="x",M32="x"),AND(N31="x",N33="x",N34="x")),"o","")) -> 
B33: François | P33: 2°/François qui n'est pas arrivé dans les deux premiers, a | AD33: François | AE33: =IF(OR(D33="o",E33="o",F33="o",C31="o",C32="o",C34="o",C33="x"),"x",IF(OR(C33="o",AND(D33="x",E33="x",F33="x"),AND(C31="x",C32="x",C34="x")),"o","")) ->  | AF33: =IF(OR(C33="o",E33="o",F33="o",D31="o",D32="o",D34="o",D33="x"),"x",IF(OR(D33="o",AND(C33="x",E33="x",F33="x"),AND(D31="x",D32="x",D34="x")),"o","")) ->  | AG33: =IF(OR(C33="o",D33="o",F33="o",E31="o",E32="o",E34="o",E33="x"),"x",IF(OR(E33="o",AND(C33="x",D33="x",F33="x"),AND(E31="x",E32="x",E34="x")),"o","")) ->  | AH33: =IF(OR(C33="o",D33="o",E33="o",F31="o",F32="o",F34="o",F33="x"),"x",IF(OR(F33="o",AND(C33="x",D33="x",E33="x"),AND(F31="x",F32="x",F34="x")),"o","")) ->  | AI33: =IF(OR(H33="o",I33="o",J33="o",G31="o",G32="o",G34="o",G33="x"),"x",IF(OR(G33="o",AND(H33="x",I33="x",J33="x"),AND(G31="x",G32="x",G34="x")),"o","")) ->  | AJ33: =IF(OR(G33="o",I33="o",J33="o",H31="o",H32="o",H34="o",H33="x"),"x",IF(OR(H33="o",AND(G33="x",I33="x",J33="x"),AND(H31="x",H32="x",H34="x")),"o","")) ->  | AK33: =IF(OR(G33="o",H33="o",J33="o",I31="o",I32="o",I34="o",I33="x"),"x",IF(OR(I33="o",AND(G33="x",H33="x",J33="x"),AND(I31="x",I32="x",I34="x")),"o","")) ->  | AL33: =IF(OR(G33="o",H33="o",I33="o",J31="o",J32="o",J34="o",J33="x"),"x",IF(OR(J33="o",AND(G33="x",H33="x",I33="x"),AND(J31="x",J32="x",J34="x")),"o","")) ->  | AM33: =IF(OR(L33="o",M33="o",N33="o",K31="o",K32="o",K34="o",K33="x"),"x",IF(OR(K33="o",AND(L33="x",M33="x",N33="x"),AND(K31="x",K32="x",K34="x")),"o","")) ->  | AN33: =IF(OR(K33="o",M33="o",N33="o",L31="o",L32="o",L34="o",L33="x"),"x",IF(OR(L33="o",AND(K33="x",M33="x",N33="x"),AND(L31="x",L32="x",L34="x")),"o","")) ->  | AO33: =IF(OR(K33="o",L33="o",N33="o",M31="o",M32="o",M34="o",M33="x"),"x",IF(OR(M33="o",AND(K33="x",L33="x",N33="x"),AND(M31="x",M32="x",M34="x")),"o","")) ->  | AP33: =IF(OR(K33="o",L33="o",M33="o",N31="o",N32="o",N34="o",N33="x"),"x",IF(OR(N33="o",AND(K33="x",L33="x",M33="x"),AND(N31="x",N32="x",N34="x")),"o","")) -> 
B34: Fabien | P34: nagé plus de 1:08 au 100 mètre papillon. | AD34: Fabien | AE34: =IF(OR(D34="o",E34="o",F34="o",C31="o",C32="o",C33="o",C34="x"),"x",IF(OR(C34="o",AND(D34="x",E34="x",F34="x"),AND(C31="x",C32="x",C33="x")),"o","")) ->  | AF34: =IF(OR(C34="o",E34="o",F34="o",D31="o",D32="o",D33="o",D34="x"),"x",IF(OR(D34="o",AND(C34="x",E34="x",F34="x"),AND(D31="x",D32="x",D33="x")),"o","")) ->  | AG34: =IF(OR(C34="o",D34="o",F34="o",E31="o",E32="o",E33="o",E34="x"),"x",IF(OR(E34="o",AND(C34="x",D34="x",F34="x"),AND(E31="x",E32="x",E33="x")),"o","")) ->  | AH34: =IF(OR(C34="o",D34="o",E34="o",F31="o",F32="o",F33="o",F34="x"),"x",IF(OR(F34="o",AND(C34="x",D34="x",E34="x"),AND(F31="x",F32="x",F33="x")),"o","")) ->  | AI34: =IF(OR(H34="o",I34="o",J34="o",G31="o",G32="o",G33="o",G34="x"),"x",IF(OR(G34="o",AND(H34="x",I34="x",J34="x"),AND(G31="x",G32="x",G33="x")),"o","")) ->  | AJ34: =IF(OR(G34="o",I34="o",J34="o",H31="o",H32="o",H33="o",H34="x"),"x",IF(OR(H34="o",AND(G34="x",I34="x",J34="x"),AND(H31="x",H32="x",H33="x")),"o","")) ->  | AK34: =IF(OR(G34="o",H34="o",J34="o",I31="o",I32="o",I33="o",I34="x"),"x",IF(OR(I34="o",AND(G34="x",H34="x",J34="x"),AND(I31="x",I32="x",I33="x")),"o","")) ->  | AL34: =IF(OR(G34="o",H34="o",I34="o",J31="o",J32="o",J33="o",J34="x"),"x",IF(OR(J34="o",AND(G34="x",H34="x",I34="x"),AND(J31="x",J32="x",J33="x")),"o","")) ->  | AM34: =IF(OR(L34="o",M34="o",N34="o",K31="o",K32="o",K33="o",K34="x"),"x",IF(OR(K34="o",AND(L34="x",M34="x",N34="x"),AND(K31="x",K32="x",K33="x")),"o","")) ->  | AN34: =IF(OR(K34="o",M34="o",N34="o",L31="o",L32="o",L33="o",L34="x"),"x",IF(OR(L34="o",AND(K34="x",M34="x",N34="x"),AND(L31="x",L32="x",L33="x")),"o","")) ->  | AO34: =IF(OR(K34="o",L34="o",N34="o",M31="o",M32="o",M33="o",M34="x"),"x",IF(OR(M34="o",AND(K34="x",L34="x",N34="x"),AND(M31="x",M32="x",M33="x")),"o","")) ->  | AP34: =IF(OR(K34="o",L34="o",M34="o",N31="o",N32="o",N33="o",N34="x"),"x",IF(OR(N34="o",AND(K34="x",L34="x",M34="x"),AND(N31="x",N32="x",N33="x")),"o","")) -> 
A35: Nage | B35: papillon | P35: 3°/ Celui qui a nagé le 100 mètre crawl est arrivé premier | AC35: =A35 -> Nage | AD35: papillon | AE35: =IF(OR(D35="o",E35="o",F35="o",C36="o",C37="o",C38="o",C35="x"),"x",IF(OR(C35="o",AND(D35="x",E35="x",F35="x"),AND(C36="x",C37="x",C38="x")),"o","")) ->  | AF35: =IF(OR(C35="o",E35="o",F35="o",D36="o",D37="o",D38="o",D35="x"),"x",IF(OR(D35="o",AND(C35="x",E35="x",F35="x"),AND(D36="x",D37="x",D38="x")),"o","")) ->  | AG35: =IF(OR(C35="o",D35="o",F35="o",E36="o",E37="o",E38="o",E35="x"),"x",IF(OR(E35="o",AND(C35="x",D35="x",F35="x"),AND(E36="x",E37="x",E38="x")),"o","")) ->  | AH35: =IF(OR(C35="o",D35="o",E35="o",F36="o",F37="o",F38="o",F35="x"),"x",IF(OR(F35="o",AND(C35="x",D35="x",E35="x"),AND(F36="x",F37="x",F38="x")),"o","")) ->  | AI35: =IF(OR(H35="o",I35="o",J35="o",G36="o",G37="o",G38="o",G35="x"),"x",IF(OR(G35="o",AND(H35="x",I35="x",J35="x"),AND(G36="x",G37="x",G38="x")),"o","")) ->  | AJ35: =IF(OR(G35="o",I35="o",J35="o",H36="o",H37="o",H38="o",H35="x"),"x",IF(OR(H35="o",AND(G35="x",I35="x",J35="x"),AND(H36="x",H37="x",H38="x")),"o","")) ->  | AK35: =IF(OR(G35="o",H35="o",J35="o",I36="o",I37="o",I38="o",I35="x"),"x",IF(OR(I35="o",AND(G35="x",H35="x",J35="x"),AND(I36="x",I37="x",I38="x")),"o","")) ->  | AL35: =IF(OR(G35="o",H35="o",I35="o",J36="o",J37="o",J38="o",J35="x"),"x",IF(OR(J35="o",AND(G35="x",H35="x",I35="x"),AND(J36="x",J37="x",J38="x")),"o","")) -> 
B36: dos | P36: mais pas dans le meilleur temps. | AD36: dos | AE36: =IF(OR(D36="o",E36="o",F36="o",C35="o",C37="o",C38="o",C36="x"),"x",IF(OR(C36="o",AND(D36="x",E36="x",F36="x"),AND(C35="x",C37="x",C38="x")),"o","")) ->  | AF36: =IF(OR(C36="o",E36="o",F36="o",D35="o",D37="o",D38="o",D36="x"),"x",IF(OR(D36="o",AND(C36="x",E36="x",F36="x"),AND(D35="x",D37="x",D38="x")),"o","")) ->  | AG36: =IF(OR(C36="o",D36="o",F36="o",E35="o",E37="o",E38="o",E36="x"),"x",IF(OR(E36="o",AND(C36="x",D36="x",F36="x"),AND(E35="x",E37="x",E38="x")),"o","")) ->  | AH36: =IF(OR(C36="o",D36="o",E36="o",F35="o",F37="o",F38="o",F36="x"),"x",IF(OR(F36="o",AND(C36="x",D36="x",E36="x"),AND(F35="x",F37="x",F38="x")),"o","")) ->  | AI36: =IF(OR(H36="o",I36="o",J36="o",G35="o",G37="o",G38="o",G36="x"),"x",IF(OR(G36="o",AND(H36="x",I36="x",J36="x"),AND(G35="x",G37="x",G38="x")),"o","")) ->  | AJ36: =IF(OR(G36="o",I36="o",J36="o",H35="o",H37="o",H38="o",H36="x"),"x",IF(OR(H36="o",AND(G36="x",I36="x",J36="x"),AND(H35="x",H37="x",H38="x")),"o","")) ->  | AK36: =IF(OR(G36="o",H36="o",J36="o",I35="o",I37="o",I38="o",I36="x"),"x",IF(OR(I36="o",AND(G36="x",H36="x",J36="x"),AND(I35="x",I37="x",I38="x")),"o","")) ->  | AL36: =IF(OR(G36="o",H36="o",I36="o",J35="o",J37="o",J38="o",J36="x"),"x",IF(OR(J36="o",AND(G36="x",H36="x",I36="x"),AND(J35="x",J37="x",J38="x")),"o","")) -> 
B37: brasse | P37: 4°/ Le 100 mètre dos a été nagé en 01:10 | AD37: brasse | AE37: =IF(OR(D37="o",E37="o",F37="o",C35="o",C36="o",C38="o",C37="x"),"x",IF(OR(C37="o",AND(D37="x",E37="x",F37="x"),AND(C35="x",C36="x",C38="x")),"o","")) ->  | AF37: =IF(OR(C37="o",E37="o",F37="o",D35="o",D36="o",D38="o",D37="x"),"x",IF(OR(D37="o",AND(C37="x",E37="x",F37="x"),AND(D35="x",D36="x",D38="x")),"o","")) ->  | AG37: =IF(OR(C37="o",D37="o",F37="o",E35="o",E36="o",E38="o",E37="x"),"x",IF(OR(E37="o",AND(C37="x",D37="x",F37="x"),AND(E35="x",E36="x",E38="x")),"o","")) ->  | AH37: =IF(OR(C37="o",D37="o",E37="o",F35="o",F36="o",F38="o",F37="x"),"x",IF(OR(F37="o",AND(C37="x",D37="x",E37="x"),AND(F35="x",F36="x",F38="x")),"o","")) ->  | AI37: =IF(OR(H37="o",I37="o",J37="o",G35="o",G36="o",G38="o",G37="x"),"x",IF(OR(G37="o",AND(H37="x",I37="x",J37="x"),AND(G35="x",G36="x",G38="x")),"o","")) ->  | AJ37: =IF(OR(G37="o",I37="o",J37="o",H35="o",H36="o",H38="o",H37="x"),"x",IF(OR(H37="o",AND(G37="x",I37="x",J37="x"),AND(H35="x",H36="x",H38="x")),"o","")) ->  | AK37: =IF(OR(G37="o",H37="o",J37="o",I35="o",I36="o",I38="o",I37="x"),"x",IF(OR(I37="o",AND(G37="x",H37="x",J37="x"),AND(I35="x",I36="x",I38="x")),"o","")) ->  | AL37: =IF(OR(G37="o",H37="o",I37="o",J35="o",J36="o",J38="o",J37="x"),"x",IF(OR(J37="o",AND(G37="x",H37="x",I37="x"),AND(J35="x",J36="x",J38="x")),"o","")) -> 
B38: crawl | P38: 5°/Fabien n'est pas arrivé 2e | AD38: crawl | AE38: =IF(OR(D38="o",E38="o",F38="o",C35="o",C36="o",C37="o",C38="x"),"x",IF(OR(C38="o",AND(D38="x",E38="x",F38="x"),AND(C35="x",C36="x",C37="x")),"o","")) ->  | AF38: =IF(OR(C38="o",E38="o",F38="o",D35="o",D36="o",D37="o",D38="x"),"x",IF(OR(D38="o",AND(C38="x",E38="x",F38="x"),AND(D35="x",D36="x",D37="x")),"o","")) ->  | AG38: =IF(OR(C38="o",D38="o",F38="o",E35="o",E36="o",E37="o",E38="x"),"x",IF(OR(E38="o",AND(C38="x",D38="x",F38="x"),AND(E35="x",E36="x",E37="x")),"o","")) ->  | AH38: =IF(OR(C38="o",D38="o",E38="o",F35="o",F36="o",F37="o",F38="x"),"x",IF(OR(F38="o",AND(C38="x",D38="x",E38="x"),AND(F35="x",F36="x",F37="x")),"o","")) ->  | AI38: =IF(OR(H38="o",I38="o",J38="o",G35="o",G36="o",G37="o",G38="x"),"x",IF(OR(G38="o",AND(H38="x",I38="x",J38="x"),AND(G35="x",G36="x",G37="x")),"o","")) ->  | AJ38: =IF(OR(G38="o",I38="o",J38="o",H35="o",H36="o",H37="o",H38="x"),"x",IF(OR(H38="o",AND(G38="x",I38="x",J38="x"),AND(H35="x",H36="x",H37="x")),"o","")) ->  | AK38: =IF(OR(G38="o",H38="o",J38="o",I35="o",I36="o",I37="o",I38="x"),"x",IF(OR(I38="o",AND(G38="x",H38="x",J38="x"),AND(I35="x",I36="x",I37="x")),"o","")) ->  | AL38: =IF(OR(G38="o",H38="o",I38="o",J35="o",J36="o",J37="o",J38="x"),"x",IF(OR(J38="o",AND(G38="x",H38="x",I38="x"),AND(J35="x",J36="x",J37="x")),"o","")) -> 
A39: Temps | B39: 1min04 | AC39: =A39 -> Temps | AD39: 1min04 | AE39: =IF(OR(D39="o",E39="o",F39="o",C40="o",C41="o",C42="o",C39="x"),"x",IF(OR(C39="o",AND(D39="x",E39="x",F39="x"),AND(C40="x",C41="x",C42="x")),"o","")) ->  | AF39: =IF(OR(C39="o",E39="o",F39="o",D40="o",D41="o",D42="o",D39="x"),"x",IF(OR(D39="o",AND(C39="x",E39="x",F39="x"),AND(D40="x",D41="x",D42="x")),"o","")) ->  | AG39: =IF(OR(C39="o",D39="o",F39="o",E40="o",E41="o",E42="o",E39="x"),"x",IF(OR(E39="o",AND(C39="x",D39="x",F39="x"),AND(E40="x",E41="x",E42="x")),"o","")) ->  | AH39: =IF(OR(C39="o",D39="o",E39="o",F40="o",F41="o",F42="o",F39="x"),"x",IF(OR(F39="o",AND(C39="x",D39="x",E39="x"),AND(F40="x",F41="x",F42="x")),"o","")) -> 
B40: 1min08 | H40: =IF(AND(C45=Q45,G45=U45,K45=Y45,C46=Q46,G46=U46,K46=Y46,C47=Q47,G47=U47,K47=Y47,C48=Q48,G48=U48,K48=Y48),"BRAVO !!","") ->  | AD40: 1min08 | AE40: =IF(OR(D40="o",E40="o",F40="o",C39="o",C41="o",C42="o",C40="x"),"x",IF(OR(C40="o",AND(D40="x",E40="x",F40="x"),AND(C39="x",C41="x",C42="x")),"o","")) ->  | AF40: =IF(OR(C40="o",E40="o",F40="o",D39="o",D41="o",D42="o",D40="x"),"x",IF(OR(D40="o",AND(C40="x",E40="x",F40="x"),AND(D39="x",D41="x",D42="x")),"o","")) ->  | AG40: =IF(OR(C40="o",D40="o",F40="o",E39="o",E41="o",E42="o",E40="x"),"x",IF(OR(E40="o",AND(C40="x",D40="x",F40="x"),AND(E39="x",E41="x",E42="x")),"o","")) ->  | AH40: =IF(OR(C40="o",D40="o",E40="o",F39="o",F41="o",F42="o",F40="x"),"x",IF(OR(F40="o",AND(C40="x",D40="x",E40="x"),AND(F39="x",F41="x",F42="x")),"o","")) -> 
B41: 1min10 | AD41: 1min10 | AE41: =IF(OR(D41="o",E41="o",F41="o",C39="o",C40="o",C42="o",C41="x"),"x",IF(OR(C41="o",AND(D41="x",E41="x",F41="x"),AND(C39="x",C40="x",C42="x")),"o","")) ->  | AF41: =IF(OR(C41="o",E41="o",F41="o",D39="o",D40="o",D42="o",D41="x"),"x",IF(OR(D41="o",AND(C41="x",E41="x",F41="x"),AND(D39="x",D40="x",D42="x")),"o","")) ->  | AG41: =IF(OR(C41="o",D41="o",F41="o",E39="o",E40="o",E42="o",E41="x"),"x",IF(OR(E41="o",AND(C41="x",D41="x",F41="x"),AND(E39="x",E40="x",E42="x")),"o","")) ->  | AH41: =IF(OR(C41="o",D41="o",E41="o",F39="o",F40="o",F42="o",F41="x"),"x",IF(OR(F41="o",AND(C41="x",D41="x",E41="x"),AND(F39="x",F40="x",F42="x")),"o","")) -> 
B42: 1min15 | AD42: 1min15 | AE42: =IF(OR(D42="o",E42="o",F42="o",C39="o",C40="o",C41="o",C42="x"),"x",IF(OR(C42="o",AND(D42="x",E42="x",F42="x"),AND(C39="x",C40="x",C41="x")),"o","")) ->  | AF42: =IF(OR(C42="o",E42="o",F42="o",D39="o",D40="o",D41="o",D42="x"),"x",IF(OR(D42="o",AND(C42="x",E42="x",F42="x"),AND(D39="x",D40="x",D41="x")),"o","")) ->  | AG42: =IF(OR(C42="o",D42="o",F42="o",E39="o",E40="o",E41="o",E42="x"),"x",IF(OR(E42="o",AND(C42="x",D42="x",F42="x"),AND(E39="x",E40="x",E41="x")),"o","")) ->  | AH42: =IF(OR(C42="o",D42="o",E42="o",F39="o",F40="o",F41="o",F42="x"),"x",IF(OR(F42="o",AND(C42="x",D42="x",E42="x"),AND(F39="x",F40="x",F41="x")),"o","")) -> 
B44: Réponses : | C44: =C29 -> Classement | G44: =G29 -> Temps | K44: =K29 -> Nage | Q44: =C29 -> Classement | U44: =G29 -> Temps | Y44: =K29 -> Nage
B45: =B31 -> Paul | C45: =IF(C31="o",C30,IF(D31="o",D30,IF(E31="o",E30,IF(F31="o",F30,"")))) ->  | G45: =IF(G31="o",G30,IF(H31="o",H30,IF(I31="o",I30,IF(J31="o",J30,"")))) ->  | K45: =IF(K31="o",K30,IF(L31="o",L30,IF(M31="o",M30,IF(N31="o",N30,"")))) ->  | P45: =B31 -> Paul | Q45: 4e | U45: 1min10 | Y45: dos
B46: =B32 -> Pierre | C46: =IF(C32="o",C30,IF(D32="o",D30,IF(E32="o",E30,IF(F32="o",F30,"")))) ->  | G46: =IF(G32="o",G30,IF(H32="o",H30,IF(I32="o",I30,IF(J32="o",J30,"")))) ->  | K46: =IF(K32="o",K30,IF(L32="o",L30,IF(M32="o",M30,IF(N32="o",N30,"")))) ->  | P46: =B32 -> Pierre | Q46: 2e | U46: 1min04 | Y46: brasse
B47: =B33 -> François | C47: =IF(C33="o",C30,IF(D33="o",D30,IF(E33="o",E30,IF(F33="o",F30,"")))) ->  | G47: =IF(G33="o",G30,IF(H33="o",H30,IF(I33="o",I30,IF(J33="o",J30,"")))) ->  | K47: =IF(K33="o",K30,IF(L33="o",L30,IF(M33="o",M30,IF(N33="o",N30,"")))) ->  | P47: =B33 -> François | Q47: 3e | U47: 1min15 | Y47: papillon
B48: =B34 -> Fabien | C48: =IF(C34="o",C30,IF(D34="o",D30,IF(E34="o",E30,IF(F34="o",F30,"")))) ->  | G48: =IF(G34="o",G30,IF(H34="o",H30,IF(I34="o",I30,IF(J34="o",J30,"")))) ->  | K48: =IF(K34="o",K30,IF(L34="o",L30,IF(M34="o",M30,IF(N34="o",N30,"")))) ->  | P48: =B34 -> Fabien | Q48: 1e | U48: 1min08 | Y48: crawl
A51: XIII°/ Le championnat :
A52: =INDIRECT("'Calculs 4 indices'!B"&A55) ->  | N52: =INDIRECT("'Calculs 4 indices'!M"&(A55+16)) -> 
A53: =INDIRECT("'Calculs 4 indices'!B"&(A55+26)) ->  | N53: =INDIRECT("'Calculs 4 indices'!M"&(A55+17)) -> 
C54: Âge | G54: Fanion | K54: =A60 -> Classement | AE54: =C54 -> Âge | AI54: =G54 -> Fanion | AM54: =K54 -> Classement
A55: =A30+52 -> 105 | C55: 8 ans | D55: 9 ans | E55: 10 ans | F55: 11 ans | G55: =B64 -> Bleu | H55: =B65 -> Vert | I55: =B66 -> Rouge | J55: =B67 -> Jaune | K55: 1e | L55: 2e | M55: 3e | N55: 4e | P55: L’école de Lola a organisé un championnat de jeux mathématiques par équipes. Chaque équipe,les loups, les lynx, les renards et les lions, est constituée de 3 enfants du même âge (8 ans, 9 ans, 10 ans et 11 ans) et ils ont un fanion de couleur. | AE55: =C55 -> 8 ans | AF55: =D55 -> 9 ans | AG55: =E55 -> 10 ans | AH55: =F55 -> 11 ans | AI55: =G55 -> Bleu | AJ55: =H55 -> Vert | AK55: =I55 -> Rouge | AL55: =J55 -> Jaune | AM55: =K55 -> 1e | AN55: =L55 -> 2e | AO55: =M55 -> 3e | AP55: =N55 -> 4e
A56: Equipes | B56: Loups | AC56: =A56 -> Equipes | AD56: =B56 -> Loups | AE56: =IF(OR(D56="o",E56="o",F56="o",C57="o",C58="o",C59="o",C56="x"),"x",IF(OR(C56="o",AND(D56="x",E56="x",F56="x"),AND(C57="x",C58="x",C59="x")),"o","")) ->  | AF56: =IF(OR(C56="o",E56="o",F56="o",D57="o",D58="o",D59="o",D56="x"),"x",IF(OR(D56="o",AND(C56="x",E56="x",F56="x"),AND(D57="x",D58="x",D59="x")),"o","")) ->  | AG56: =IF(OR(C56="o",D56="o",F56="o",E57="o",E58="o",E59="o",E56="x"),"x",IF(OR(E56="o",AND(C56="x",D56="x",F56="x"),AND(E57="x",E58="x",E59="x")),"o","")) ->  | AH56: =IF(OR(C56="o",D56="o",E56="o",F57="o",F58="o",F59="o",F56="x"),"x",IF(OR(F56="o",AND(C56="x",D56="x",E56="x"),AND(F57="x",F58="x",F59="x")),"o","")) ->  | AI56: =IF(OR(H56="o",I56="o",J56="o",G57="o",G58="o",G59="o",G56="x"),"x",IF(OR(G56="o",AND(H56="x",I56="x",J56="x"),AND(G57="x",G58="x",G59="x")),"o","")) ->  | AJ56: =IF(OR(G56="o",I56="o",J56="o",H57="o",H58="o",H59="o",H56="x"),"x",IF(OR(H56="o",AND(G56="x",I56="x",J56="x"),AND(H57="x",H58="x",H59="x")),"o","")) ->  | AK56: =IF(OR(G56="o",H56="o",J56="o",I57="o",I58="o",I59="o",I56="x"),"x",IF(OR(I56="o",AND(G56="x",H56="x",J56="x"),AND(I57="x",I58="x",I59="x")),"o","")) ->  | AL56: =IF(OR(G56="o",H56="o",I56="o",J57="o",J58="o",J59="o",J56="x"),"x",IF(OR(J56="o",AND(G56="x",H56="x",I56="x"),AND(J57="x",J58="x",J59="x")),"o","")) ->  | AM56: =IF(OR(L56="o",M56="o",N56="o",K57="o",K58="o",K59="o",K56="x"),"x",IF(OR(K56="o",AND(L56="x",M56="x",N56="x"),AND(K57="x",K58="x",K59="x")),"o","")) ->  | AN56: =IF(OR(K56="o",M56="o",N56="o",L57="o",L58="o",L59="o",L56="x"),"x",IF(OR(L56="o",AND(K56="x",M56="x",N56="x"),AND(L57="x",L58="x",L59="x")),"o","")) ->  | AO56: =IF(OR(K56="o",L56="o",N56="o",M57="o",M58="o",M59="o",M56="x"),"x",IF(OR(M56="o",AND(K56="x",L56="x",N56="x"),AND(M57="x",M58="x",M59="x")),"o","")) ->  | AP56: =IF(OR(K56="o",L56="o",M56="o",N57="o",N58="o",N59="o",N56="x"),"x",IF(OR(N56="o",AND(K56="x",L56="x",M56="x"),AND(N57="x",N58="x",N59="x")),"o","")) -> 
B57: Lynx | P57: 1°/ L'équipe des plus vieux a un fanion bleu. | AD57: =B57 -> Lynx | AE57: =IF(OR(D57="o",E57="o",F57="o",C56="o",C58="o",C59="o",C57="x"),"x",IF(OR(C57="o",AND(D57="x",E57="x",F57="x"),AND(C56="x",C58="x",C59="x")),"o","")) ->  | AF57: =IF(OR(C57="o",E57="o",F57="o",D56="o",D58="o",D59="o",D57="x"),"x",IF(OR(D57="o",AND(C57="x",E57="x",F57="x"),AND(D56="x",D58="x",D59="x")),"o","")) ->  | AG57: =IF(OR(C57="o",D57="o",F57="o",E56="o",E58="o",E59="o",E57="x"),"x",IF(OR(E57="o",AND(C57="x",D57="x",F57="x"),AND(E56="x",E58="x",E59="x")),"o","")) ->  | AH57: =IF(OR(C57="o",D57="o",E57="o",F56="o",F58="o",F59="o",F57="x"),"x",IF(OR(F57="o",AND(C57="x",D57="x",E57="x"),AND(F56="x",F58="x",F59="x")),"o","")) ->  | AI57: =IF(OR(H57="o",I57="o",J57="o",G56="o",G58="o",G59="o",G57="x"),"x",IF(OR(G57="o",AND(H57="x",I57="x",J57="x"),AND(G56="x",G58="x",G59="x")),"o","")) ->  | AJ57: =IF(OR(G57="o",I57="o",J57="o",H56="o",H58="o",H59="o",H57="x"),"x",IF(OR(H57="o",AND(G57="x",I57="x",J57="x"),AND(H56="x",H58="x",H59="x")),"o","")) ->  | AK57: =IF(OR(G57="o",H57="o",J57="o",I56="o",I58="o",I59="o",I57="x"),"x",IF(OR(I57="o",AND(G57="x",H57="x",J57="x"),AND(I56="x",I58="x",I59="x")),"o","")) ->  | AL57: =IF(OR(G57="o",H57="o",I57="o",J56="o",J58="o",J59="o",J57="x"),"x",IF(OR(J57="o",AND(G57="x",H57="x",I57="x"),AND(J56="x",J58="x",J59="x")),"o","")) ->  | AM57: =IF(OR(L57="o",M57="o",N57="o",K56="o",K58="o",K59="o",K57="x"),"x",IF(OR(K57="o",AND(L57="x",M57="x",N57="x"),AND(K56="x",K58="x",K59="x")),"o","")) ->  | AN57: =IF(OR(K57="o",M57="o",N57="o",L56="o",L58="o",L59="o",L57="x"),"x",IF(OR(L57="o",AND(K57="x",M57="x",N57="x"),AND(L56="x",L58="x",L59="x")),"o","")) ->  | AO57: =IF(OR(K57="o",L57="o",N57="o",M56="o",M58="o",M59="o",M57="x"),"x",IF(OR(M57="o",AND(K57="x",L57="x",N57="x"),AND(M56="x",M58="x",M59="x")),"o","")) ->  | AP57: =IF(OR(K57="o",L57="o",M57="o",N56="o",N58="o",N59="o",N57="x"),"x",IF(OR(N57="o",AND(K57="x",L57="x",M57="x"),AND(N56="x",N58="x",N59="x")),"o","")) -> 
B58: Renards | P58: 2°/ Les loups n’ont pas 8 ans, ne sont pas classés 1ier et n'ont | AD58: Renards | AE58: =IF(OR(D58="o",E58="o",F58="o",C56="o",C57="o",C59="o",C58="x"),"x",IF(OR(C58="o",AND(D58="x",E58="x",F58="x"),AND(C56="x",C57="x",C59="x")),"o","")) ->  | AF58: =IF(OR(C58="o",E58="o",F58="o",D56="o",D57="o",D59="o",D58="x"),"x",IF(OR(D58="o",AND(C58="x",E58="x",F58="x"),AND(D56="x",D57="x",D59="x")),"o","")) ->  | AG58: =IF(OR(C58="o",D58="o",F58="o",E56="o",E57="o",E59="o",E58="x"),"x",IF(OR(E58="o",AND(C58="x",D58="x",F58="x"),AND(E56="x",E57="x",E59="x")),"o","")) ->  | AH58: =IF(OR(C58="o",D58="o",E58="o",F56="o",F57="o",F59="o",F58="x"),"x",IF(OR(F58="o",AND(C58="x",D58="x",E58="x"),AND(F56="x",F57="x",F59="x")),"o","")) ->  | AI58: =IF(OR(H58="o",I58="o",J58="o",G56="o",G57="o",G59="o",G58="x"),"x",IF(OR(G58="o",AND(H58="x",I58="x",J58="x"),AND(G56="x",G57="x",G59="x")),"o","")) ->  | AJ58: =IF(OR(G58="o",I58="o",J58="o",H56="o",H57="o",H59="o",H58="x"),"x",IF(OR(H58="o",AND(G58="x",I58="x",J58="x"),AND(H56="x",H57="x",H59="x")),"o","")) ->  | AK58: =IF(OR(G58="o",H58="o",J58="o",I56="o",I57="o",I59="o",I58="x"),"x",IF(OR(I58="o",AND(G58="x",H58="x",J58="x"),AND(I56="x",I57="x",I59="x")),"o","")) ->  | AL58: =IF(OR(G58="o",H58="o",I58="o",J56="o",J57="o",J59="o",J58="x"),"x",IF(OR(J58="o",AND(G58="x",H58="x",I58="x"),AND(J56="x",J57="x",J59="x")),"o","")) ->  | AM58: =IF(OR(L58="o",M58="o",N58="o",K56="o",K57="o",K59="o",K58="x"),"x",IF(OR(K58="o",AND(L58="x",M58="x",N58="x"),AND(K56="x",K57="x",K59="x")),"o","")) ->  | AN58: =IF(OR(K58="o",M58="o",N58="o",L56="o",L57="o",L59="o",L58="x"),"x",IF(OR(L58="o",AND(K58="x",M58="x",N58="x"),AND(L56="x",L57="x",L59="x")),"o","")) ->  | AO58: =IF(OR(K58="o",L58="o",N58="o",M56="o",M57="o",M59="o",M58="x"),"x",IF(OR(M58="o",AND(K58="x",L58="x",N58="x"),AND(M56="x",M57="x",M59="x")),"o","")) ->  | AP58: =IF(OR(K58="o",L58="o",M58="o",N56="o",N57="o",N59="o",N58="x"),"x",IF(OR(N58="o",AND(K58="x",L58="x",M58="x"),AND(N56="x",N57="x",N59="x")),"o","")) -> 
B59: Lions | P59: de fanion jaune. | AD59: Lions | AE59: =IF(OR(D59="o",E59="o",F59="o",C56="o",C57="o",C58="o",C59="x"),"x",IF(OR(C59="o",AND(D59="x",E59="x",F59="x"),AND(C56="x",C57="x",C58="x")),"o","")) ->  | AF59: =IF(OR(C59="o",E59="o",F59="o",D56="o",D57="o",D58="o",D59="x"),"x",IF(OR(D59="o",AND(C59="x",E59="x",F59="x"),AND(D56="x",D57="x",D58="x")),"o","")) ->  | AG59: =IF(OR(C59="o",D59="o",F59="o",E56="o",E57="o",E58="o",E59="x"),"x",IF(OR(E59="o",AND(C59="x",D59="x",F59="x"),AND(E56="x",E57="x",E58="x")),"o","")) ->  | AH59: =IF(OR(C59="o",D59="o",E59="o",F56="o",F57="o",F58="o",F59="x"),"x",IF(OR(F59="o",AND(C59="x",D59="x",E59="x"),AND(F56="x",F57="x",F58="x")),"o","")) ->  | AI59: =IF(OR(H59="o",I59="o",J59="o",G56="o",G57="o",G58="o",G59="x"),"x",IF(OR(G59="o",AND(H59="x",I59="x",J59="x"),AND(G56="x",G57="x",G58="x")),"o","")) ->  | AJ59: =IF(OR(G59="o",I59="o",J59="o",H56="o",H57="o",H58="o",H59="x"),"x",IF(OR(H59="o",AND(G59="x",I59="x",J59="x"),AND(H56="x",H57="x",H58="x")),"o","")) ->  | AK59: =IF(OR(G59="o",H59="o",J59="o",I56="o",I57="o",I58="o",I59="x"),"x",IF(OR(I59="o",AND(G59="x",H59="x",J59="x"),AND(I56="x",I57="x",I58="x")),"o","")) ->  | AL59: =IF(OR(G59="o",H59="o",I59="o",J56="o",J57="o",J58="o",J59="x"),"x",IF(OR(J59="o",AND(G59="x",H59="x",I59="x"),AND(J56="x",J57="x",J58="x")),"o","")) ->  | AM59: =IF(OR(L59="o",M59="o",N59="o",K56="o",K57="o",K58="o",K59="x"),"x",IF(OR(K59="o",AND(L59="x",M59="x",N59="x"),AND(K56="x",K57="x",K58="x")),"o","")) ->  | AN59: =IF(OR(K59="o",M59="o",N59="o",L56="o",L57="o",L58="o",L59="x"),"x",IF(OR(L59="o",AND(K59="x",M59="x",N59="x"),AND(L56="x",L57="x",L58="x")),"o","")) ->  | AO59: =IF(OR(K59="o",L59="o",N59="o",M56="o",M57="o",M58="o",M59="x"),"x",IF(OR(M59="o",AND(K59="x",L59="x",N59="x"),AND(M56="x",M57="x",M58="x")),"o","")) ->  | AP59: =IF(OR(K59="o",L59="o",M59="o",N56="o",N57="o",N58="o",N59="x"),"x",IF(OR(N59="o",AND(K59="x",L59="x",M59="x"),AND(N56="x",N57="x",N58="x")),"o","")) -> 
A60: Classement | B60: 1e | P60: 3°/ Les vainqueurs sont plus âgés que les derniers mais | AC60: =A60 -> Classement | AD60: 1e | AE60: =IF(OR(D60="o",E60="o",F60="o",C61="o",C62="o",C63="o",C60="x"),"x",IF(OR(C60="o",AND(D60="x",E60="x",F60="x"),AND(C61="x",C62="x",C63="x")),"o","")) ->  | AF60: =IF(OR(C60="o",E60="o",F60="o",D61="o",D62="o",D63="o",D60="x"),"x",IF(OR(D60="o",AND(C60="x",E60="x",F60="x"),AND(D61="x",D62="x",D63="x")),"o","")) ->  | AG60: =IF(OR(C60="o",D60="o",F60="o",E61="o",E62="o",E63="o",E60="x"),"x",IF(OR(E60="o",AND(C60="x",D60="x",F60="x"),AND(E61="x",E62="x",E63="x")),"o","")) ->  | AH60: =IF(OR(C60="o",D60="o",E60="o",F61="o",F62="o",F63="o",F60="x"),"x",IF(OR(F60="o",AND(C60="x",D60="x",E60="x"),AND(F61="x",F62="x",F63="x")),"o","")) ->  | AI60: =IF(OR(H60="o",I60="o",J60="o",G61="o",G62="o",G63="o",G60="x"),"x",IF(OR(G60="o",AND(H60="x",I60="x",J60="x"),AND(G61="x",G62="x",G63="x")),"o","")) ->  | AJ60: =IF(OR(G60="o",I60="o",J60="o",H61="o",H62="o",H63="o",H60="x"),"x",IF(OR(H60="o",AND(G60="x",I60="x",J60="x"),AND(H61="x",H62="x",H63="x")),"o","")) ->  | AK60: =IF(OR(G60="o",H60="o",J60="o",I61="o",I62="o",I63="o",I60="x"),"x",IF(OR(I60="o",AND(G60="x",H60="x",J60="x"),AND(I61="x",I62="x",I63="x")),"o","")) ->  | AL60: =IF(OR(G60="o",H60="o",I60="o",J61="o",J62="o",J63="o",J60="x"),"x",IF(OR(J60="o",AND(G60="x",H60="x",I60="x"),AND(J61="x",J62="x",J63="x")),"o","")) -> 
B61: 2e | P61: plus jeunes que les seconds. | AD61: 2e | AE61: =IF(OR(D61="o",E61="o",F61="o",C60="o",C62="o",C63="o",C61="x"),"x",IF(OR(C61="o",AND(D61="x",E61="x",F61="x"),AND(C60="x",C62="x",C63="x")),"o","")) ->  | AF61: =IF(OR(C61="o",E61="o",F61="o",D60="o",D62="o",D63="o",D61="x"),"x",IF(OR(D61="o",AND(C61="x",E61="x",F61="x"),AND(D60="x",D62="x",D63="x")),"o","")) ->  | AG61: =IF(OR(C61="o",D61="o",F61="o",E60="o",E62="o",E63="o",E61="x"),"x",IF(OR(E61="o",AND(C61="x",D61="x",F61="x"),AND(E60="x",E62="x",E63="x")),"o","")) ->  | AH61: =IF(OR(C61="o",D61="o",E61="o",F60="o",F62="o",F63="o",F61="x"),"x",IF(OR(F61="o",AND(C61="x",D61="x",E61="x"),AND(F60="x",F62="x",F63="x")),"o","")) ->  | AI61: =IF(OR(H61="o",I61="o",J61="o",G60="o",G62="o",G63="o",G61="x"),"x",IF(OR(G61="o",AND(H61="x",I61="x",J61="x"),AND(G60="x",G62="x",G63="x")),"o","")) ->  | AJ61: =IF(OR(G61="o",I61="o",J61="o",H60="o",H62="o",H63="o",H61="x"),"x",IF(OR(H61="o",AND(G61="x",I61="x",J61="x"),AND(H60="x",H62="x",H63="x")),"o","")) ->  | AK61: =IF(OR(G61="o",H61="o",J61="o",I60="o",I62="o",I63="o",I61="x"),"x",IF(OR(I61="o",AND(G61="x",H61="x",J61="x"),AND(I60="x",I62="x",I63="x")),"o","")) ->  | AL61: =IF(OR(G61="o",H61="o",I61="o",J60="o",J62="o",J63="o",J61="x"),"x",IF(OR(J61="o",AND(G61="x",H61="x",I61="x"),AND(J60="x",J62="x",J63="x")),"o","")) -> 
B62: 3e | P62: 4°/ Les lynx sont 3èmes avec leur fanion rouge et les lions ont | AD62: 3e | AE62: =IF(OR(D62="o",E62="o",F62="o",C60="o",C61="o",C63="o",C62="x"),"x",IF(OR(C62="o",AND(D62="x",E62="x",F62="x"),AND(C60="x",C61="x",C63="x")),"o","")) ->  | AF62: =IF(OR(C62="o",E62="o",F62="o",D60="o",D61="o",D63="o",D62="x"),"x",IF(OR(D62="o",AND(C62="x",E62="x",F62="x"),AND(D60="x",D61="x",D63="x")),"o","")) ->  | AG62: =IF(OR(C62="o",D62="o",F62="o",E60="o",E61="o",E63="o",E62="x"),"x",IF(OR(E62="o",AND(C62="x",D62="x",F62="x"),AND(E60="x",E61="x",E63="x")),"o","")) ->  | AH62: =IF(OR(C62="o",D62="o",E62="o",F60="o",F61="o",F63="o",F62="x"),"x",IF(OR(F62="o",AND(C62="x",D62="x",E62="x"),AND(F60="x",F61="x",F63="x")),"o","")) ->  | AI62: =IF(OR(H62="o",I62="o",J62="o",G60="o",G61="o",G63="o",G62="x"),"x",IF(OR(G62="o",AND(H62="x",I62="x",J62="x"),AND(G60="x",G61="x",G63="x")),"o","")) ->  | AJ62: =IF(OR(G62="o",I62="o",J62="o",H60="o",H61="o",H63="o",H62="x"),"x",IF(OR(H62="o",AND(G62="x",I62="x",J62="x"),AND(H60="x",H61="x",H63="x")),"o","")) ->  | AK62: =IF(OR(G62="o",H62="o",J62="o",I60="o",I61="o",I63="o",I62="x"),"x",IF(OR(I62="o",AND(G62="x",H62="x",J62="x"),AND(I60="x",I61="x",I63="x")),"o","")) ->  | AL62: =IF(OR(G62="o",H62="o",I62="o",J60="o",J61="o",J63="o",J62="x"),"x",IF(OR(J62="o",AND(G62="x",H62="x",I62="x"),AND(J60="x",J61="x",J63="x")),"o","")) -> 
B63: 4e | P63: 11 ans mais n'ont pas de fanion vert. | AD63: 4e | AE63: =IF(OR(D63="o",E63="o",F63="o",C60="o",C61="o",C62="o",C63="x"),"x",IF(OR(C63="o",AND(D63="x",E63="x",F63="x"),AND(C60="x",C61="x",C62="x")),"o","")) ->  | AF63: =IF(OR(C63="o",E63="o",F63="o",D60="o",D61="o",D62="o",D63="x"),"x",IF(OR(D63="o",AND(C63="x",E63="x",F63="x"),AND(D60="x",D61="x",D62="x")),"o","")) ->  | AG63: =IF(OR(C63="o",D63="o",F63="o",E60="o",E61="o",E62="o",E63="x"),"x",IF(OR(E63="o",AND(C63="x",D63="x",F63="x"),AND(E60="x",E61="x",E62="x")),"o","")) ->  | AH63: =IF(OR(C63="o",D63="o",E63="o",F60="o",F61="o",F62="o",F63="x"),"x",IF(OR(F63="o",AND(C63="x",D63="x",E63="x"),AND(F60="x",F61="x",F62="x")),"o","")) ->  | AI63: =IF(OR(H63="o",I63="o",J63="o",G60="o",G61="o",G62="o",G63="x"),"x",IF(OR(G63="o",AND(H63="x",I63="x",J63="x"),AND(G60="x",G61="x",G62="x")),"o","")) ->  | AJ63: =IF(OR(G63="o",I63="o",J63="o",H60="o",H61="o",H62="o",H63="x"),"x",IF(OR(H63="o",AND(G63="x",I63="x",J63="x"),AND(H60="x",H61="x",H62="x")),"o","")) ->  | AK63: =IF(OR(G63="o",H63="o",J63="o",I60="o",I61="o",I62="o",I63="x"),"x",IF(OR(I63="o",AND(G63="x",H63="x",J63="x"),AND(I60="x",I61="x",I62="x")),"o","")) ->  | AL63: =IF(OR(G63="o",H63="o",I63="o",J60="o",J61="o",J62="o",J63="x"),"x",IF(OR(J63="o",AND(G63="x",H63="x",I63="x"),AND(J60="x",J61="x",J62="x")),"o","")) -> 
A64: Fanion | B64: Bleu | AC64: =A64 -> Fanion | AD64: Bleu | AE64: =IF(OR(D64="o",E64="o",F64="o",C65="o",C66="o",C67="o",C64="x"),"x",IF(OR(C64="o",AND(D64="x",E64="x",F64="x"),AND(C65="x",C66="x",C67="x")),"o","")) ->  | AF64: =IF(OR(C64="o",E64="o",F64="o",D65="o",D66="o",D67="o",D64="x"),"x",IF(OR(D64="o",AND(C64="x",E64="x",F64="x"),AND(D65="x",D66="x",D67="x")),"o","")) ->  | AG64: =IF(OR(C64="o",D64="o",F64="o",E65="o",E66="o",E67="o",E64="x"),"x",IF(OR(E64="o",AND(C64="x",D64="x",F64="x"),AND(E65="x",E66="x",E67="x")),"o","")) ->  | AH64: =IF(OR(C64="o",D64="o",E64="o",F65="o",F66="o",F67="o",F64="x"),"x",IF(OR(F64="o",AND(C64="x",D64="x",E64="x"),AND(F65="x",F66="x",F67="x")),"o","")) -> 
B65: Vert | P65: Pour chaque équipe, donner le classement et l’âge des | AD65: Vert | AE65: =IF(OR(D65="o",E65="o",F65="o",C64="o",C66="o",C67="o",C65="x"),"x",IF(OR(C65="o",AND(D65="x",E65="x",F65="x"),AND(C64="x",C66="x",C67="x")),"o","")) ->  | AF65: =IF(OR(C65="o",E65="o",F65="o",D64="o",D66="o",D67="o",D65="x"),"x",IF(OR(D65="o",AND(C65="x",E65="x",F65="x"),AND(D64="x",D66="x",D67="x")),"o","")) ->  | AG65: =IF(OR(C65="o",D65="o",F65="o",E64="o",E66="o",E67="o",E65="x"),"x",IF(OR(E65="o",AND(C65="x",D65="x",F65="x"),AND(E64="x",E66="x",E67="x")),"o","")) ->  | AH65: =IF(OR(C65="o",D65="o",E65="o",F64="o",F66="o",F67="o",F65="x"),"x",IF(OR(F65="o",AND(C65="x",D65="x",E65="x"),AND(F64="x",F66="x",F67="x")),"o","")) -> 
B66: Rouge | P66: enfants. | AD66: Rouge | AE66: =IF(OR(D66="o",E66="o",F66="o",C64="o",C65="o",C67="o",C66="x"),"x",IF(OR(C66="o",AND(D66="x",E66="x",F66="x"),AND(C64="x",C65="x",C67="x")),"o","")) ->  | AF66: =IF(OR(C66="o",E66="o",F66="o",D64="o",D65="o",D67="o",D66="x"),"x",IF(OR(D66="o",AND(C66="x",E66="x",F66="x"),AND(D64="x",D65="x",D67="x")),"o","")) ->  | AG66: =IF(OR(C66="o",D66="o",F66="o",E64="o",E65="o",E67="o",E66="x"),"x",IF(OR(E66="o",AND(C66="x",D66="x",F66="x"),AND(E64="x",E65="x",E67="x")),"o","")) ->  | AH66: =IF(OR(C66="o",D66="o",E66="o",F64="o",F65="o",F67="o",F66="x"),"x",IF(OR(F66="o",AND(C66="x",D66="x",E66="x"),AND(F64="x",F65="x",F67="x")),"o","")) -> 
B67: Jaune | AD67: Jaune | AE67: =IF(OR(D67="o",E67="o",F67="o",C64="o",C65="o",C66="o",C67="x"),"x",IF(OR(C67="o",AND(D67="x",E67="x",F67="x"),AND(C64="x",C65="x",C66="x")),"o","")) ->  | AF67: =IF(OR(C67="o",E67="o",F67="o",D64="o",D65="o",D66="o",D67="x"),"x",IF(OR(D67="o",AND(C67="x",E67="x",F67="x"),AND(D64="x",D65="x",D66="x")),"o","")) ->  | AG67: =IF(OR(C67="o",D67="o",F67="o",E64="o",E65="o",E66="o",E67="x"),"x",IF(OR(E67="o",AND(C67="x",D67="x",F67="x"),AND(E64="x",E65="x",E66="x")),"o","")) ->  | AH67: =IF(OR(C67="o",D67="o",E67="o",F64="o",F65="o",F66="o",F67="x"),"x",IF(OR(F67="o",AND(C67="x",D67="x",E67="x"),AND(F64="x",F65="x",F66="x")),"o","")) -> 
B69: Réponses : | G69: =G54 -> Fanion | K69: =K54 -> Classement | Q69: =C54 -> Âge | U69: =G54 -> Fanion | Y69: =K54 -> Classement
B70: =B56 -> Loups | C70: =IF(C56="o",C55,IF(D56="o",D55,IF(E56="o",E55,IF(F56="o",F55,"")))) ->  | G70: =IF(G56="o",G55,IF(H56="o",H55,IF(I56="o",I55,IF(J56="o",J55,"")))) ->  | K70: =IF(K56="o",K55,IF(L56="o",L55,IF(M56="o",M55,IF(N56="o",N55,"")))) ->  | P70: =B56 -> Loups | Q70: 9 ans | U70: Vert | Y70: 4e
B71: =B57 -> Lynx | C71: =IF(C57="o",C55,IF(D57="o",D55,IF(E57="o",E55,IF(F57="o",F55,"")))) ->  | G71: =IF(G57="o",G55,IF(H57="o",H55,IF(I57="o",I55,IF(J57="o",J55,"")))) ->  | K71: =IF(K57="o",K55,IF(L57="o",L55,IF(M57="o",M55,IF(N57="o",N55,"")))) ->  | P71: =B57 -> Lynx | Q71: 8 ans | U71: Rouge | Y71: 3e
B72: =B58 -> Renards | C72: =IF(C58="o",C55,IF(D58="o",D55,IF(E58="o",E55,IF(F58="o",F55,"")))) ->  | G72: =IF(G58="o",G55,IF(H58="o",H55,IF(I58="o",I55,IF(J58="o",J55,"")))) ->  | K72: =IF(K58="o",K55,IF(L58="o",L55,IF(M58="o",M55,IF(N58="o",N55,"")))) ->  | P72: =B58 -> Renards | Q72: 10 ans | U72: Jaune | Y72: 1e
B73: =B59 -> Lions | C73: =IF(C59="o",C55,IF(D59="o",D55,IF(E59="o",E55,IF(F59="o",F55,"")))) ->  | G73: =IF(G59="o",G55,IF(H59="o",H55,IF(I59="o",I55,IF(J59="o",J55,"")))) ->  | K73: =IF(K59="o",K55,IF(L59="o",L55,IF(M59="o",M55,IF(N59="o",N55,"")))) ->  | P73: =B59 -> Lions | Q73: 11 ans | U73: Bleu | Y73: 2e
A76: XIV°/ Fashion mode :
A77: =INDIRECT("'Calculs 4 indices'!B"&A80) ->  | N77: =INDIRECT("'Calculs 4 indices'!M"&(A80+16)) -> 
A78: =INDIRECT("'Calculs 4 indices'!B"&(A80+26)) ->  | N78: =INDIRECT("'Calculs 4 indices'!M"&(A80+17)) -> 
C79: Casquette | G79: =A89 -> T-shirt | K79: =A85 -> Pantalon | AE79: =C79 -> Casquette | AI79: =G79 -> T-shirt | AM79: =K79 -> Pantalon
A80: =A55+52 -> 157 | C80: Blanche | D80: Jaune | E80: Rose | F80: Rouge | G80: =B89 -> Blanc | H80: =B90 -> Bleu | I80: =B91 -> Orange | J80: =B92 -> Rouge | K80: =B85 -> Bleu | L80: =B86 -> Rose | M80: =B87 -> Vert | N80: =B88 -> Blanc | P80: Lola, Lise, Nina et Inès se promènent. Leurs pantalons sont : blanc, bleu, rose et vert. Leurs t-shirts sont : blanc, bleu, orange et rouge. Et leurs casquettes sont : blanche, jaune, rose et rouge. | AE80: =C80 -> Blanche | AF80: =D80 -> Jaune | AG80: =E80 -> Rose | AH80: =F80 -> Rouge | AI80: =G80 -> Blanc | AJ80: =H80 -> Bleu | AK80: =I80 -> Orange | AL80: =J80 -> Rouge | AM80: =K80 -> Bleu | AN80: =L80 -> Rose | AO80: =M80 -> Vert | AP80: =N80 -> Blanc
A81: Prénom | B81: Lola | AC81: =A81 -> Prénom | AD81: =B81 -> Lola | AE81: =IF(OR(D81="o",E81="o",F81="o",C82="o",C83="o",C84="o",C81="x"),"x",IF(OR(C81="o",AND(D81="x",E81="x",F81="x"),AND(C82="x",C83="x",C84="x")),"o","")) ->  | AF81: =IF(OR(C81="o",E81="o",F81="o",D82="o",D83="o",D84="o",D81="x"),"x",IF(OR(D81="o",AND(C81="x",E81="x",F81="x"),AND(D82="x",D83="x",D84="x")),"o","")) ->  | AG81: =IF(OR(C81="o",D81="o",F81="o",E82="o",E83="o",E84="o",E81="x"),"x",IF(OR(E81="o",AND(C81="x",D81="x",F81="x"),AND(E82="x",E83="x",E84="x")),"o","")) ->  | AH81: =IF(OR(C81="o",D81="o",E81="o",F82="o",F83="o",F84="o",F81="x"),"x",IF(OR(F81="o",AND(C81="x",D81="x",E81="x"),AND(F82="x",F83="x",F84="x")),"o","")) ->  | AI81: =IF(OR(H81="o",I81="o",J81="o",G82="o",G83="o",G84="o",G81="x"),"x",IF(OR(G81="o",AND(H81="x",I81="x",J81="x"),AND(G82="x",G83="x",G84="x")),"o","")) ->  | AJ81: =IF(OR(G81="o",I81="o",J81="o",H82="o",H83="o",H84="o",H81="x"),"x",IF(OR(H81="o",AND(G81="x",I81="x",J81="x"),AND(H82="x",H83="x",H84="x")),"o","")) ->  | AK81: =IF(OR(G81="o",H81="o",J81="o",I82="o",I83="o",I84="o",I81="x"),"x",IF(OR(I81="o",AND(G81="x",H81="x",J81="x"),AND(I82="x",I83="x",I84="x")),"o","")) ->  | AL81: =IF(OR(G81="o",H81="o",I81="o",J82="o",J83="o",J84="o",J81="x"),"x",IF(OR(J81="o",AND(G81="x",H81="x",I81="x"),AND(J82="x",J83="x",J84="x")),"o","")) ->  | AM81: =IF(OR(L81="o",M81="o",N81="o",K82="o",K83="o",K84="o",K81="x"),"x",IF(OR(K81="o",AND(L81="x",M81="x",N81="x"),AND(K82="x",K83="x",K84="x")),"o","")) ->  | AN81: =IF(OR(K81="o",M81="o",N81="o",L82="o",L83="o",L84="o",L81="x"),"x",IF(OR(L81="o",AND(K81="x",M81="x",N81="x"),AND(L82="x",L83="x",L84="x")),"o","")) ->  | AO81: =IF(OR(K81="o",L81="o",N81="o",M82="o",M83="o",M84="o",M81="x"),"x",IF(OR(M81="o",AND(K81="x",L81="x",N81="x"),AND(M82="x",M83="x",M84="x")),"o","")) ->  | AP81: =IF(OR(K81="o",L81="o",M81="o",N82="o",N83="o",N84="o",N81="x"),"x",IF(OR(N81="o",AND(K81="x",L81="x",M81="x"),AND(N82="x",N83="x",N84="x")),"o","")) -> 
B82: Lise | P82: 1°/ Lola a un t-shirt et une casquette de la même couleur. | AD82: =B82 -> Lise | AE82: =IF(OR(D82="o",E82="o",F82="o",C81="o",C83="o",C84="o",C82="x"),"x",IF(OR(C82="o",AND(D82="x",E82="x",F82="x"),AND(C81="x",C83="x",C84="x")),"o","")) ->  | AF82: =IF(OR(C82="o",E82="o",F82="o",D81="o",D83="o",D84="o",D82="x"),"x",IF(OR(D82="o",AND(C82="x",E82="x",F82="x"),AND(D81="x",D83="x",D84="x")),"o","")) ->  | AG82: =IF(OR(C82="o",D82="o",F82="o",E81="o",E83="o",E84="o",E82="x"),"x",IF(OR(E82="o",AND(C82="x",D82="x",F82="x"),AND(E81="x",E83="x",E84="x")),"o","")) ->  | AH82: =IF(OR(C82="o",D82="o",E82="o",F81="o",F83="o",F84="o",F82="x"),"x",IF(OR(F82="o",AND(C82="x",D82="x",E82="x"),AND(F81="x",F83="x",F84="x")),"o","")) ->  | AI82: =IF(OR(H82="o",I82="o",J82="o",G81="o",G83="o",G84="o",G82="x"),"x",IF(OR(G82="o",AND(H82="x",I82="x",J82="x"),AND(G81="x",G83="x",G84="x")),"o","")) ->  | AJ82: =IF(OR(G82="o",I82="o",J82="o",H81="o",H83="o",H84="o",H82="x"),"x",IF(OR(H82="o",AND(G82="x",I82="x",J82="x"),AND(H81="x",H83="x",H84="x")),"o","")) ->  | AK82: =IF(OR(G82="o",H82="o",J82="o",I81="o",I83="o",I84="o",I82="x"),"x",IF(OR(I82="o",AND(G82="x",H82="x",J82="x"),AND(I81="x",I83="x",I84="x")),"o","")) ->  | AL82: =IF(OR(G82="o",H82="o",I82="o",J81="o",J83="o",J84="o",J82="x"),"x",IF(OR(J82="o",AND(G82="x",H82="x",I82="x"),AND(J81="x",J83="x",J84="x")),"o","")) ->  | AM82: =IF(OR(L82="o",M82="o",N82="o",K81="o",K83="o",K84="o",K82="x"),"x",IF(OR(K82="o",AND(L82="x",M82="x",N82="x"),AND(K81="x",K83="x",K84="x")),"o","")) ->  | AN82: =IF(OR(K82="o",M82="o",N82="o",L81="o",L83="o",L84="o",L82="x"),"x",IF(OR(L82="o",AND(K82="x",M82="x",N82="x"),AND(L81="x",L83="x",L84="x")),"o","")) ->  | AO82: =IF(OR(K82="o",L82="o",N82="o",M81="o",M83="o",M84="o",M82="x"),"x",IF(OR(M82="o",AND(K82="x",L82="x",N82="x"),AND(M81="x",M83="x",M84="x")),"o","")) ->  | AP82: =IF(OR(K82="o",L82="o",M82="o",N81="o",N83="o",N84="o",N82="x"),"x",IF(OR(N82="o",AND(K82="x",L82="x",M82="x"),AND(N81="x",N83="x",N84="x")),"o","")) -> 
B83: Ninon | P83: 2°/ Le pantalon de Ninon est de la même couleur que le | AD83: Ninon | AE83: =IF(OR(D83="o",E83="o",F83="o",C81="o",C82="o",C84="o",C83="x"),"x",IF(OR(C83="o",AND(D83="x",E83="x",F83="x"),AND(C81="x",C82="x",C84="x")),"o","")) ->  | AF83: =IF(OR(C83="o",E83="o",F83="o",D81="o",D82="o",D84="o",D83="x"),"x",IF(OR(D83="o",AND(C83="x",E83="x",F83="x"),AND(D81="x",D82="x",D84="x")),"o","")) ->  | AG83: =IF(OR(C83="o",D83="o",F83="o",E81="o",E82="o",E84="o",E83="x"),"x",IF(OR(E83="o",AND(C83="x",D83="x",F83="x"),AND(E81="x",E82="x",E84="x")),"o","")) ->  | AH83: =IF(OR(C83="o",D83="o",E83="o",F81="o",F82="o",F84="o",F83="x"),"x",IF(OR(F83="o",AND(C83="x",D83="x",E83="x"),AND(F81="x",F82="x",F84="x")),"o","")) ->  | AI83: =IF(OR(H83="o",I83="o",J83="o",G81="o",G82="o",G84="o",G83="x"),"x",IF(OR(G83="o",AND(H83="x",I83="x",J83="x"),AND(G81="x",G82="x",G84="x")),"o","")) ->  | AJ83: =IF(OR(G83="o",I83="o",J83="o",H81="o",H82="o",H84="o",H83="x"),"x",IF(OR(H83="o",AND(G83="x",I83="x",J83="x"),AND(H81="x",H82="x",H84="x")),"o","")) ->  | AK83: =IF(OR(G83="o",H83="o",J83="o",I81="o",I82="o",I84="o",I83="x"),"x",IF(OR(I83="o",AND(G83="x",H83="x",J83="x"),AND(I81="x",I82="x",I84="x")),"o","")) ->  | AL83: =IF(OR(G83="o",H83="o",I83="o",J81="o",J82="o",J84="o",J83="x"),"x",IF(OR(J83="o",AND(G83="x",H83="x",I83="x"),AND(J81="x",J82="x",J84="x")),"o","")) ->  | AM83: =IF(OR(L83="o",M83="o",N83="o",K81="o",K82="o",K84="o",K83="x"),"x",IF(OR(K83="o",AND(L83="x",M83="x",N83="x"),AND(K81="x",K82="x",K84="x")),"o","")) ->  | AN83: =IF(OR(K83="o",M83="o",N83="o",L81="o",L82="o",L84="o",L83="x"),"x",IF(OR(L83="o",AND(K83="x",M83="x",N83="x"),AND(L81="x",L82="x",L84="x")),"o","")) ->  | AO83: =IF(OR(K83="o",L83="o",N83="o",M81="o",M82="o",M84="o",M83="x"),"x",IF(OR(M83="o",AND(K83="x",L83="x",N83="x"),AND(M81="x",M82="x",M84="x")),"o","")) ->  | AP83: =IF(OR(K83="o",L83="o",M83="o",N81="o",N82="o",N84="o",N83="x"),"x",IF(OR(N83="o",AND(K83="x",L83="x",M83="x"),AND(N81="x",N82="x",N84="x")),"o","")) -> 
B84: Inès | P84: t-shirt d’Inès. | AD84: Inès | AE84: =IF(OR(D84="o",E84="o",F84="o",C81="o",C82="o",C83="o",C84="x"),"x",IF(OR(C84="o",AND(D84="x",E84="x",F84="x"),AND(C81="x",C82="x",C83="x")),"o","")) ->  | AF84: =IF(OR(C84="o",E84="o",F84="o",D81="o",D82="o",D83="o",D84="x"),"x",IF(OR(D84="o",AND(C84="x",E84="x",F84="x"),AND(D81="x",D82="x",D83="x")),"o","")) ->  | AG84: =IF(OR(C84="o",D84="o",F84="o",E81="o",E82="o",E83="o",E84="x"),"x",IF(OR(E84="o",AND(C84="x",D84="x",F84="x"),AND(E81="x",E82="x",E83="x")),"o","")) ->  | AH84: =IF(OR(C84="o",D84="o",E84="o",F81="o",F82="o",F83="o",F84="x"),"x",IF(OR(F84="o",AND(C84="x",D84="x",E84="x"),AND(F81="x",F82="x",F83="x")),"o","")) ->  | AI84: =IF(OR(H84="o",I84="o",J84="o",G81="o",G82="o",G83="o",G84="x"),"x",IF(OR(G84="o",AND(H84="x",I84="x",J84="x"),AND(G81="x",G82="x",G83="x")),"o","")) ->  | AJ84: =IF(OR(G84="o",I84="o",J84="o",H81="o",H82="o",H83="o",H84="x"),"x",IF(OR(H84="o",AND(G84="x",I84="x",J84="x"),AND(H81="x",H82="x",H83="x")),"o","")) ->  | AK84: =IF(OR(G84="o",H84="o",J84="o",I81="o",I82="o",I83="o",I84="x"),"x",IF(OR(I84="o",AND(G84="x",H84="x",J84="x"),AND(I81="x",I82="x",I83="x")),"o","")) ->  | AL84: =IF(OR(G84="o",H84="o",I84="o",J81="o",J82="o",J83="o",J84="x"),"x",IF(OR(J84="o",AND(G84="x",H84="x",I84="x"),AND(J81="x",J82="x",J83="x")),"o","")) ->  | AM84: =IF(OR(L84="o",M84="o",N84="o",K81="o",K82="o",K83="o",K84="x"),"x",IF(OR(K84="o",AND(L84="x",M84="x",N84="x"),AND(K81="x",K82="x",K83="x")),"o","")) ->  | AN84: =IF(OR(K84="o",M84="o",N84="o",L81="o",L82="o",L83="o",L84="x"),"x",IF(OR(L84="o",AND(K84="x",M84="x",N84="x"),AND(L81="x",L82="x",L83="x")),"o","")) ->  | AO84: =IF(OR(K84="o",L84="o",N84="o",M81="o",M82="o",M83="o",M84="x"),"x",IF(OR(M84="o",AND(K84="x",L84="x",N84="x"),AND(M81="x",M82="x",M83="x")),"o","")) ->  | AP84: =IF(OR(K84="o",L84="o",M84="o",N81="o",N82="o",N83="o",N84="x"),"x",IF(OR(N84="o",AND(K84="x",L84="x",M84="x"),AND(N81="x",N82="x",N83="x")),"o","")) -> 
A85: Pantalon | B85: Bleu | P85: 3°/ La fillette qui porte un pantalon vert a mis une | AC85: =A85 -> Pantalon | AD85: Bleu | AE85: =IF(OR(D85="o",E85="o",F85="o",C86="o",C87="o",C88="o",C85="x"),"x",IF(OR(C85="o",AND(D85="x",E85="x",F85="x"),AND(C86="x",C87="x",C88="x")),"o","")) ->  | AF85: =IF(OR(C85="o",E85="o",F85="o",D86="o",D87="o",D88="o",D85="x"),"x",IF(OR(D85="o",AND(C85="x",E85="x",F85="x"),AND(D86="x",D87="x",D88="x")),"o","")) ->  | AG85: =IF(OR(C85="o",D85="o",F85="o",E86="o",E87="o",E88="o",E85="x"),"x",IF(OR(E85="o",AND(C85="x",D85="x",F85="x"),AND(E86="x",E87="x",E88="x")),"o","")) ->  | AH85: =IF(OR(C85="o",D85="o",E85="o",F86="o",F87="o",F88="o",F85="x"),"x",IF(OR(F85="o",AND(C85="x",D85="x",E85="x"),AND(F86="x",F87="x",F88="x")),"o","")) ->  | AI85: =IF(OR(H85="o",I85="o",J85="o",G86="o",G87="o",G88="o",G85="x"),"x",IF(OR(G85="o",AND(H85="x",I85="x",J85="x"),AND(G86="x",G87="x",G88="x")),"o","")) ->  | AJ85: =IF(OR(G85="o",I85="o",J85="o",H86="o",H87="o",H88="o",H85="x"),"x",IF(OR(H85="o",AND(G85="x",I85="x",J85="x"),AND(H86="x",H87="x",H88="x")),"o","")) ->  | AK85: =IF(OR(G85="o",H85="o",J85="o",I86="o",I87="o",I88="o",I85="x"),"x",IF(OR(I85="o",AND(G85="x",H85="x",J85="x"),AND(I86="x",I87="x",I88="x")),"o","")) ->  | AL85: =IF(OR(G85="o",H85="o",I85="o",J86="o",J87="o",J88="o",J85="x"),"x",IF(OR(J85="o",AND(G85="x",H85="x",I85="x"),AND(J86="x",J87="x",J88="x")),"o","")) -> 
B86: Rose | P86: casquette blanche. | AD86: Rose | AE86: =IF(OR(D86="o",E86="o",F86="o",C85="o",C87="o",C88="o",C86="x"),"x",IF(OR(C86="o",AND(D86="x",E86="x",F86="x"),AND(C85="x",C87="x",C88="x")),"o","")) ->  | AF86: =IF(OR(C86="o",E86="o",F86="o",D85="o",D87="o",D88="o",D86="x"),"x",IF(OR(D86="o",AND(C86="x",E86="x",F86="x"),AND(D85="x",D87="x",D88="x")),"o","")) ->  | AG86: =IF(OR(C86="o",D86="o",F86="o",E85="o",E87="o",E88="o",E86="x"),"x",IF(OR(E86="o",AND(C86="x",D86="x",F86="x"),AND(E85="x",E87="x",E88="x")),"o","")) ->  | AH86: =IF(OR(C86="o",D86="o",E86="o",F85="o",F87="o",F88="o",F86="x"),"x",IF(OR(F86="o",AND(C86="x",D86="x",E86="x"),AND(F85="x",F87="x",F88="x")),"o","")) ->  | AI86: =IF(OR(H86="o",I86="o",J86="o",G85="o",G87="o",G88="o",G86="x"),"x",IF(OR(G86="o",AND(H86="x",I86="x",J86="x"),AND(G85="x",G87="x",G88="x")),"o","")) ->  | AJ86: =IF(OR(G86="o",I86="o",J86="o",H85="o",H87="o",H88="o",H86="x"),"x",IF(OR(H86="o",AND(G86="x",I86="x",J86="x"),AND(H85="x",H87="x",H88="x")),"o","")) ->  | AK86: =IF(OR(G86="o",H86="o",J86="o",I85="o",I87="o",I88="o",I86="x"),"x",IF(OR(I86="o",AND(G86="x",H86="x",J86="x"),AND(I85="x",I87="x",I88="x")),"o","")) ->  | AL86: =IF(OR(G86="o",H86="o",I86="o",J85="o",J87="o",J88="o",J86="x"),"x",IF(OR(J86="o",AND(G86="x",H86="x",I86="x"),AND(J85="x",J87="x",J88="x")),"o","")) -> 
B87: Vert | P87: 4°/ Lise ne met jamais de rose ni de jaune. Elle porte une | AD87: Vert | AE87: =IF(OR(D87="o",E87="o",F87="o",C85="o",C86="o",C88="o",C87="x"),"x",IF(OR(C87="o",AND(D87="x",E87="x",F87="x"),AND(C85="x",C86="x",C88="x")),"o","")) ->  | AF87: =IF(OR(C87="o",E87="o",F87="o",D85="o",D86="o",D88="o",D87="x"),"x",IF(OR(D87="o",AND(C87="x",E87="x",F87="x"),AND(D85="x",D86="x",D88="x")),"o","")) ->  | AG87: =IF(OR(C87="o",D87="o",F87="o",E85="o",E86="o",E88="o",E87="x"),"x",IF(OR(E87="o",AND(C87="x",D87="x",F87="x"),AND(E85="x",E86="x",E88="x")),"o","")) ->  | AH87: =IF(OR(C87="o",D87="o",E87="o",F85="o",F86="o",F88="o",F87="x"),"x",IF(OR(F87="o",AND(C87="x",D87="x",E87="x"),AND(F85="x",F86="x",F88="x")),"o","")) ->  | AI87: =IF(OR(H87="o",I87="o",J87="o",G85="o",G86="o",G88="o",G87="x"),"x",IF(OR(G87="o",AND(H87="x",I87="x",J87="x"),AND(G85="x",G86="x",G88="x")),"o","")) ->  | AJ87: =IF(OR(G87="o",I87="o",J87="o",H85="o",H86="o",H88="o",H87="x"),"x",IF(OR(H87="o",AND(G87="x",I87="x",J87="x"),AND(H85="x",H86="x",H88="x")),"o","")) ->  | AK87: =IF(OR(G87="o",H87="o",J87="o",I85="o",I86="o",I88="o",I87="x"),"x",IF(OR(I87="o",AND(G87="x",H87="x",J87="x"),AND(I85="x",I86="x",I88="x")),"o","")) ->  | AL87: =IF(OR(G87="o",H87="o",I87="o",J85="o",J86="o",J88="o",J87="x"),"x",IF(OR(J87="o",AND(G87="x",H87="x",I87="x"),AND(J85="x",J86="x",J88="x")),"o","")) -> 
B88: Blanc | P88: casquette de la même couleur que le pantalon d’Inès. | AD88: Blanc | AE88: =IF(OR(D88="o",E88="o",F88="o",C85="o",C86="o",C87="o",C88="x"),"x",IF(OR(C88="o",AND(D88="x",E88="x",F88="x"),AND(C85="x",C86="x",C87="x")),"o","")) ->  | AF88: =IF(OR(C88="o",E88="o",F88="o",D85="o",D86="o",D87="o",D88="x"),"x",IF(OR(D88="o",AND(C88="x",E88="x",F88="x"),AND(D85="x",D86="x",D87="x")),"o","")) ->  | AG88: =IF(OR(C88="o",D88="o",F88="o",E85="o",E86="o",E87="o",E88="x"),"x",IF(OR(E88="o",AND(C88="x",D88="x",F88="x"),AND(E85="x",E86="x",E87="x")),"o","")) ->  | AH88: =IF(OR(C88="o",D88="o",E88="o",F85="o",F86="o",F87="o",F88="x"),"x",IF(OR(F88="o",AND(C88="x",D88="x",E88="x"),AND(F85="x",F86="x",F87="x")),"o","")) ->  | AI88: =IF(OR(H88="o",I88="o",J88="o",G85="o",G86="o",G87="o",G88="x"),"x",IF(OR(G88="o",AND(H88="x",I88="x",J88="x"),AND(G85="x",G86="x",G87="x")),"o","")) ->  | AJ88: =IF(OR(G88="o",I88="o",J88="o",H85="o",H86="o",H87="o",H88="x"),"x",IF(OR(H88="o",AND(G88="x",I88="x",J88="x"),AND(H85="x",H86="x",H87="x")),"o","")) ->  | AK88: =IF(OR(G88="o",H88="o",J88="o",I85="o",I86="o",I87="o",I88="x"),"x",IF(OR(I88="o",AND(G88="x",H88="x",J88="x"),AND(I85="x",I86="x",I87="x")),"o","")) ->  | AL88: =IF(OR(G88="o",H88="o",I88="o",J85="o",J86="o",J87="o",J88="x"),"x",IF(OR(J88="o",AND(G88="x",H88="x",I88="x"),AND(J85="x",J86="x",J87="x")),"o","")) -> 
A89: T-shirt | B89: Blanc | P89: 5°/ Celle qui a mis un pantalon bleu ne porte pas de t-shirt | AC89: =A89 -> T-shirt | AD89: Blanc | AE89: =IF(OR(D89="o",E89="o",F89="o",C90="o",C91="o",C92="o",C89="x"),"x",IF(OR(C89="o",AND(D89="x",E89="x",F89="x"),AND(C90="x",C91="x",C92="x")),"o","")) ->  | AF89: =IF(OR(C89="o",E89="o",F89="o",D90="o",D91="o",D92="o",D89="x"),"x",IF(OR(D89="o",AND(C89="x",E89="x",F89="x"),AND(D90="x",D91="x",D92="x")),"o","")) ->  | AG89: =IF(OR(C89="o",D89="o",F89="o",E90="o",E91="o",E92="o",E89="x"),"x",IF(OR(E89="o",AND(C89="x",D89="x",F89="x"),AND(E90="x",E91="x",E92="x")),"o","")) ->  | AH89: =IF(OR(C89="o",D89="o",E89="o",F90="o",F91="o",F92="o",F89="x"),"x",IF(OR(F89="o",AND(C89="x",D89="x",E89="x"),AND(F90="x",F91="x",F92="x")),"o","")) -> 
B90: Bleu | H90: =IF(AND(C95=Q95,G95=U95,K95=Y95,C96=Q96,G96=U96,K96=Y96,C97=Q97,G97=U97,K97=Y97,C98=Q98,G98=U98,K98=Y98),"BRAVO !!","") ->  | P90: orange ni de casquette jaune. | AD90: Bleu | AE90: =IF(OR(D90="o",E90="o",F90="o",C89="o",C91="o",C92="o",C90="x"),"x",IF(OR(C90="o",AND(D90="x",E90="x",F90="x"),AND(C89="x",C91="x",C92="x")),"o","")) ->  | AF90: =IF(OR(C90="o",E90="o",F90="o",D89="o",D91="o",D92="o",D90="x"),"x",IF(OR(D90="o",AND(C90="x",E90="x",F90="x"),AND(D89="x",D91="x",D92="x")),"o","")) ->  | AG90: =IF(OR(C90="o",D90="o",F90="o",E89="o",E91="o",E92="o",E90="x"),"x",IF(OR(E90="o",AND(C90="x",D90="x",F90="x"),AND(E89="x",E91="x",E92="x")),"o","")) ->  | AH90: =IF(OR(C90="o",D90="o",E90="o",F89="o",F91="o",F92="o",F90="x"),"x",IF(OR(F90="o",AND(C90="x",D90="x",E90="x"),AND(F89="x",F91="x",F92="x")),"o","")) -> 
B91: Orange | P91: Donne les couleurs des casquettes, pantalons et t-shirts. | AD91: Orange | AE91: =IF(OR(D91="o",E91="o",F91="o",C89="o",C90="o",C92="o",C91="x"),"x",IF(OR(C91="o",AND(D91="x",E91="x",F91="x"),AND(C89="x",C90="x",C92="x")),"o","")) ->  | AF91: =IF(OR(C91="o",E91="o",F91="o",D89="o",D90="o",D92="o",D91="x"),"x",IF(OR(D91="o",AND(C91="x",E91="x",F91="x"),AND(D89="x",D90="x",D92="x")),"o","")) ->  | AG91: =IF(OR(C91="o",D91="o",F91="o",E89="o",E90="o",E92="o",E91="x"),"x",IF(OR(E91="o",AND(C91="x",D91="x",F91="x"),AND(E89="x",E90="x",E92="x")),"o","")) ->  | AH91: =IF(OR(C91="o",D91="o",E91="o",F89="o",F90="o",F92="o",F91="x"),"x",IF(OR(F91="o",AND(C91="x",D91="x",E91="x"),AND(F89="x",F90="x",F92="x")),"o","")) -> 
B92: Rouge | AD92: Rouge | AE92: =IF(OR(D92="o",E92="o",F92="o",C89="o",C90="o",C91="o",C92="x"),"x",IF(OR(C92="o",AND(D92="x",E92="x",F92="x"),AND(C89="x",C90="x",C91="x")),"o","")) ->  | AF92: =IF(OR(C92="o",E92="o",F92="o",D89="o",D90="o",D91="o",D92="x"),"x",IF(OR(D92="o",AND(C92="x",E92="x",F92="x"),AND(D89="x",D90="x",D91="x")),"o","")) ->  | AG92: =IF(OR(C92="o",D92="o",F92="o",E89="o",E90="o",E91="o",E92="x"),"x",IF(OR(E92="o",AND(C92="x",D92="x",F92="x"),AND(E89="x",E90="x",E91="x")),"o","")) ->  | AH92: =IF(OR(C92="o",D92="o",E92="o",F89="o",F90="o",F91="o",F92="x"),"x",IF(OR(F92="o",AND(C92="x",D92="x",E92="x"),AND(F89="x",F90="x",F91="x")),"o","")) -> 
B94: Réponses : | C94: =C79 -> Casquette | G94: =G79 -> T-shirt | K94: =K79 -> Pantalon | Q94: =C79 -> Casquette | U94: =G79 -> T-shirt | Y94: =K79 -> Pantalon
B95: =B81 -> Lola | C95: =IF(C81="o",C80,IF(D81="o",D80,IF(E81="o",E80,IF(F81="o",F80,"")))) ->  | G95: =IF(G81="o",G80,IF(H81="o",H80,IF(I81="o",I80,IF(J81="o",J80,"")))) ->  | K95: =IF(K81="o",K80,IF(L81="o",L80,IF(M81="o",M80,IF(N81="o",N80,"")))) ->  | P95: =B81 -> Lola | Q95: Rouge | U95: Rouge | Y95: Rose
B96: =B82 -> Lise | C96: =IF(C82="o",C80,IF(D82="o",D80,IF(E82="o",E80,IF(F82="o",F80,"")))) ->  | G96: =IF(G82="o",G80,IF(H82="o",H80,IF(I82="o",I80,IF(J82="o",J80,"")))) ->  | K96: =IF(K82="o",K80,IF(L82="o",L80,IF(M82="o",M80,IF(N82="o",N80,"")))) ->  | P96: =B82 -> Lise | Q96: Blanche | U96: Orange | Y96: Vert
B97: =B83 -> Ninon | C97: =IF(C83="o",C80,IF(D83="o",D80,IF(E83="o",E80,IF(F83="o",F80,"")))) ->  | G97: =IF(G83="o",G80,IF(H83="o",H80,IF(I83="o",I80,IF(J83="o",J80,"")))) ->  | K97: =IF(K83="o",K80,IF(L83="o",L80,IF(M83="o",M80,IF(N83="o",N80,"")))) ->  | P97: =B83 -> Ninon | Q97: Rose | U97: Blanc | Y97: Bleu
B98: =B84 -> Inès | C98: =IF(C84="o",C80,IF(D84="o",D80,IF(E84="o",E80,IF(F84="o",F80,"")))) ->  | G98: =IF(G84="o",G80,IF(H84="o",H80,IF(I84="o",I80,IF(J84="o",J80,"")))) ->  | K98: =IF(K84="o",K80,IF(L84="o",L80,IF(M84="o",M80,IF(N84="o",N80,"")))) ->  | P98: =B84 -> Inès | Q98: Jaune | U98: Bleu | Y98: Blanc
A101: XV°/ Divisibles :
A102: =INDIRECT("'Calculs 4 indices'!B"&A105) ->  | N102: =INDIRECT("'Calculs 4 indices'!M"&(A105+16)) -> 
A103: =INDIRECT("'Calculs 4 indices'!B"&(A105+26)) ->  | N103: =INDIRECT("'Calculs 4 indices'!M"&(A105+17)) -> 
C104: Classement | G104: =A114 -> Diviseur | K104: =A110 -> Unité | AE104: =C104 -> Classement | AI104: =G104 -> Diviseur | AM104: =K104 -> Unité
A105: =A80+52 -> 209 | C105: 1e | D105: 2e | E105: 3e | F105: 4e | G105: =B114 -> 3 | H105: =B115 -> 7 | I105: =B116 -> 11 | J105: =B117 -> 13 | K105: =B110 -> 2 | L105: =B111 -> 5 | M105: =B112 -> 6 | N105: =B113 -> 8 | P105: Retrouvez les 4 entiers naturels A, B, C et D qui sont compris entre 0 et 60 en déterminant le diviseur et le chiffre des unités de chacun d'eux ainsi que leur rang si on les range du plus petit au plus grand. | AE105: =C105 -> 1e | AF105: =D105 -> 2e | AG105: =E105 -> 3e | AH105: =F105 -> 4e | AI105: =G105 -> 3 | AJ105: =H105 -> 7 | AK105: =I105 -> 11 | AL105: =J105 -> 13 | AM105: =K105 -> 2 | AN105: =L105 -> 5 | AO105: =M105 -> 6 | AP105: =N105 -> 8
A106: Entier | B106: A | AC106: =A106 -> Entier | AD106: =B106 -> A | AE106: =IF(OR(D106="o",E106="o",F106="o",C107="o",C108="o",C109="o",C106="x"),"x",IF(OR(C106="o",AND(D106="x",E106="x",F106="x"),AND(C107="x",C108="x",C109="x")),"o","")) ->  | AF106: =IF(OR(C106="o",E106="o",F106="o",D107="o",D108="o",D109="o",D106="x"),"x",IF(OR(D106="o",AND(C106="x",E106="x",F106="x"),AND(D107="x",D108="x",D109="x")),"o","")) ->  | AG106: =IF(OR(C106="o",D106="o",F106="o",E107="o",E108="o",E109="o",E106="x"),"x",IF(OR(E106="o",AND(C106="x",D106="x",F106="x"),AND(E107="x",E108="x",E109="x")),"o","")) ->  | AH106: =IF(OR(C106="o",D106="o",E106="o",F107="o",F108="o",F109="o",F106="x"),"x",IF(OR(F106="o",AND(C106="x",D106="x",E106="x"),AND(F107="x",F108="x",F109="x")),"o","")) ->  | AI106: =IF(OR(H106="o",I106="o",J106="o",G107="o",G108="o",G109="o",G106="x"),"x",IF(OR(G106="o",AND(H106="x",I106="x",J106="x"),AND(G107="x",G108="x",G109="x")),"o","")) ->  | AJ106: =IF(OR(G106="o",I106="o",J106="o",H107="o",H108="o",H109="o",H106="x"),"x",IF(OR(H106="o",AND(G106="x",I106="x",J106="x"),AND(H107="x",H108="x",H109="x")),"o","")) ->  | AK106: =IF(OR(G106="o",H106="o",J106="o",I107="o",I108="o",I109="o",I106="x"),"x",IF(OR(I106="o",AND(G106="x",H106="x",J106="x"),AND(I107="x",I108="x",I109="x")),"o","")) ->  | AL106: =IF(OR(G106="o",H106="o",I106="o",J107="o",J108="o",J109="o",J106="x"),"x",IF(OR(J106="o",AND(G106="x",H106="x",I106="x"),AND(J107="x",J108="x",J109="x")),"o","")) ->  | AM106: =IF(OR(L106="o",M106="o",N106="o",K107="o",K108="o",K109="o",K106="x"),"x",IF(OR(K106="o",AND(L106="x",M106="x",N106="x"),AND(K107="x",K108="x",K109="x")),"o","")) ->  | AN106: =IF(OR(K106="o",M106="o",N106="o",L107="o",L108="o",L109="o",L106="x"),"x",IF(OR(L106="o",AND(K106="x",M106="x",N106="x"),AND(L107="x",L108="x",L109="x")),"o","")) ->  | AO106: =IF(OR(K106="o",L106="o",N106="o",M107="o",M108="o",M109="o",M106="x"),"x",IF(OR(M106="o",AND(K106="x",L106="x",N106="x"),AND(M107="x",M108="x",M109="x")),"o","")) ->  | AP106: =IF(OR(K106="o",L106="o",M106="o",N107="o",N108="o",N109="o",N106="x"),"x",IF(OR(N106="o",AND(K106="x",L106="x",M106="x"),AND(N107="x",N108="x",N109="x")),"o","")) -> 
B107: B | P107: 1°/ A est multiple de 7, se termine par un chiffre plus | AD107: =B107 -> B | AE107: =IF(OR(D107="o",E107="o",F107="o",C106="o",C108="o",C109="o",C107="x"),"x",IF(OR(C107="o",AND(D107="x",E107="x",F107="x"),AND(C106="x",C108="x",C109="x")),"o","")) ->  | AF107: =IF(OR(C107="o",E107="o",F107="o",D106="o",D108="o",D109="o",D107="x"),"x",IF(OR(D107="o",AND(C107="x",E107="x",F107="x"),AND(D106="x",D108="x",D109="x")),"o","")) ->  | AG107: =IF(OR(C107="o",D107="o",F107="o",E106="o",E108="o",E109="o",E107="x"),"x",IF(OR(E107="o",AND(C107="x",D107="x",F107="x"),AND(E106="x",E108="x",E109="x")),"o","")) ->  | AH107: =IF(OR(C107="o",D107="o",E107="o",F106="o",F108="o",F109="o",F107="x"),"x",IF(OR(F107="o",AND(C107="x",D107="x",E107="x"),AND(F106="x",F108="x",F109="x")),"o","")) ->  | AI107: =IF(OR(H107="o",I107="o",J107="o",G106="o",G108="o",G109="o",G107="x"),"x",IF(OR(G107="o",AND(H107="x",I107="x",J107="x"),AND(G106="x",G108="x",G109="x")),"o","")) ->  | AJ107: =IF(OR(G107="o",I107="o",J107="o",H106="o",H108="o",H109="o",H107="x"),"x",IF(OR(H107="o",AND(G107="x",I107="x",J107="x"),AND(H106="x",H108="x",H109="x")),"o","")) ->  | AK107: =IF(OR(G107="o",H107="o",J107="o",I106="o",I108="o",I109="o",I107="x"),"x",IF(OR(I107="o",AND(G107="x",H107="x",J107="x"),AND(I106="x",I108="x",I109="x")),"o","")) ->  | AL107: =IF(OR(G107="o",H107="o",I107="o",J106="o",J108="o",J109="o",J107="x"),"x",IF(OR(J107="o",AND(G107="x",H107="x",I107="x"),AND(J106="x",J108="x",J109="x")),"o","")) ->  | AM107: =IF(OR(L107="o",M107="o",N107="o",K106="o",K108="o",K109="o",K107="x"),"x",IF(OR(K107="o",AND(L107="x",M107="x",N107="x"),AND(K106="x",K108="x",K109="x")),"o","")) ->  | AN107: =IF(OR(K107="o",M107="o",N107="o",L106="o",L108="o",L109="o",L107="x"),"x",IF(OR(L107="o",AND(K107="x",M107="x",N107="x"),AND(L106="x",L108="x",L109="x")),"o","")) ->  | AO107: =IF(OR(K107="o",L107="o",N107="o",M106="o",M108="o",M109="o",M107="x"),"x",IF(OR(M107="o",AND(K107="x",L107="x",N107="x"),AND(M106="x",M108="x",M109="x")),"o","")) ->  | AP107: =IF(OR(K107="o",L107="o",M107="o",N106="o",N108="o",N109="o",N107="x"),"x",IF(OR(N107="o",AND(K107="x",L107="x",M107="x"),AND(N106="x",N108="x",N109="x")),"o","")) -> 
B108: C | P108: grand que 5, mais il n'est ni au 2ème ni au 4 ème rang. | AD108: C | AE108: =IF(OR(D108="o",E108="o",F108="o",C106="o",C107="o",C109="o",C108="x"),"x",IF(OR(C108="o",AND(D108="x",E108="x",F108="x"),AND(C106="x",C107="x",C109="x")),"o","")) ->  | AF108: =IF(OR(C108="o",E108="o",F108="o",D106="o",D107="o",D109="o",D108="x"),"x",IF(OR(D108="o",AND(C108="x",E108="x",F108="x"),AND(D106="x",D107="x",D109="x")),"o","")) ->  | AG108: =IF(OR(C108="o",D108="o",F108="o",E106="o",E107="o",E109="o",E108="x"),"x",IF(OR(E108="o",AND(C108="x",D108="x",F108="x"),AND(E106="x",E107="x",E109="x")),"o","")) ->  | AH108: =IF(OR(C108="o",D108="o",E108="o",F106="o",F107="o",F109="o",F108="x"),"x",IF(OR(F108="o",AND(C108="x",D108="x",E108="x"),AND(F106="x",F107="x",F109="x")),"o","")) ->  | AI108: =IF(OR(H108="o",I108="o",J108="o",G106="o",G107="o",G109="o",G108="x"),"x",IF(OR(G108="o",AND(H108="x",I108="x",J108="x"),AND(G106="x",G107="x",G109="x")),"o","")) ->  | AJ108: =IF(OR(G108="o",I108="o",J108="o",H106="o",H107="o",H109="o",H108="x"),"x",IF(OR(H108="o",AND(G108="x",I108="x",J108="x"),AND(H106="x",H107="x",H109="x")),"o","")) ->  | AK108: =IF(OR(G108="o",H108="o",J108="o",I106="o",I107="o",I109="o",I108="x"),"x",IF(OR(I108="o",AND(G108="x",H108="x",J108="x"),AND(I106="x",I107="x",I109="x")),"o","")) ->  | AL108: =IF(OR(G108="o",H108="o",I108="o",J106="o",J107="o",J109="o",J108="x"),"x",IF(OR(J108="o",AND(G108="x",H108="x",I108="x"),AND(J106="x",J107="x",J109="x")),"o","")) ->  | AM108: =IF(OR(L108="o",M108="o",N108="o",K106="o",K107="o",K109="o",K108="x"),"x",IF(OR(K108="o",AND(L108="x",M108="x",N108="x"),AND(K106="x",K107="x",K109="x")),"o","")) ->  | AN108: =IF(OR(K108="o",M108="o",N108="o",L106="o",L107="o",L109="o",L108="x"),"x",IF(OR(L108="o",AND(K108="x",M108="x",N108="x"),AND(L106="x",L107="x",L109="x")),"o","")) ->  | AO108: =IF(OR(K108="o",L108="o",N108="o",M106="o",M107="o",M109="o",M108="x"),"x",IF(OR(M108="o",AND(K108="x",L108="x",N108="x"),AND(M106="x",M107="x",M109="x")),"o","")) ->  | AP108: =IF(OR(K108="o",L108="o",M108="o",N106="o",N107="o",N109="o",N108="x"),"x",IF(OR(N108="o",AND(K108="x",L108="x",M108="x"),AND(N106="x",N107="x",N109="x")),"o","")) -> 
B109: D | P109: 2°/ Le nombre multiple de 13 est au 3 ème rang , mais | AD109: D | AE109: =IF(OR(D109="o",E109="o",F109="o",C106="o",C107="o",C108="o",C109="x"),"x",IF(OR(C109="o",AND(D109="x",E109="x",F109="x"),AND(C106="x",C107="x",C108="x")),"o","")) ->  | AF109: =IF(OR(C109="o",E109="o",F109="o",D106="o",D107="o",D108="o",D109="x"),"x",IF(OR(D109="o",AND(C109="x",E109="x",F109="x"),AND(D106="x",D107="x",D108="x")),"o","")) ->  | AG109: =IF(OR(C109="o",D109="o",F109="o",E106="o",E107="o",E108="o",E109="x"),"x",IF(OR(E109="o",AND(C109="x",D109="x",F109="x"),AND(E106="x",E107="x",E108="x")),"o","")) ->  | AH109: =IF(OR(C109="o",D109="o",E109="o",F106="o",F107="o",F108="o",F109="x"),"x",IF(OR(F109="o",AND(C109="x",D109="x",E109="x"),AND(F106="x",F107="x",F108="x")),"o","")) ->  | AI109: =IF(OR(H109="o",I109="o",J109="o",G106="o",G107="o",G108="o",G109="x"),"x",IF(OR(G109="o",AND(H109="x",I109="x",J109="x"),AND(G106="x",G107="x",G108="x")),"o","")) ->  | AJ109: =IF(OR(G109="o",I109="o",J109="o",H106="o",H107="o",H108="o",H109="x"),"x",IF(OR(H109="o",AND(G109="x",I109="x",J109="x"),AND(H106="x",H107="x",H108="x")),"o","")) ->  | AK109: =IF(OR(G109="o",H109="o",J109="o",I106="o",I107="o",I108="o",I109="x"),"x",IF(OR(I109="o",AND(G109="x",H109="x",J109="x"),AND(I106="x",I107="x",I108="x")),"o","")) ->  | AL109: =IF(OR(G109="o",H109="o",I109="o",J106="o",J107="o",J108="o",J109="x"),"x",IF(OR(J109="o",AND(G109="x",H109="x",I109="x"),AND(J106="x",J107="x",J108="x")),"o","")) ->  | AM109: =IF(OR(L109="o",M109="o",N109="o",K106="o",K107="o",K108="o",K109="x"),"x",IF(OR(K109="o",AND(L109="x",M109="x",N109="x"),AND(K106="x",K107="x",K108="x")),"o","")) ->  | AN109: =IF(OR(K109="o",M109="o",N109="o",L106="o",L107="o",L108="o",L109="x"),"x",IF(OR(L109="o",AND(K109="x",M109="x",N109="x"),AND(L106="x",L107="x",L108="x")),"o","")) ->  | AO109: =IF(OR(K109="o",L109="o",N109="o",M106="o",M107="o",M108="o",M109="x"),"x",IF(OR(M109="o",AND(K109="x",L109="x",N109="x"),AND(M106="x",M107="x",M108="x")),"o","")) ->  | AP109: =IF(OR(K109="o",L109="o",M109="o",N106="o",N107="o",N108="o",N109="x"),"x",IF(OR(N109="o",AND(K109="x",L109="x",M109="x"),AND(N106="x",N107="x",N108="x")),"o","")) -> 
A110: Unité | B110: 2 | P110: ce n'est ni le nombre B, ni le nombre C. | AC110: =A110 -> Unité | AD110: 2 | AE110: =IF(OR(D110="o",E110="o",F110="o",C111="o",C112="o",C113="o",C110="x"),"x",IF(OR(C110="o",AND(D110="x",E110="x",F110="x"),AND(C111="x",C112="x",C113="x")),"o","")) ->  | AF110: =IF(OR(C110="o",E110="o",F110="o",D111="o",D112="o",D113="o",D110="x"),"x",IF(OR(D110="o",AND(C110="x",E110="x",F110="x"),AND(D111="x",D112="x",D113="x")),"o","")) ->  | AG110: =IF(OR(C110="o",D110="o",F110="o",E111="o",E112="o",E113="o",E110="x"),"x",IF(OR(E110="o",AND(C110="x",D110="x",F110="x"),AND(E111="x",E112="x",E113="x")),"o","")) ->  | AH110: =IF(OR(C110="o",D110="o",E110="o",F111="o",F112="o",F113="o",F110="x"),"x",IF(OR(F110="o",AND(C110="x",D110="x",E110="x"),AND(F111="x",F112="x",F113="x")),"o","")) ->  | AI110: =IF(OR(H110="o",I110="o",J110="o",G111="o",G112="o",G113="o",G110="x"),"x",IF(OR(G110="o",AND(H110="x",I110="x",J110="x"),AND(G111="x",G112="x",G113="x")),"o","")) ->  | AJ110: =IF(OR(G110="o",I110="o",J110="o",H111="o",H112="o",H113="o",H110="x"),"x",IF(OR(H110="o",AND(G110="x",I110="x",J110="x"),AND(H111="x",H112="x",H113="x")),"o","")) ->  | AK110: =IF(OR(G110="o",H110="o",J110="o",I111="o",I112="o",I113="o",I110="x"),"x",IF(OR(I110="o",AND(G110="x",H110="x",J110="x"),AND(I111="x",I112="x",I113="x")),"o","")) ->  | AL110: =IF(OR(G110="o",H110="o",I110="o",J111="o",J112="o",J113="o",J110="x"),"x",IF(OR(J110="o",AND(G110="x",H110="x",I110="x"),AND(J111="x",J112="x",J113="x")),"o","")) -> 
B111: 5 | P111: 3°/ Le nombre B qui n'est pas au deuxième rang a son | AD111: 5 | AE111: =IF(OR(D111="o",E111="o",F111="o",C110="o",C112="o",C113="o",C111="x"),"x",IF(OR(C111="o",AND(D111="x",E111="x",F111="x"),AND(C110="x",C112="x",C113="x")),"o","")) ->  | AF111: =IF(OR(C111="o",E111="o",F111="o",D110="o",D112="o",D113="o",D111="x"),"x",IF(OR(D111="o",AND(C111="x",E111="x",F111="x"),AND(D110="x",D112="x",D113="x")),"o","")) ->  | AG111: =IF(OR(C111="o",D111="o",F111="o",E110="o",E112="o",E113="o",E111="x"),"x",IF(OR(E111="o",AND(C111="x",D111="x",F111="x"),AND(E110="x",E112="x",E113="x")),"o","")) ->  | AH111: =IF(OR(C111="o",D111="o",E111="o",F110="o",F112="o",F113="o",F111="x"),"x",IF(OR(F111="o",AND(C111="x",D111="x",E111="x"),AND(F110="x",F112="x",F113="x")),"o","")) ->  | AI111: =IF(OR(H111="o",I111="o",J111="o",G110="o",G112="o",G113="o",G111="x"),"x",IF(OR(G111="o",AND(H111="x",I111="x",J111="x"),AND(G110="x",G112="x",G113="x")),"o","")) ->  | AJ111: =IF(OR(G111="o",I111="o",J111="o",H110="o",H112="o",H113="o",H111="x"),"x",IF(OR(H111="o",AND(G111="x",I111="x",J111="x"),AND(H110="x",H112="x",H113="x")),"o","")) ->  | AK111: =IF(OR(G111="o",H111="o",J111="o",I110="o",I112="o",I113="o",I111="x"),"x",IF(OR(I111="o",AND(G111="x",H111="x",J111="x"),AND(I110="x",I112="x",I113="x")),"o","")) ->  | AL111: =IF(OR(G111="o",H111="o",I111="o",J110="o",J112="o",J113="o",J111="x"),"x",IF(OR(J111="o",AND(G111="x",H111="x",I111="x"),AND(J110="x",J112="x",J113="x")),"o","")) -> 
B112: 6 | P112: chiffre des unités plus grand que 2. | AD112: 6 | AE112: =IF(OR(D112="o",E112="o",F112="o",C110="o",C111="o",C113="o",C112="x"),"x",IF(OR(C112="o",AND(D112="x",E112="x",F112="x"),AND(C110="x",C111="x",C113="x")),"o","")) ->  | AF112: =IF(OR(C112="o",E112="o",F112="o",D110="o",D111="o",D113="o",D112="x"),"x",IF(OR(D112="o",AND(C112="x",E112="x",F112="x"),AND(D110="x",D111="x",D113="x")),"o","")) ->  | AG112: =IF(OR(C112="o",D112="o",F112="o",E110="o",E111="o",E113="o",E112="x"),"x",IF(OR(E112="o",AND(C112="x",D112="x",F112="x"),AND(E110="x",E111="x",E113="x")),"o","")) ->  | AH112: =IF(OR(C112="o",D112="o",E112="o",F110="o",F111="o",F113="o",F112="x"),"x",IF(OR(F112="o",AND(C112="x",D112="x",E112="x"),AND(F110="x",F111="x",F113="x")),"o","")) ->  | AI112: =IF(OR(H112="o",I112="o",J112="o",G110="o",G111="o",G113="o",G112="x"),"x",IF(OR(G112="o",AND(H112="x",I112="x",J112="x"),AND(G110="x",G111="x",G113="x")),"o","")) ->  | AJ112: =IF(OR(G112="o",I112="o",J112="o",H110="o",H111="o",H113="o",H112="x"),"x",IF(OR(H112="o",AND(G112="x",I112="x",J112="x"),AND(H110="x",H111="x",H113="x")),"o","")) ->  | AK112: =IF(OR(G112="o",H112="o",J112="o",I110="o",I111="o",I113="o",I112="x"),"x",IF(OR(I112="o",AND(G112="x",H112="x",J112="x"),AND(I110="x",I111="x",I113="x")),"o","")) ->  | AL112: =IF(OR(G112="o",H112="o",I112="o",J110="o",J111="o",J113="o",J112="x"),"x",IF(OR(J112="o",AND(G112="x",H112="x",I112="x"),AND(J110="x",J111="x",J113="x")),"o","")) -> 
B113: 8 | P113: 4°/ Le nombre divisible par 3 et finissant par 6 n'est pas B. | AD113: 8 | AE113: =IF(OR(D113="o",E113="o",F113="o",C110="o",C111="o",C112="o",C113="x"),"x",IF(OR(C113="o",AND(D113="x",E113="x",F113="x"),AND(C110="x",C111="x",C112="x")),"o","")) ->  | AF113: =IF(OR(C113="o",E113="o",F113="o",D110="o",D111="o",D112="o",D113="x"),"x",IF(OR(D113="o",AND(C113="x",E113="x",F113="x"),AND(D110="x",D111="x",D112="x")),"o","")) ->  | AG113: =IF(OR(C113="o",D113="o",F113="o",E110="o",E111="o",E112="o",E113="x"),"x",IF(OR(E113="o",AND(C113="x",D113="x",F113="x"),AND(E110="x",E111="x",E112="x")),"o","")) ->  | AH113: =IF(OR(C113="o",D113="o",E113="o",F110="o",F111="o",F112="o",F113="x"),"x",IF(OR(F113="o",AND(C113="x",D113="x",E113="x"),AND(F110="x",F111="x",F112="x")),"o","")) ->  | AI113: =IF(OR(H113="o",I113="o",J113="o",G110="o",G111="o",G112="o",G113="x"),"x",IF(OR(G113="o",AND(H113="x",I113="x",J113="x"),AND(G110="x",G111="x",G112="x")),"o","")) ->  | AJ113: =IF(OR(G113="o",I113="o",J113="o",H110="o",H111="o",H112="o",H113="x"),"x",IF(OR(H113="o",AND(G113="x",I113="x",J113="x"),AND(H110="x",H111="x",H112="x")),"o","")) ->  | AK113: =IF(OR(G113="o",H113="o",J113="o",I110="o",I111="o",I112="o",I113="x"),"x",IF(OR(I113="o",AND(G113="x",H113="x",J113="x"),AND(I110="x",I111="x",I112="x")),"o","")) ->  | AL113: =IF(OR(G113="o",H113="o",I113="o",J110="o",J111="o",J112="o",J113="x"),"x",IF(OR(J113="o",AND(G113="x",H113="x",I113="x"),AND(J110="x",J111="x",J112="x")),"o","")) -> 
A114: Diviseur | B114: 3 | P114: Retrouvez ces 4 nombres entiers et leurs caractéristiques. | AC114: =A114 -> Diviseur | AD114: 3 | AE114: =IF(OR(D114="o",E114="o",F114="o",C115="o",C116="o",C117="o",C114="x"),"x",IF(OR(C114="o",AND(D114="x",E114="x",F114="x"),AND(C115="x",C116="x",C117="x")),"o","")) ->  | AF114: =IF(OR(C114="o",E114="o",F114="o",D115="o",D116="o",D117="o",D114="x"),"x",IF(OR(D114="o",AND(C114="x",E114="x",F114="x"),AND(D115="x",D116="x",D117="x")),"o","")) ->  | AG114: =IF(OR(C114="o",D114="o",F114="o",E115="o",E116="o",E117="o",E114="x"),"x",IF(OR(E114="o",AND(C114="x",D114="x",F114="x"),AND(E115="x",E116="x",E117="x")),"o","")) ->  | AH114: =IF(OR(C114="o",D114="o",E114="o",F115="o",F116="o",F117="o",F114="x"),"x",IF(OR(F114="o",AND(C114="x",D114="x",E114="x"),AND(F115="x",F116="x",F117="x")),"o","")) -> 
B115: 7 | H115: =IF(AND(C120=Q120,G120=U120,K120=Y120,C121=Q121,G121=U121,K121=Y121,C122=Q122,G122=U122,K122=Y122,C123=Q123,G123=U123,K123=Y123),"BRAVO !!","") ->  | AD115: 7 | AE115: =IF(OR(D115="o",E115="o",F115="o",C114="o",C116="o",C117="o",C115="x"),"x",IF(OR(C115="o",AND(D115="x",E115="x",F115="x"),AND(C114="x",C116="x",C117="x")),"o","")) ->  | AF115: =IF(OR(C115="o",E115="o",F115="o",D114="o",D116="o",D117="o",D115="x"),"x",IF(OR(D115="o",AND(C115="x",E115="x",F115="x"),AND(D114="x",D116="x",D117="x")),"o","")) ->  | AG115: =IF(OR(C115="o",D115="o",F115="o",E114="o",E116="o",E117="o",E115="x"),"x",IF(OR(E115="o",AND(C115="x",D115="x",F115="x"),AND(E114="x",E116="x",E117="x")),"o","")) ->  | AH115: =IF(OR(C115="o",D115="o",E115="o",F114="o",F116="o",F117="o",F115="x"),"x",IF(OR(F115="o",AND(C115="x",D115="x",E115="x"),AND(F114="x",F116="x",F117="x")),"o","")) -> 
B116: 11 | AD116: 11 | AE116: =IF(OR(D116="o",E116="o",F116="o",C114="o",C115="o",C117="o",C116="x"),"x",IF(OR(C116="o",AND(D116="x",E116="x",F116="x"),AND(C114="x",C115="x",C117="x")),"o","")) ->  | AF116: =IF(OR(C116="o",E116="o",F116="o",D114="o",D115="o",D117="o",D116="x"),"x",IF(OR(D116="o",AND(C116="x",E116="x",F116="x"),AND(D114="x",D115="x",D117="x")),"o","")) ->  | AG116: =IF(OR(C116="o",D116="o",F116="o",E114="o",E115="o",E117="o",E116="x"),"x",IF(OR(E116="o",AND(C116="x",D116="x",F116="x"),AND(E114="x",E115="x",E117="x")),"o","")) ->  | AH116: =IF(OR(C116="o",D116="o",E116="o",F114="o",F115="o",F117="o",F116="x"),"x",IF(OR(F116="o",AND(C116="x",D116="x",E116="x"),AND(F114="x",F115="x",F117="x")),"o","")) -> 
B117: 13 | AD117: 13 | AE117: =IF(OR(D117="o",E117="o",F117="o",C114="o",C115="o",C116="o",C117="x"),"x",IF(OR(C117="o",AND(D117="x",E117="x",F117="x"),AND(C114="x",C115="x",C116="x")),"o","")) ->  | AF117: =IF(OR(C117="o",E117="o",F117="o",D114="o",D115="o",D116="o",D117="x"),"x",IF(OR(D117="o",AND(C117="x",E117="x",F117="x"),AND(D114="x",D115="x",D116="x")),"o","")) ->  | AG117: =IF(OR(C117="o",D117="o",F117="o",E114="o",E115="o",E116="o",E117="x"),"x",IF(OR(E117="o",AND(C117="x",D117="x",F117="x"),AND(E114="x",E115="x",E116="x")),"o","")) ->  | AH117: =IF(OR(C117="o",D117="o",E117="o",F114="o",F115="o",F116="o",F117="x"),"x",IF(OR(F117="o",AND(C117="x",D117="x",E117="x"),AND(F114="x",F115="x",F116="x")),"o","")) -> 
B119: Réponses : | C119: =C104 -> Classement | G119: =G104 -> Diviseur | K119: =K104 -> Unité | Q119: =C104 -> Classement | U119: =G104 -> Diviseur | Y119: =K104 -> Unité
B120: =B106 -> A | C120: =IF(C106="o",C105,IF(D106="o",D105,IF(E106="o",E105,IF(F106="o",F105,"")))) ->  | G120: =IF(G106="o",G105,IF(H106="o",H105,IF(I106="o",I105,IF(J106="o",J105,"")))) ->  | K120: =IF(K106="o",K105,IF(L106="o",L105,IF(M106="o",M105,IF(N106="o",N105,"")))) ->  | P120: =B106 -> A | Q120: 1e | U120: 7 | Y120: 8
B121: =B107 -> B | C121: =IF(C107="o",C105,IF(D107="o",D105,IF(E107="o",E105,IF(F107="o",F105,"")))) ->  | G121: =IF(G107="o",G105,IF(H107="o",H105,IF(I107="o",I105,IF(J107="o",J105,"")))) ->  | K121: =IF(K107="o",K105,IF(L107="o",L105,IF(M107="o",M105,IF(N107="o",N105,"")))) ->  | P121: =B107 -> B | Q121: 4e | U121: 11 | Y121: 5
B122: =B108 -> C | C122: =IF(C108="o",C105,IF(D108="o",D105,IF(E108="o",E105,IF(F108="o",F105,"")))) ->  | G122: =IF(G108="o",G105,IF(H108="o",H105,IF(I108="o",I105,IF(J108="o",J105,"")))) ->  | K122: =IF(K108="o",K105,IF(L108="o",L105,IF(M108="o",M105,IF(N108="o",N105,"")))) ->  | P122: =B108 -> C | Q122: 2e | U122: 3 | Y122: 6
B123: =B109 -> D | C123: =IF(C109="o",C105,IF(D109="o",D105,IF(E109="o",E105,IF(F109="o",F105,"")))) ->  | G123: =IF(G109="o",G105,IF(H109="o",H105,IF(I109="o",I105,IF(J109="o",J105,"")))) ->  | K123: =IF(K109="o",K105,IF(L109="o",L105,IF(M109="o",M105,IF(N109="o",N105,"")))) ->  | P123: =B109 -> D | Q123: 3e | U123: 13 | Y123: 2
P124: Les 4 nombres sont: 28, 36, 52 et 55.
A126: XVI°/ Les gaz inertes :
A127: =INDIRECT("'Calculs 4 indices'!B"&A130) ->  | N127: =INDIRECT("'Calculs 4 indices'!M"&(A130+16)) -> 
A128: =INDIRECT("'Calculs 4 indices'!B"&(A130+26)) ->  | N128: =INDIRECT("'Calculs 4 indices'!M"&(A130+17)) -> 
C129: En Grec | G129: =A139 -> Découverte | K129: =A135 -> Utilisation | AE129: =C129 -> En Grec | AI129: =G129 -> Découverte | AM129: =K129 -> Utilisation
A130: =A105+52 -> 261 | C130: Etranger | D130: Inactif | E130: Rayon | F130: Soleil | G130: =B139 -> 1868 | H130: =B140 -> 1894 | I130: =B141 -> 1898 | J130: =B142 -> 1900 | K130: =B135 -> Anesthésie | L130: =B136 -> Cryogénie | M130: =B137 -> Datation | N130: =B138 -> Prévention séisme | P130: Voici 4 gaz inertes, quand les a t-on découvert et d'où vient leur nom et quelle est une de leur utilisation. | AE130: =C130 -> Etranger | AF130: =D130 -> Inactif | AG130: =E130 -> Rayon | AH130: =F130 -> Soleil | AI130: =G130 -> 1868 | AJ130: =H130 -> 1894 | AK130: =I130 -> 1898 | AL130: =J130 -> 1900 | AM130: =K130 -> Anesthésie | AN130: =L130 -> Cryogénie | AO130: =M130 -> Datation | AP130: =N130 -> Prévention séisme
A131: GAZ | B131: Argon | AC131: =A131 -> GAZ | AD131: =B131 -> Argon | AE131: =IF(OR(D131="o",E131="o",F131="o",C132="o",C133="o",C134="o",C131="x"),"x",IF(OR(C131="o",AND(D131="x",E131="x",F131="x"),AND(C132="x",C133="x",C134="x")),"o","")) ->  | AF131: =IF(OR(C131="o",E131="o",F131="o",D132="o",D133="o",D134="o",D131="x"),"x",IF(OR(D131="o",AND(C131="x",E131="x",F131="x"),AND(D132="x",D133="x",D134="x")),"o","")) ->  | AG131: =IF(OR(C131="o",D131="o",F131="o",E132="o",E133="o",E134="o",E131="x"),"x",IF(OR(E131="o",AND(C131="x",D131="x",F131="x"),AND(E132="x",E133="x",E134="x")),"o","")) ->  | AH131: =IF(OR(C131="o",D131="o",E131="o",F132="o",F133="o",F134="o",F131="x"),"x",IF(OR(F131="o",AND(C131="x",D131="x",E131="x"),AND(F132="x",F133="x",F134="x")),"o","")) ->  | AI131: =IF(OR(H131="o",I131="o",J131="o",G132="o",G133="o",G134="o",G131="x"),"x",IF(OR(G131="o",AND(H131="x",I131="x",J131="x"),AND(G132="x",G133="x",G134="x")),"o","")) ->  | AJ131: =IF(OR(G131="o",I131="o",J131="o",H132="o",H133="o",H134="o",H131="x"),"x",IF(OR(H131="o",AND(G131="x",I131="x",J131="x"),AND(H132="x",H133="x",H134="x")),"o","")) ->  | AK131: =IF(OR(G131="o",H131="o",J131="o",I132="o",I133="o",I134="o",I131="x"),"x",IF(OR(I131="o",AND(G131="x",H131="x",J131="x"),AND(I132="x",I133="x",I134="x")),"o","")) ->  | AL131: =IF(OR(G131="o",H131="o",I131="o",J132="o",J133="o",J134="o",J131="x"),"x",IF(OR(J131="o",AND(G131="x",H131="x",I131="x"),AND(J132="x",J133="x",J134="x")),"o","")) ->  | AM131: =IF(OR(L131="o",M131="o",N131="o",K132="o",K133="o",K134="o",K131="x"),"x",IF(OR(K131="o",AND(L131="x",M131="x",N131="x"),AND(K132="x",K133="x",K134="x")),"o","")) ->  | AN131: =IF(OR(K131="o",M131="o",N131="o",L132="o",L133="o",L134="o",L131="x"),"x",IF(OR(L131="o",AND(K131="x",M131="x",N131="x"),AND(L132="x",L133="x",L134="x")),"o","")) ->  | AO131: =IF(OR(K131="o",L131="o",N131="o",M132="o",M133="o",M134="o",M131="x"),"x",IF(OR(M131="o",AND(K131="x",L131="x",N131="x"),AND(M132="x",M133="x",M134="x")),"o","")) ->  | AP131: =IF(OR(K131="o",L131="o",M131="o",N132="o",N133="o",N134="o",N131="x"),"x",IF(OR(N131="o",AND(K131="x",L131="x",M131="x"),AND(N132="x",N133="x",N134="x")),"o","")) -> 
B132: Hélium | P132: 1°/ Le Xénon découvert en 1898 ( du grec : étranger ) n'est | AD132: =B132 -> Hélium | AE132: =IF(OR(D132="o",E132="o",F132="o",C131="o",C133="o",C134="o",C132="x"),"x",IF(OR(C132="o",AND(D132="x",E132="x",F132="x"),AND(C131="x",C133="x",C134="x")),"o","")) ->  | AF132: =IF(OR(C132="o",E132="o",F132="o",D131="o",D133="o",D134="o",D132="x"),"x",IF(OR(D132="o",AND(C132="x",E132="x",F132="x"),AND(D131="x",D133="x",D134="x")),"o","")) ->  | AG132: =IF(OR(C132="o",D132="o",F132="o",E131="o",E133="o",E134="o",E132="x"),"x",IF(OR(E132="o",AND(C132="x",D132="x",F132="x"),AND(E131="x",E133="x",E134="x")),"o","")) ->  | AH132: =IF(OR(C132="o",D132="o",E132="o",F131="o",F133="o",F134="o",F132="x"),"x",IF(OR(F132="o",AND(C132="x",D132="x",E132="x"),AND(F131="x",F133="x",F134="x")),"o","")) ->  | AI132: =IF(OR(H132="o",I132="o",J132="o",G131="o",G133="o",G134="o",G132="x"),"x",IF(OR(G132="o",AND(H132="x",I132="x",J132="x"),AND(G131="x",G133="x",G134="x")),"o","")) ->  | AJ132: =IF(OR(G132="o",I132="o",J132="o",H131="o",H133="o",H134="o",H132="x"),"x",IF(OR(H132="o",AND(G132="x",I132="x",J132="x"),AND(H131="x",H133="x",H134="x")),"o","")) ->  | AK132: =IF(OR(G132="o",H132="o",J132="o",I131="o",I133="o",I134="o",I132="x"),"x",IF(OR(I132="o",AND(G132="x",H132="x",J132="x"),AND(I131="x",I133="x",I134="x")),"o","")) ->  | AL132: =IF(OR(G132="o",H132="o",I132="o",J131="o",J133="o",J134="o",J132="x"),"x",IF(OR(J132="o",AND(G132="x",H132="x",I132="x"),AND(J131="x",J133="x",J134="x")),"o","")) ->  | AM132: =IF(OR(L132="o",M132="o",N132="o",K131="o",K133="o",K134="o",K132="x"),"x",IF(OR(K132="o",AND(L132="x",M132="x",N132="x"),AND(K131="x",K133="x",K134="x")),"o","")) ->  | AN132: =IF(OR(K132="o",M132="o",N132="o",L131="o",L133="o",L134="o",L132="x"),"x",IF(OR(L132="o",AND(K132="x",M132="x",N132="x"),AND(L131="x",L133="x",L134="x")),"o","")) ->  | AO132: =IF(OR(K132="o",L132="o",N132="o",M131="o",M133="o",M134="o",M132="x"),"x",IF(OR(M132="o",AND(K132="x",L132="x",N132="x"),AND(M131="x",M133="x",M134="x")),"o","")) ->  | AP132: =IF(OR(K132="o",L132="o",M132="o",N131="o",N133="o",N134="o",N132="x"),"x",IF(OR(N132="o",AND(K132="x",L132="x",M132="x"),AND(N131="x",N133="x",N134="x")),"o","")) -> 
B133: Radon | P133: pas utilisé en cryogénie. | AD133: Radon | AE133: =IF(OR(D133="o",E133="o",F133="o",C131="o",C132="o",C134="o",C133="x"),"x",IF(OR(C133="o",AND(D133="x",E133="x",F133="x"),AND(C131="x",C132="x",C134="x")),"o","")) ->  | AF133: =IF(OR(C133="o",E133="o",F133="o",D131="o",D132="o",D134="o",D133="x"),"x",IF(OR(D133="o",AND(C133="x",E133="x",F133="x"),AND(D131="x",D132="x",D134="x")),"o","")) ->  | AG133: =IF(OR(C133="o",D133="o",F133="o",E131="o",E132="o",E134="o",E133="x"),"x",IF(OR(E133="o",AND(C133="x",D133="x",F133="x"),AND(E131="x",E132="x",E134="x")),"o","")) ->  | AH133: =IF(OR(C133="o",D133="o",E133="o",F131="o",F132="o",F134="o",F133="x"),"x",IF(OR(F133="o",AND(C133="x",D133="x",E133="x"),AND(F131="x",F132="x",F134="x")),"o","")) ->  | AI133: =IF(OR(H133="o",I133="o",J133="o",G131="o",G132="o",G134="o",G133="x"),"x",IF(OR(G133="o",AND(H133="x",I133="x",J133="x"),AND(G131="x",G132="x",G134="x")),"o","")) ->  | AJ133: =IF(OR(G133="o",I133="o",J133="o",H131="o",H132="o",H134="o",H133="x"),"x",IF(OR(H133="o",AND(G133="x",I133="x",J133="x"),AND(H131="x",H132="x",H134="x")),"o","")) ->  | AK133: =IF(OR(G133="o",H133="o",J133="o",I131="o",I132="o",I134="o",I133="x"),"x",IF(OR(I133="o",AND(G133="x",H133="x",J133="x"),AND(I131="x",I132="x",I134="x")),"o","")) ->  | AL133: =IF(OR(G133="o",H133="o",I133="o",J131="o",J132="o",J134="o",J133="x"),"x",IF(OR(J133="o",AND(G133="x",H133="x",I133="x"),AND(J131="x",J132="x",J134="x")),"o","")) ->  | AM133: =IF(OR(L133="o",M133="o",N133="o",K131="o",K132="o",K134="o",K133="x"),"x",IF(OR(K133="o",AND(L133="x",M133="x",N133="x"),AND(K131="x",K132="x",K134="x")),"o","")) ->  | AN133: =IF(OR(K133="o",M133="o",N133="o",L131="o",L132="o",L134="o",L133="x"),"x",IF(OR(L133="o",AND(K133="x",M133="x",N133="x"),AND(L131="x",L132="x",L134="x")),"o","")) ->  | AO133: =IF(OR(K133="o",L133="o",N133="o",M131="o",M132="o",M134="o",M133="x"),"x",IF(OR(M133="o",AND(K133="x",L133="x",N133="x"),AND(M131="x",M132="x",M134="x")),"o","")) ->  | AP133: =IF(OR(K133="o",L133="o",M133="o",N131="o",N132="o",N134="o",N133="x"),"x",IF(OR(N133="o",AND(K133="x",L133="x",M133="x"),AND(N131="x",N132="x",N134="x")),"o","")) -> 
B134: Xénon | P134: 2°/ Le gaz " inactif " ne sert pas en cryogénie ni en | AD134: Xénon | AE134: =IF(OR(D134="o",E134="o",F134="o",C131="o",C132="o",C133="o",C134="x"),"x",IF(OR(C134="o",AND(D134="x",E134="x",F134="x"),AND(C131="x",C132="x",C133="x")),"o","")) ->  | AF134: =IF(OR(C134="o",E134="o",F134="o",D131="o",D132="o",D133="o",D134="x"),"x",IF(OR(D134="o",AND(C134="x",E134="x",F134="x"),AND(D131="x",D132="x",D133="x")),"o","")) ->  | AG134: =IF(OR(C134="o",D134="o",F134="o",E131="o",E132="o",E133="o",E134="x"),"x",IF(OR(E134="o",AND(C134="x",D134="x",F134="x"),AND(E131="x",E132="x",E133="x")),"o","")) ->  | AH134: =IF(OR(C134="o",D134="o",E134="o",F131="o",F132="o",F133="o",F134="x"),"x",IF(OR(F134="o",AND(C134="x",D134="x",E134="x"),AND(F131="x",F132="x",F133="x")),"o","")) ->  | AI134: =IF(OR(H134="o",I134="o",J134="o",G131="o",G132="o",G133="o",G134="x"),"x",IF(OR(G134="o",AND(H134="x",I134="x",J134="x"),AND(G131="x",G132="x",G133="x")),"o","")) ->  | AJ134: =IF(OR(G134="o",I134="o",J134="o",H131="o",H132="o",H133="o",H134="x"),"x",IF(OR(H134="o",AND(G134="x",I134="x",J134="x"),AND(H131="x",H132="x",H133="x")),"o","")) ->  | AK134: =IF(OR(G134="o",H134="o",J134="o",I131="o",I132="o",I133="o",I134="x"),"x",IF(OR(I134="o",AND(G134="x",H134="x",J134="x"),AND(I131="x",I132="x",I133="x")),"o","")) ->  | AL134: =IF(OR(G134="o",H134="o",I134="o",J131="o",J132="o",J133="o",J134="x"),"x",IF(OR(J134="o",AND(G134="x",H134="x",I134="x"),AND(J131="x",J132="x",J133="x")),"o","")) ->  | AM134: =IF(OR(L134="o",M134="o",N134="o",K131="o",K132="o",K133="o",K134="x"),"x",IF(OR(K134="o",AND(L134="x",M134="x",N134="x"),AND(K131="x",K132="x",K133="x")),"o","")) ->  | AN134: =IF(OR(K134="o",M134="o",N134="o",L131="o",L132="o",L133="o",L134="x"),"x",IF(OR(L134="o",AND(K134="x",M134="x",N134="x"),AND(L131="x",L132="x",L133="x")),"o","")) ->  | AO134: =IF(OR(K134="o",L134="o",N134="o",M131="o",M132="o",M133="o",M134="x"),"x",IF(OR(M134="o",AND(K134="x",L134="x",N134="x"),AND(M131="x",M132="x",M133="x")),"o","")) ->  | AP134: =IF(OR(K134="o",L134="o",M134="o",N131="o",N132="o",N133="o",N134="x"),"x",IF(OR(N134="o",AND(K134="x",L134="x",M134="x"),AND(N131="x",N132="x",N133="x")),"o","")) -> 
A135: Utilisation | B135: Anesthésie | P135: anesthésie, il n'est pas le premier gaz inerte découvert | AC135: =A135 -> Utilisation | AD135: Anesthésie | AE135: =IF(OR(D135="o",E135="o",F135="o",C136="o",C137="o",C138="o",C135="x"),"x",IF(OR(C135="o",AND(D135="x",E135="x",F135="x"),AND(C136="x",C137="x",C138="x")),"o","")) ->  | AF135: =IF(OR(C135="o",E135="o",F135="o",D136="o",D137="o",D138="o",D135="x"),"x",IF(OR(D135="o",AND(C135="x",E135="x",F135="x"),AND(D136="x",D137="x",D138="x")),"o","")) ->  | AG135: =IF(OR(C135="o",D135="o",F135="o",E136="o",E137="o",E138="o",E135="x"),"x",IF(OR(E135="o",AND(C135="x",D135="x",F135="x"),AND(E136="x",E137="x",E138="x")),"o","")) ->  | AH135: =IF(OR(C135="o",D135="o",E135="o",F136="o",F137="o",F138="o",F135="x"),"x",IF(OR(F135="o",AND(C135="x",D135="x",E135="x"),AND(F136="x",F137="x",F138="x")),"o","")) ->  | AI135: =IF(OR(H135="o",I135="o",J135="o",G136="o",G137="o",G138="o",G135="x"),"x",IF(OR(G135="o",AND(H135="x",I135="x",J135="x"),AND(G136="x",G137="x",G138="x")),"o","")) ->  | AJ135: =IF(OR(G135="o",I135="o",J135="o",H136="o",H137="o",H138="o",H135="x"),"x",IF(OR(H135="o",AND(G135="x",I135="x",J135="x"),AND(H136="x",H137="x",H138="x")),"o","")) ->  | AK135: =IF(OR(G135="o",H135="o",J135="o",I136="o",I137="o",I138="o",I135="x"),"x",IF(OR(I135="o",AND(G135="x",H135="x",J135="x"),AND(I136="x",I137="x",I138="x")),"o","")) ->  | AL135: =IF(OR(G135="o",H135="o",I135="o",J136="o",J137="o",J138="o",J135="x"),"x",IF(OR(J135="o",AND(G135="x",H135="x",I135="x"),AND(J136="x",J137="x",J138="x")),"o","")) -> 
B136: Cryogénie | P136: ni de l'Hélium. | AD136: Cryogénie | AE136: =IF(OR(D136="o",E136="o",F136="o",C135="o",C137="o",C138="o",C136="x"),"x",IF(OR(C136="o",AND(D136="x",E136="x",F136="x"),AND(C135="x",C137="x",C138="x")),"o","")) ->  | AF136: =IF(OR(C136="o",E136="o",F136="o",D135="o",D137="o",D138="o",D136="x"),"x",IF(OR(D136="o",AND(C136="x",E136="x",F136="x"),AND(D135="x",D137="x",D138="x")),"o","")) ->  | AG136: =IF(OR(C136="o",D136="o",F136="o",E135="o",E137="o",E138="o",E136="x"),"x",IF(OR(E136="o",AND(C136="x",D136="x",F136="x"),AND(E135="x",E137="x",E138="x")),"o","")) ->  | AH136: =IF(OR(C136="o",D136="o",E136="o",F135="o",F137="o",F138="o",F136="x"),"x",IF(OR(F136="o",AND(C136="x",D136="x",E136="x"),AND(F135="x",F137="x",F138="x")),"o","")) ->  | AI136: =IF(OR(H136="o",I136="o",J136="o",G135="o",G137="o",G138="o",G136="x"),"x",IF(OR(G136="o",AND(H136="x",I136="x",J136="x"),AND(G135="x",G137="x",G138="x")),"o","")) ->  | AJ136: =IF(OR(G136="o",I136="o",J136="o",H135="o",H137="o",H138="o",H136="x"),"x",IF(OR(H136="o",AND(G136="x",I136="x",J136="x"),AND(H135="x",H137="x",H138="x")),"o","")) ->  | AK136: =IF(OR(G136="o",H136="o",J136="o",I135="o",I137="o",I138="o",I136="x"),"x",IF(OR(I136="o",AND(G136="x",H136="x",J136="x"),AND(I135="x",I137="x",I138="x")),"o","")) ->  | AL136: =IF(OR(G136="o",H136="o",I136="o",J135="o",J137="o",J138="o",J136="x"),"x",IF(OR(J136="o",AND(G136="x",H136="x",I136="x"),AND(J135="x",J137="x",J138="x")),"o","")) -> 
B137: Datation | P137: 3°/ Le Radon qui ne signifie pas inactif ni soleil et a été | AD137: Datation | AE137: =IF(OR(D137="o",E137="o",F137="o",C135="o",C136="o",C138="o",C137="x"),"x",IF(OR(C137="o",AND(D137="x",E137="x",F137="x"),AND(C135="x",C136="x",C138="x")),"o","")) ->  | AF137: =IF(OR(C137="o",E137="o",F137="o",D135="o",D136="o",D138="o",D137="x"),"x",IF(OR(D137="o",AND(C137="x",E137="x",F137="x"),AND(D135="x",D136="x",D138="x")),"o","")) ->  | AG137: =IF(OR(C137="o",D137="o",F137="o",E135="o",E136="o",E138="o",E137="x"),"x",IF(OR(E137="o",AND(C137="x",D137="x",F137="x"),AND(E135="x",E136="x",E138="x")),"o","")) ->  | AH137: =IF(OR(C137="o",D137="o",E137="o",F135="o",F136="o",F138="o",F137="x"),"x",IF(OR(F137="o",AND(C137="x",D137="x",E137="x"),AND(F135="x",F136="x",F138="x")),"o","")) ->  | AI137: =IF(OR(H137="o",I137="o",J137="o",G135="o",G136="o",G138="o",G137="x"),"x",IF(OR(G137="o",AND(H137="x",I137="x",J137="x"),AND(G135="x",G136="x",G138="x")),"o","")) ->  | AJ137: =IF(OR(G137="o",I137="o",J137="o",H135="o",H136="o",H138="o",H137="x"),"x",IF(OR(H137="o",AND(G137="x",I137="x",J137="x"),AND(H135="x",H136="x",H138="x")),"o","")) ->  | AK137: =IF(OR(G137="o",H137="o",J137="o",I135="o",I136="o",I138="o",I137="x"),"x",IF(OR(I137="o",AND(G137="x",H137="x",J137="x"),AND(I135="x",I136="x",I138="x")),"o","")) ->  | AL137: =IF(OR(G137="o",H137="o",I137="o",J135="o",J136="o",J138="o",J137="x"),"x",IF(OR(J137="o",AND(G137="x",H137="x",I137="x"),AND(J135="x",J136="x",J138="x")),"o","")) -> 
B138: Prévention séisme | P138: découvert après 1894, il est utilisé pour la prévention | AD138: Prévention séisme | AE138: =IF(OR(D138="o",E138="o",F138="o",C135="o",C136="o",C137="o",C138="x"),"x",IF(OR(C138="o",AND(D138="x",E138="x",F138="x"),AND(C135="x",C136="x",C137="x")),"o","")) ->  | AF138: =IF(OR(C138="o",E138="o",F138="o",D135="o",D136="o",D137="o",D138="x"),"x",IF(OR(D138="o",AND(C138="x",E138="x",F138="x"),AND(D135="x",D136="x",D137="x")),"o","")) ->  | AG138: =IF(OR(C138="o",D138="o",F138="o",E135="o",E136="o",E137="o",E138="x"),"x",IF(OR(E138="o",AND(C138="x",D138="x",F138="x"),AND(E135="x",E136="x",E137="x")),"o","")) ->  | AH138: =IF(OR(C138="o",D138="o",E138="o",F135="o",F136="o",F137="o",F138="x"),"x",IF(OR(F138="o",AND(C138="x",D138="x",E138="x"),AND(F135="x",F136="x",F137="x")),"o","")) ->  | AI138: =IF(OR(H138="o",I138="o",J138="o",G135="o",G136="o",G137="o",G138="x"),"x",IF(OR(G138="o",AND(H138="x",I138="x",J138="x"),AND(G135="x",G136="x",G137="x")),"o","")) ->  | AJ138: =IF(OR(G138="o",I138="o",J138="o",H135="o",H136="o",H137="o",H138="x"),"x",IF(OR(H138="o",AND(G138="x",I138="x",J138="x"),AND(H135="x",H136="x",H137="x")),"o","")) ->  | AK138: =IF(OR(G138="o",H138="o",J138="o",I135="o",I136="o",I137="o",I138="x"),"x",IF(OR(I138="o",AND(G138="x",H138="x",J138="x"),AND(I135="x",I136="x",I137="x")),"o","")) ->  | AL138: =IF(OR(G138="o",H138="o",I138="o",J135="o",J136="o",J137="o",J138="x"),"x",IF(OR(J138="o",AND(G138="x",H138="x",I138="x"),AND(J135="x",J136="x",J137="x")),"o","")) -> 
A139: Découverte | B139: 1868 | P139: des séismes. | AC139: =A139 -> Découverte | AD139: 1868 | AE139: =IF(OR(D139="o",E139="o",F139="o",C140="o",C141="o",C142="o",C139="x"),"x",IF(OR(C139="o",AND(D139="x",E139="x",F139="x"),AND(C140="x",C141="x",C142="x")),"o","")) ->  | AF139: =IF(OR(C139="o",E139="o",F139="o",D140="o",D141="o",D142="o",D139="x"),"x",IF(OR(D139="o",AND(C139="x",E139="x",F139="x"),AND(D140="x",D141="x",D142="x")),"o","")) ->  | AG139: =IF(OR(C139="o",D139="o",F139="o",E140="o",E141="o",E142="o",E139="x"),"x",IF(OR(E139="o",AND(C139="x",D139="x",F139="x"),AND(E140="x",E141="x",E142="x")),"o","")) ->  | AH139: =IF(OR(C139="o",D139="o",E139="o",F140="o",F141="o",F142="o",F139="x"),"x",IF(OR(F139="o",AND(C139="x",D139="x",E139="x"),AND(F140="x",F141="x",F142="x")),"o","")) -> 
B140: 1894 | H140: =IF(AND(C145=Q145,G145=U145,K145=Y145,C146=Q146,G146=U146,K146=Y146,C147=Q147,G147=U147,K147=Y147,C148=Q148,G148=U148,K148=Y148),"BRAVO !!","") ->  | AD140: 1894 | AE140: =IF(OR(D140="o",E140="o",F140="o",C139="o",C141="o",C142="o",C140="x"),"x",IF(OR(C140="o",AND(D140="x",E140="x",F140="x"),AND(C139="x",C141="x",C142="x")),"o","")) ->  | AF140: =IF(OR(C140="o",E140="o",F140="o",D139="o",D141="o",D142="o",D140="x"),"x",IF(OR(D140="o",AND(C140="x",E140="x",F140="x"),AND(D139="x",D141="x",D142="x")),"o","")) ->  | AG140: =IF(OR(C140="o",D140="o",F140="o",E139="o",E141="o",E142="o",E140="x"),"x",IF(OR(E140="o",AND(C140="x",D140="x",F140="x"),AND(E139="x",E141="x",E142="x")),"o","")) ->  | AH140: =IF(OR(C140="o",D140="o",E140="o",F139="o",F141="o",F142="o",F140="x"),"x",IF(OR(F140="o",AND(C140="x",D140="x",E140="x"),AND(F139="x",F141="x",F142="x")),"o","")) -> 
B141: 1898 | AD141: 1898 | AE141: =IF(OR(D141="o",E141="o",F141="o",C139="o",C140="o",C142="o",C141="x"),"x",IF(OR(C141="o",AND(D141="x",E141="x",F141="x"),AND(C139="x",C140="x",C142="x")),"o","")) ->  | AF141: =IF(OR(C141="o",E141="o",F141="o",D139="o",D140="o",D142="o",D141="x"),"x",IF(OR(D141="o",AND(C141="x",E141="x",F141="x"),AND(D139="x",D140="x",D142="x")),"o","")) ->  | AG141: =IF(OR(C141="o",D141="o",F141="o",E139="o",E140="o",E142="o",E141="x"),"x",IF(OR(E141="o",AND(C141="x",D141="x",F141="x"),AND(E139="x",E140="x",E142="x")),"o","")) ->  | AH141: =IF(OR(C141="o",D141="o",E141="o",F139="o",F140="o",F142="o",F141="x"),"x",IF(OR(F141="o",AND(C141="x",D141="x",E141="x"),AND(F139="x",F140="x",F142="x")),"o","")) -> 
B142: 1900 | AD142: 1900 | AE142: =IF(OR(D142="o",E142="o",F142="o",C139="o",C140="o",C141="o",C142="x"),"x",IF(OR(C142="o",AND(D142="x",E142="x",F142="x"),AND(C139="x",C140="x",C141="x")),"o","")) ->  | AF142: =IF(OR(C142="o",E142="o",F142="o",D139="o",D140="o",D141="o",D142="x"),"x",IF(OR(D142="o",AND(C142="x",E142="x",F142="x"),AND(D139="x",D140="x",D141="x")),"o","")) ->  | AG142: =IF(OR(C142="o",D142="o",F142="o",E139="o",E140="o",E141="o",E142="x"),"x",IF(OR(E142="o",AND(C142="x",D142="x",F142="x"),AND(E139="x",E140="x",E141="x")),"o","")) ->  | AH142: =IF(OR(C142="o",D142="o",E142="o",F139="o",F140="o",F141="o",F142="x"),"x",IF(OR(F142="o",AND(C142="x",D142="x",E142="x"),AND(F139="x",F140="x",F141="x")),"o","")) -> 
B144: Réponses : | C144: =C129 -> En Grec | G144: =G129 -> Découverte | K144: =K129 -> Utilisation | Q144: =C129 -> En Grec | U144: =G129 -> Découverte | Y144: =K129 -> Utilisation
B145: =B131 -> Argon | C145: =IF(C131="o",C130,IF(D131="o",D130,IF(E131="o",E130,IF(F131="o",F130,"")))) ->  | G145: =IF(G131="o",G130,IF(H131="o",H130,IF(I131="o",I130,IF(J131="o",J130,"")))) ->  | K145: =IF(K131="o",K130,IF(L131="o",L130,IF(M131="o",M130,IF(N131="o",N130,"")))) ->  | P145: =B131 -> Argon | Q145: Inactif | U145: 1894 | Y145: Datation
B146: =B132 -> Hélium | C146: =IF(C132="o",C130,IF(D132="o",D130,IF(E132="o",E130,IF(F132="o",F130,"")))) ->  | G146: =IF(G132="o",G130,IF(H132="o",H130,IF(I132="o",I130,IF(J132="o",J130,"")))) ->  | K146: =IF(K132="o",K130,IF(L132="o",L130,IF(M132="o",M130,IF(N132="o",N130,"")))) ->  | P146: =B132 -> Hélium | Q146: Soleil | U146: 1868 | Y146: Cryogénie
B147: =B133 -> Radon | C147: =IF(C133="o",C130,IF(D133="o",D130,IF(E133="o",E130,IF(F133="o",F130,"")))) ->  | G147: =IF(G133="o",G130,IF(H133="o",H130,IF(I133="o",I130,IF(J133="o",J130,"")))) ->  | K147: =IF(K133="o",K130,IF(L133="o",L130,IF(M133="o",M130,IF(N133="o",N130,"")))) ->  | P147: =B133 -> Radon | Q147: Rayon | U147: 1900 | Y147: Prévention séisme
B148: =B134 -> Xénon | C148: =IF(C134="o",C130,IF(D134="o",D130,IF(E134="o",E130,IF(F134="o",F130,"")))) ->  | G148: =IF(G134="o",G130,IF(H134="o",H130,IF(I134="o",I130,IF(J134="o",J130,"")))) ->  | K148: =IF(K134="o",K130,IF(L134="o",L130,IF(M134="o",M130,IF(N134="o",N130,"")))) ->  | P148: =B134 -> Xénon | Q148: Etranger | U148: 1898 | Y148: Anesthésie
A151: XVII°/ les Maîtresses de Louis XIV :
A152: =INDIRECT("'Calculs 4 indices'!B"&A155) ->  | N152: =INDIRECT("'Calculs 4 indices'!M"&(A155+16)) -> 
A153: =INDIRECT("'Calculs 4 indices'!B"&(A155+26)) ->  | N153: =INDIRECT("'Calculs 4 indices'!M"&(A155+17)) -> 
C154: Mortes à | G154: =A164 -> Enfants | K154: =A160 -> Rang | AE154: =C154 -> Mortes à | AI154: =G154 -> Enfants | AM154: =K154 -> Rang
A155: =A130+52 -> 313 | C155: 20 | D155: 66 | E155: 67 | F155: 84 | G155: 0 | H155: 1 | I155: 6 | J155: 8 | K155: 1 | L155: 2 | M155: 3 | N155: 4 | P155: Louis IV a eu plusieurs maîtresses parmi lesquelles Madame de Maintenon , Madame de Montespan , Louise de La Vallière ainsi que Marie Angélique de Fontanges, mais combien d'enfants a t-il eu avec chacune d'elle ? dans quel ordre les a t-il rencontré ? à quel âge sont elles mortes ? | AE155: =C155 -> 20 | AF155: =D155 -> 66 | AG155: =E155 -> 67 | AH155: =F155 -> 84 | AI155: =G155 -> 0 | AJ155: =H155 -> 1 | AK155: =I155 -> 6 | AL155: =J155 -> 8 | AM155: =K155 -> 1 | AN155: =L155 -> 2 | AO155: =M155 -> 3 | AP155: =N155 -> 4
A156: Maîtresses | B156: Louise de La Vallière | AC156: =A156 -> Maîtresses | AD156: =B156 -> Louise de La Vallière | AE156: =IF(OR(D156="o",E156="o",F156="o",C157="o",C158="o",C159="o",C156="x"),"x",IF(OR(C156="o",AND(D156="x",E156="x",F156="x"),AND(C157="x",C158="x",C159="x")),"o","")) ->  | AF156: =IF(OR(C156="o",E156="o",F156="o",D157="o",D158="o",D159="o",D156="x"),"x",IF(OR(D156="o",AND(C156="x",E156="x",F156="x"),AND(D157="x",D158="x",D159="x")),"o","")) ->  | AG156: =IF(OR(C156="o",D156="o",F156="o",E157="o",E158="o",E159="o",E156="x"),"x",IF(OR(E156="o",AND(C156="x",D156="x",F156="x"),AND(E157="x",E158="x",E159="x")),"o","")) ->  | AH156: =IF(OR(C156="o",D156="o",E156="o",F157="o",F158="o",F159="o",F156="x"),"x",IF(OR(F156="o",AND(C156="x",D156="x",E156="x"),AND(F157="x",F158="x",F159="x")),"o","")) ->  | AI156: =IF(OR(H156="o",I156="o",J156="o",G157="o",G158="o",G159="o",G156="x"),"x",IF(OR(G156="o",AND(H156="x",I156="x",J156="x"),AND(G157="x",G158="x",G159="x")),"o","")) ->  | AJ156: =IF(OR(G156="o",I156="o",J156="o",H157="o",H158="o",H159="o",H156="x"),"x",IF(OR(H156="o",AND(G156="x",I156="x",J156="x"),AND(H157="x",H158="x",H159="x")),"o","")) ->  | AK156: =IF(OR(G156="o",H156="o",J156="o",I157="o",I158="o",I159="o",I156="x"),"x",IF(OR(I156="o",AND(G156="x",H156="x",J156="x"),AND(I157="x",I158="x",I159="x")),"o","")) ->  | AL156: =IF(OR(G156="o",H156="o",I156="o",J157="o",J158="o",J159="o",J156="x"),"x",IF(OR(J156="o",AND(G156="x",H156="x",I156="x"),AND(J157="x",J158="x",J159="x")),"o","")) ->  | AM156: =IF(OR(L156="o",M156="o",N156="o",K157="o",K158="o",K159="o",K156="x"),"x",IF(OR(K156="o",AND(L156="x",M156="x",N156="x"),AND(K157="x",K158="x",K159="x")),"o","")) ->  | AN156: =IF(OR(K156="o",M156="o",N156="o",L157="o",L158="o",L159="o",L156="x"),"x",IF(OR(L156="o",AND(K156="x",M156="x",N156="x"),AND(L157="x",L158="x",L159="x")),"o","")) ->  | AO156: =IF(OR(K156="o",L156="o",N156="o",M157="o",M158="o",M159="o",M156="x"),"x",IF(OR(M156="o",AND(K156="x",L156="x",N156="x"),AND(M157="x",M158="x",M159="x")),"o","")) ->  | AP156: =IF(OR(K156="o",L156="o",M156="o",N157="o",N158="o",N159="o",N156="x"),"x",IF(OR(N156="o",AND(K156="x",L156="x",M156="x"),AND(N157="x",N158="x",N159="x")),"o","")) -> 
B157: Madame de Montespan | P157: 1°/ La maîtresse qui a vécu jusqu'à 67 ans n'est pas Louise | AD157: =B157 -> Madame de Montespan | AE157: =IF(OR(D157="o",E157="o",F157="o",C156="o",C158="o",C159="o",C157="x"),"x",IF(OR(C157="o",AND(D157="x",E157="x",F157="x"),AND(C156="x",C158="x",C159="x")),"o","")) ->  | AF157: =IF(OR(C157="o",E157="o",F157="o",D156="o",D158="o",D159="o",D157="x"),"x",IF(OR(D157="o",AND(C157="x",E157="x",F157="x"),AND(D156="x",D158="x",D159="x")),"o","")) ->  | AG157: =IF(OR(C157="o",D157="o",F157="o",E156="o",E158="o",E159="o",E157="x"),"x",IF(OR(E157="o",AND(C157="x",D157="x",F157="x"),AND(E156="x",E158="x",E159="x")),"o","")) ->  | AH157: =IF(OR(C157="o",D157="o",E157="o",F156="o",F158="o",F159="o",F157="x"),"x",IF(OR(F157="o",AND(C157="x",D157="x",E157="x"),AND(F156="x",F158="x",F159="x")),"o","")) ->  | AI157: =IF(OR(H157="o",I157="o",J157="o",G156="o",G158="o",G159="o",G157="x"),"x",IF(OR(G157="o",AND(H157="x",I157="x",J157="x"),AND(G156="x",G158="x",G159="x")),"o","")) ->  | AJ157: =IF(OR(G157="o",I157="o",J157="o",H156="o",H158="o",H159="o",H157="x"),"x",IF(OR(H157="o",AND(G157="x",I157="x",J157="x"),AND(H156="x",H158="x",H159="x")),"o","")) ->  | AK157: =IF(OR(G157="o",H157="o",J157="o",I156="o",I158="o",I159="o",I157="x"),"x",IF(OR(I157="o",AND(G157="x",H157="x",J157="x"),AND(I156="x",I158="x",I159="x")),"o","")) ->  | AL157: =IF(OR(G157="o",H157="o",I157="o",J156="o",J158="o",J159="o",J157="x"),"x",IF(OR(J157="o",AND(G157="x",H157="x",I157="x"),AND(J156="x",J158="x",J159="x")),"o","")) ->  | AM157: =IF(OR(L157="o",M157="o",N157="o",K156="o",K158="o",K159="o",K157="x"),"x",IF(OR(K157="o",AND(L157="x",M157="x",N157="x"),AND(K156="x",K158="x",K159="x")),"o","")) ->  | AN157: =IF(OR(K157="o",M157="o",N157="o",L156="o",L158="o",L159="o",L157="x"),"x",IF(OR(L157="o",AND(K157="x",M157="x",N157="x"),AND(L156="x",L158="x",L159="x")),"o","")) ->  | AO157: =IF(OR(K157="o",L157="o",N157="o",M156="o",M158="o",M159="o",M157="x"),"x",IF(OR(M157="o",AND(K157="x",L157="x",N157="x"),AND(M156="x",M158="x",M159="x")),"o","")) ->  | AP157: =IF(OR(K157="o",L157="o",M157="o",N156="o",N158="o",N159="o",N157="x"),"x",IF(OR(N157="o",AND(K157="x",L157="x",M157="x"),AND(N156="x",N158="x",N159="x")),"o","")) -> 
B158: Madame de Maintenon | P158: de La Vallière, n'a pas eu 6 enfants avec Louis XIV et n'est | AD158: Madame de Maintenon | AE158: =IF(OR(D158="o",E158="o",F158="o",C156="o",C157="o",C159="o",C158="x"),"x",IF(OR(C158="o",AND(D158="x",E158="x",F158="x"),AND(C156="x",C157="x",C159="x")),"o","")) ->  | AF158: =IF(OR(C158="o",E158="o",F158="o",D156="o",D157="o",D159="o",D158="x"),"x",IF(OR(D158="o",AND(C158="x",E158="x",F158="x"),AND(D156="x",D157="x",D159="x")),"o","")) ->  | AG158: =IF(OR(C158="o",D158="o",F158="o",E156="o",E157="o",E159="o",E158="x"),"x",IF(OR(E158="o",AND(C158="x",D158="x",F158="x"),AND(E156="x",E157="x",E159="x")),"o","")) ->  | AH158: =IF(OR(C158="o",D158="o",E158="o",F156="o",F157="o",F159="o",F158="x"),"x",IF(OR(F158="o",AND(C158="x",D158="x",E158="x"),AND(F156="x",F157="x",F159="x")),"o","")) ->  | AI158: =IF(OR(H158="o",I158="o",J158="o",G156="o",G157="o",G159="o",G158="x"),"x",IF(OR(G158="o",AND(H158="x",I158="x",J158="x"),AND(G156="x",G157="x",G159="x")),"o","")) ->  | AJ158: =IF(OR(G158="o",I158="o",J158="o",H156="o",H157="o",H159="o",H158="x"),"x",IF(OR(H158="o",AND(G158="x",I158="x",J158="x"),AND(H156="x",H157="x",H159="x")),"o","")) ->  | AK158: =IF(OR(G158="o",H158="o",J158="o",I156="o",I157="o",I159="o",I158="x"),"x",IF(OR(I158="o",AND(G158="x",H158="x",J158="x"),AND(I156="x",I157="x",I159="x")),"o","")) ->  | AL158: =IF(OR(G158="o",H158="o",I158="o",J156="o",J157="o",J159="o",J158="x"),"x",IF(OR(J158="o",AND(G158="x",H158="x",I158="x"),AND(J156="x",J157="x",J159="x")),"o","")) ->  | AM158: =IF(OR(L158="o",M158="o",N158="o",K156="o",K157="o",K159="o",K158="x"),"x",IF(OR(K158="o",AND(L158="x",M158="x",N158="x"),AND(K156="x",K157="x",K159="x")),"o","")) ->  | AN158: =IF(OR(K158="o",M158="o",N158="o",L156="o",L157="o",L159="o",L158="x"),"x",IF(OR(L158="o",AND(K158="x",M158="x",N158="x"),AND(L156="x",L157="x",L159="x")),"o","")) ->  | AO158: =IF(OR(K158="o",L158="o",N158="o",M156="o",M157="o",M159="o",M158="x"),"x",IF(OR(M158="o",AND(K158="x",L158="x",N158="x"),AND(M156="x",M157="x",M159="x")),"o","")) ->  | AP158: =IF(OR(K158="o",L158="o",M158="o",N156="o",N157="o",N159="o",N158="x"),"x",IF(OR(N158="o",AND(K158="x",L158="x",M158="x"),AND(N156="x",N157="x",N159="x")),"o","")) -> 
B159: Marie Angélique de Fontanges | P159: pas la première maîtresse de Louis XIV. | AD159: Marie Angélique de Fontanges | AE159: =IF(OR(D159="o",E159="o",F159="o",C156="o",C157="o",C158="o",C159="x"),"x",IF(OR(C159="o",AND(D159="x",E159="x",F159="x"),AND(C156="x",C157="x",C158="x")),"o","")) ->  | AF159: =IF(OR(C159="o",E159="o",F159="o",D156="o",D157="o",D158="o",D159="x"),"x",IF(OR(D159="o",AND(C159="x",E159="x",F159="x"),AND(D156="x",D157="x",D158="x")),"o","")) ->  | AG159: =IF(OR(C159="o",D159="o",F159="o",E156="o",E157="o",E158="o",E159="x"),"x",IF(OR(E159="o",AND(C159="x",D159="x",F159="x"),AND(E156="x",E157="x",E158="x")),"o","")) ->  | AH159: =IF(OR(C159="o",D159="o",E159="o",F156="o",F157="o",F158="o",F159="x"),"x",IF(OR(F159="o",AND(C159="x",D159="x",E159="x"),AND(F156="x",F157="x",F158="x")),"o","")) ->  | AI159: =IF(OR(H159="o",I159="o",J159="o",G156="o",G157="o",G158="o",G159="x"),"x",IF(OR(G159="o",AND(H159="x",I159="x",J159="x"),AND(G156="x",G157="x",G158="x")),"o","")) ->  | AJ159: =IF(OR(G159="o",I159="o",J159="o",H156="o",H157="o",H158="o",H159="x"),"x",IF(OR(H159="o",AND(G159="x",I159="x",J159="x"),AND(H156="x",H157="x",H158="x")),"o","")) ->  | AK159: =IF(OR(G159="o",H159="o",J159="o",I156="o",I157="o",I158="o",I159="x"),"x",IF(OR(I159="o",AND(G159="x",H159="x",J159="x"),AND(I156="x",I157="x",I158="x")),"o","")) ->  | AL159: =IF(OR(G159="o",H159="o",I159="o",J156="o",J157="o",J158="o",J159="x"),"x",IF(OR(J159="o",AND(G159="x",H159="x",I159="x"),AND(J156="x",J157="x",J158="x")),"o","")) ->  | AM159: =IF(OR(L159="o",M159="o",N159="o",K156="o",K157="o",K158="o",K159="x"),"x",IF(OR(K159="o",AND(L159="x",M159="x",N159="x"),AND(K156="x",K157="x",K158="x")),"o","")) ->  | AN159: =IF(OR(K159="o",M159="o",N159="o",L156="o",L157="o",L158="o",L159="x"),"x",IF(OR(L159="o",AND(K159="x",M159="x",N159="x"),AND(L156="x",L157="x",L158="x")),"o","")) ->  | AO159: =IF(OR(K159="o",L159="o",N159="o",M156="o",M157="o",M158="o",M159="x"),"x",IF(OR(M159="o",AND(K159="x",L159="x",N159="x"),AND(M156="x",M157="x",M158="x")),"o","")) ->  | AP159: =IF(OR(K159="o",L159="o",M159="o",N156="o",N157="o",N158="o",N159="x"),"x",IF(OR(N159="o",AND(K159="x",L159="x",M159="x"),AND(N156="x",N157="x",N158="x")),"o","")) -> 
A160: Rang | B160: 1 | P160: 2°/ La dernière maîtresse de Louis XIV, qui a vécu le moins | AC160: =A160 -> Rang | AD160: 1 | AE160: =IF(OR(D160="o",E160="o",F160="o",C161="o",C162="o",C163="o",C160="x"),"x",IF(OR(C160="o",AND(D160="x",E160="x",F160="x"),AND(C161="x",C162="x",C163="x")),"o","")) ->  | AF160: =IF(OR(C160="o",E160="o",F160="o",D161="o",D162="o",D163="o",D160="x"),"x",IF(OR(D160="o",AND(C160="x",E160="x",F160="x"),AND(D161="x",D162="x",D163="x")),"o","")) ->  | AG160: =IF(OR(C160="o",D160="o",F160="o",E161="o",E162="o",E163="o",E160="x"),"x",IF(OR(E160="o",AND(C160="x",D160="x",F160="x"),AND(E161="x",E162="x",E163="x")),"o","")) ->  | AH160: =IF(OR(C160="o",D160="o",E160="o",F161="o",F162="o",F163="o",F160="x"),"x",IF(OR(F160="o",AND(C160="x",D160="x",E160="x"),AND(F161="x",F162="x",F163="x")),"o","")) ->  | AI160: =IF(OR(H160="o",I160="o",J160="o",G161="o",G162="o",G163="o",G160="x"),"x",IF(OR(G160="o",AND(H160="x",I160="x",J160="x"),AND(G161="x",G162="x",G163="x")),"o","")) ->  | AJ160: =IF(OR(G160="o",I160="o",J160="o",H161="o",H162="o",H163="o",H160="x"),"x",IF(OR(H160="o",AND(G160="x",I160="x",J160="x"),AND(H161="x",H162="x",H163="x")),"o","")) ->  | AK160: =IF(OR(G160="o",H160="o",J160="o",I161="o",I162="o",I163="o",I160="x"),"x",IF(OR(I160="o",AND(G160="x",H160="x",J160="x"),AND(I161="x",I162="x",I163="x")),"o","")) ->  | AL160: =IF(OR(G160="o",H160="o",I160="o",J161="o",J162="o",J163="o",J160="x"),"x",IF(OR(J160="o",AND(G160="x",H160="x",I160="x"),AND(J161="x",J162="x",J163="x")),"o","")) -> 
B161: 2 | P161: longtemps, n'est ni Louise de La Vallière ni Madame de | AD161: 2 | AE161: =IF(OR(D161="o",E161="o",F161="o",C160="o",C162="o",C163="o",C161="x"),"x",IF(OR(C161="o",AND(D161="x",E161="x",F161="x"),AND(C160="x",C162="x",C163="x")),"o","")) ->  | AF161: =IF(OR(C161="o",E161="o",F161="o",D160="o",D162="o",D163="o",D161="x"),"x",IF(OR(D161="o",AND(C161="x",E161="x",F161="x"),AND(D160="x",D162="x",D163="x")),"o","")) ->  | AG161: =IF(OR(C161="o",D161="o",F161="o",E160="o",E162="o",E163="o",E161="x"),"x",IF(OR(E161="o",AND(C161="x",D161="x",F161="x"),AND(E160="x",E162="x",E163="x")),"o","")) ->  | AH161: =IF(OR(C161="o",D161="o",E161="o",F160="o",F162="o",F163="o",F161="x"),"x",IF(OR(F161="o",AND(C161="x",D161="x",E161="x"),AND(F160="x",F162="x",F163="x")),"o","")) ->  | AI161: =IF(OR(H161="o",I161="o",J161="o",G160="o",G162="o",G163="o",G161="x"),"x",IF(OR(G161="o",AND(H161="x",I161="x",J161="x"),AND(G160="x",G162="x",G163="x")),"o","")) ->  | AJ161: =IF(OR(G161="o",I161="o",J161="o",H160="o",H162="o",H163="o",H161="x"),"x",IF(OR(H161="o",AND(G161="x",I161="x",J161="x"),AND(H160="x",H162="x",H163="x")),"o","")) ->  | AK161: =IF(OR(G161="o",H161="o",J161="o",I160="o",I162="o",I163="o",I161="x"),"x",IF(OR(I161="o",AND(G161="x",H161="x",J161="x"),AND(I160="x",I162="x",I163="x")),"o","")) ->  | AL161: =IF(OR(G161="o",H161="o",I161="o",J160="o",J162="o",J163="o",J161="x"),"x",IF(OR(J161="o",AND(G161="x",H161="x",I161="x"),AND(J160="x",J162="x",J163="x")),"o","")) -> 
B162: 3 | P162: Montespan et n'a eu ni 8, ni 6 enfants. | AD162: 3 | AE162: =IF(OR(D162="o",E162="o",F162="o",C160="o",C161="o",C163="o",C162="x"),"x",IF(OR(C162="o",AND(D162="x",E162="x",F162="x"),AND(C160="x",C161="x",C163="x")),"o","")) ->  | AF162: =IF(OR(C162="o",E162="o",F162="o",D160="o",D161="o",D163="o",D162="x"),"x",IF(OR(D162="o",AND(C162="x",E162="x",F162="x"),AND(D160="x",D161="x",D163="x")),"o","")) ->  | AG162: =IF(OR(C162="o",D162="o",F162="o",E160="o",E161="o",E163="o",E162="x"),"x",IF(OR(E162="o",AND(C162="x",D162="x",F162="x"),AND(E160="x",E161="x",E163="x")),"o","")) ->  | AH162: =IF(OR(C162="o",D162="o",E162="o",F160="o",F161="o",F163="o",F162="x"),"x",IF(OR(F162="o",AND(C162="x",D162="x",E162="x"),AND(F160="x",F161="x",F163="x")),"o","")) ->  | AI162: =IF(OR(H162="o",I162="o",J162="o",G160="o",G161="o",G163="o",G162="x"),"x",IF(OR(G162="o",AND(H162="x",I162="x",J162="x"),AND(G160="x",G161="x",G163="x")),"o","")) ->  | AJ162: =IF(OR(G162="o",I162="o",J162="o",H160="o",H161="o",H163="o",H162="x"),"x",IF(OR(H162="o",AND(G162="x",I162="x",J162="x"),AND(H160="x",H161="x",H163="x")),"o","")) ->  | AK162: =IF(OR(G162="o",H162="o",J162="o",I160="o",I161="o",I163="o",I162="x"),"x",IF(OR(I162="o",AND(G162="x",H162="x",J162="x"),AND(I160="x",I161="x",I163="x")),"o","")) ->  | AL162: =IF(OR(G162="o",H162="o",I162="o",J160="o",J161="o",J163="o",J162="x"),"x",IF(OR(J162="o",AND(G162="x",H162="x",I162="x"),AND(J160="x",J161="x",J163="x")),"o","")) -> 
B163: 4 | P163: 3°/ Madame de Maintenon morte a 84 ans n'a pas eu | AD163: 4 | AE163: =IF(OR(D163="o",E163="o",F163="o",C160="o",C161="o",C162="o",C163="x"),"x",IF(OR(C163="o",AND(D163="x",E163="x",F163="x"),AND(C160="x",C161="x",C162="x")),"o","")) ->  | AF163: =IF(OR(C163="o",E163="o",F163="o",D160="o",D161="o",D162="o",D163="x"),"x",IF(OR(D163="o",AND(C163="x",E163="x",F163="x"),AND(D160="x",D161="x",D162="x")),"o","")) ->  | AG163: =IF(OR(C163="o",D163="o",F163="o",E160="o",E161="o",E162="o",E163="x"),"x",IF(OR(E163="o",AND(C163="x",D163="x",F163="x"),AND(E160="x",E161="x",E162="x")),"o","")) ->  | AH163: =IF(OR(C163="o",D163="o",E163="o",F160="o",F161="o",F162="o",F163="x"),"x",IF(OR(F163="o",AND(C163="x",D163="x",E163="x"),AND(F160="x",F161="x",F162="x")),"o","")) ->  | AI163: =IF(OR(H163="o",I163="o",J163="o",G160="o",G161="o",G162="o",G163="x"),"x",IF(OR(G163="o",AND(H163="x",I163="x",J163="x"),AND(G160="x",G161="x",G162="x")),"o","")) ->  | AJ163: =IF(OR(G163="o",I163="o",J163="o",H160="o",H161="o",H162="o",H163="x"),"x",IF(OR(H163="o",AND(G163="x",I163="x",J163="x"),AND(H160="x",H161="x",H162="x")),"o","")) ->  | AK163: =IF(OR(G163="o",H163="o",J163="o",I160="o",I161="o",I162="o",I163="x"),"x",IF(OR(I163="o",AND(G163="x",H163="x",J163="x"),AND(I160="x",I161="x",I162="x")),"o","")) ->  | AL163: =IF(OR(G163="o",H163="o",I163="o",J160="o",J161="o",J162="o",J163="x"),"x",IF(OR(J163="o",AND(G163="x",H163="x",I163="x"),AND(J160="x",J161="x",J162="x")),"o","")) -> 
A164: Enfants | B164: 0 enfant | P164: d'enfant avec Louis XIV , elle n'est ni la deuxième ni la | AC164: =A164 -> Enfants | AD164: 0 enfant | AE164: =IF(OR(D164="o",E164="o",F164="o",C165="o",C166="o",C167="o",C164="x"),"x",IF(OR(C164="o",AND(D164="x",E164="x",F164="x"),AND(C165="x",C166="x",C167="x")),"o","")) ->  | AF164: =IF(OR(C164="o",E164="o",F164="o",D165="o",D166="o",D167="o",D164="x"),"x",IF(OR(D164="o",AND(C164="x",E164="x",F164="x"),AND(D165="x",D166="x",D167="x")),"o","")) ->  | AG164: =IF(OR(C164="o",D164="o",F164="o",E165="o",E166="o",E167="o",E164="x"),"x",IF(OR(E164="o",AND(C164="x",D164="x",F164="x"),AND(E165="x",E166="x",E167="x")),"o","")) ->  | AH164: =IF(OR(C164="o",D164="o",E164="o",F165="o",F166="o",F167="o",F164="x"),"x",IF(OR(F164="o",AND(C164="x",D164="x",E164="x"),AND(F165="x",F166="x",F167="x")),"o","")) -> 
B165: 1 enfant | H165: =IF(AND(C170=Q170,G170=U170,K170=Y170,C171=Q171,G171=U171,K171=Y171,C172=Q172,G172=U172,K172=Y172,C173=Q173,G173=U173,K173=Y173),"BRAVO !!","") ->  | P165: première maîtresse de Louis. | AD165: 1 enfant | AE165: =IF(OR(D165="o",E165="o",F165="o",C164="o",C166="o",C167="o",C165="x"),"x",IF(OR(C165="o",AND(D165="x",E165="x",F165="x"),AND(C164="x",C166="x",C167="x")),"o","")) ->  | AF165: =IF(OR(C165="o",E165="o",F165="o",D164="o",D166="o",D167="o",D165="x"),"x",IF(OR(D165="o",AND(C165="x",E165="x",F165="x"),AND(D164="x",D166="x",D167="x")),"o","")) ->  | AG165: =IF(OR(C165="o",D165="o",F165="o",E164="o",E166="o",E167="o",E165="x"),"x",IF(OR(E165="o",AND(C165="x",D165="x",F165="x"),AND(E164="x",E166="x",E167="x")),"o","")) ->  | AH165: =IF(OR(C165="o",D165="o",E165="o",F164="o",F166="o",F167="o",F165="x"),"x",IF(OR(F165="o",AND(C165="x",D165="x",E165="x"),AND(F164="x",F166="x",F167="x")),"o","")) -> 
B166: 6 enfants | AD166: 6 enfants | AE166: =IF(OR(D166="o",E166="o",F166="o",C164="o",C165="o",C167="o",C166="x"),"x",IF(OR(C166="o",AND(D166="x",E166="x",F166="x"),AND(C164="x",C165="x",C167="x")),"o","")) ->  | AF166: =IF(OR(C166="o",E166="o",F166="o",D164="o",D165="o",D167="o",D166="x"),"x",IF(OR(D166="o",AND(C166="x",E166="x",F166="x"),AND(D164="x",D165="x",D167="x")),"o","")) ->  | AG166: =IF(OR(C166="o",D166="o",F166="o",E164="o",E165="o",E167="o",E166="x"),"x",IF(OR(E166="o",AND(C166="x",D166="x",F166="x"),AND(E164="x",E165="x",E167="x")),"o","")) ->  | AH166: =IF(OR(C166="o",D166="o",E166="o",F164="o",F165="o",F167="o",F166="x"),"x",IF(OR(F166="o",AND(C166="x",D166="x",E166="x"),AND(F164="x",F165="x",F167="x")),"o","")) -> 
B167: 8 enfants | AD167: 8 enfants | AE167: =IF(OR(D167="o",E167="o",F167="o",C164="o",C165="o",C166="o",C167="x"),"x",IF(OR(C167="o",AND(D167="x",E167="x",F167="x"),AND(C164="x",C165="x",C166="x")),"o","")) ->  | AF167: =IF(OR(C167="o",E167="o",F167="o",D164="o",D165="o",D166="o",D167="x"),"x",IF(OR(D167="o",AND(C167="x",E167="x",F167="x"),AND(D164="x",D165="x",D166="x")),"o","")) ->  | AG167: =IF(OR(C167="o",D167="o",F167="o",E164="o",E165="o",E166="o",E167="x"),"x",IF(OR(E167="o",AND(C167="x",D167="x",F167="x"),AND(E164="x",E165="x",E166="x")),"o","")) ->  | AH167: =IF(OR(C167="o",D167="o",E167="o",F164="o",F165="o",F166="o",F167="x"),"x",IF(OR(F167="o",AND(C167="x",D167="x",E167="x"),AND(F164="x",F165="x",F166="x")),"o","")) -> 
B169: Réponses : | C169: =C154 -> Mortes à | G169: =G154 -> Enfants | K169: =K154 -> Rang | Q169: =C154 -> Mortes à | U169: =G154 -> Enfants | Y169: =K154 -> Rang
B170: =B156 -> Louise de La Vallière | C170: =IF(C156="o",C155,IF(D156="o",D155,IF(E156="o",E155,IF(F156="o",F155,"")))) ->  | G170: =IF(G156="o",G155,IF(H156="o",H155,IF(I156="o",I155,IF(J156="o",J155,"")))) ->  | K170: =IF(K156="o",K155,IF(L156="o",L155,IF(M156="o",M155,IF(N156="o",N155,"")))) ->  | P170: =B156 -> Louise de La Vallière | Q170: 66 | U170: 6 | Y170: 1
B171: =B157 -> Madame de Montespan | C171: =IF(C157="o",C155,IF(D157="o",D155,IF(E157="o",E155,IF(F157="o",F155,"")))) ->  | G171: =IF(G157="o",G155,IF(H157="o",H155,IF(I157="o",I155,IF(J157="o",J155,"")))) ->  | K171: =IF(K157="o",K155,IF(L157="o",L155,IF(M157="o",M155,IF(N157="o",N155,"")))) ->  | P171: =B157 -> Madame de Montespan | Q171: 67 | U171: 8 | Y171: 2
B172: =B158 -> Madame de Maintenon | C172: =IF(C158="o",C155,IF(D158="o",D155,IF(E158="o",E155,IF(F158="o",F155,"")))) ->  | G172: =IF(G158="o",G155,IF(H158="o",H155,IF(I158="o",I155,IF(J158="o",J155,"")))) ->  | K172: =IF(K158="o",K155,IF(L158="o",L155,IF(M158="o",M155,IF(N158="o",N155,"")))) ->  | P172: =B158 -> Madame de Maintenon | Q172: 84 | U172: 0 | Y172: 3
B173: =B159 -> Marie Angélique de Fontanges | C173: =IF(C159="o",C155,IF(D159="o",D155,IF(E159="o",E155,IF(F159="o",F155,"")))) ->  | G173: =IF(G159="o",G155,IF(H159="o",H155,IF(I159="o",I155,IF(J159="o",J155,"")))) ->  | K173: =IF(K159="o",K155,IF(L159="o",L155,IF(M159="o",M155,IF(N159="o",N155,"")))) ->  | P173: =B159 -> Marie Angélique de Fontanges | Q173: 20 | U173: 1 | Y173: 4
A176: XVIII°/ Les atomes :
A177: =INDIRECT("'Calculs 4 indices'!B"&A180) ->  | N177: =INDIRECT("'Calculs 4 indices'!M"&(A180+16)) -> 
A178: =INDIRECT("'Calculs 4 indices'!B"&(A180+26)) ->  | N178: =INDIRECT("'Calculs 4 indices'!M"&(A180+17)) -> 
C179: Symbole | G179: =A189 -> Densité | K179: =A185 -> NA | AE179: =C179 -> Symbole | AI179: =G179 -> Densité | AM179: =K179 -> NA
A180: =A155+52 -> 365 | C180: Sb | D180: Au | E180: Hg | F180: W | G180: =B189 -> 6,68 g/cm3 | H180: =B190 -> 13,55 g/cm3 | I180: =B191 -> 19,32 g/cm3 | J180: =B192 -> 19,35 g/cm3 | K180: =B185 -> 51 | L180: =B186 -> 74 | M180: =B187 -> 79 | N180: =B188 -> 80 | P180: Retrouvez les symboles, les numéros atomiques NA et les densités des 4 atomes suivants. | AE180: =C180 -> Sb | AF180: =D180 -> Au | AG180: =E180 -> Hg | AH180: =F180 -> W | AI180: =G180 -> 6,68 g/cm3 | AJ180: =H180 -> 13,55 g/cm3 | AK180: =I180 -> 19,32 g/cm3 | AL180: =J180 -> 19,35 g/cm3 | AM180: =K180 -> 51 | AN180: =L180 -> 74 | AO180: =M180 -> 79 | AP180: =N180 -> 80
A181: Atome | B181: Tungstène | AC181: =A181 -> Atome | AD181: =B181 -> Tungstène | AE181: =IF(OR(D181="o",E181="o",F181="o",C182="o",C183="o",C184="o",C181="x"),"x",IF(OR(C181="o",AND(D181="x",E181="x",F181="x"),AND(C182="x",C183="x",C184="x")),"o","")) ->  | AF181: =IF(OR(C181="o",E181="o",F181="o",D182="o",D183="o",D184="o",D181="x"),"x",IF(OR(D181="o",AND(C181="x",E181="x",F181="x"),AND(D182="x",D183="x",D184="x")),"o","")) ->  | AG181: =IF(OR(C181="o",D181="o",F181="o",E182="o",E183="o",E184="o",E181="x"),"x",IF(OR(E181="o",AND(C181="x",D181="x",F181="x"),AND(E182="x",E183="x",E184="x")),"o","")) ->  | AH181: =IF(OR(C181="o",D181="o",E181="o",F182="o",F183="o",F184="o",F181="x"),"x",IF(OR(F181="o",AND(C181="x",D181="x",E181="x"),AND(F182="x",F183="x",F184="x")),"o","")) ->  | AI181: =IF(OR(H181="o",I181="o",J181="o",G182="o",G183="o",G184="o",G181="x"),"x",IF(OR(G181="o",AND(H181="x",I181="x",J181="x"),AND(G182="x",G183="x",G184="x")),"o","")) ->  | AJ181: =IF(OR(G181="o",I181="o",J181="o",H182="o",H183="o",H184="o",H181="x"),"x",IF(OR(H181="o",AND(G181="x",I181="x",J181="x"),AND(H182="x",H183="x",H184="x")),"o","")) ->  | AK181: =IF(OR(G181="o",H181="o",J181="o",I182="o",I183="o",I184="o",I181="x"),"x",IF(OR(I181="o",AND(G181="x",H181="x",J181="x"),AND(I182="x",I183="x",I184="x")),"o","")) ->  | AL181: =IF(OR(G181="o",H181="o",I181="o",J182="o",J183="o",J184="o",J181="x"),"x",IF(OR(J181="o",AND(G181="x",H181="x",I181="x"),AND(J182="x",J183="x",J184="x")),"o","")) ->  | AM181: =IF(OR(L181="o",M181="o",N181="o",K182="o",K183="o",K184="o",K181="x"),"x",IF(OR(K181="o",AND(L181="x",M181="x",N181="x"),AND(K182="x",K183="x",K184="x")),"o","")) ->  | AN181: =IF(OR(K181="o",M181="o",N181="o",L182="o",L183="o",L184="o",L181="x"),"x",IF(OR(L181="o",AND(K181="x",M181="x",N181="x"),AND(L182="x",L183="x",L184="x")),"o","")) ->  | AO181: =IF(OR(K181="o",L181="o",N181="o",M182="o",M183="o",M184="o",M181="x"),"x",IF(OR(M181="o",AND(K181="x",L181="x",N181="x"),AND(M182="x",M183="x",M184="x")),"o","")) ->  | AP181: =IF(OR(K181="o",L181="o",M181="o",N182="o",N183="o",N184="o",N181="x"),"x",IF(OR(N181="o",AND(K181="x",L181="x",M181="x"),AND(N182="x",N183="x",N184="x")),"o","")) -> 
B182: Mercure | P182: 1°/ L' Antimoine de symbole Sb a un numéro atomique plus | AD182: =B182 -> Mercure | AE182: =IF(OR(D182="o",E182="o",F182="o",C181="o",C183="o",C184="o",C182="x"),"x",IF(OR(C182="o",AND(D182="x",E182="x",F182="x"),AND(C181="x",C183="x",C184="x")),"o","")) ->  | AF182: =IF(OR(C182="o",E182="o",F182="o",D181="o",D183="o",D184="o",D182="x"),"x",IF(OR(D182="o",AND(C182="x",E182="x",F182="x"),AND(D181="x",D183="x",D184="x")),"o","")) ->  | AG182: =IF(OR(C182="o",D182="o",F182="o",E181="o",E183="o",E184="o",E182="x"),"x",IF(OR(E182="o",AND(C182="x",D182="x",F182="x"),AND(E181="x",E183="x",E184="x")),"o","")) ->  | AH182: =IF(OR(C182="o",D182="o",E182="o",F181="o",F183="o",F184="o",F182="x"),"x",IF(OR(F182="o",AND(C182="x",D182="x",E182="x"),AND(F181="x",F183="x",F184="x")),"o","")) ->  | AI182: =IF(OR(H182="o",I182="o",J182="o",G181="o",G183="o",G184="o",G182="x"),"x",IF(OR(G182="o",AND(H182="x",I182="x",J182="x"),AND(G181="x",G183="x",G184="x")),"o","")) ->  | AJ182: =IF(OR(G182="o",I182="o",J182="o",H181="o",H183="o",H184="o",H182="x"),"x",IF(OR(H182="o",AND(G182="x",I182="x",J182="x"),AND(H181="x",H183="x",H184="x")),"o","")) ->  | AK182: =IF(OR(G182="o",H182="o",J182="o",I181="o",I183="o",I184="o",I182="x"),"x",IF(OR(I182="o",AND(G182="x",H182="x",J182="x"),AND(I181="x",I183="x",I184="x")),"o","")) ->  | AL182: =IF(OR(G182="o",H182="o",I182="o",J181="o",J183="o",J184="o",J182="x"),"x",IF(OR(J182="o",AND(G182="x",H182="x",I182="x"),AND(J181="x",J183="x",J184="x")),"o","")) ->  | AM182: =IF(OR(L182="o",M182="o",N182="o",K181="o",K183="o",K184="o",K182="x"),"x",IF(OR(K182="o",AND(L182="x",M182="x",N182="x"),AND(K181="x",K183="x",K184="x")),"o","")) ->  | AN182: =IF(OR(K182="o",M182="o",N182="o",L181="o",L183="o",L184="o",L182="x"),"x",IF(OR(L182="o",AND(K182="x",M182="x",N182="x"),AND(L181="x",L183="x",L184="x")),"o","")) ->  | AO182: =IF(OR(K182="o",L182="o",N182="o",M181="o",M183="o",M184="o",M182="x"),"x",IF(OR(M182="o",AND(K182="x",L182="x",N182="x"),AND(M181="x",M183="x",M184="x")),"o","")) ->  | AP182: =IF(OR(K182="o",L182="o",M182="o",N181="o",N183="o",N184="o",N182="x"),"x",IF(OR(N182="o",AND(K182="x",L182="x",M182="x"),AND(N181="x",N183="x",N184="x")),"o","")) -> 
B183: Antimoine | P183: petit que 79 et une densité de 6,68 g/cm3 | AD183: Antimoine | AE183: =IF(OR(D183="o",E183="o",F183="o",C181="o",C182="o",C184="o",C183="x"),"x",IF(OR(C183="o",AND(D183="x",E183="x",F183="x"),AND(C181="x",C182="x",C184="x")),"o","")) ->  | AF183: =IF(OR(C183="o",E183="o",F183="o",D181="o",D182="o",D184="o",D183="x"),"x",IF(OR(D183="o",AND(C183="x",E183="x",F183="x"),AND(D181="x",D182="x",D184="x")),"o","")) ->  | AG183: =IF(OR(C183="o",D183="o",F183="o",E181="o",E182="o",E184="o",E183="x"),"x",IF(OR(E183="o",AND(C183="x",D183="x",F183="x"),AND(E181="x",E182="x",E184="x")),"o","")) ->  | AH183: =IF(OR(C183="o",D183="o",E183="o",F181="o",F182="o",F184="o",F183="x"),"x",IF(OR(F183="o",AND(C183="x",D183="x",E183="x"),AND(F181="x",F182="x",F184="x")),"o","")) ->  | AI183: =IF(OR(H183="o",I183="o",J183="o",G181="o",G182="o",G184="o",G183="x"),"x",IF(OR(G183="o",AND(H183="x",I183="x",J183="x"),AND(G181="x",G182="x",G184="x")),"o","")) ->  | AJ183: =IF(OR(G183="o",I183="o",J183="o",H181="o",H182="o",H184="o",H183="x"),"x",IF(OR(H183="o",AND(G183="x",I183="x",J183="x"),AND(H181="x",H182="x",H184="x")),"o","")) ->  | AK183: =IF(OR(G183="o",H183="o",J183="o",I181="o",I182="o",I184="o",I183="x"),"x",IF(OR(I183="o",AND(G183="x",H183="x",J183="x"),AND(I181="x",I182="x",I184="x")),"o","")) ->  | AL183: =IF(OR(G183="o",H183="o",I183="o",J181="o",J182="o",J184="o",J183="x"),"x",IF(OR(J183="o",AND(G183="x",H183="x",I183="x"),AND(J181="x",J182="x",J184="x")),"o","")) ->  | AM183: =IF(OR(L183="o",M183="o",N183="o",K181="o",K182="o",K184="o",K183="x"),"x",IF(OR(K183="o",AND(L183="x",M183="x",N183="x"),AND(K181="x",K182="x",K184="x")),"o","")) ->  | AN183: =IF(OR(K183="o",M183="o",N183="o",L181="o",L182="o",L184="o",L183="x"),"x",IF(OR(L183="o",AND(K183="x",M183="x",N183="x"),AND(L181="x",L182="x",L184="x")),"o","")) ->  | AO183: =IF(OR(K183="o",L183="o",N183="o",M181="o",M182="o",M184="o",M183="x"),"x",IF(OR(M183="o",AND(K183="x",L183="x",N183="x"),AND(M181="x",M182="x",M184="x")),"o","")) ->  | AP183: =IF(OR(K183="o",L183="o",M183="o",N181="o",N182="o",N184="o",N183="x"),"x",IF(OR(N183="o",AND(K183="x",L183="x",M183="x"),AND(N181="x",N182="x",N184="x")),"o","")) -> 
B184: Or | P184: 2°/ L'atome qui a pour symbole W a pour numéro | AD184: Or | AE184: =IF(OR(D184="o",E184="o",F184="o",C181="o",C182="o",C183="o",C184="x"),"x",IF(OR(C184="o",AND(D184="x",E184="x",F184="x"),AND(C181="x",C182="x",C183="x")),"o","")) ->  | AF184: =IF(OR(C184="o",E184="o",F184="o",D181="o",D182="o",D183="o",D184="x"),"x",IF(OR(D184="o",AND(C184="x",E184="x",F184="x"),AND(D181="x",D182="x",D183="x")),"o","")) ->  | AG184: =IF(OR(C184="o",D184="o",F184="o",E181="o",E182="o",E183="o",E184="x"),"x",IF(OR(E184="o",AND(C184="x",D184="x",F184="x"),AND(E181="x",E182="x",E183="x")),"o","")) ->  | AH184: =IF(OR(C184="o",D184="o",E184="o",F181="o",F182="o",F183="o",F184="x"),"x",IF(OR(F184="o",AND(C184="x",D184="x",E184="x"),AND(F181="x",F182="x",F183="x")),"o","")) ->  | AI184: =IF(OR(H184="o",I184="o",J184="o",G181="o",G182="o",G183="o",G184="x"),"x",IF(OR(G184="o",AND(H184="x",I184="x",J184="x"),AND(G181="x",G182="x",G183="x")),"o","")) ->  | AJ184: =IF(OR(G184="o",I184="o",J184="o",H181="o",H182="o",H183="o",H184="x"),"x",IF(OR(H184="o",AND(G184="x",I184="x",J184="x"),AND(H181="x",H182="x",H183="x")),"o","")) ->  | AK184: =IF(OR(G184="o",H184="o",J184="o",I181="o",I182="o",I183="o",I184="x"),"x",IF(OR(I184="o",AND(G184="x",H184="x",J184="x"),AND(I181="x",I182="x",I183="x")),"o","")) ->  | AL184: =IF(OR(G184="o",H184="o",I184="o",J181="o",J182="o",J183="o",J184="x"),"x",IF(OR(J184="o",AND(G184="x",H184="x",I184="x"),AND(J181="x",J182="x",J183="x")),"o","")) ->  | AM184: =IF(OR(L184="o",M184="o",N184="o",K181="o",K182="o",K183="o",K184="x"),"x",IF(OR(K184="o",AND(L184="x",M184="x",N184="x"),AND(K181="x",K182="x",K183="x")),"o","")) ->  | AN184: =IF(OR(K184="o",M184="o",N184="o",L181="o",L182="o",L183="o",L184="x"),"x",IF(OR(L184="o",AND(K184="x",M184="x",N184="x"),AND(L181="x",L182="x",L183="x")),"o","")) ->  | AO184: =IF(OR(K184="o",L184="o",N184="o",M181="o",M182="o",M183="o",M184="x"),"x",IF(OR(M184="o",AND(K184="x",L184="x",N184="x"),AND(M181="x",M182="x",M183="x")),"o","")) ->  | AP184: =IF(OR(K184="o",L184="o",M184="o",N181="o",N182="o",N183="o",N184="x"),"x",IF(OR(N184="o",AND(K184="x",L184="x",M184="x"),AND(N181="x",N182="x",N183="x")),"o","")) -> 
A185: NA | B185: 51 | P185: atomique 74, mais ce n'est pas le Mercure ni l'Or. | AC185: =A185 -> NA | AD185: 51 | AE185: =IF(OR(D185="o",E185="o",F185="o",C186="o",C187="o",C188="o",C185="x"),"x",IF(OR(C185="o",AND(D185="x",E185="x",F185="x"),AND(C186="x",C187="x",C188="x")),"o","")) ->  | AF185: =IF(OR(C185="o",E185="o",F185="o",D186="o",D187="o",D188="o",D185="x"),"x",IF(OR(D185="o",AND(C185="x",E185="x",F185="x"),AND(D186="x",D187="x",D188="x")),"o","")) ->  | AG185: =IF(OR(C185="o",D185="o",F185="o",E186="o",E187="o",E188="o",E185="x"),"x",IF(OR(E185="o",AND(C185="x",D185="x",F185="x"),AND(E186="x",E187="x",E188="x")),"o","")) ->  | AH185: =IF(OR(C185="o",D185="o",E185="o",F186="o",F187="o",F188="o",F185="x"),"x",IF(OR(F185="o",AND(C185="x",D185="x",E185="x"),AND(F186="x",F187="x",F188="x")),"o","")) ->  | AI185: =IF(OR(H185="o",I185="o",J185="o",G186="o",G187="o",G188="o",G185="x"),"x",IF(OR(G185="o",AND(H185="x",I185="x",J185="x"),AND(G186="x",G187="x",G188="x")),"o","")) ->  | AJ185: =IF(OR(G185="o",I185="o",J185="o",H186="o",H187="o",H188="o",H185="x"),"x",IF(OR(H185="o",AND(G185="x",I185="x",J185="x"),AND(H186="x",H187="x",H188="x")),"o","")) ->  | AK185: =IF(OR(G185="o",H185="o",J185="o",I186="o",I187="o",I188="o",I185="x"),"x",IF(OR(I185="o",AND(G185="x",H185="x",J185="x"),AND(I186="x",I187="x",I188="x")),"o","")) ->  | AL185: =IF(OR(G185="o",H185="o",I185="o",J186="o",J187="o",J188="o",J185="x"),"x",IF(OR(J185="o",AND(G185="x",H185="x",I185="x"),AND(J186="x",J187="x",J188="x")),"o","")) -> 
B186: 74 | P186: 3°/ L' atome de symbole Au n'a pas une densité de | AD186: 74 | AE186: =IF(OR(D186="o",E186="o",F186="o",C185="o",C187="o",C188="o",C186="x"),"x",IF(OR(C186="o",AND(D186="x",E186="x",F186="x"),AND(C185="x",C187="x",C188="x")),"o","")) ->  | AF186: =IF(OR(C186="o",E186="o",F186="o",D185="o",D187="o",D188="o",D186="x"),"x",IF(OR(D186="o",AND(C186="x",E186="x",F186="x"),AND(D185="x",D187="x",D188="x")),"o","")) ->  | AG186: =IF(OR(C186="o",D186="o",F186="o",E185="o",E187="o",E188="o",E186="x"),"x",IF(OR(E186="o",AND(C186="x",D186="x",F186="x"),AND(E185="x",E187="x",E188="x")),"o","")) ->  | AH186: =IF(OR(C186="o",D186="o",E186="o",F185="o",F187="o",F188="o",F186="x"),"x",IF(OR(F186="o",AND(C186="x",D186="x",E186="x"),AND(F185="x",F187="x",F188="x")),"o","")) ->  | AI186: =IF(OR(H186="o",I186="o",J186="o",G185="o",G187="o",G188="o",G186="x"),"x",IF(OR(G186="o",AND(H186="x",I186="x",J186="x"),AND(G185="x",G187="x",G188="x")),"o","")) ->  | AJ186: =IF(OR(G186="o",I186="o",J186="o",H185="o",H187="o",H188="o",H186="x"),"x",IF(OR(H186="o",AND(G186="x",I186="x",J186="x"),AND(H185="x",H187="x",H188="x")),"o","")) ->  | AK186: =IF(OR(G186="o",H186="o",J186="o",I185="o",I187="o",I188="o",I186="x"),"x",IF(OR(I186="o",AND(G186="x",H186="x",J186="x"),AND(I185="x",I187="x",I188="x")),"o","")) ->  | AL186: =IF(OR(G186="o",H186="o",I186="o",J185="o",J187="o",J188="o",J186="x"),"x",IF(OR(J186="o",AND(G186="x",H186="x",I186="x"),AND(J185="x",J187="x",J188="x")),"o","")) -> 
B187: 79 | P187: 13,55 g/cm3 n'est pas le Mercure et n'a pas 80 comme | AD187: 79 | AE187: =IF(OR(D187="o",E187="o",F187="o",C185="o",C186="o",C188="o",C187="x"),"x",IF(OR(C187="o",AND(D187="x",E187="x",F187="x"),AND(C185="x",C186="x",C188="x")),"o","")) ->  | AF187: =IF(OR(C187="o",E187="o",F187="o",D185="o",D186="o",D188="o",D187="x"),"x",IF(OR(D187="o",AND(C187="x",E187="x",F187="x"),AND(D185="x",D186="x",D188="x")),"o","")) ->  | AG187: =IF(OR(C187="o",D187="o",F187="o",E185="o",E186="o",E188="o",E187="x"),"x",IF(OR(E187="o",AND(C187="x",D187="x",F187="x"),AND(E185="x",E186="x",E188="x")),"o","")) ->  | AH187: =IF(OR(C187="o",D187="o",E187="o",F185="o",F186="o",F188="o",F187="x"),"x",IF(OR(F187="o",AND(C187="x",D187="x",E187="x"),AND(F185="x",F186="x",F188="x")),"o","")) ->  | AI187: =IF(OR(H187="o",I187="o",J187="o",G185="o",G186="o",G188="o",G187="x"),"x",IF(OR(G187="o",AND(H187="x",I187="x",J187="x"),AND(G185="x",G186="x",G188="x")),"o","")) ->  | AJ187: =IF(OR(G187="o",I187="o",J187="o",H185="o",H186="o",H188="o",H187="x"),"x",IF(OR(H187="o",AND(G187="x",I187="x",J187="x"),AND(H185="x",H186="x",H188="x")),"o","")) ->  | AK187: =IF(OR(G187="o",H187="o",J187="o",I185="o",I186="o",I188="o",I187="x"),"x",IF(OR(I187="o",AND(G187="x",H187="x",J187="x"),AND(I185="x",I186="x",I188="x")),"o","")) ->  | AL187: =IF(OR(G187="o",H187="o",I187="o",J185="o",J186="o",J188="o",J187="x"),"x",IF(OR(J187="o",AND(G187="x",H187="x",I187="x"),AND(J185="x",J186="x",J188="x")),"o","")) -> 
B188: 80 | P188: numéro atomique. | AD188: 80 | AE188: =IF(OR(D188="o",E188="o",F188="o",C185="o",C186="o",C187="o",C188="x"),"x",IF(OR(C188="o",AND(D188="x",E188="x",F188="x"),AND(C185="x",C186="x",C187="x")),"o","")) ->  | AF188: =IF(OR(C188="o",E188="o",F188="o",D185="o",D186="o",D187="o",D188="x"),"x",IF(OR(D188="o",AND(C188="x",E188="x",F188="x"),AND(D185="x",D186="x",D187="x")),"o","")) ->  | AG188: =IF(OR(C188="o",D188="o",F188="o",E185="o",E186="o",E187="o",E188="x"),"x",IF(OR(E188="o",AND(C188="x",D188="x",F188="x"),AND(E185="x",E186="x",E187="x")),"o","")) ->  | AH188: =IF(OR(C188="o",D188="o",E188="o",F185="o",F186="o",F187="o",F188="x"),"x",IF(OR(F188="o",AND(C188="x",D188="x",E188="x"),AND(F185="x",F186="x",F187="x")),"o","")) ->  | AI188: =IF(OR(H188="o",I188="o",J188="o",G185="o",G186="o",G187="o",G188="x"),"x",IF(OR(G188="o",AND(H188="x",I188="x",J188="x"),AND(G185="x",G186="x",G187="x")),"o","")) ->  | AJ188: =IF(OR(G188="o",I188="o",J188="o",H185="o",H186="o",H187="o",H188="x"),"x",IF(OR(H188="o",AND(G188="x",I188="x",J188="x"),AND(H185="x",H186="x",H187="x")),"o","")) ->  | AK188: =IF(OR(G188="o",H188="o",J188="o",I185="o",I186="o",I187="o",I188="x"),"x",IF(OR(I188="o",AND(G188="x",H188="x",J188="x"),AND(I185="x",I186="x",I187="x")),"o","")) ->  | AL188: =IF(OR(G188="o",H188="o",I188="o",J185="o",J186="o",J187="o",J188="x"),"x",IF(OR(J188="o",AND(G188="x",H188="x",I188="x"),AND(J185="x",J186="x",J187="x")),"o","")) -> 
A189: Densité | B189: 6,68 g/cm3 | P189: 4°/ Le Tungstène est plus dense que le mercure et que l'or. | AC189: =A189 -> Densité | AD189: 6,68 g/cm3 | AE189: =IF(OR(D189="o",E189="o",F189="o",C190="o",C191="o",C192="o",C189="x"),"x",IF(OR(C189="o",AND(D189="x",E189="x",F189="x"),AND(C190="x",C191="x",C192="x")),"o","")) ->  | AF189: =IF(OR(C189="o",E189="o",F189="o",D190="o",D191="o",D192="o",D189="x"),"x",IF(OR(D189="o",AND(C189="x",E189="x",F189="x"),AND(D190="x",D191="x",D192="x")),"o","")) ->  | AG189: =IF(OR(C189="o",D189="o",F189="o",E190="o",E191="o",E192="o",E189="x"),"x",IF(OR(E189="o",AND(C189="x",D189="x",F189="x"),AND(E190="x",E191="x",E192="x")),"o","")) ->  | AH189: =IF(OR(C189="o",D189="o",E189="o",F190="o",F191="o",F192="o",F189="x"),"x",IF(OR(F189="o",AND(C189="x",D189="x",E189="x"),AND(F190="x",F191="x",F192="x")),"o","")) -> 
B190: 13,55 g/cm3 | H190: =IF(AND(C195=Q195,G195=U195,K195=Y195,C196=Q196,G196=U196,K196=Y196,C197=Q197,G197=U197,K197=Y197,C198=Q198,G198=U198,K198=Y198),"BRAVO !!","") ->  | AD190: 13,55 g/cm3 | AE190: =IF(OR(D190="o",E190="o",F190="o",C189="o",C191="o",C192="o",C190="x"),"x",IF(OR(C190="o",AND(D190="x",E190="x",F190="x"),AND(C189="x",C191="x",C192="x")),"o","")) ->  | AF190: =IF(OR(C190="o",E190="o",F190="o",D189="o",D191="o",D192="o",D190="x"),"x",IF(OR(D190="o",AND(C190="x",E190="x",F190="x"),AND(D189="x",D191="x",D192="x")),"o","")) ->  | AG190: =IF(OR(C190="o",D190="o",F190="o",E189="o",E191="o",E192="o",E190="x"),"x",IF(OR(E190="o",AND(C190="x",D190="x",F190="x"),AND(E189="x",E191="x",E192="x")),"o","")) ->  | AH190: =IF(OR(C190="o",D190="o",E190="o",F189="o",F191="o",F192="o",F190="x"),"x",IF(OR(F190="o",AND(C190="x",D190="x",E190="x"),AND(F189="x",F191="x",F192="x")),"o","")) -> 
B191: 19,32 g/cm3 | AD191: 19,32 g/cm3 | AE191: =IF(OR(D191="o",E191="o",F191="o",C189="o",C190="o",C192="o",C191="x"),"x",IF(OR(C191="o",AND(D191="x",E191="x",F191="x"),AND(C189="x",C190="x",C192="x")),"o","")) ->  | AF191: =IF(OR(C191="o",E191="o",F191="o",D189="o",D190="o",D192="o",D191="x"),"x",IF(OR(D191="o",AND(C191="x",E191="x",F191="x"),AND(D189="x",D190="x",D192="x")),"o","")) ->  | AG191: =IF(OR(C191="o",D191="o",F191="o",E189="o",E190="o",E192="o",E191="x"),"x",IF(OR(E191="o",AND(C191="x",D191="x",F191="x"),AND(E189="x",E190="x",E192="x")),"o","")) ->  | AH191: =IF(OR(C191="o",D191="o",E191="o",F189="o",F190="o",F192="o",F191="x"),"x",IF(OR(F191="o",AND(C191="x",D191="x",E191="x"),AND(F189="x",F190="x",F192="x")),"o","")) -> 
B192: 19,35 g/cm3 | AD192: 19,35 g/cm3 | AE192: =IF(OR(D192="o",E192="o",F192="o",C189="o",C190="o",C191="o",C192="x"),"x",IF(OR(C192="o",AND(D192="x",E192="x",F192="x"),AND(C189="x",C190="x",C191="x")),"o","")) ->  | AF192: =IF(OR(C192="o",E192="o",F192="o",D189="o",D190="o",D191="o",D192="x"),"x",IF(OR(D192="o",AND(C192="x",E192="x",F192="x"),AND(D189="x",D190="x",D191="x")),"o","")) ->  | AG192: =IF(OR(C192="o",D192="o",F192="o",E189="o",E190="o",E191="o",E192="x"),"x",IF(OR(E192="o",AND(C192="x",D192="x",F192="x"),AND(E189="x",E190="x",E191="x")),"o","")) ->  | AH192: =IF(OR(C192="o",D192="o",E192="o",F189="o",F190="o",F191="o",F192="x"),"x",IF(OR(F192="o",AND(C192="x",D192="x",E192="x"),AND(F189="x",F190="x",F191="x")),"o","")) -> 
B194: Réponses : | C194: =C179 -> Symbole | G194: =G179 -> Densité | K194: =K179 -> NA | Q194: =C179 -> Symbole | U194: =G179 -> Densité | Y194: =K179 -> NA
B195: =B181 -> Tungstène | C195: =IF(C181="o",C180,IF(D181="o",D180,IF(E181="o",E180,IF(F181="o",F180,"")))) ->  | G195: =IF(G181="o",G180,IF(H181="o",H180,IF(I181="o",I180,IF(J181="o",J180,"")))) ->  | K195: =IF(K181="o",K180,IF(L181="o",L180,IF(M181="o",M180,IF(N181="o",N180,"")))) ->  | P195: =B181 -> Tungstène | Q195: W | U195: 19,35 g/cm3 | Y195: 74
B196: =B182 -> Mercure | C196: =IF(C182="o",C180,IF(D182="o",D180,IF(E182="o",E180,IF(F182="o",F180,"")))) ->  | G196: =IF(G182="o",G180,IF(H182="o",H180,IF(I182="o",I180,IF(J182="o",J180,"")))) ->  | K196: =IF(K182="o",K180,IF(L182="o",L180,IF(M182="o",M180,IF(N182="o",N180,"")))) ->  | P196: =B182 -> Mercure | Q196: Hg | U196: 13,55 g/cm3 | Y196: 80
B197: =B183 -> Antimoine | C197: =IF(C183="o",C180,IF(D183="o",D180,IF(E183="o",E180,IF(F183="o",F180,"")))) ->  | G197: =IF(G183="o",G180,IF(H183="o",H180,IF(I183="o",I180,IF(J183="o",J180,"")))) ->  | K197: =IF(K183="o",K180,IF(L183="o",L180,IF(M183="o",M180,IF(N183="o",N180,"")))) ->  | P197: =B183 -> Antimoine | Q197: Sb | U197: 6,68 g/cm3 | Y197: 51
B198: =B184 -> Or | C198: =IF(C184="o",C180,IF(D184="o",D180,IF(E184="o",E180,IF(F184="o",F180,"")))) ->  | G198: =IF(G184="o",G180,IF(H184="o",H180,IF(I184="o",I180,IF(J184="o",J180,"")))) ->  | K198: =IF(K184="o",K180,IF(L184="o",L180,IF(M184="o",M180,IF(N184="o",N180,"")))) ->  | P198: =B184 -> Or | Q198: Au | U198: 19,32 g/cm3 | Y198: 79
A201: XIX°/ Les animaux sprinters :
A202: =INDIRECT("'Calculs 4 indices'!B"&A205) ->  | N202: =INDIRECT("'Calculs 4 indices'!M"&(A205+16)) -> 
A203: =INDIRECT("'Calculs 4 indices'!B"&(A205+26)) ->  | N203: =INDIRECT("'Calculs 4 indices'!M"&(A205+17)) -> 
C204: Vitesse en km/h | G204: =A214 -> Poids | K204: =A210 -> Taille | AE204: =C204 -> Vitesse en km/h | AI204: =G204 -> Poids | AM204: =K204 -> Taille
A205: =A180+52 -> 417 | C205: 88 | D205: 95 | E205: 98 | F205: 110 | G205: =B214 -> 25 kg | H205: =B215 -> 35 kg | I205: =B216 -> 45 kg | J205: =B217 -> 65 kg | K205: =B210 -> 1 m 20 | L205: =B211 -> 1 m 30 | M205: =B212 -> 1 m 35 | N205: =B213 -> 1 m 40 | P205: Voici 4 animaux très véloces. Retrouvez leur taille et leurs poids ainsi que leur vitesse. | AE205: =C205 -> 88 | AF205: =D205 -> 95 | AG205: =E205 -> 98 | AH205: =F205 -> 110 | AI205: =G205 -> 25 kg | AJ205: =H205 -> 35 kg | AK205: =I205 -> 45 kg | AL205: =J205 -> 65 kg | AM205: =K205 -> 1 m 20 | AN205: =L205 -> 1 m 30 | AO205: =M205 -> 1 m 35 | AP205: =N205 -> 1 m 40
A206: Animal | B206: Le springbok | AC206: =A206 -> Animal | AD206: =B206 -> Le springbok | AE206: =IF(OR(D206="o",E206="o",F206="o",C207="o",C208="o",C209="o",C206="x"),"x",IF(OR(C206="o",AND(D206="x",E206="x",F206="x"),AND(C207="x",C208="x",C209="x")),"o","")) ->  | AF206: =IF(OR(C206="o",E206="o",F206="o",D207="o",D208="o",D209="o",D206="x"),"x",IF(OR(D206="o",AND(C206="x",E206="x",F206="x"),AND(D207="x",D208="x",D209="x")),"o","")) ->  | AG206: =IF(OR(C206="o",D206="o",F206="o",E207="o",E208="o",E209="o",E206="x"),"x",IF(OR(E206="o",AND(C206="x",D206="x",F206="x"),AND(E207="x",E208="x",E209="x")),"o","")) ->  | AH206: =IF(OR(C206="o",D206="o",E206="o",F207="o",F208="o",F209="o",F206="x"),"x",IF(OR(F206="o",AND(C206="x",D206="x",E206="x"),AND(F207="x",F208="x",F209="x")),"o","")) ->  | AI206: =IF(OR(H206="o",I206="o",J206="o",G207="o",G208="o",G209="o",G206="x"),"x",IF(OR(G206="o",AND(H206="x",I206="x",J206="x"),AND(G207="x",G208="x",G209="x")),"o","")) ->  | AJ206: =IF(OR(G206="o",I206="o",J206="o",H207="o",H208="o",H209="o",H206="x"),"x",IF(OR(H206="o",AND(G206="x",I206="x",J206="x"),AND(H207="x",H208="x",H209="x")),"o","")) ->  | AK206: =IF(OR(G206="o",H206="o",J206="o",I207="o",I208="o",I209="o",I206="x"),"x",IF(OR(I206="o",AND(G206="x",H206="x",J206="x"),AND(I207="x",I208="x",I209="x")),"o","")) ->  | AL206: =IF(OR(G206="o",H206="o",I206="o",J207="o",J208="o",J209="o",J206="x"),"x",IF(OR(J206="o",AND(G206="x",H206="x",I206="x"),AND(J207="x",J208="x",J209="x")),"o","")) ->  | AM206: =IF(OR(L206="o",M206="o",N206="o",K207="o",K208="o",K209="o",K206="x"),"x",IF(OR(K206="o",AND(L206="x",M206="x",N206="x"),AND(K207="x",K208="x",K209="x")),"o","")) ->  | AN206: =IF(OR(K206="o",M206="o",N206="o",L207="o",L208="o",L209="o",L206="x"),"x",IF(OR(L206="o",AND(K206="x",M206="x",N206="x"),AND(L207="x",L208="x",L209="x")),"o","")) ->  | AO206: =IF(OR(K206="o",L206="o",N206="o",M207="o",M208="o",M209="o",M206="x"),"x",IF(OR(M206="o",AND(K206="x",L206="x",N206="x"),AND(M207="x",M208="x",M209="x")),"o","")) ->  | AP206: =IF(OR(K206="o",L206="o",M206="o",N207="o",N208="o",N209="o",N206="x"),"x",IF(OR(N206="o",AND(K206="x",L206="x",M206="x"),AND(N207="x",N208="x",N209="x")),"o","")) -> 
B207: Le chevreuil | P207: 1°/ Le guépard dont le poids est 65 kg, est réputé pour | AD207: =B207 -> Le chevreuil | AE207: =IF(OR(D207="o",E207="o",F207="o",C206="o",C208="o",C209="o",C207="x"),"x",IF(OR(C207="o",AND(D207="x",E207="x",F207="x"),AND(C206="x",C208="x",C209="x")),"o","")) ->  | AF207: =IF(OR(C207="o",E207="o",F207="o",D206="o",D208="o",D209="o",D207="x"),"x",IF(OR(D207="o",AND(C207="x",E207="x",F207="x"),AND(D206="x",D208="x",D209="x")),"o","")) ->  | AG207: =IF(OR(C207="o",D207="o",F207="o",E206="o",E208="o",E209="o",E207="x"),"x",IF(OR(E207="o",AND(C207="x",D207="x",F207="x"),AND(E206="x",E208="x",E209="x")),"o","")) ->  | AH207: =IF(OR(C207="o",D207="o",E207="o",F206="o",F208="o",F209="o",F207="x"),"x",IF(OR(F207="o",AND(C207="x",D207="x",E207="x"),AND(F206="x",F208="x",F209="x")),"o","")) ->  | AI207: =IF(OR(H207="o",I207="o",J207="o",G206="o",G208="o",G209="o",G207="x"),"x",IF(OR(G207="o",AND(H207="x",I207="x",J207="x"),AND(G206="x",G208="x",G209="x")),"o","")) ->  | AJ207: =IF(OR(G207="o",I207="o",J207="o",H206="o",H208="o",H209="o",H207="x"),"x",IF(OR(H207="o",AND(G207="x",I207="x",J207="x"),AND(H206="x",H208="x",H209="x")),"o","")) ->  | AK207: =IF(OR(G207="o",H207="o",J207="o",I206="o",I208="o",I209="o",I207="x"),"x",IF(OR(I207="o",AND(G207="x",H207="x",J207="x"),AND(I206="x",I208="x",I209="x")),"o","")) ->  | AL207: =IF(OR(G207="o",H207="o",I207="o",J206="o",J208="o",J209="o",J207="x"),"x",IF(OR(J207="o",AND(G207="x",H207="x",I207="x"),AND(J206="x",J208="x",J209="x")),"o","")) ->  | AM207: =IF(OR(L207="o",M207="o",N207="o",K206="o",K208="o",K209="o",K207="x"),"x",IF(OR(K207="o",AND(L207="x",M207="x",N207="x"),AND(K206="x",K208="x",K209="x")),"o","")) ->  | AN207: =IF(OR(K207="o",M207="o",N207="o",L206="o",L208="o",L209="o",L207="x"),"x",IF(OR(L207="o",AND(K207="x",M207="x",N207="x"),AND(L206="x",L208="x",L209="x")),"o","")) ->  | AO207: =IF(OR(K207="o",L207="o",N207="o",M206="o",M208="o",M209="o",M207="x"),"x",IF(OR(M207="o",AND(K207="x",L207="x",N207="x"),AND(M206="x",M208="x",M209="x")),"o","")) ->  | AP207: =IF(OR(K207="o",L207="o",M207="o",N206="o",N208="o",N209="o",N207="x"),"x",IF(OR(N207="o",AND(K207="x",L207="x",M207="x"),AND(N206="x",N208="x",N209="x")),"o","")) -> 
B208: Le guépard | P208: être le plus rapide, il mesure plus de 1 m 30. | AD208: Le guépard | AE208: =IF(OR(D208="o",E208="o",F208="o",C206="o",C207="o",C209="o",C208="x"),"x",IF(OR(C208="o",AND(D208="x",E208="x",F208="x"),AND(C206="x",C207="x",C209="x")),"o","")) ->  | AF208: =IF(OR(C208="o",E208="o",F208="o",D206="o",D207="o",D209="o",D208="x"),"x",IF(OR(D208="o",AND(C208="x",E208="x",F208="x"),AND(D206="x",D207="x",D209="x")),"o","")) ->  | AG208: =IF(OR(C208="o",D208="o",F208="o",E206="o",E207="o",E209="o",E208="x"),"x",IF(OR(E208="o",AND(C208="x",D208="x",F208="x"),AND(E206="x",E207="x",E209="x")),"o","")) ->  | AH208: =IF(OR(C208="o",D208="o",E208="o",F206="o",F207="o",F209="o",F208="x"),"x",IF(OR(F208="o",AND(C208="x",D208="x",E208="x"),AND(F206="x",F207="x",F209="x")),"o","")) ->  | AI208: =IF(OR(H208="o",I208="o",J208="o",G206="o",G207="o",G209="o",G208="x"),"x",IF(OR(G208="o",AND(H208="x",I208="x",J208="x"),AND(G206="x",G207="x",G209="x")),"o","")) ->  | AJ208: =IF(OR(G208="o",I208="o",J208="o",H206="o",H207="o",H209="o",H208="x"),"x",IF(OR(H208="o",AND(G208="x",I208="x",J208="x"),AND(H206="x",H207="x",H209="x")),"o","")) ->  | AK208: =IF(OR(G208="o",H208="o",J208="o",I206="o",I207="o",I209="o",I208="x"),"x",IF(OR(I208="o",AND(G208="x",H208="x",J208="x"),AND(I206="x",I207="x",I209="x")),"o","")) ->  | AL208: =IF(OR(G208="o",H208="o",I208="o",J206="o",J207="o",J209="o",J208="x"),"x",IF(OR(J208="o",AND(G208="x",H208="x",I208="x"),AND(J206="x",J207="x",J209="x")),"o","")) ->  | AM208: =IF(OR(L208="o",M208="o",N208="o",K206="o",K207="o",K209="o",K208="x"),"x",IF(OR(K208="o",AND(L208="x",M208="x",N208="x"),AND(K206="x",K207="x",K209="x")),"o","")) ->  | AN208: =IF(OR(K208="o",M208="o",N208="o",L206="o",L207="o",L209="o",L208="x"),"x",IF(OR(L208="o",AND(K208="x",M208="x",N208="x"),AND(L206="x",L207="x",L209="x")),"o","")) ->  | AO208: =IF(OR(K208="o",L208="o",N208="o",M206="o",M207="o",M209="o",M208="x"),"x",IF(OR(M208="o",AND(K208="x",L208="x",N208="x"),AND(M206="x",M207="x",M209="x")),"o","")) ->  | AP208: =IF(OR(K208="o",L208="o",M208="o",N206="o",N207="o",N209="o",N208="x"),"x",IF(OR(N208="o",AND(K208="x",L208="x",M208="x"),AND(N206="x",N207="x",N209="x")),"o","")) -> 
B209: L'antilope | P209: 2°/ Celui qui court à 98 km/h et mesure 1 m 40 n'est pas | AD209: L'antilope | AE209: =IF(OR(D209="o",E209="o",F209="o",C206="o",C207="o",C208="o",C209="x"),"x",IF(OR(C209="o",AND(D209="x",E209="x",F209="x"),AND(C206="x",C207="x",C208="x")),"o","")) ->  | AF209: =IF(OR(C209="o",E209="o",F209="o",D206="o",D207="o",D208="o",D209="x"),"x",IF(OR(D209="o",AND(C209="x",E209="x",F209="x"),AND(D206="x",D207="x",D208="x")),"o","")) ->  | AG209: =IF(OR(C209="o",D209="o",F209="o",E206="o",E207="o",E208="o",E209="x"),"x",IF(OR(E209="o",AND(C209="x",D209="x",F209="x"),AND(E206="x",E207="x",E208="x")),"o","")) ->  | AH209: =IF(OR(C209="o",D209="o",E209="o",F206="o",F207="o",F208="o",F209="x"),"x",IF(OR(F209="o",AND(C209="x",D209="x",E209="x"),AND(F206="x",F207="x",F208="x")),"o","")) ->  | AI209: =IF(OR(H209="o",I209="o",J209="o",G206="o",G207="o",G208="o",G209="x"),"x",IF(OR(G209="o",AND(H209="x",I209="x",J209="x"),AND(G206="x",G207="x",G208="x")),"o","")) ->  | AJ209: =IF(OR(G209="o",I209="o",J209="o",H206="o",H207="o",H208="o",H209="x"),"x",IF(OR(H209="o",AND(G209="x",I209="x",J209="x"),AND(H206="x",H207="x",H208="x")),"o","")) ->  | AK209: =IF(OR(G209="o",H209="o",J209="o",I206="o",I207="o",I208="o",I209="x"),"x",IF(OR(I209="o",AND(G209="x",H209="x",J209="x"),AND(I206="x",I207="x",I208="x")),"o","")) ->  | AL209: =IF(OR(G209="o",H209="o",I209="o",J206="o",J207="o",J208="o",J209="x"),"x",IF(OR(J209="o",AND(G209="x",H209="x",I209="x"),AND(J206="x",J207="x",J208="x")),"o","")) ->  | AM209: =IF(OR(L209="o",M209="o",N209="o",K206="o",K207="o",K208="o",K209="x"),"x",IF(OR(K209="o",AND(L209="x",M209="x",N209="x"),AND(K206="x",K207="x",K208="x")),"o","")) ->  | AN209: =IF(OR(K209="o",M209="o",N209="o",L206="o",L207="o",L208="o",L209="x"),"x",IF(OR(L209="o",AND(K209="x",M209="x",N209="x"),AND(L206="x",L207="x",L208="x")),"o","")) ->  | AO209: =IF(OR(K209="o",L209="o",N209="o",M206="o",M207="o",M208="o",M209="x"),"x",IF(OR(M209="o",AND(K209="x",L209="x",N209="x"),AND(M206="x",M207="x",M208="x")),"o","")) ->  | AP209: =IF(OR(K209="o",L209="o",M209="o",N206="o",N207="o",N208="o",N209="x"),"x",IF(OR(N209="o",AND(K209="x",L209="x",M209="x"),AND(N206="x",N207="x",N208="x")),"o","")) -> 
A210: Taille | B210: 1 m 20 | P210: le springbok, ni l'antilope et ne pèse ni 35 kg, ni 45 kg. | AC210: =A210 -> Taille | AD210: 1 m 20 | AE210: =IF(OR(D210="o",E210="o",F210="o",C211="o",C212="o",C213="o",C210="x"),"x",IF(OR(C210="o",AND(D210="x",E210="x",F210="x"),AND(C211="x",C212="x",C213="x")),"o","")) ->  | AF210: =IF(OR(C210="o",E210="o",F210="o",D211="o",D212="o",D213="o",D210="x"),"x",IF(OR(D210="o",AND(C210="x",E210="x",F210="x"),AND(D211="x",D212="x",D213="x")),"o","")) ->  | AG210: =IF(OR(C210="o",D210="o",F210="o",E211="o",E212="o",E213="o",E210="x"),"x",IF(OR(E210="o",AND(C210="x",D210="x",F210="x"),AND(E211="x",E212="x",E213="x")),"o","")) ->  | AH210: =IF(OR(C210="o",D210="o",E210="o",F211="o",F212="o",F213="o",F210="x"),"x",IF(OR(F210="o",AND(C210="x",D210="x",E210="x"),AND(F211="x",F212="x",F213="x")),"o","")) ->  | AI210: =IF(OR(H210="o",I210="o",J210="o",G211="o",G212="o",G213="o",G210="x"),"x",IF(OR(G210="o",AND(H210="x",I210="x",J210="x"),AND(G211="x",G212="x",G213="x")),"o","")) ->  | AJ210: =IF(OR(G210="o",I210="o",J210="o",H211="o",H212="o",H213="o",H210="x"),"x",IF(OR(H210="o",AND(G210="x",I210="x",J210="x"),AND(H211="x",H212="x",H213="x")),"o","")) ->  | AK210: =IF(OR(G210="o",H210="o",J210="o",I211="o",I212="o",I213="o",I210="x"),"x",IF(OR(I210="o",AND(G210="x",H210="x",J210="x"),AND(I211="x",I212="x",I213="x")),"o","")) ->  | AL210: =IF(OR(G210="o",H210="o",I210="o",J211="o",J212="o",J213="o",J210="x"),"x",IF(OR(J210="o",AND(G210="x",H210="x",I210="x"),AND(J211="x",J212="x",J213="x")),"o","")) -> 
B211: 1 m 30 | P211: 3°/ Celui qui court à 88 km/h n'est pas le springbok, il | AD211: 1 m 30 | AE211: =IF(OR(D211="o",E211="o",F211="o",C210="o",C212="o",C213="o",C211="x"),"x",IF(OR(C211="o",AND(D211="x",E211="x",F211="x"),AND(C210="x",C212="x",C213="x")),"o","")) ->  | AF211: =IF(OR(C211="o",E211="o",F211="o",D210="o",D212="o",D213="o",D211="x"),"x",IF(OR(D211="o",AND(C211="x",E211="x",F211="x"),AND(D210="x",D212="x",D213="x")),"o","")) ->  | AG211: =IF(OR(C211="o",D211="o",F211="o",E210="o",E212="o",E213="o",E211="x"),"x",IF(OR(E211="o",AND(C211="x",D211="x",F211="x"),AND(E210="x",E212="x",E213="x")),"o","")) ->  | AH211: =IF(OR(C211="o",D211="o",E211="o",F210="o",F212="o",F213="o",F211="x"),"x",IF(OR(F211="o",AND(C211="x",D211="x",E211="x"),AND(F210="x",F212="x",F213="x")),"o","")) ->  | AI211: =IF(OR(H211="o",I211="o",J211="o",G210="o",G212="o",G213="o",G211="x"),"x",IF(OR(G211="o",AND(H211="x",I211="x",J211="x"),AND(G210="x",G212="x",G213="x")),"o","")) ->  | AJ211: =IF(OR(G211="o",I211="o",J211="o",H210="o",H212="o",H213="o",H211="x"),"x",IF(OR(H211="o",AND(G211="x",I211="x",J211="x"),AND(H210="x",H212="x",H213="x")),"o","")) ->  | AK211: =IF(OR(G211="o",H211="o",J211="o",I210="o",I212="o",I213="o",I211="x"),"x",IF(OR(I211="o",AND(G211="x",H211="x",J211="x"),AND(I210="x",I212="x",I213="x")),"o","")) ->  | AL211: =IF(OR(G211="o",H211="o",I211="o",J210="o",J212="o",J213="o",J211="x"),"x",IF(OR(J211="o",AND(G211="x",H211="x",I211="x"),AND(J210="x",J212="x",J213="x")),"o","")) -> 
B212: 1 m 35 | P212: ne pèse pas 45 kg et ne mesure pas 1 m 30. | AD212: 1 m 35 | AE212: =IF(OR(D212="o",E212="o",F212="o",C210="o",C211="o",C213="o",C212="x"),"x",IF(OR(C212="o",AND(D212="x",E212="x",F212="x"),AND(C210="x",C211="x",C213="x")),"o","")) ->  | AF212: =IF(OR(C212="o",E212="o",F212="o",D210="o",D211="o",D213="o",D212="x"),"x",IF(OR(D212="o",AND(C212="x",E212="x",F212="x"),AND(D210="x",D211="x",D213="x")),"o","")) ->  | AG212: =IF(OR(C212="o",D212="o",F212="o",E210="o",E211="o",E213="o",E212="x"),"x",IF(OR(E212="o",AND(C212="x",D212="x",F212="x"),AND(E210="x",E211="x",E213="x")),"o","")) ->  | AH212: =IF(OR(C212="o",D212="o",E212="o",F210="o",F211="o",F213="o",F212="x"),"x",IF(OR(F212="o",AND(C212="x",D212="x",E212="x"),AND(F210="x",F211="x",F213="x")),"o","")) ->  | AI212: =IF(OR(H212="o",I212="o",J212="o",G210="o",G211="o",G213="o",G212="x"),"x",IF(OR(G212="o",AND(H212="x",I212="x",J212="x"),AND(G210="x",G211="x",G213="x")),"o","")) ->  | AJ212: =IF(OR(G212="o",I212="o",J212="o",H210="o",H211="o",H213="o",H212="x"),"x",IF(OR(H212="o",AND(G212="x",I212="x",J212="x"),AND(H210="x",H211="x",H213="x")),"o","")) ->  | AK212: =IF(OR(G212="o",H212="o",J212="o",I210="o",I211="o",I213="o",I212="x"),"x",IF(OR(I212="o",AND(G212="x",H212="x",J212="x"),AND(I210="x",I211="x",I213="x")),"o","")) ->  | AL212: =IF(OR(G212="o",H212="o",I212="o",J210="o",J211="o",J213="o",J212="x"),"x",IF(OR(J212="o",AND(G212="x",H212="x",I212="x"),AND(J210="x",J211="x",J213="x")),"o","")) -> 
B213: 1 m 40 | AD213: 1 m 40 | AE213: =IF(OR(D213="o",E213="o",F213="o",C210="o",C211="o",C212="o",C213="x"),"x",IF(OR(C213="o",AND(D213="x",E213="x",F213="x"),AND(C210="x",C211="x",C212="x")),"o","")) ->  | AF213: =IF(OR(C213="o",E213="o",F213="o",D210="o",D211="o",D212="o",D213="x"),"x",IF(OR(D213="o",AND(C213="x",E213="x",F213="x"),AND(D210="x",D211="x",D212="x")),"o","")) ->  | AG213: =IF(OR(C213="o",D213="o",F213="o",E210="o",E211="o",E212="o",E213="x"),"x",IF(OR(E213="o",AND(C213="x",D213="x",F213="x"),AND(E210="x",E211="x",E212="x")),"o","")) ->  | AH213: =IF(OR(C213="o",D213="o",E213="o",F210="o",F211="o",F212="o",F213="x"),"x",IF(OR(F213="o",AND(C213="x",D213="x",E213="x"),AND(F210="x",F211="x",F212="x")),"o","")) ->  | AI213: =IF(OR(H213="o",I213="o",J213="o",G210="o",G211="o",G212="o",G213="x"),"x",IF(OR(G213="o",AND(H213="x",I213="x",J213="x"),AND(G210="x",G211="x",G212="x")),"o","")) ->  | AJ213: =IF(OR(G213="o",I213="o",J213="o",H210="o",H211="o",H212="o",H213="x"),"x",IF(OR(H213="o",AND(G213="x",I213="x",J213="x"),AND(H210="x",H211="x",H212="x")),"o","")) ->  | AK213: =IF(OR(G213="o",H213="o",J213="o",I210="o",I211="o",I212="o",I213="x"),"x",IF(OR(I213="o",AND(G213="x",H213="x",J213="x"),AND(I210="x",I211="x",I212="x")),"o","")) ->  | AL213: =IF(OR(G213="o",H213="o",I213="o",J210="o",J211="o",J212="o",J213="x"),"x",IF(OR(J213="o",AND(G213="x",H213="x",I213="x"),AND(J210="x",J211="x",J212="x")),"o","")) -> 
A214: Poids | B214: 25 kg | AC214: =A214 -> Poids | AD214: 25 kg | AE214: =IF(OR(D214="o",E214="o",F214="o",C215="o",C216="o",C217="o",C214="x"),"x",IF(OR(C214="o",AND(D214="x",E214="x",F214="x"),AND(C215="x",C216="x",C217="x")),"o","")) ->  | AF214: =IF(OR(C214="o",E214="o",F214="o",D215="o",D216="o",D217="o",D214="x"),"x",IF(OR(D214="o",AND(C214="x",E214="x",F214="x"),AND(D215="x",D216="x",D217="x")),"o","")) ->  | AG214: =IF(OR(C214="o",D214="o",F214="o",E215="o",E216="o",E217="o",E214="x"),"x",IF(OR(E214="o",AND(C214="x",D214="x",F214="x"),AND(E215="x",E216="x",E217="x")),"o","")) ->  | AH214: =IF(OR(C214="o",D214="o",E214="o",F215="o",F216="o",F217="o",F214="x"),"x",IF(OR(F214="o",AND(C214="x",D214="x",E214="x"),AND(F215="x",F216="x",F217="x")),"o","")) -> 
B215: 35 kg | H215: =IF(AND(C220=Q220,G220=U220,K220=Y220,C221=Q221,G221=U221,K221=Y221,C222=Q222,G222=U222,K222=Y222,C223=Q223,G223=U223,K223=Y223),"BRAVO !!","") ->  | AD215: 35 kg | AE215: =IF(OR(D215="o",E215="o",F215="o",C214="o",C216="o",C217="o",C215="x"),"x",IF(OR(C215="o",AND(D215="x",E215="x",F215="x"),AND(C214="x",C216="x",C217="x")),"o","")) ->  | AF215: =IF(OR(C215="o",E215="o",F215="o",D214="o",D216="o",D217="o",D215="x"),"x",IF(OR(D215="o",AND(C215="x",E215="x",F215="x"),AND(D214="x",D216="x",D217="x")),"o","")) ->  | AG215: =IF(OR(C215="o",D215="o",F215="o",E214="o",E216="o",E217="o",E215="x"),"x",IF(OR(E215="o",AND(C215="x",D215="x",F215="x"),AND(E214="x",E216="x",E217="x")),"o","")) ->  | AH215: =IF(OR(C215="o",D215="o",E215="o",F214="o",F216="o",F217="o",F215="x"),"x",IF(OR(F215="o",AND(C215="x",D215="x",E215="x"),AND(F214="x",F216="x",F217="x")),"o","")) -> 
B216: 45 kg | AD216: 45 kg | AE216: =IF(OR(D216="o",E216="o",F216="o",C214="o",C215="o",C217="o",C216="x"),"x",IF(OR(C216="o",AND(D216="x",E216="x",F216="x"),AND(C214="x",C215="x",C217="x")),"o","")) ->  | AF216: =IF(OR(C216="o",E216="o",F216="o",D214="o",D215="o",D217="o",D216="x"),"x",IF(OR(D216="o",AND(C216="x",E216="x",F216="x"),AND(D214="x",D215="x",D217="x")),"o","")) ->  | AG216: =IF(OR(C216="o",D216="o",F216="o",E214="o",E215="o",E217="o",E216="x"),"x",IF(OR(E216="o",AND(C216="x",D216="x",F216="x"),AND(E214="x",E215="x",E217="x")),"o","")) ->  | AH216: =IF(OR(C216="o",D216="o",E216="o",F214="o",F215="o",F217="o",F216="x"),"x",IF(OR(F216="o",AND(C216="x",D216="x",E216="x"),AND(F214="x",F215="x",F217="x")),"o","")) -> 
B217: 65 kg | AD217: 65 kg | AE217: =IF(OR(D217="o",E217="o",F217="o",C214="o",C215="o",C216="o",C217="x"),"x",IF(OR(C217="o",AND(D217="x",E217="x",F217="x"),AND(C214="x",C215="x",C216="x")),"o","")) ->  | AF217: =IF(OR(C217="o",E217="o",F217="o",D214="o",D215="o",D216="o",D217="x"),"x",IF(OR(D217="o",AND(C217="x",E217="x",F217="x"),AND(D214="x",D215="x",D216="x")),"o","")) ->  | AG217: =IF(OR(C217="o",D217="o",F217="o",E214="o",E215="o",E216="o",E217="x"),"x",IF(OR(E217="o",AND(C217="x",D217="x",F217="x"),AND(E214="x",E215="x",E216="x")),"o","")) ->  | AH217: =IF(OR(C217="o",D217="o",E217="o",F214="o",F215="o",F216="o",F217="x"),"x",IF(OR(F217="o",AND(C217="x",D217="x",E217="x"),AND(F214="x",F215="x",F216="x")),"o","")) -> 
B219: Réponses : | C219: =C204 -> Vitesse en km/h | G219: =G204 -> Poids | K219: =K204 -> Taille | Q219: =C204 -> Vitesse en km/h | U219: =G204 -> Poids | Y219: =K204 -> Taille
B220: =B206 -> Le springbok | C220: =IF(C206="o",C205,IF(D206="o",D205,IF(E206="o",E205,IF(F206="o",F205,"")))) ->  | G220: =IF(G206="o",G205,IF(H206="o",H205,IF(I206="o",I205,IF(J206="o",J205,"")))) ->  | K220: =IF(K206="o",K205,IF(L206="o",L205,IF(M206="o",M205,IF(N206="o",N205,"")))) ->  | P220: =B206 -> Le springbok | Q220: 95 | U220: 45 kg | Y220: 1 m 30
B221: =B207 -> Le chevreuil | C221: =IF(C207="o",C205,IF(D207="o",D205,IF(E207="o",E205,IF(F207="o",F205,"")))) ->  | G221: =IF(G207="o",G205,IF(H207="o",H205,IF(I207="o",I205,IF(J207="o",J205,"")))) ->  | K221: =IF(K207="o",K205,IF(L207="o",L205,IF(M207="o",M205,IF(N207="o",N205,"")))) ->  | P221: =B207 -> Le chevreuil | Q221: 98 | U221: 25 kg | Y221: 1 m 40
B222: =B208 -> Le guépard | C222: =IF(C208="o",C205,IF(D208="o",D205,IF(E208="o",E205,IF(F208="o",F205,"")))) ->  | G222: =IF(G208="o",G205,IF(H208="o",H205,IF(I208="o",I205,IF(J208="o",J205,"")))) ->  | K222: =IF(K208="o",K205,IF(L208="o",L205,IF(M208="o",M205,IF(N208="o",N205,"")))) ->  | P222: =B208 -> Le guépard | Q222: 110 | U222: 65 kg | Y222: 1 m 35
B223: =B209 -> L'antilope | C223: =IF(C209="o",C205,IF(D209="o",D205,IF(E209="o",E205,IF(F209="o",F205,"")))) ->  | G223: =IF(G209="o",G205,IF(H209="o",H205,IF(I209="o",I205,IF(J209="o",J205,"")))) ->  | K223: =IF(K209="o",K205,IF(L209="o",L205,IF(M209="o",M205,IF(N209="o",N205,"")))) ->  | P223: =B209 -> L'antilope | Q223: 88 | U223: 35 kg | Y223: 1 m 20
A226: XX°/ Les grands fleuves de France :
... 21 more rows

Sheet Calculs 4 indices
A1: ='4 indices'!A1 -> XI°/ Le collège : | B1: =IF(C2=2,B2,IF(C3=2,B3,IF(C4=2,B4,IF(C5=2,B5,IF(C6=2,B6,IF(C7=2,B7,IF(C8=2,B8,IF(C9=2,B9,IF(C10=2,B10,IF(C11=2,B11,IF(C12=2,B12,IF(C13=2,B13,IF(C14=2,B14,IF(C15=2,B15,IF(C16=2,B16,IF(C17=2,B17,IF(C18=2,B18,IF(C19=2,B19,IF(C20=2,B20,IF(C21=2,B21,IF(C22=2,B22,IF(C23=2,B23,IF(C24=2,B24,IF(C25=2,B25,"")))))))))))))))))))))))) -> 
A2: Impossible d'avoir 4 non sur la même ligne | B2: =IF(AND('4 indices'!C6="x",'4 indices'!D6="x",'4 indices'!E6="x",'4 indices'!F6="x"),A2&'4 indices'!C4&" "&'4 indices'!B6,"") ->  | C2: =IF(B2="",1,2) -> 1 | G2: ='4 indices'!C4 -> Matière | L2: ='4 indices'!G4 -> Rang | Q2: ='4 indices'!K4 -> Moyenne
B3: =IF(AND('4 indices'!C7="x",'4 indices'!D7="x",'4 indices'!E7="x",'4 indices'!F7="x"),A2&'4 indices'!C4&" "&'4 indices'!B7,"") ->  | C3: =IF(B3="",1,2) -> 1 | G3: ='4 indices'!C5 -> Maths | H3: ='4 indices'!D5 -> Français | I3: ='4 indices'!E5 -> Physique | J3: ='4 indices'!F5 -> EPS | L3: ='4 indices'!G5 -> 1e | M3: ='4 indices'!H5 -> 3e | N3: ='4 indices'!I5 -> 5e | O3: ='4 indices'!J5 -> 6e | Q3: ='4 indices'!K5 -> 14 | R3: ='4 indices'!L5 -> 15 | S3: ='4 indices'!M5 -> 17 | T3: ='4 indices'!N5 -> 19
B4: =IF(AND('4 indices'!C8="x",'4 indices'!D8="x",'4 indices'!E8="x",'4 indices'!F8="x"),A2&'4 indices'!C4&" "&'4 indices'!B8,"") ->  | C4: 1 | E4: ='4 indices'!A6 -> Elèves | F4: ='4 indices'!B6 -> Philippe | G4: =IF('4 indices'!C6="o",1,0) -> 0 | H4: =IF('4 indices'!D6="o",1,0) -> 0 | I4: =IF('4 indices'!E6="o",1,0) -> 0 | J4: =IF('4 indices'!F6="o",1,0) -> 0 | K4: =SUM(G4:J4) -> 0 | L4: =IF('4 indices'!G6="o",1,0) -> 0 | M4: =IF('4 indices'!H6="o",1,0) -> 0 | N4: =IF('4 indices'!I6="o",1,0) -> 0 | O4: =IF('4 indices'!J6="o",1,0) -> 0 | P4: =SUM(L4:O4) -> 0 | Q4: =IF('4 indices'!K6="o",1,0) -> 0 | R4: =IF('4 indices'!L6="o",1,0) -> 0 | S4: =IF('4 indices'!M6="o",1,0) -> 0 | T4: =IF('4 indices'!N6="o",1,0) -> 0 | U4: =SUM(Q4:T4) -> 0
B5: =IF(AND('4 indices'!C9="x",'4 indices'!D9="x",'4 indices'!E9="x",'4 indices'!F9="x"),A2&'4 indices'!C4&" "&'4 indices'!B9,"") ->  | C5: 1 | F5: ='4 indices'!B7 -> Viviane | G5: =IF('4 indices'!C7="o",1,0) -> 0 | H5: =IF('4 indices'!D7="o",1,0) -> 0 | I5: =IF('4 indices'!E7="o",1,0) -> 0 | J5: =IF('4 indices'!F7="o",1,0) -> 0 | K5: =SUM(G5:J5) -> 0 | L5: =IF('4 indices'!G7="o",1,0) -> 0 | M5: =IF('4 indices'!H7="o",1,0) -> 0 | N5: =IF('4 indices'!I7="o",1,0) -> 0 | O5: =IF('4 indices'!J7="o",1,0) -> 0 | P5: =SUM(L5:O5) -> 0 | Q5: =IF('4 indices'!K7="o",1,0) -> 0 | R5: =IF('4 indices'!L7="o",1,0) -> 0 | S5: =IF('4 indices'!M7="o",1,0) -> 0 | T5: =IF('4 indices'!N7="o",1,0) -> 0 | U5: =SUM(Q5:T5) -> 0
B6: =IF(AND('4 indices'!C10="x",'4 indices'!D10="x",'4 indices'!E10="x",'4 indices'!F10="x"),A2&'4 indices'!C4&" "&'4 indices'!B10,"") ->  | C6: 1 | F6: ='4 indices'!B8 -> Mathilde | G6: =IF('4 indices'!C8="o",1,0) -> 0 | H6: =IF('4 indices'!D8="o",1,0) -> 0 | I6: =IF('4 indices'!E8="o",1,0) -> 0 | J6: =IF('4 indices'!F8="o",1,0) -> 0 | K6: 0 | L6: =IF('4 indices'!G8="o",1,0) -> 0 | M6: =IF('4 indices'!H8="o",1,0) -> 0 | N6: =IF('4 indices'!I8="o",1,0) -> 0 | O6: =IF('4 indices'!J8="o",1,0) -> 0 | P6: 0 | Q6: =IF('4 indices'!K8="o",1,0) -> 0 | R6: =IF('4 indices'!L8="o",1,0) -> 0 | S6: =IF('4 indices'!M8="o",1,0) -> 0 | T6: =IF('4 indices'!N8="o",1,0) -> 0 | U6: 0
B7: =IF(AND('4 indices'!C11="x",'4 indices'!D11="x",'4 indices'!E11="x",'4 indices'!F11="x"),A2&'4 indices'!C4&" "&'4 indices'!B11,"") ->  | C7: 1 | F7: ='4 indices'!B9 -> Anne | G7: =IF('4 indices'!C9="o",1,0) -> 0 | H7: =IF('4 indices'!D9="o",1,0) -> 0 | I7: =IF('4 indices'!E9="o",1,0) -> 0 | J7: =IF('4 indices'!F9="o",1,0) -> 0 | K7: 0 | L7: =IF('4 indices'!G9="o",1,0) -> 0 | M7: =IF('4 indices'!H9="o",1,0) -> 0 | N7: =IF('4 indices'!I9="o",1,0) -> 0 | O7: =IF('4 indices'!J9="o",1,0) -> 0 | P7: 0 | Q7: =IF('4 indices'!K9="o",1,0) -> 0 | R7: =IF('4 indices'!L9="o",1,0) -> 0 | S7: =IF('4 indices'!M9="o",1,0) -> 0 | T7: =IF('4 indices'!N9="o",1,0) -> 0 | U7: 0
B8: =IF(AND('4 indices'!C12="x",'4 indices'!D12="x",'4 indices'!E12="x",'4 indices'!F12="x"),A2&'4 indices'!C4&" "&'4 indices'!B12,"") ->  | C8: 1 | G8: =SUM(G4:G7) -> 0 | H8: =SUM(H4:H7) -> 0 | I8: 0 | J8: 0 | L8: =SUM(L4:L7) -> 0 | M8: =SUM(M4:M7) -> 0 | N8: =SUM(N4:N7) -> 0 | O8: =SUM(O4:O7) -> 0 | Q8: =SUM(Q4:Q7) -> 0 | R8: =SUM(R4:R7) -> 0 | S8: =SUM(S4:S7) -> 0 | T8: =SUM(T4:T7) -> 0
B9: =IF(AND('4 indices'!C13="x",'4 indices'!D13="x",'4 indices'!E13="x",'4 indices'!F13="x"),A2&'4 indices'!C4&" "&'4 indices'!B13,"") ->  | C9: 1 | E9: ='4 indices'!A10 -> Moyenne | F9: ='4 indices'!B10 -> 14 | G9: =IF('4 indices'!C10="o",1,0) -> 0 | H9: =IF('4 indices'!D10="o",1,0) -> 0 | I9: =IF('4 indices'!E10="o",1,0) -> 0 | J9: =IF('4 indices'!F10="o",1,0) -> 0 | K9: =SUM(G9:J9) -> 0 | L9: =IF('4 indices'!G10="o",1,0) -> 0 | M9: =IF('4 indices'!H10="o",1,0) -> 0 | N9: =IF('4 indices'!I10="o",1,0) -> 0 | O9: =IF('4 indices'!J10="o",1,0) -> 0 | P9: =SUM(L9:O9) -> 0
B10: =IF(AND('4 indices'!C14="x",'4 indices'!D14="x",'4 indices'!E14="x",'4 indices'!F14="x"),A2&'4 indices'!C4&" "&'4 indices'!B14,"") ->  | C10: 1 | F10: ='4 indices'!B11 -> 15 | G10: =IF('4 indices'!C11="o",1,0) -> 0 | H10: =IF('4 indices'!D11="o",1,0) -> 0 | I10: =IF('4 indices'!E11="o",1,0) -> 0 | J10: =IF('4 indices'!F11="o",1,0) -> 0 | K10: =SUM(G10:J10) -> 0 | L10: =IF('4 indices'!G11="o",1,0) -> 0 | M10: =IF('4 indices'!H11="o",1,0) -> 0 | N10: =IF('4 indices'!I11="o",1,0) -> 0 | O10: =IF('4 indices'!J11="o",1,0) -> 0 | P10: =SUM(L10:O10) -> 0
B11: =IF(AND('4 indices'!C15="x",'4 indices'!D15="x",'4 indices'!E15="x",'4 indices'!F15="x"),A2&'4 indices'!C4&" "&'4 indices'!B15,"") ->  | C11: =IF(B11="",1,2) -> 1 | F11: ='4 indices'!B12 -> 17 | G11: =IF('4 indices'!C12="o",1,0) -> 0 | H11: =IF('4 indices'!D12="o",1,0) -> 0 | I11: =IF('4 indices'!E12="o",1,0) -> 0 | J11: =IF('4 indices'!F12="o",1,0) -> 0 | K11: 0 | L11: =IF('4 indices'!G12="o",1,0) -> 0 | M11: =IF('4 indices'!H12="o",1,0) -> 0 | N11: =IF('4 indices'!I12="o",1,0) -> 0 | O11: =IF('4 indices'!J12="o",1,0) -> 0 | P11: 0
B12: =IF(AND('4 indices'!C16="x",'4 indices'!D16="x",'4 indices'!E16="x",'4 indices'!F16="x"),A2&'4 indices'!C4&" "&'4 indices'!B16,"") ->  | C12: 1 | F12: ='4 indices'!B13 -> 19 | G12: =IF('4 indices'!C13="o",1,0) -> 0 | H12: =IF('4 indices'!D13="o",1,0) -> 0 | I12: =IF('4 indices'!E13="o",1,0) -> 0 | J12: =IF('4 indices'!F13="o",1,0) -> 0 | K12: 0 | L12: =IF('4 indices'!G13="o",1,0) -> 0 | M12: =IF('4 indices'!H13="o",1,0) -> 0 | N12: =IF('4 indices'!I13="o",1,0) -> 0 | O12: =IF('4 indices'!J13="o",1,0) -> 0 | P12: 0
B13: =IF(AND('4 indices'!C17="x",'4 indices'!D17="x",'4 indices'!E17="x",'4 indices'!F17="x"),A2&'4 indices'!C4&" "&'4 indices'!B17,"") ->  | C13: 1 | G13: =SUM(G9:G12) -> 0 | H13: =SUM(H9:H12) -> 0 | I13: =SUM(I9:I12) -> 0 | J13: =SUM(J9:J12) -> 0 | L13: =SUM(L9:L12) -> 0 | M13: =SUM(M9:M12) -> 0 | N13: =SUM(N9:N12) -> 0 | O13: =SUM(O9:O12) -> 0
B14: =IF(AND('4 indices'!G6="x",'4 indices'!H6="x",'4 indices'!I6="x",'4 indices'!J6="x"),A2&'4 indices'!G4&" "&'4 indices'!B6,"") ->  | C14: 1 | E14: ='4 indices'!A14 -> Rang | F14: ='4 indices'!B14 -> 1e | G14: =IF('4 indices'!C14="o",1,0) -> 0 | H14: =IF('4 indices'!D14="o",1,0) -> 0 | I14: =IF('4 indices'!E14="o",1,0) -> 0 | J14: =IF('4 indices'!F14="o",1,0) -> 0 | K14: =SUM(G14:J14) -> 0 | L14: Impossible qu'il y ai plus de deux Oui
B15: =IF(AND('4 indices'!G7="x",'4 indices'!H7="x",'4 indices'!I7="x",'4 indices'!J7="x"),A2&'4 indices'!G4&" "&'4 indices'!B7,"") ->  | C15: 1 | F15: ='4 indices'!B15 -> 3e | G15: =IF('4 indices'!C15="o",1,0) -> 0 | H15: =IF('4 indices'!D15="o",1,0) -> 0 | I15: =IF('4 indices'!E15="o",1,0) -> 0 | J15: =IF('4 indices'!F15="o",1,0) -> 0 | K15: =SUM(G15:J15) -> 0 | L15: sur la ligne
B16: =IF(AND('4 indices'!G8="x",'4 indices'!H8="x",'4 indices'!I8="x",'4 indices'!J8="x"),A2&'4 indices'!G4&" "&'4 indices'!B8,"") ->  | C16: 1 | F16: ='4 indices'!B16 -> 5e | G16: =IF('4 indices'!C16="o",1,0) -> 0 | H16: =IF('4 indices'!D16="o",1,0) -> 0 | I16: =IF('4 indices'!E16="o",1,0) -> 0 | J16: =IF('4 indices'!F16="o",1,0) -> 0 | K16: 0 | L16: sur la colonne
